{"text_format":"2","workbook":"xlsx","n_sheets":8,"sheets":["Country","READ ME","Sector classification ","8D-ARCHITECTS","8E-CIVIL ENGINEERS","Database_n","Lists","Conditions"],"not_rendered":{"charts":0,"images":0,"macros":0,"external_links":1,"defined_names":32,"comments":0,"pivot_tables":0},"unopened":[],"bounds":{"document_bytes":16777216,"sheet_cells":100000,"run_cost":"one","rows_first":2000,"rows_last":500,"rows_between":2000,"halvings":0,"cell_chars":16384,"cell_head_chars":4096},"cells_cut":0,"cells_raw":0,"read":"whole","date_system":"1900"}

{"sheet":"Country","index":0,"n_rows":44,"n_cols":5,"rows_kept":44,"cut":false,"hidden":true,"merged":[]}
[]
[null,"Please select a country",null,null,"Country list"]
[null,"KAZ : Kazakhstan",null,null,"AUS : Australia"]
[{"$nulls":4},"AUT : Austria"]
[{"$nulls":4},"BEL : Belgium"]
[{"$nulls":4},"CAN : Canada"]
[{"$nulls":4},"CHL : Chile"]
[{"$nulls":4},"CZE : Czech republic"]
[{"$nulls":4},"DNK : Denmark"]
[{"$nulls":4},"EST : Estonia"]
[{"$nulls":4},"FIN : Finland"]
[{"$nulls":4},"FRA : France"]
[{"$nulls":4},"DEU : Germany"]
[{"$nulls":4},"GRC : Greece"]
[{"$nulls":4},"HUN : Hungary"]
[{"$nulls":4},"ISL : Iceland"]
[{"$nulls":4},"IRE : Ireland"]
[{"$nulls":4},"ISR : Israel"]
[{"$nulls":4},"ITA : Italy"]
[{"$nulls":4},"JPN : Japan"]
[{"$nulls":4},"KOR : Korea"]
[{"$nulls":4},"LVA : Latvia"]
[{"$nulls":4},"LUX : Luxembourg"]
[{"$nulls":4},"MEX : Mexico"]
[{"$nulls":4},"NLD : Netherlands"]
[{"$nulls":4},"NZL : New Zealand"]
[{"$nulls":4},"NOR : Norway"]
[{"$nulls":4},"POL : Poland"]
[{"$nulls":4},"PRT : Portugal"]
[{"$nulls":4},"SVK : Slovak Republic"]
[{"$nulls":4},"SVN : Slovenia"]
[{"$nulls":4},"ESP : Spain"]
[{"$nulls":4},"SWE : Sweden"]
[{"$nulls":4},"CHE : Switzerland"]
[{"$nulls":4},"TUR : Turkey"]
[{"$nulls":4},"GBR : United Kingdom"]
[{"$nulls":4},"USA : United States"]
[{"$nulls":4},"BRA : Brazil"]
[{"$nulls":4},"CHN : China"]
[{"$nulls":4},"IND : India"]
[{"$nulls":4},"IDN : Indonesia"]
[{"$nulls":4},"RUS : Russia"]
[{"$nulls":4},"ZAF : South Africa"]
[{"$nulls":4},"KAZ : Kazakhstan"]

{"sheet":"READ ME","index":1,"n_rows":76,"n_cols":14,"rows_kept":76,"cut":false,"hidden":false,"merged":[]}
["ИНСТРУКЦИИ ПО ЗАПОЛНЕНИЮ ОПРОСНИКА ОЭСР ПО ИНДИКАТОРАМ РЕГУЛИРОВАНИЯ 2018"]
[" Пожалуйста, прочтите и следуйте инструкциям, представленным в данном файле по:"]
["1.      Срокам "]
["2.      Структуре опросника  "]
["3.      Ответам на вопросы "]
["4.      Выбору юрисдикции для которой Вы будете отвечать на вопросы опросника "]
["5.      Вопросам, отмеченным светло-зеленым цветом  "]
["6.      Сопоставимости опросника с течением времени и вопросам, отмеченным в светло-розовом цвете "]
["7.      Выбору респондентов для ответов на вопросы опросника "]
[]
["Для получения разъяснений или по поводу дальнейших инструкций,  пожалуйста, обращайтесь в ОЭСР по адресу:","PMR2018@oecd.org (для вопросов на английском) или  yana.vaziakova@oecd.org (для вопросов на русском)"]
[]
["1.   Сроки "]
["Крайний срок подачи заполненного опросника ОЭСР:   ","Не позднее 20 апреля 2018 г. \nв случае задержки, пожалуйста, свяжитесь с ОЭСР и проинформируйте об этом ",{"$nulls":5},"2018-03-09"]
["Предварительные результаты для всех стран будут представлены во время рабочей группы Комитета ОЭСР по экономической политике (WP1 of the OECD Economic Policy Committee):","октябрь 2018 г."]
[" Публикация окончательной версии новых индикаторов для всех стран :","начало 2019 г. ",{"$nulls":11},"Early 2019"]
["2.  Структура опросника "]
["Опросник PMR состоит из 15 мастер-файлов в Excel. Каждый файл содержит копию \"Инструкций\", а также один или несколько листов с вопросами по отдельным секторам или направлениям регулирования."]
[]
[" Названия мастер-файлов"," Рабочие листы включены "]
["Энергетика ","Инструкции  + 1 - Электроэнергетика  + 2 - Природный газ + 2bis - Регулятор "]
["Электронные средства связи","Инструкции  + 3 -Электронные средства связи +3bis - Регулятор  "]
["Почтовое обслуживание","Инструкции  + 4 - Почтовое обслуживание"]
["Транспорт ","Инструкции + 5A - Ж/д перевозки + 5Abis -  ж/д регулятор + 5B - Воздушные перевозки + 5Bbis - Авиа регулятор + 5C - Водный транспорт  + 5D -  Автомобильные грузовые перевозки + 5E - Перевозки автобусами междугородного сообщения "]
["Водоснабжение","Инструкции + 6 - Водоснабжение + 6bis - Регулятор "]
["Розничная торговля ","Инструкции + 7A - Розничная торговля "]
["Такси","Инструкции + 7B - Такси "]
["Профессиональные услуги","Инструкции + 8A - Адвокаты + 8B - Нотариусы + 8C - Бухгалтеры  + 8D - Архитекторы + 8E - Инженеры гражданского строительства + 8F - Агенты недвижимости "]
["Прочие сектора ","Инструкции  + 9 - Прочие сектора"]
["Административное бремя для стартапов","Инструкции + 10 - Административное бремя "]
["Барьеры для торговли и инвестиций","Инструкции + 11 - Барьеры для торговли и инвестиций"]
["Цифровая экономика "," Инструкции  + 12 - Цифровая экономика"]
["Регулирование ","Инструкции  + 13A - Регулирование "]
["Управление государственными предприятиями ","Инструкции + 13B - Управление государственными предприятиями "]
["Государственные закупки ","Инструкции + 13C  - Государственные закупки"]
["3.  Как отвечать на вопросы опросника "]
[" В целях повышения эффективности процесса сбора данных просим респондентов  соблюдать следующие общие инструкции:"]
["Для своих ответов использовать только заранее отформатированные электронные опросники в формате Excel.xlsx. Пожалуйста, НЕ меняйте формат на Excel.xls или на другие форматы Excel, поскольку, ОЭСР не сможет обработать Ваши ответы, если они будут представлены в другом формате."]
["Если возможно, не используйте компьютеры, в которых не установлена операционная система Windows, а установлены такие системы как Mac или Unix, поскольку ОЭСР не сможет обработать Ваши ответы. Пожалуйста, свяжитесь с ОЭСР, если у вас нет альтернатив, чтобы мы смогли предоставить Вам дальнейшие инструкции."]
["В каждом рабочем листе "]
["‒     Ответы должны быть предоставлены в колонке, отмеченной \"Ответы 2018\", с использованием выпадающего меню ответов."]
["‒     Перед тем как выбрать ответ, прочтите определения, примечания и инструкции, размещенные рядом с почти каждым вопросом в колонке под названием \"Определения и Инструкции\" или \"Инструкции для прочтения перед ответом на вопросы\"."]
["‒     Ответы должны отражать ситуацию в Вашей стране на 1 января 2018 г. – т.е. ответы должны принимать во внимание только законы, стратегии и постановления действующие на 1 января 2018г. НЕ рассматривайте изменения в стратегиях,  политике, законах и постановлениях, вступивших в силу в вашей юрисдикции после этой даты."]
["‒     Если Вы хотите предоставить больше информации, пожалуйста, используйте колонку \"Комментарии к ответам\". Остальная часть файла будет заблокирована. "]
["Если Вы считаете, что вопрос неприменим к Вашей стране, Вы должны указать, что вопрос неприменим в колонке \"Комментарии к ответам\" и пояснить причины почему данный вопрос неприменим."]
["‒     Если Вы сомневаетесь как ответить на вопрос, свяжитесь с ОЭСР по электронному адресу: yana.vaziakova@oecd.org  или PMR2018@oecd.org"]
[" Мы часто просим представить ссылки на законы и постановления, а также и на другие документы, указанные в вопросе, для того чтобы помочь команде ОЭСР в процессе оценки данных. Наша команда будет проверять, правильно ли был понят вопрос и насколько ответы являются полными и соответствующими. Такая информация позволит избежать направления дополнительных запросов к Вам и ускорит работу команды. Пожалуйста, указывайте их в колонке \"Комментарии к ответам\"."]
["Пожалуйста, отвечайте на вопросы в каждом листе в порядке, в котором они представлены, поскольку, некоторые вопросы являются условными и зависят от ответов, данных на вопросы выше. Если на вопросы отвечали в правильном порядке, и по ошибке, выдали несоответствующий ответ, ячейка с несоответствующим ответом станет красной, для того чтобы привлечь Ваше внимание."]
["4.   Как выбрать юрисдикцию, по которой Вы будете отвечать на вопросы опросника "]
["Отвечая на вопросы, пожалуйста, учтите следующее:"]
["·         В каждом разделе опросника пожалуйста ссылайтесь на законы, постановления и стратегии, принятые на центральном уровне правительства, если это возможно (для федеративных государств - это будут постановления правительства на федеральном уровне). "]
["·      В случаях, когда законы, постановления и стратегии принимаются на субнациональном уовне (т.е. на уровне штата или ниже в странах с федеративным устройством), и, поэтому, могут быть различия в разных штатах, пожалуйста, основывайте Ваши ответы, по меньшей мере на те, которые превалируют в данной конкретной юрисдикции, такой как штат, регион, федеральная земля или иная юрисдикция. "]
["·        Для того чтобы обеспечить соответствие с течением времени, при выборе юрисдикции, Вам следует учитывать СПИСОК, представленный ниже. Если Ваша страна не находится в списке, Вам нужно указывать штат, РЕГИОН, ПРОВИНЦИЮ, ФЕДЕРАЛЬНУЮ ЗЕМЛЮ или иную юрисдикцию с самым высоким ВВП в вашей стране (не ВВП на душу населения). Такой критерий направлен на обеспечение репрезентативности и сопоставимости ответов с течением времени и по странам.  "]
["Однако, если в прошлом, отвечая на вопросы опросника PMR, Ваша страна каждый раз использовала другую юрисдикцию, Вы можете продолжить с этой юрисдикцией. В этом случае, пожалуйста, укажите в специальном блоке в каждом разделе опросника название юрисдикции и поясните, что эта юрисдикция также использовалась в опросниках PMR в прошлом."]
["СПИСОК:"]
["Для следующих стран, пожалуйста, представьте свои ответы по следующим штатам: "]
["‒       Австралия - Новый Южный Уэльс  "]
["‒       Канада - Онтарио "]
["‒       Германия - Бавария  "]
["‒      Индонезия - Специальный столичный округ Джакарта ( DKI Джакарта)"]
["‒      Мексика - Федеральный округ Мехико  "]
["‒      Швейцария - кантон Цурих  "]
["‒      Соединенные Штаты - Нью-Йорк "]
[]
["·        В каждом разделе есть вопрос, в котором запрашиваются детали о юрисдикции, для которой заполняется этот раздел. Пожалуйста, ответьте на эти вопросы, для того чтобы у ОЭСР была возможность вести учет по этой юрисдикции, к которой относятся ответы, и валидировать Ваши ответы."]
["·          Единственное исключение  - это Раздел  7A.4  по Розничной торговле, в котором задаются вопросы о регулировании часов работы магазинов по двум разным юрисдикциям  (как это делалось в прошлом)."]
["·         Если Вы хотите, чтобы опросник PMR оценил объем различий в регулировании в разных регионах или штатах в Вашей стране, Вы также можете заполнить опросник для двух и более юрисдикций. Если Вы отвечаете по более чем одной юрисдикции, сделайте копию соответствующего рабочего листа, ответьте на каждую копию по каждой юрисдикции, в каждом случае указывайте юрисдикцию, к которой относится Ваш ответ и как Вы выбрали эту юрисдикцию."]
["5.   Ответы отмеченные светло-зеленым"]
["Некоторые вопросы отмечены светло-зеленым цветом, поскольку ответы на эти вопросы ТОЛЬКО для стран-членов ОЭСР будут взяты из других баз данных ОЭСР. Странам, которые не являются странами-членами ОЭСР нужно будет ответить на эти вопросы."]
["6.  Сопоставимость с течением времени опросника PMR и вопросов, отмеченных в светло-розовом цвете "]
[" Значительные изменения, произошедшие в опроснике 2018 г. предполагают, что индикаторы 2018 года не будут сопоставимы с предыдущими версиями (1998, 2003, 2008 и 2013 гг.). Для того чтобы обеспечить сопоставимость, ОЭСР планирует добавить вопросы из предыдущих опросников в структуру 2018 г. (для того чтобы отразить изменения в структуре субиндикаторов) и рассчитать серию индикаторов PMR за 2018 г. на основе этого сокращенного охвата. Сокращенная версия индикаторов PMR будет содержать сокращенный объем информации, но они будут сопоставимы по времени."]
[" Данный подход был выбран делегациями ОЭСР на совещании рабочей группы WP1 в ОЭСР в октябре 2017 г. Это предполагает, что некоторые вопросы в опроснике за 2013 г. были добавлены в опросник 2018 г. в целях сопоставимости индикаторов по времени. Эти вопросы отмечены в светло-розовом цвете. Чрезвычайно важно, чтобы Вы ответили на эти вопросы, иначе, будет невозможно сгенерировать индикаторы PMR за предыдущие периоды, которые будут сопоставимы с индикаторами 2018 г. "]
["7.    Как выбрать правильных респондентов для ответов на вопросы опросника "]
["Пожалуйста, определите, кто в Вашей национальной администрации сможет лучше всего ответить на каждую часть опросника. Для ответов на вопросы анкеты необходимы детальные знания соответствующего направления политики и отраслей. Привлечение правильных экспертов обеспечивает полноту, актуальность и правильность ответов, и точное отражение индикаторами регуляторной среды в Вашей стране."]
["Для сетевых секторов: отраслевой экономический регулятор или соответствующее министерство должны обладать соответствующими компетенциями."]
["Для профессиональных услуг: соответствующее министерство или профессиональные палаты должны обладать соответствующими компетенциями."]

{"sheet":"Sector classification ","index":2,"n_rows":14,"n_cols":3,"rows_kept":14,"cut":false,"hidden":false,"merged":[[3,0,4,0],[3,1,4,1],[5,0,6,0],[5,1,6,1],[13,2,14,2],[13,0,14,0],[13,1,14,1],[7,0,8,0],[9,0,10,0],[9,1,10,1],[11,0,12,0],[3,2,4,2],[5,2,6,2],[7,2,8,2],[9,2,10,2],[11,2,12,2]]}
[null,"Описание содержания данной части анкеты  "]
[]
[" Название рабочего листа "," Содержание рабочего листа "," Соответствующие коды из  международной стандартной отраслевой классификации ООН всех видов экономической деятельности, МСКО (ISIC)"]
["8A-Адвокаты ","В данном разделе содержатся вопросы о регулировании в профессии адвокатов, которые являются профессионалами, обычно осуществляющими законное представительство интересов одной из сторон в суде против другой стороны и других судебных органах, консультирование и представительство по гражданским делам, консультирование и представительство по уголовным делам, консультирование и представительство по  вопросам трудовых споров и общее консультирование, подготовка юридических документов (включая сделки, завещания и трасты).","Включено в МСКО версия 4.0 6910"]
[]
["8B - Нотариусы ","В данном разделе содержатся вопросы о регулировании в профессии нотариуса, т.е.  профессионалов, которые обычно подтверждают аутентичность законных сделок, контрактов заявлений по присягой и других юридических документов. Они так же могут  предоставлять юридические консультации. Такие профессионалы могут  быть не во всех юрисдикциях.","Включено в МСКО версия 4.0 6910 "]
[]
["8C-Бухгалтеры  "," В данном разделе содержатся вопросы о регулировании в профессии бухгалтера, т.е. профессионалов, которые могут: подготовить финансовые отчеты, вести платежные ведомости, сводить баланс предприятия в конце года и готовить налоговые декларации предприятий и физических лиц. ","Включено в МСКО версия 4.0 6920 "]
[null,"За исключением аудиторов "]
["8D- Архитекторы "," В данном разделе содержатся вопросы о регулировании профессии архитектора, т.е. профессионалов, которые  обычно планируют, проектируют и анализируют конструкции зданий, а так же осуществляют градостроительное проектирование и украшение интерьера.","Включено в МСКО версия 4. 0 7110"]
[]
["8E- Инженеры гражданского строительства ","В данном разделе содержатся вопросы о регулировании профессии инженера гражданского строительства, т.е. профессионалы, которые обычно занимаются проектированием, строительством и содержанием зданий, а так же дорог, мостов, дамб и т.д. ","Включено в МСКО версия 4. 0 7110"]
[null,"За  исключением других видов инженеров "]
["8F-Агенты недвижимости "," В данном разделе содержатся вопросы о регулировании профессии агента недвижимости, т.е. профессионалов, которые занимаются организацией продажи, сдачи в аренду и аренды или управлением объектами недвижимости.","Включено в МСКО версия 4. 0 6820"]

{"sheet":"8D-ARCHITECTS","index":3,"n_rows":85,"n_cols":24,"rows_kept":85,"cut":false,"hidden":false,"merged":[[86,7,86,9],[25,4,25,7],[69,4,69,7],[70,4,70,7],[71,4,71,7],[66,4,66,7],[67,3,67,7],[68,4,68,7],[53,4,53,7],[41,4,41,7],[44,4,44,7],[46,4,46,7],[49,4,49,7],[55,8,61,8],[61,6,61,7],[55,5,55,7],[10,8,21,8],[32,8,33,8],[38,5,38,7],[54,4,54,7],[60,6,60,7],[56,6,56,7],[57,6,57,7],[27,4,27,7],[30,4,30,7],[34,4,34,7],[35,4,35,7],[28,4,28,7],[29,4,29,7],[32,4,32,7],[33,4,33,7],[26,3,26,7],[2,14,2,23],[3,3,3,7],[4,3,4,7],[8,3,8,7],[5,4,5,7],[6,4,6,7],[7,4,7,7],[2,9,2,13],[9,4,9,7],[21,5,21,7],[23,4,23,7],[22,4,22,7],[24,4,24,7],[15,5,15,7],[16,5,16,7],[31,3,31,7],[45,3,45,7],[75,7,75,8],[39,4,39,7],[40,5,40,7],[36,5,36,7],[37,4,37,7],[42,5,42,7],[62,5,62,7],[63,4,63,7],[64,4,64,7],[65,4,65,7],[52,4,52,7],[48,4,48,7],[51,4,51,7],[43,4,43,7],[47,4,47,7],[82,7,82,8],[83,7,83,8],[84,7,84,8],[50,4,50,7],[58,6,58,7],[59,6,59,7],[68,8,69,8],[70,8,71,8],[76,7,76,8],[77,7,77,8],[78,7,78,8],[79,7,79,8],[80,7,80,8],[81,7,81,8]]}
[null,null,null,"ОПРОСНИК ОЭСР ПО ИНДИКАТОРАМ РЕГУЛИРОВАНИЯ 2018"]
[]
[{"$nulls":9},"2013 revisions"]
["Code 2018","Status","Code 2013","Профессии - АРХИТЕКТОРЫ ",{"$nulls":4},"Инструкции для прочтения перед ответом на вопросы","For info.\nAnswers in PMR\ndatabase\n 2013","Proposed Revision to 2013 PMR database","Justification for Proposed Revision to 2013 PMR database","Final 2013 value","Comments on final choice","Ответы 2018","Комментарии к ответам","2018 value proposed by OECD","Reason for proposing a value different from that in column O","2018 value proposed by country (if different from that in column Q)","Reason for country proposing different value","OECD comment","Country comment","Reason for final decision by OECD","Final 2018 value"]
[null,null,null,"Важные инструкции для респондентов - ПОЖАЛУЙСТА ПРОЧТИТЕ"]
[{"$f":"MID(E6,FIND(\"(Q\",E6)+1,6)","v":"Q8d.01"},"I",null,null,"Существует ли в вашей стране профессия архитектор? (Q8d.01)",null,null,null,"Если ответ \"нет\", пропустите данный раздел  \nЕсли ответ \"да\", перейдите к следующему вопросу","",null,null,{"$f":"IF(AND(J6=\"\",K6=\"\"),\"\",IF(K6=\"\",J6,K6))","v":""},null,null,null,{"$f":"IF(O6=\"\",\"\",O6)","v":""},{"$nulls":6},{"$f":"IF(AND(S6=\"\",Q6=\"\"),\"\",IF(S6=\"\",Q6,S6))","v":""}]
[{"$f":"MID(E7,FIND(\"(Q\",E7)+1,6)","v":"Q8d.02"},"I",null,null,"Пожалуйста, укажите по какой конкретно профессии вы отвечаете на вопросы анкеты (Q8d.02)\n\nПожалуйста, укажите название на вашем языке с переводом на английский в колонке \"Комментарии\" ",null,null,null," Примечание: Если существует более одной профессии, подпадающей под описание выше, и некоторые/все  требования отличаются для каждой профессии, респондентам необходимо выбрать профессию, к которой применяются самые строгие требования и отвечать только по этой профессии .","",null,null,{"$f":"IF(AND(J7=\"\",K7=\"\"),\"\",IF(K7=\"\",J7,K7))","v":""},null,null,null,{"$f":"IF(O7=\"\",\"\",O7)","v":""},{"$nulls":6},{"$f":"IF(AND(S7=\"\",Q7=\"\"),\"\",IF(S7=\"\",Q7,S7))","v":""}]
[{"$f":"MID(E8,FIND(\"(Q\",E8)+1,6)","v":"Q8d.03"},"I",null,null," Для какой юрисдикции вы отвечаете на вопрос? (Q8d.03)\n\nПожалуйста, укажите название юрисдикции в колонке \"Комментарии\" ",{"$nulls":4},"",null,null,"",null,null,null,"",{"$nulls":6},""]
[null,null,null,"РАЗДЕЛ  8d.1. Эксклюзивные и совместные эксклюзивные права на занятие деятельностью и защищенный титул ",{"$nulls":4},"Инструкции: вопросы в данном разделе относятся только к физическим лицам (т.е. индивидуальным профессионалам), не к юридическим лица (т.е. к профессиональным компаниям)."]
[null,null,null,"","Имеют ли архитекторы  эксклюзивные или совместные эксклюзивные права заниматься видами деятельности, перечисленными ниже? (Q8d.1.1)",null,null,null,"Определения - ПОЖАЛУЙСТА ПРОЧТИТЕ"]
[{"$f":"MID(E$10,FIND(\"(Q\",E$10)+1,7)&\"_1\"","v":"Q8d.1.1_1"},"E","Q8.1.4_1",null,"","Технико-экономические обоснования ",null,null,null,{"$error":"#N/A"},null,null,{"$f":"IF(AND(J11=\"\",K11=\"\"),\"\",IF(K11=\"\",J11,K11))","v":{"$error":"#N/A"}},null,null,null,{"$f":"IF(O11=\"\",\"\",O11)","v":""},{"$nulls":6},{"$f":"IF(AND(S11=\"\",Q11=\"\"),\"\",IF(S11=\"\",Q11,S11))","v":""}]
[{"$f":"MID(E$10,FIND(\"(Q\",E$10)+1,7)&\"_2\"","v":"Q8d.1.1_2"},"E","Q8.1.4_3",null,"","Проектирование и планирование ",null,null,null,{"$error":"#N/A"},null,null,{"$error":"#N/A"},null,null,null,"",{"$nulls":6},""]
[{"$f":"MID(E$10,FIND(\"(Q\",E$10)+1,7)&\"_3\"","v":"Q8d.1.1_3"},"E","Q8.1.4_4",null,null,"Представительство для получения разрешений (подписывание проектов) ",null,null,null,{"$error":"#N/A"},null,null,{"$error":"#N/A"},null,null,null,"",{"$nulls":6},""]
[{"$f":"MID(E$10,FIND(\"(Q\",E$10)+1,7)&\"_4\"","v":"Q8d.1.1_4"},"N",null,null,null,"Администрирование тендеров и договоров ",null,null,null,"",null,null,"",null,null,null,"",{"$nulls":6},""]
[{"$f":"MID(E$10,FIND(\"(Q\",E$10)+1,7)&\"_5\"","v":"Q8d.1.1_5"},"N",null,null,"","Дача экспертных показаний (например, в суде) ",null,null,null,"",null,null,"",null,null,null,"",{"$nulls":6},""]
[{"$f":"MID(E$10,FIND(\"(Q\",E$10)+1,7)&\"_6\"","v":"Q8d.1.1_6"},"N",null,null,"","Подготовка/подача/подписание документов технического контроля и технического соответствия или заверение проекта и соблюдение законодательства в области строительства/стандартов исполнения, качества, затрат и безопасности  ",null,null,null,"",null,null,"",null,null,null,"",{"$nulls":6},""]
[{"$f":"MID(E$10,FIND(\"(Q\",E$10)+1,7)&\"_7\"","v":"Q8d.1.1_7"},"E","Q8.1.4_5",null,"","Управление и надзор за проведением строительных работ, включая надзор за работой специалистов ",null,null,null,{"$error":"#N/A"},null,null,{"$error":"#N/A"},null,null,null,"",{"$nulls":6},""]
[{"$f":"MID(E$10,FIND(\"(Q\",E$10)+1,7)&\"_8\"","v":"Q8d.1.1_8"},"E","Q8.1.4_7",null,null,"Управление строительными затратами ",null,null,null,{"$error":"#N/A"},null,null,{"$error":"#N/A"},null,null,null,"",{"$nulls":6},""]
[{"$f":"MID(E$10,FIND(\"(Q\",E$10)+1,7)&\"_9\"","v":"Q8d.1.1_9"},"E","Q8.1.4_2",null,"","Топографическая детерминация, демаркация и геодезические съемки ",null,null,null,{"$error":"#N/A"},null,null,{"$error":"#N/A"},null,null,null,"",{"$nulls":6},""]
[{"$f":"MID(E$10,FIND(\"(Q\",E$10)+1,7)&\"_10\"","v":"Q8d.1.1_10"},"E","Q8.1.4_8",null,null,"Градостроительное и ландшафтное планирование  ",null,null,null,{"$error":"#N/A"},null,null,{"$error":"#N/A"},null,null,null,"",{"$nulls":6},""]
[{"$f":"MID(E$10,FIND(\"(Q\",E$10)+1,7)&\"_11\"","v":"Q8d.1.1_11"},"E","Q8.1.4_9",null,"","Дизайн интерьера  ",null,null,null,{"$error":"#N/A"},null,null,{"$error":"#N/A"},null,null,null,"",{"$nulls":6},""]
[{"$f":"MID(E$10,FIND(\"(Q\",E$10)+1,7)&\"_12\"","v":"Q8d.1.1_12"},"N",null,null,null," Прочее (Пожалуйста, перечислите любые виды деятельности, на которые архитекторы могут иметь эксклюзивные или совместные эксклюзивные права,  в случае с свместным правом на занятие деятельностью , укажите с какими профессиями в колонке \"Комментарии\")",null,null,null,"",null,null,"",null,null,null,"",{"$nulls":6},""]
[{"$f":"MID(E23,FIND(\"(Q\",E23)+1,8)","v":"Q8d.1.1a"},"I",null,null," Пожалуйста, предоставьте ссылку на закон/постановление, которое устанавливаетвиды деятельности зарезервированные за данной профессией  (Q8d.1.1a)",{"$nulls":4},"",null,null,"",null,null,null,"",{"$nulls":6},""]
[{"$f":"MID(E24,FIND(\"(Q\",E24)+1,7)","v":"Q8d.1.2"},"N",null,null,"Защищен ли законом профессиональный титул архитектора? (Q8d.1.2)",null,null,null,"Определение: Профессиональный титул - этот термин используется для того чтобы обозначить определенную квалификацию. Профессиональный титул  защищен, если государственные органы определяют условия  присуждения такого титула или дают определенному органу (например, профессиональной организации)  полномочия на выдачу титула и если они защищают использвование титула через установление штрафов или через другие меры, при его несответствующем использовании. Профессиональный титул  может быть комбинирован с существованием исключительных или совместных исключительных прав или нет. Если нет таких ограничений, любой может заниматься такой деятельностью,  но использование титула разрешается только  лицам, соответствующим требовнаиям и имеющим полномочия на использование титула.","",null,null,"",null,null,null,"",{"$nulls":6},""]
[{"$f":"MID(E25,FIND(\"(Q\",E25)+1,8)","v":"Q8d.1.2a"},"I",null,null," Пожалуйста, предоставьте ссылку на закон/постановление, которым устанавливается такая защита в колонке \"Комментарии\"  (Q8d.1.2a)",{"$nulls":4},"",null,null,"",null,null,null,"",{"$nulls":6},""]
[{"$f":"MID(E26,FIND(\"(Q\",E26)+1,7)","v":"Q8d.1.3"},"SPL","Q8.2.1_ARC",null," как регулируется доступ к данной профессии? (Q8d.1.3)",{"$nulls":4},{"$error":"#N/A"},null,null,{"$error":"#N/A"},null,null,null,"",{"$nulls":6},""]
[null,null,null,"РАЗДЕЛ 8d.2. Количественные ограничения для доступа на рынок ",{"$nulls":4},"Инструкции: Вопросы данного раздела применяются к физическим лицам (т.е. индивидуальным профессионалам) и к юридическим лицам (профессиональным компаниям)."]
[{"$f":"MID(E28,FIND(\"(Q\",E28)+1,7)","v":"Q8d.2.1"},"N",null,null,"Лимитируется ли количество  архитекторов, которым разрешено работать в вашей стране, законом или решением профессионального органа (или комбинацией первого и втрого)? (Q8d.2.1)",{"$nulls":4},"",null,null,{"$f":"IF(AND(J28=\"\",K28=\"\"),\"\",IF(K28=\"\",J28,K28))","v":""},null,null,null,{"$f":"IF(O28=\"\",\"\",O28)","v":""},{"$nulls":6},{"$f":"IF(AND(S28=\"\",Q28=\"\"),\"\",IF(S28=\"\",Q28,S28))","v":""}]
[{"$f":"MID(E29,FIND(\"(Q\",E29)+1,8)","v":"Q8d.2.1a"},"I",null,null,"Пожалуйста, предоставьте ссылку на закон/постановление, которым устанавливается такое ограничение в колонке \"Комментарии\" (Q8d.2.1a)",{"$nulls":4},"",null,null,"",null,null,null,"",{"$nulls":6},""]
[{"$f":"MID(E30,FIND(\"(Q\",E30)+1,7)","v":"Q8d.2.2"},"N",null,null,"Существуют ли территориальные ограничения по возможности архтекторов работать в вашей юрисдикции, которые устанавливаются законом или решением профессиональной организации (или комбинацией первого и второго)? (Q8d.2.2)",null,null,null,"Инструкции","",null,null,"",null,null,null,"",{"$nulls":6},""]
[{"$f":"MID(E31,FIND(\"(Q\",E31)+1,8)","v":"Q8d.2.2a"},"I",null,null,"Пожалуйста, предоставьте ссылку на закон/постановление, которым устанавливается такое ограничение в колонке \"Комментарии\" (Q8d.2.2a)",{"$nulls":4},"",null,null,"",null,null,null,"",{"$nulls":6},""]
[null,null,null,"РАЗДЕЛ 8d.3. Качественные ограничения для доступа на рынок "]
[{"$f":"MID(E33,FIND(\"(Q\",E33)+1,7)","v":"Q8d.3.1"},"N",null,null,"Сколько существует маршрутов для получения квалификации, для того чтобы на законных основаниях заниматься профессиональной деятельностью? (Q8d.3.1)",null,null,null,"Определение:  Маршрут - это процесс, при помощи которого лицо может получить квалификации для того чтобы заниматься профессиональной деятельностью на законном основании (например,  один  маршрут может потребовать диплом университета плюс 1 год обязательной практики,  в то время как для другого маршрута может потребоваться  краткосрочный курс профессионального обучения и гораздо более длительный период обязательной практики).\n\nИнструкции: Если нет эксклюзивных или совместных эксклюзивных прав, ответ  на этот вопрос будет \"не применимо\" (указать в колонке \"Комментарии\"), поскольку любой сможет заниматься такой деятельностью.","",null,null,{"$f":"IF(AND(J33=\"\",K33=\"\"),\"\",IF(K33=\"\",J33,K33))","v":""},null,null,null,{"$f":"IF(O33=\"\",\"\",O33)","v":""},{"$nulls":6},{"$f":"IF(AND(S33=\"\",Q33=\"\"),\"\",IF(S33=\"\",Q33,S33))","v":""}]
[{"$f":"MID(E34,FIND(\"(Q\",E34)+1,8)","v":"Q8d.3.1a"},"I",null,null," Пожалуйста, предоставьте детальную информацию по количеству альтернативных маршрутов доступа к професси и информацию об их основных требованиях, или ссылку на вебсайт, в котором описаны эти разные маршруты в колонке \"Комментарии\" (Q8d.3.1a)",{"$nulls":4},"",null,null,"",null,null,null,"",{"$nulls":6},""]
[{"$nulls":4},"Для вопросов о требованиях в отношении образования (Q8d.3.2 to Q8d.3.4 ), если существует более одного маршрута доступа к профессии, пожалуйста, выберите один и ответьте на вопросы только в отношении этого маршрута."]
[{"$f":"MID(E36,FIND(\"(Q\",E36)+1,7)","v":"Q8d.3.2"},"E","Q8.2.5a",null,"Требуется ли  диплом о высшем образовании или курс профессионального обучения для того чтобы на законных основаниях  заниматься  профессиональной нотариальнной деятельностью  или получить  профессиональный титул , в тех случаях, когда он защищен законом  (уставлено ли это требование законом или решением профессионального органа, или сочетанием первого и второго)? (Q8d.3.2)",null,null,null,"Определение: диплом университета - это диплом, который выдается после окончания курса обучения, на который можно поступить после получения диплома полного курса школы (например, после уровня  A, и т.п.). Курс профессионального обучения обеспечивает обучение профессии для определенных профессиональных ролей или направлений карьеры, для него может не потребоваться наличие диплома школы.\n\nПримечание: ответ должен быть \"нет\" , только если ни степень ни профессиональный курс не требуются.\n",{"$error":"#N/A"},null,null,{"$f":"IF(AND(J36=\"\",K36=\"\"),\"\",IF(K36=\"\",J36,K36))","v":{"$error":"#N/A"}},null,null,null,{"$f":"IF(O36=\"\",\"\",O36)","v":""},{"$nulls":6},{"$f":"IF(AND(S36=\"\",Q36=\"\"),\"\",IF(S36=\"\",Q36,S36))","v":""}]
[{"$f":"MID(F37,FIND(\"(Q\",F37)+1,8)","v":"Q8d.3.2a"},"E","Q8.2.5b","",""," Если требуется диплом университета или прохождение курса профессионльного обучения,  какова продолжительность обучения? (Q8d.3.2a)",null,null," Инструкции:\n- если требуется стажировка в рамках академического курса, продолжительность такой стажировки должна защитываться при расчете срока обучения для получения степени.\nЕсли законом не устанавливатеся необходимая продолжительность обучения для получения степени, в ответе используется обычная продолжительность.\n",{"$error":"#N/A"},null,null,{"$error":"#N/A"},null,null,null,"",{"$nulls":6},""]
[{"$f":"MID(E38,FIND(\"(Q\",E38)+1,7)","v":"Q8d.3.3"},"E","Q8.2.5c",""," Требуется ли дополнительное образование для того чтобы на законных основаниях заниматься профессиональной деятельностью или для получения профессионального титула, когда титул защищен законом (установлено ли такое требование законом или решением профессионального органа, или сочетанием первого и второго)? (Q8d.3.3)",null,null,null," Примечание: дополнительное образование -  курс магистратуры или послевузовского образования. \n\nИнструкции:  для ответа важно - требуется ли такой курс дополнительного образования. Ответ должен быть \"нет\"  ,если курс факультативный и можно заниматься профессиональной деятельностью, даже если такой курс не пройден.\n",{"$error":"#N/A"},null,null,{"$error":"#N/A"},null,null,null,"",{"$nulls":6},""]
[{"$f":"MID(F39,FIND(\"(Q\",F39)+1,8)","v":"Q8d.3.3a"},"E","Q8.2.5d","",""," Если требуется дополнительное образование, какова его продолжительность? (Q8d.3.3a)",null,null," Примечание: если стажировка необходима как часть дополнительного образования, продолжительность  такой стажировки должна учитываться при рассчете  общей продолжительности такого дополнительного образования.",{"$error":"#N/A"},null,null,{"$error":"#N/A"},null,null,null,"",{"$nulls":6},""]
[{"$f":"MID(E40,FIND(\"(Q\",E40)+1,7)","v":"Q8d.3.4"},"E","Q8.2.5e","","Тебуется ли соответствующая обязательная практика для того чтобы на законных основаниях заниматься профессиональной деятельностью или для получения профессионального титула, в случях, когда такой титул защищается законом (устанавливается ли такое требование законом или решением профессионльного органа  или сочетанием первого и второго)? (Q8d.3.4)",null,null,null,"Инструкция: если требуется стажировка в рамках академического курса, стажировка должна входить в продолжительность программы высшего образования/программы обучения. Обязательная практика проходит после завершения обучения или в некоторых случаях может быть альтернативой обучению.",{"$error":"#N/A"},null,null,{"$error":"#N/A"},null,null,null,"",{"$nulls":6},""]
[{"$f":"MID(F41,FIND(\"(Q\",F41)+1,8)","v":"Q8d.3.4a"},"E","Q8.2.5f","","","Если требуется соответствующая обязательная практика, какова ее продолжительность? (Q8d.3.4a)",null,null,null,{"$error":"#N/A"},null,null,{"$error":"#N/A"},null,null,null,"",{"$nulls":6},""]
[{"$f":"MID(E42,FIND(\"(Q\",E42)+1,7)","v":"Q8d.3.5"},"E","Q8.2.5g","","Существует ли требование сдать один или несколько профессиональных экзаменов для того чтобы на законных основаниях заниматься профессиональной деятельностью или для получения профессионального титула, в случаях, когда титул защищен законом? (Q8d.3.5)",null,null,null,"Определение:  Профессиональный экзамен- это экзамен, который профессионал-кандидат должен успешно сдать для того чтобы получить разрешение на занятие профессиональной деятельностью. Обычный пример - это экзамен в коллегии, который необходимо сдать, чтобы стать адвокатом. \nЭкзамен может проводить государственный орган-регулятор и/или профессиональная организация ",{"$error":"#N/A"},null,null,{"$error":"#N/A"},null,null,null,"",{"$nulls":6},""]
[{"$f":"MID(F43,FIND(\"(Q\",F43)+1,8)","v":"Q8d.3.5a"},"N",null,null,null," Если вы ответили \"да\" на вопрос выше, кто администрирует этот профессиональный экзамен? (Q8d.3.5a)",null,null,null,"",null,null,"",null,null,null,"",{"$nulls":6},""]
[{"$f":"MID(E44,FIND(\"(Q\",E44)+1,7)","v":"Q8d.3.6"},"E","Q8.2.5h","","Обязательно ли для индивидуального профессионала состоять в профессиональной организации для того чтобы  заниматься профессиональной деятельностью на законном основании, в случаях, когда  это установлено законом? (Q8d.3.6)",{"$nulls":4},{"$error":"#N/A"},null,null,{"$error":"#N/A"},null,null,null,"",{"$nulls":6},""]
[{"$f":"MID(E45,FIND(\"(Q\",E45)+1,8)","v":"Q8d.3.6a"},"I",null,null," Пожалуйста, предоставьте ссылку на закон/постановление, которым устанавливается такая обязанность  колонке \"Комментарии\" (Q8d.3.6a)",{"$nulls":4},"",null,null,"",null,null,null,"",{"$nulls":6},""]
[null,null,null,"РАЗДЕЛ 8d.4. Ограничения по правовой форме бизнеса, рекламе, компаниям, сотрудничеству и другие ограничения "]
[{"$f":"MID(E47,FIND(\"(Q\",E47)+1,7)","v":"Q8d.4.1"},"E","Q8.3.4",null,"Существуют ли ограничения по правовой форме бизнеса (устанавливаются ли такие ограничения законом или решением профессионального органа или сочетанием первого и второго)? (Q8d.4.1)",null,null,null,"Детальные определения",{"$error":"#N/A"},null,null,{"$f":"IF(AND(J47=\"\",K47=\"\"),\"\",IF(K47=\"\",J47,K47))","v":{"$error":"#N/A"}},null,null,null,{"$f":"IF(O47=\"\",\"\",O47)","v":""},{"$nulls":6},{"$f":"IF(AND(S47=\"\",Q47=\"\"),\"\",IF(S47=\"\",Q47,S47))","v":""}]
[{"$f":"MID(E48,FIND(\"(Q\",E48)+1,8)","v":"Q8d.4.1a"},"I",null,null," Пожалуйста, предоставьте ссылку на закон/постановление, которым устанавливается такая обязанность в колонке \"Комментарии\"  (Q8d.4.1a)",{"$nulls":4},"",null,null,"",null,null,null,"",{"$nulls":6},""]
[{"$f":"MID(E49,FIND(\"(Q\",E49)+1,7)","v":"Q8d.4.2"},"N",null,""," Могут ли не архитекторы иметь долю в капитале архитекторской компании? (Q8d.4.2)",null,null,null,"Определения: \n-Доля собственности означает владение долей в капитале компании.\n- Архитекторская  компания -это любая правовая форма, в которой архитекторы могут сотрудничать, для того чтобы предоставлять услуги клиентам.\n\nПримечание: Этот вопрос  относится только к ограничениям для физических лиц (т.е. индивидуальным  профессионалам  и направлен на то чтобы подтвердить, что только архитекторы могут быть держателями доли в капитале или любые другие лица тоже  ","",null,null,"",null,null,null,"",{"$nulls":6},""]
[{"$f":"MID(E50,FIND(\"(Q\",E50)+1,7)","v":"Q8d.4.3"},"N",null,null," Существуют ли ограничения о том, какие компании могут иметь долю в капитале архитекторской компании  (устанавливаемые законом или решением профессионального органа или сочетанием первого и второго)? (Q8d.4.3)",null,null,null,"Примечание:  Этот вопрос относится только к ограничениям, устанавливаемым  для юридических лиц (т.е. компаний), и направлен на то, чтобы подтвердить, что только архитекторские компании могут держать долю  в капитале или это разрешено так же и другими компаниям.","",null,null,"",null,null,null,"",{"$nulls":6},""]
[{"$f":"MID(E51,FIND(\"(Q\",E51)+1,8)","v":"Q8d.4.3a"},"I",null,null," Пожалуйста, предоставьте ссылку на закон/постановление, которым устанавиваются такие ограничения на долю  собственности в капитале  в колонке \"Комментарии\"  (Q8d.4.3a)",{"$nulls":4},"",null,null,"",null,null,null,"",{"$nulls":6},""]
[{"$f":"MID(E52,FIND(\"(Q\",E52)+1,7)","v":"Q8d.4.4"},"N",null,null,"  Могут ли не архитекторы иметь голосующие права в архитекторской компании? (Q8d.4.4)",null,null,null," Примечание: Этот вопрос относится только к ограничениям для физических лиц (т.е. лиц) и направлен на то чтобы подтвердить, что только архитекторы могут иметь голосующие права или так же и другие лица ","",null,null,"",null,null,null,"",{"$nulls":6},""]
[{"$f":"MID(E53,FIND(\"(Q\",E53)+1,7)","v":"Q8d.4.5"},"N",null,null,"Существуют ли ограничения по компаниям, которые могут иметь голосующие права в архитекторской компании   (установленные законом или решением профессионального органа, или сочетанием первого и второго)? (Q8d.4.5)",null,null,null,"Примечание: Этот вопрос относится только к ограничениям, устанавливаемым для юридических лиц (т.е.компаний) и направлен на то, чтобы подтвердить, что только архитекторские компании могут иметь голосующие права, или  и другие фирмы тоже ","",null,null,"",null,null,null,"",{"$nulls":6},""]
[{"$f":"MID(E54,FIND(\"(Q\",E54)+1,8)","v":"Q8d.4.5a"},"I",null,null," Пожалуйста, предоставьте ссылку на закон/постановление, которым устанавливаются такие ограничения по голосующим правам в колонке \"Комментарии\" (Q8d.4.5a)",{"$nulls":4},"",null,null,"",null,null,null,"",{"$nulls":6},""]
[{"$f":"MID(E55,FIND(\"(Q\",E55)+1,7)","v":"Q8d.4.6"},"E","Q8.3.8",""," Регулируются ли сборы/тарифы, которые отдельные профессионалы и профессиональные компании могут  взимать за свои услуги государством, парламентом или самими профессионалами? (Q8d.4.6)",{"$nulls":4},{"$error":"#N/A"},null,null,{"$error":"#N/A"},null,null,null,"",{"$nulls":6},""]
[{"$nulls":5},"Еесли сборы/тарифы реулируются государством или профессиональными органами, каков характер такого регулирования? (Q8d.4.6a)",null,null,"Примечание: цена регулируется , если определенная сумма устанавливается правительством, парламентом  или  самой профессией, и цена должна быть:\n•  равна этой сумме (фиксированная цена), \n• равна или быть выше этой суммы (минимальная цена), \n• равна или ниже этой суммы (максимальная цена).\nЭта сумма должна быть  определенной суммой или процентом от стоимости предоставленной услуги (например,  сбор, взимаемый за услуги по передаче права собственности на объект недвижимости, при продаже дома может быть установлен в качестве процента от стоимости дома).\n"]
[{"$f":"MID(F$56,FIND(\"(Q\",F$56)+1,8)&\"_i\"","v":"Q8d.4.6a_i"},"EC","Q8.3.8a_vi","","",null," Необязательные рекомендуемые сборы/тарифы на определенные виды услуг ",null,null,{"$error":"#N/A"},null,null,{"$f":"IF(AND(J57=\"\",K57=\"\"),\"\",IF(K57=\"\",J57,K57))","v":{"$error":"#N/A"}},null,null,null,{"$f":"IF(O57=\"\",\"\",O57)","v":""},{"$nulls":6},{"$f":"IF(AND(S57=\"\",Q57=\"\"),\"\",IF(S57=\"\",Q57,S57))","v":""}]
[{"$f":"MID(F$56,FIND(\"(Q\",F$56)+1,8)&\"_ii\"","v":"Q8d.4.6a_ii"},"EC","Q8.3.8a_v","","",null," Необязательные рекомендуемые сборы тарифы на все виды услуг ",null,null,{"$error":"#N/A"},null,null,{"$error":"#N/A"},null,null,null,"",{"$nulls":6},""]
[{"$f":"MID(F$56,FIND(\"(Q\",F$56)+1,8)&\"_iii\"","v":"Q8d.4.6a_iii"},"EC","Q8.3.8a_iv","","",null,"Обязательные максимальные сборы/тарифы на определенные виды услуг ",null,null,{"$error":"#N/A"},null,null,{"$error":"#N/A"},null,null,null,"",{"$nulls":6},""]
[{"$f":"MID(F$56,FIND(\"(Q\",F$56)+1,8)&\"_iv\"","v":"Q8d.4.6a_iv"},"EC","Q8.3.8a_ii","","",null,"Обязательные максимальные сборы/тарифы на все виды услуг ",null,null,{"$error":"#N/A"},null,null,{"$error":"#N/A"},null,null,null,"",{"$nulls":6},""]
[{"$f":"MID(F$56,FIND(\"(Q\",F$56)+1,8)&\"_v\"","v":"Q8d.4.6a_v"},"EC","Q8.3.8a_iii","","",null,"Обязательные минимальные или фиксированные сборы/тарифы на некоторые вид услуг ",null,null,{"$error":"#N/A"},null,null,{"$error":"#N/A"},null,null,null,"",{"$nulls":6},""]
[{"$f":"MID(F$56,FIND(\"(Q\",F$56)+1,8)&\"_vi\"","v":"Q8d.4.6a_vi"},"EC","Q8.3.8a_i","","",null,"Обязательные минимальные или фиксированные сборы/тарифы на все виды услуг  ",null,null,{"$error":"#N/A"},null,null,{"$error":"#N/A"},null,null,null,"",{"$nulls":6},""]
[{"$f":"MID(F63,FIND(\"(Q\",F63)+1,8)","v":"Q8d.4.6b"},"I",null,null,null," Пожалуйста, предоставьте ссылку на самый последний набор регулируемых сборов или на закон /постановление, которое определяет, кто и как должен их устанавливать в колонке \"Комментарии\"  (Q8d.4.6b)",null,null,null,"",null,null,"",null,null,null,"",{"$nulls":6},""]
[{"$f":"MID(E64,FIND(\"(Q\",E64)+1,7)","v":"Q8d.4.7"},"E","Q8.3.9_ARC",""," При условии, что реклама не является ни ложной, ни вводящей в заблуждение или обманной, существуют ли  ограничения по рекламе и маркетингу данными профессионалами и/или профессиональными  (устанавливаемые законом или решением профессиональных органов или сочетанием первого и второго)? (Q8d.4.7)",null,null,null," Примечание: ограничения по рекламированию/маркетингу могут быть в разной форме. Например, реклама в определенных СМИ (таких как радио реклама или телевизионная реклама) может быть запрещена. Таким же образом некоторые методы рекламы (такие как прямое приставание к клиенту) или определенное  содержание рекламы (такие как сравнения с другими профессионалами или информации о сборах) может быть запрещено. ",{"$error":"#N/A"},null,null,{"$error":"#N/A"},null,null,null,"",{"$nulls":6},""]
[{"$f":"MID(E65,FIND(\"(Q\",E65)+1,8)","v":"Q8d.4.7a"},"I",null,null," Пожалуйста, предоставьте ссылку на закон/постановление, которым устанавливаются такие ограничения в колонке \"Комментарии\" (Q8d.4.7a)",{"$nulls":4},"",null,null,"",null,null,null,"",{"$nulls":6},""]
[{"$f":"MID(E66,FIND(\"(Q\",E66)+1,7)","v":"Q8d.4.8"},"EC","Q8.3.10_ARC","","Существуют ли ограничения по межпрофессиональному бизнес сотрудничеству между архитекторами и другими профессионалами (например, партнерства, совместные предприятия), устанавливаемые законом или решением профессионального органа  или сочетанием первого и второго? (Q8d.4.8)",null,null,null,"Детальные определения",{"$error":"#N/A"},null,null,{"$error":"#N/A"},null,null,null,"",{"$nulls":6},""]
[{"$f":"MID(E67,FIND(\"(Q\",E67)+1,8)","v":"Q8d.4.8a"},"I",null,null," Пожалуйста, предоставьте ссылку на закон/постановление, которым устанавливаются такие ограничения в колонке \"Комментарии\" (Q8d.4.8a)",{"$nulls":4},"",null,null,"",null,null,null,"",{"$nulls":6},""]
[null,null,null,"РАЗДЕЛ  8d.5. Ограничения для входа на рынок иностранных специалистов ",{"$nulls":4}," Инструкции: Вопросы данного раздела могут применяться  только к физическим лицам (т.е. профессионалам - индивидуалам), а не к юридическим лицам (т.е. профессиональным компаниям)."]
[{"$f":"MID(E69,FIND(\"(Q\",E69)+1,7)","v":"Q8d.5.1"},"N",null,null,"Является ли ваша страна участницей Соглашений о Взаимном Признании (СВП) архтекторов с другими странами? (Q8d.5.1)",null,null,null,"Определение : Соглашение о Взаимном Признании (СВП) - это международное соглашение, при помощи которого две или более стран соглашаются признавать оценки соответствия. В этом случае термин относится к соглашениям о признании профессиональных квалификаций.\n\nИнструкции: Для стран ЕС, если у вас есть такие соглашения с другими странами ЕС, то этого достаточно, чтобы ответить \"да\".","",null,null,{"$f":"IF(AND(J69=\"\",K69=\"\"),\"\",IF(K69=\"\",J69,K69))","v":""},null,null,null,{"$f":"IF(O69=\"\",\"\",O69)","v":""},{"$nulls":6},{"$f":"IF(AND(S69=\"\",Q69=\"\"),\"\",IF(S69=\"\",Q69,S69))","v":""}]
[{"$f":"MID(E70,FIND(\"(Q\",E70)+1,8)","v":"Q8d.5.1a"},"I",null,null," Пожалуйста, предоставьте ссылку на, как минимум, одно СВП в колонке \"Комментарии\" (Q8d.5.1a)",{"$nulls":4},"",null,null,"",null,null,null,"",{"$nulls":6},""]
[{"$f":"MID(E71,FIND(\"(Q\",E71)+1,7)","v":"Q8d.5.2"},"N",null,null,"Создают ли законы/постановления понятный и прозрачный процесс признания образовательных титулов, которые были получены зарубежом для архитекторов? (Q8d.5.2)",null,null,null," Примечание: Примеры образовательных титулов - это степени университетов или магистратуры.\n\nПримечание: Если нет кодифицированного процесса по признанию образовательных титулов, полученных зарубежом, признание осуществляется на произвольной основе.\n\nПримечание для стран ОЭСР: Вам не нужно отвечать на эти два вопроса (Q8с.5.2 и Q8с.5.3), поскольку ответы будут взяты из базы данных ОЭСР STRI.","",null,null,"",null,null,null,"",{"$nulls":6},""]
[{"$f":"MID(E72,FIND(\"(Q\",E72)+1,7)","v":"Q8d.5.3"},"N",null,null,"Обязаны ли зарубежные архитекторы сдать местный экзамен для того чтобы практиковать? (Q8d.5.3)",{"$nulls":4},"",null,null,"",null,null,null,"",{"$nulls":6},""]
[]
[]
[]
[{"$nulls":7},"Профессии (АРХИТЕКТОРЫ): Общие определения и инструкции - ПОЖАЛУЙСТА ОЗНАКОМЬТЕСЬ"]
[{"$nulls":7},"Определение: Архитекторы - это профессионалы, которые обычно планируют, проектируют и анализируют конструкции зданий, которые так же могут осуществлять градостроительное проектирование и декорирование интерьера.\n\nИнструкции: Если существует более одной профессии, которая подпадает по указанное выше описание и требования, предъявляемые к таким профессиям отличаются полностью/частично, респонденту необходимо выбрать ту профессию, к которой применяются самые строгие требования и отвечать только по этой профессии. \n"]
[{"$nulls":7}," Территориальные ограничения "]
[{"$nulls":7},"Инструкции:  вопрос пытается понять , может ли профессионал работать во всей юрисдикции или только в части ее. Ответ должен быть \"да\", если такие ограничения можно преодолеть, сделав дополнительные  шаги  (т.е. сдача дополнительных экзаменов, получение дополнительных лицензий/разрешений и т.д.).  Например,  у адвоката может быть обязанность регистрации в местной  коллегии адвокатов в каждой местной юрисдикции, в суде которой адвокат может присутствовать .\n\nИнструкции: Ответ должен быть таким же, если ограничения относятся к профессионалам и/или к профессиональным компаниям."]
[{"$nulls":7},"Ограничения по правовой форме бизнеса "]
[{"$nulls":7},"Индивидуальное частное предприятие или личное предприятие - это вид бизнес образования, которое принадлежит и которым руководит одно физическое лицо, и в котором нет юридического разграничения между  владельцем и бизнесом (т.е. бизнес образование не имеет отдельной юридической личности). Владелец  получает всю прибыль (с учетом налогообложения, специфичного для такого бизнеса) и несет неограниченную ответственность за все убытки и долги. Поэтому, нет ограничения по ответственности.\nПредприятие с ограниченной ответственностью - это случай, когда финансовая ответственность лица  ограничивается инвестициями этого лица в компанию или партнерство. Это означает, что такое лицо не несет личной ответственности по каким- либо долгам компании или партнерства, кроме сумм инвестиций в компанию.\nIРегистрация - это процесс, при помощи которого компания создается. При помощи этого процесса компания получает  отдельную  юридическую личность, которая отличается от физических лиц, которым компания принадлежит. \nПрочее - используйте эту категорию, когда вы думаете, что форма бизнеса не подпадает под любое описание, или если вы не уверены. Но, пожалуйста, предоставьте название на вашем языке такой компании и краткое описание. В особенности,  объясните объем ответственности владельца бизнеса по долгам бизнеса и насколько владельцам бизнеса разрешено управлять им."]
[{"$nulls":7},"Ограничения по межпрофессиональному бизнес сотрудничеству "]
[{"$nulls":7},"Примечание: Ответы дают отличие между ситуациями, когда в законе существует статья по общему конфликту интересов,  в случае, когда совместная работа может противоречить независимости или непредвзятости  профессионалов, и ситуациям, когда существует запрет на сотрудничество с некоторыми профессионалами, и  более экстремальными ситуациям, когда существует полный запрет на сотрудничество с какой-либо другой профессией. \nОпределения:\n-Бизнес сотрудничество означает возможность для разных профессий (например бухгалтеры и адвокаты, или архитекторы и инженеры) работать в  одной и той же компании и таким образом, иметь возможность делать предложение  клиентам по многим направлениям деятельности. \n- Конфликт интересов означает ситуацию, при которой на вынесение независимого профессионального суждения могут оказать влияние другие интересы."]
[{"$nulls":7},"Определение по праву на занятие деятельностью "]
[{"$nulls":7},"Определения:\n-Профессия имеет эксклюзивное право на занятие деятельностью, если  только представителям этой профессии разрешается заниматься такой деятельностью.\n- Профессия имеет совместные эксклюзивные права, когда представители такой профессии и ограниченное количество других профессий являются лицами, которым разрешено заниматься деятельностью, например, в некоторых странах адвокаты и нотариусы могут иметь совместные эксклюзивные права на администрирование заявления под присягой. Возможно, что  право на занятие определенной деятельностью принадлежит профессии и государству.  Пожалуйста, учтите, что регулируемые профессии, которые имеют эксклюзивное право, не обязательно должны быть теми, которые охвачены в данной анкете (например, бухгалтеры, архитекторы, инженеры гражданского строительства, агенты недвижимости, адвокаты и нотариусы), но должны включать все регулируемые профессии в юрисдикции. \n- Вид деятельности резервируется за государством или за официальным лицом, назначенным государством, когда государство по закону исключает частных субъектов экономической деятельности, и не позволяет им заниматься определенным видом деятельности в связи с ее важностью для общества и государства или, в случаях, когда назначенные государством официальные лица выполняют такую работу как государственное задание.\n- Нет эксклюзивного права на деятельность, если кто-либо может заниматься такой деятельностью без необходимости соответствовать определенным специфическим критериям."]

{"sheet":"8E-CIVIL ENGINEERS","index":4,"n_rows":84,"n_cols":24,"rows_kept":84,"cut":false,"hidden":false,"merged":[[76,7,76,8],[77,7,77,8],[78,7,78,8],[79,7,79,8],[80,7,80,8],[74,7,74,8],[75,7,75,8],[65,4,65,7],[66,3,66,7],[62,4,62,7],[51,4,51,7],[53,4,53,7],[67,8,68,8],[54,5,54,7],[69,8,70,8],[85,7,85,9],[9,4,9,7],[20,5,20,7],[17,5,17,7],[16,5,16,7],[19,5,19,7],[33,4,33,7],[34,4,34,7],[31,4,31,7],[32,4,32,7],[40,4,40,7],[43,4,43,7],[29,4,29,7],[24,4,24,7],[42,4,42,7],[36,4,36,7],[2,9,2,13],[2,14,2,23],[3,3,3,7],[4,3,4,7],[8,3,8,7],[5,4,5,7],[6,4,6,7],[7,4,7,7],[31,8,32,8],[54,8,60,8],[61,5,61,7],[60,6,60,7],[55,6,55,7],[56,6,56,7],[57,6,57,7],[58,6,58,7],[59,6,59,7],[37,5,37,7],[35,5,35,7],[38,4,38,7],[39,5,39,7],[44,3,44,7],[47,4,47,7],[50,4,50,7],[21,4,21,7],[23,4,23,7],[27,4,27,7],[28,4,28,7],[22,4,22,7],[26,4,26,7],[25,3,25,7],[81,7,81,8],[82,7,82,8],[83,7,83,8],[30,3,30,7],[41,5,41,7],[67,4,67,7],[68,4,68,7],[69,4,69,7],[70,4,70,7],[45,4,45,7],[48,4,48,7],[64,4,64,7],[52,4,52,7],[46,4,46,7],[63,4,63,7],[49,4,49,7]]}
[null,null,null,"ОПРОСНИК ОЭСР ПО ИНДИКАТОРАМ РЕГУЛИРОВАНИЯ 2018"]
[]
[{"$nulls":9},"2013 revisions"]
["Code 2018","Status","Code 2013","Профессии - ИНЖЕНЕРЫ ГРАЖДАНСКОГО СТРОИТЕЛЬСТВА ",{"$nulls":4},"Инструкции для прочтения перед ответом на вопросы","For info.\nAnswers in PMR\ndatabase\n 2013","Proposed Revision to 2013 PMR database","Justification for Proposed Revision to 2013 PMR database","Final 2013 value","Comments on final choice","Ответы 2018","Комментарии к ответам","2018 value proposed by OECD","Reason for proposing a value different from that in column O","2018 value proposed by country (if different from that in column Q)","Reason for country proposing different value","OECD comment","Country comment","Reason for final decision by OECD","Final 2018 value"]
[null,null,null,"Важные инструкции для респондентов - ПОЖАЛУЙСТА ПРОЧТИТЕ"]
[{"$f":"MID(E6,FIND(\"(Q\",E6)+1,6)","v":"Q8e.01"},"I",null,null," Существует ли профессия инженера гражданского строительства в вашей стране ? (Q8e.01)",null,null,null,"Если ответ \"нет\", пропустите данный раздел  \nЕсли ответ \"да\", перейдите к следующему вопросу","",null,null,{"$f":"IF(AND(J6=\"\",K6=\"\"),\"\",IF(K6=\"\",J6,K6))","v":""},null,null,null,{"$f":"IF(O6=\"\",\"\",O6)","v":""},{"$nulls":6},{"$f":"IF(AND(S6=\"\",Q6=\"\"),\"\",IF(S6=\"\",Q6,S6))","v":""}]
[{"$f":"MID(E7,FIND(\"(Q\",E7)+1,6)","v":"Q8e.02"},"I",null,null,"Пожалуйста, укажите по какой конкретно профессии вы отвечаете на вопросы анкеты (Q8e.02)\n\nПожалуйста, укажите название на вашем языке с переводом на английский в колонке \"Комментарии\" ",null,null,null," Примечание: Если существует более одной профессии, подпадающей под описание выше, и некоторые/все  требования отличаются для каждой профессии, респондентам необходимо выбрать профессию, к которой применяются самые строгие требования и отвечать только по этой профессии .","",null,null,{"$f":"IF(AND(J7=\"\",K7=\"\"),\"\",IF(K7=\"\",J7,K7))","v":""},null,null,null,{"$f":"IF(O7=\"\",\"\",O7)","v":""},{"$nulls":6},{"$f":"IF(AND(S7=\"\",Q7=\"\"),\"\",IF(S7=\"\",Q7,S7))","v":""}]
[{"$f":"MID(E8,FIND(\"(Q\",E8)+1,6)","v":"Q8e.03"},"I",null,null,"Для какой юрисдикции вы отвечаете на вопрос? (Q8e.03)\n\nПожалуйста, укажите название юрисдикции в колонке \"Комментарии\" ",{"$nulls":4},"",null,null,"",null,null,null,"",{"$nulls":6},""]
[null,null,null,"РАЗДЕЛ  8e.1. Эксклюзивные и совместные эксклюзивные права на занятие деятельностью и защищенный титул ",{"$nulls":4},"Инструкции: вопросы в данном разделе относятся только к физическим лицам (т.е. индивидуальным профессионалам), не к юридическим лица (т.е. к профессиональным компаниям)."]
[null,null,null,"","Имеют ли инженеры гражданского строительства эксклюзивные или совместные эксклюзивные права заниматься видами деятельности, перечисленными ниже? (Q8e.1.1)",null,null,null,"Определения - ПОЖАЛУЙСТА ПРОЧТИТЕ"]
[{"$f":"MID(E$10,FIND(\"(Q\",E$10)+1,7)&\"_1\"","v":"Q8e.1.1_1"},"E","Q8.1.3_1","","","Технико-экономические обоснования ",null,null,null,{"$error":"#N/A"},null,null,{"$f":"IF(AND(J11=\"\",K11=\"\"),\"\",IF(K11=\"\",J11,K11))","v":{"$error":"#N/A"}},null,null,null,{"$f":"IF(O11=\"\",\"\",O11)","v":""},{"$nulls":6},{"$f":"IF(AND(S11=\"\",Q11=\"\"),\"\",IF(S11=\"\",Q11,S11))","v":""}]
[{"$f":"MID(E$10,FIND(\"(Q\",E$10)+1,7)&\"_2\"","v":"Q8e.1.1_2"},"E","Q8.1.3_2","","","Экологические оценки ",null,null,null,{"$error":"#N/A"},null,null,{"$error":"#N/A"},null,null,null,"",{"$nulls":6},""]
[{"$f":"MID(E$10,FIND(\"(Q\",E$10)+1,7)&\"_3\"","v":"Q8e.1.1_3"},"E","Q8.1.3_3",null,null,"Планирование и проектирование ",null,null,null,{"$error":"#N/A"},null,null,{"$error":"#N/A"},null,null,null,"",{"$nulls":6},""]
[{"$f":"MID(E$10,FIND(\"(Q\",E$10)+1,7)&\"_4\"","v":"Q8e.1.1_4"},"E","Q8.1.3_4","",""," Представительство для получения  разрешений (подписание проектов) ",null,null,null,{"$error":"#N/A"},null,null,{"$error":"#N/A"},null,null,null,"",{"$nulls":6},""]
[{"$f":"MID(E$10,FIND(\"(Q\",E$10)+1,7)&\"_5\"","v":"Q8e.1.1_5"},"E","Q8.1.3_5","","","Администрация тендерных предложений и договоров ",null,null,null,{"$error":"#N/A"},null,null,{"$error":"#N/A"},null,null,null,"",{"$nulls":6},""]
[{"$f":"MID(E$10,FIND(\"(Q\",E$10)+1,7)&\"_6\"","v":"Q8e.1.1_6"},"E","Q8.1.3_10","","","Дача экспертных показаний (например, в суде) ",null,null,null,{"$error":"#N/A"},null,null,{"$error":"#N/A"},null,null,null,"",{"$nulls":6},""]
[{"$f":"MID(E$10,FIND(\"(Q\",E$10)+1,7)&\"_7\"","v":"Q8e.1.1_7"},"N",null,"","","Подготовка/подача/подписание документов технического контроля и технического соответствия или заверение проекта и соблюдение законодательства в области строительства/стандартов исполнения, качества, затрат и безопасности  ",null,null,null,"",null,null,"",null,null,null,"",{"$nulls":6},""]
[{"$f":"MID(E$10,FIND(\"(Q\",E$10)+1,7)&\"_8\"","v":"Q8e.1.1_8"},"N",null,null,null,"Управление и надзор за проведением строительных работ, включая надзор за работой специалистов ",null,null,null,"",null,null,"",null,null,null,"",{"$nulls":6},""]
[{"$f":"MID(E$10,FIND(\"(Q\",E$10)+1,7)&\"_9\"","v":"Q8e.1.1_9"},"E","Q8.1.3_7","","","Управление строительными затратами ",null,null,null,{"$error":"#N/A"},null,null,{"$error":"#N/A"},null,null,null,"",{"$nulls":6},""]
[{"$f":"MID(E$10,FIND(\"(Q\",E$10)+1,7)&\"_10\"","v":"Q8e.1.1_10"},"N",null,"","","Топография, демаркация и топографические съемки  ",null,null,null,"",null,null,"",null,null,null,"",{"$nulls":6},""]
[{"$f":"MID(E$10,FIND(\"(Q\",E$10)+1,7)&\"_11\"","v":"Q8e.1.1_11"},"N",null,null,null," Прочее (Пожалуйста, перечислите любые виды деятельности, на которые инженеры гражданского строительства могут иметь эксклюзивные или совместные эксклюзивные права, в случае с совместным правом на занятие деятельностью , укажите с какими профессиями в колонке \"Комментарии\")",null,null,null,"",null,null,"",null,null,null,"",{"$nulls":6},""]
[{"$f":"MID(E22,FIND(\"(Q\",E22)+1,8)","v":"Q8d.1.1a"},"I",null,null," Пожалуйста, предоставьте ссылку на закон/постановление, которое устанавливает виды деятельности зарезервированные за данной профессией  (Q8d.1.1a)",{"$nulls":4},"",null,null,"",null,null,null,"",{"$nulls":6},""]
[{"$f":"MID(E23,FIND(\"(Q\",E23)+1,7)","v":"Q8e.1.2"},"N",null,null,"Защищен ли законом профессиональный титул инженера гражданского строительства? (Q8e.1.2)",null,null,null,"Определение: Профессиональный титул - этот термин используется для того чтобы обозначить определенную квалификацию. Профессиональный титул  защищен, если государственные органы определяют условия  присуждения такого титула или дают определенному органу (например, профессиональной организации)  полномочия на выдачу титула и если они защищают использвование титула через установление штрафов или через другие меры, при его несответствующем использовании. Профессиональный титул  может быть комбинирован с существованием исключительных или совместных исключительных прав или нет. Если нет таких ограничений, любой может заниматься такой деятельностью,  но использование титула разрешается только  лицам, соответствующим требовнаиям и имеющим полномочия на использование титула.","",null,null,"",null,null,null,"",{"$nulls":6},""]
[{"$f":"MID(E24,FIND(\"(Q\",E24)+1,8)","v":"Q8e.1.2a"},"I",null,null," Пожалуйста, предоставьте ссылку на закон/постановление, которым устанавливается такая защита в колонке \"Комментарии\"  (Q8e.1.2a)",{"$nulls":4},"",null,null,"",null,null,null,"",{"$nulls":6},""]
[{"$f":"MID(E25,FIND(\"(Q\",E25)+1,7)","v":"Q8e.1.3"},"SPL","Q8.2.1_ENG",null," как регулируется доступ к данной профессии? (Q8e.1.3)",{"$nulls":4},{"$error":"#N/A"},null,null,{"$error":"#N/A"},null,null,null,"",{"$nulls":6},""]
[null,null,null,"РАЗДЕЛ 8e.2. Количественные ограничения для доступа на рынок ",{"$nulls":4},"Инструкции: Вопросы данного раздела применяются к физическим лицам (т.е. индивидуальным профессионалам) и к юридическим лицам (профессиональным компаниям)."]
[{"$f":"MID(E27,FIND(\"(Q\",E27)+1,7)","v":"Q8e.2.1"},"N",null,null,"Лимитируется ли количество инженеров гражданского строительства, которым разрешено работать в вашей стране, законом или решением профессионального органа (или комбинацией первого и второго)? (Q8e.2.1)",{"$nulls":4},"",null,null,{"$f":"IF(AND(J27=\"\",K27=\"\"),\"\",IF(K27=\"\",J27,K27))","v":""},null,null,null,{"$f":"IF(O27=\"\",\"\",O27)","v":""},{"$nulls":6},{"$f":"IF(AND(S27=\"\",Q27=\"\"),\"\",IF(S27=\"\",Q27,S27))","v":""}]
[{"$f":"MID(E28,FIND(\"(Q\",E28)+1,8)","v":"Q8e.2.1a"},"I",null,null,"Пожалуйста, предоставьте ссылку на закон/постановление, которым устанавливается такое ограничение в колонке \"Комментарии\" (Q8e.2.1a)",{"$nulls":4},"",null,null,"",null,null,null,"",{"$nulls":6},""]
[{"$f":"MID(E29,FIND(\"(Q\",E29)+1,7)","v":"Q8e.2.2"},"N",null,null,"Существуют ли территориальные ограничения по возможности  инженеров гражданского строительства  работать в вашей юрисдикции, которые устанавливаются законом или решением профессиональной организации (или комбинацией первого и второго)? (Q8e.2.2)",null,null,null,"Инструкции","",null,null,"",null,null,null,"",{"$nulls":6},""]
[{"$f":"MID(E30,FIND(\"(Q\",E30)+1,8)","v":"Q8e.2.2a"},"I",null,null,"Пожалуйста, предоставьте ссылку на закон/постановление, которым устанавливается такое ограничение в колонке \"Комментарии\" (Q8e.2.2a)",{"$nulls":4},"",null,null,"",null,null,null,"",{"$nulls":6},""]
[null,null,null,"РАЗДЕЛ 8e.3. Качественные ограничения для доступа на рынок "]
[{"$f":"MID(E32,FIND(\"(Q\",E32)+1,7)","v":"Q8e.3.1"},"N",null,null,"Сколько существует маршрутов для получения квалификации, для того чтобы на законных основаниях заниматься профессиональной деятельностью? (Q8e.3.1)",null,null,null,"Определение:  Маршрут - это процесс, при помощи которого лицо может получить квалификации для того чтобы заниматься профессиональной деятельностью на законном основании (например,  один  маршрут может потребовать диплом университета плюс 1 год обязательной практики,  в то время как для другого маршрута может потребоваться  краткосрочный курс профессионального обучения и гораздо более длительный период обязательной практики).\n\nИнструкции: Если нет эксклюзивных или совместных эксклюзивных прав, ответ  на этот вопрос будет \"не применимо\" (указать в колонке \"Комментарии\"), поскольку любой сможет заниматься такой деятельностью.","",null,null,{"$f":"IF(AND(J32=\"\",K32=\"\"),\"\",IF(K32=\"\",J32,K32))","v":""},null,null,null,{"$f":"IF(O32=\"\",\"\",O32)","v":""},{"$nulls":6},{"$f":"IF(AND(S32=\"\",Q32=\"\"),\"\",IF(S32=\"\",Q32,S32))","v":""}]
[{"$f":"MID(E33,FIND(\"(Q\",E33)+1,8)","v":"Q8e.3.1a"},"I",null,null," Пожалуйста, предоставьте детальную информацию по количеству альтернативных маршрутов доступа к профессии и информацию об их основных требованиях, или ссылку на вебсайт, в котором описаны эти разные маршруты в колонке \"Комментарии\" (Q8e.3.1a)",{"$nulls":4},"",null,null,"",null,null,null,"",{"$nulls":6},""]
[{"$nulls":4},"Для вопросов о требованиях в отношении образования (Q8e.3.2 to Q8e.3.4 ), если существует более одного маршрута доступа к профессии, пожалуйста, выберите один и ответьте на вопросы только в отношении этого маршрута."]
[{"$f":"MID(E35,FIND(\"(Q\",E35)+1,7)","v":"Q8e.3.2"},"E","Q8.2.4a",null,"Требуется ли  диплом о высшем образовании или курс профессионального обучения для того чтобы на законных основаниях  и получить  заниматься  профессиональной деятельностью  или получить  профессиональный титул , в тех случаях, когда он защищен законом  (уставлено ли это требование законом или решением профессионального органа,  или сочетанием первого и второго)? (Q8e.3.2)",null,null,null,"Определение: диплом университета - это диплом, который выдается после окончания курса обучения, на который можно поступить после получения диплома полного курса школы (например, после уровня  A, и т.п.). Курс профессионального обучения обеспечивает обучение профессии для определенных профессиональных ролей или направлений карьеры, для него может не потребоваться наличие диплома школы.\n\nПримечание: ответ должен быть \"нет\" , только если ни степень ни профессиональный курс не требуются.\n",{"$error":"#N/A"},null,null,{"$f":"IF(AND(J35=\"\",K35=\"\"),\"\",IF(K35=\"\",J35,K35))","v":{"$error":"#N/A"}},null,null,null,{"$f":"IF(O35=\"\",\"\",O35)","v":""},{"$nulls":6},{"$f":"IF(AND(S35=\"\",Q35=\"\"),\"\",IF(S35=\"\",Q35,S35))","v":""}]
[{"$f":"MID(F36,FIND(\"(Q\",F36)+1,8)","v":"Q8e.3.2a"},"E","Q8.2.4b","",""," Если требуется диплом университета или  прохождение курса профессионального обучения,  какова продолжительность обучения? (Q8e.3.2a)",null,null," Инструкции:\n- если требуется стажировка в рамках академического курса, продолжительность такой стажировки должна защитываться при расчете срока обучения для получения степени.\nЕсли законом не устанавливатеся необходимая продолжительность обучения для получения степени, в ответе используется обычная продолжительность.\n",{"$error":"#N/A"},null,null,{"$error":"#N/A"},null,null,null,"",{"$nulls":6},""]
[{"$f":"MID(E37,FIND(\"(Q\",E37)+1,7)","v":"Q8e.3.3"},"E","Q8.2.4c",""," Требуется ли дополнительное образование для того чтобы на законных основаниях заниматься профессиональной деятельностью или для получения профессионального титула, когда титул защищен законом (установлено ли такое требование законом или решением профессионального органа, или сочетанием первого и второго)? (Q8e.3.3)",null,null,null," Примечание: дополнительное образование -  курс магистратуры или послевузовского образования. \n\nИнструкции:  для ответа важно - требуется ли такой курс дополнительного образования. Ответ должен быть \"нет\"  ,если курс факультативный и можно заниматься профессиональной деятельностью, даже если такой курс не пройден.\n",{"$error":"#N/A"},null,null,{"$error":"#N/A"},null,null,null,"",{"$nulls":6},""]
[{"$f":"MID(F38,FIND(\"(Q\",F38)+1,8)","v":"Q8e.3.3a"},"E","Q8.2.4d","",""," Если требуется дополнительное образование, какова его продолжительность? (Q8e.3.3a)",null,null," Примечание: если стажировка необходима как часть дополнительного образования, продолжительность  такой стажировки должна учитываться при рассчете  общей продолжительности такого дополнительного образования.",{"$error":"#N/A"},null,null,{"$error":"#N/A"},null,null,null,"",{"$nulls":6},""]
[{"$f":"MID(E39,FIND(\"(Q\",E39)+1,7)","v":"Q8e.3.4"},"E","Q8.2.4e","","Требуется ли соответствующая обязательная практика для того чтобы на законных основаниях заниматься профессиональной деятельностью или для получения профессионального титула, в случаях, когда такой титул защищается законом (устанавливается ли такое требование законом или решением профессионального органа  или сочетанием первого и второго)? (Q8e.3.4)",null,null,null,"Инструкция: если требуется стажировка в рамках академического курса, стажировка должна входить в продолжительность программы высшего образования/программы обучения. Обязательная практика проходит после завершения обучения или в некоторых случаях может быть альтернативой обучению.",{"$error":"#N/A"},null,null,{"$error":"#N/A"},null,null,null,"",{"$nulls":6},""]
[{"$f":"MID(F40,FIND(\"(Q\",F40)+1,8)","v":"Q8e.3.4a"},"E","Q8.2.4f","","","Если требуется соответствующая обязательная практика, какова ее продолжительность? (Q8e.3.4a)",null,null,null,{"$error":"#N/A"},null,null,{"$error":"#N/A"},null,null,null,"",{"$nulls":6},""]
[{"$f":"MID(E41,FIND(\"(Q\",E41)+1,7)","v":"Q8e.3.5"},"E","Q8.2.4g","","Существует ли требование сдать один или несколько профессиональных экзаменов для того чтобы на законных основаниях заниматься профессиональной деятельностью или для получения профессионального титула, в случаях, когда титул защищен законом? (Q8e.3.5)",null,null,null,"Определение:  Профессиональный экзамен- это экзамен, который профессионал-кандидат должен успешно сдать для того чтобы получить разрешение на занятие профессиональной деятельностью. Обычный пример - это экзамен в коллегии, который необходимо сдать, чтобы стать адвокатом. \nЭкзамен может проводить государственный орган-регулятор и/или профессиональная организация ",{"$error":"#N/A"},null,null,{"$error":"#N/A"},null,null,null,"",{"$nulls":6},""]
[{"$f":"MID(F42,FIND(\"(Q\",F42)+1,8)","v":"Q8e.3.5a"},"N",null,null,null," Если вы ответили \"да\" на вопрос выше, кто администрирует этот профессиональный экзамен? (Q8e.3.5a)",null,null,null,"",null,null,"",null,null,null,"",{"$nulls":6},""]
[{"$f":"MID(E43,FIND(\"(Q\",E43)+1,7)","v":"Q8e.3.6"},"E","Q8.2.4h","","Обязательно ли для индивидуального профессионала состоять в профессиональной организации для того чтобы  заниматься профессиональной деятельностью на законном основании, в случаях, когда  это установлено законом? (Q8e.3.6)",{"$nulls":4},{"$error":"#N/A"},null,null,{"$error":"#N/A"},null,null,null,"",{"$nulls":6},""]
[{"$f":"MID(E44,FIND(\"(Q\",E44)+1,8)","v":"Q8e.3.6a"},"I",null,null," Пожалуйста, предоставьте ссылку на закон/постановление, которым устанавливается такая обязанность  колонке \"Комментарии\" (Q8e.3.6a)",{"$nulls":4},"",null,null,"",null,null,null,"",{"$nulls":6},""]
[null,null,null,"РАЗДЕЛ 8e.4. Ограничения по правовой форме бизнеса, рекламе, компаниям, сотрудничеству и другие ограничения "]
[{"$f":"MID(E46,FIND(\"(Q\",E46)+1,7)","v":"Q8e.4.1"},"E","Q8.3.3",null,"Существуют ли ограничения по правовой форме бизнеса (устанавливаются ли такие ограничения законом или решением профессионального органа или сочетанием первого и второго)? (Q8e.4.1)",null,null,null,"Детальные определения",{"$error":"#N/A"},null,null,{"$f":"IF(AND(J46=\"\",K46=\"\"),\"\",IF(K46=\"\",J46,K46))","v":{"$error":"#N/A"}},null,null,null,{"$f":"IF(O46=\"\",\"\",O46)","v":""},{"$nulls":6},{"$f":"IF(AND(S46=\"\",Q46=\"\"),\"\",IF(S46=\"\",Q46,S46))","v":""}]
[{"$f":"MID(E47,FIND(\"(Q\",E47)+1,8)","v":"Q8e.4.1a"},"I",null,null," Пожалуйста, предоставьте ссылку на закон/постановление, которым устанавливается такая обязанность в колонке \"Комментарии\"  (Q8e.4.1a)",{"$nulls":4},"",null,null,"",null,null,null,"",{"$nulls":6},""]
[{"$f":"MID(E48,FIND(\"(Q\",E48)+1,7)","v":"Q8e.4.2"},"N",null,""," Могут ли неинженеры гражданского строительства иметь долю в капитале инженерно-строительной компании? (Q8e.4.2)",null,null,null,"Определения: \n-Доля собственности означает владение долей в капитале компании.\n- Архитекторская  компания -это любая правовая форма, в которой архитекторы могут сотрудничать, для того чтобы предоставлять услуги клиентам.\n\nПримечание: Этот вопрос  относится только к ограничениям для физических лиц (т.е. индивидуальным  профессионалам  и направлен на то чтобы подтвердить, что только архитекторы могут быть держателями доли в капитале или любые другие лица тоже  ","",null,null,"",null,null,null,"",{"$nulls":6},""]
[{"$f":"MID(E49,FIND(\"(Q\",E49)+1,7)","v":"Q8e.4.3"},"N",null,null," Существуют ли ограничения о том, какие компании могут иметь долю в капитале инженерно-строительной  компании (устанавливаемые законом или решением профессионального органа или сочетанием первого и второго)? (Q8e.4.3)",null,null,null,"Примечание:  Этот вопрос относится только к ограничениям, устанавливаемым  для юридических лиц (т.е. компаний), и направлен на то, чтобы подтвердить, что только архитекторские компании могут держать долю  в капитале или это разрешено так же и другими компаниям.","",null,null,"",null,null,null,"",{"$nulls":6},""]
[{"$f":"MID(E50,FIND(\"(Q\",E50)+1,8)","v":"Q8e.4.3a"},"I",null,null," Пожалуйста, предоставьте ссылку на закон/постановление, которым устанавливаются такие ограничения на долю  собственности в капитале  в колонке \"Комментарии\"  (Q8e.4.3a)",{"$nulls":4},"",null,null,"",null,null,null,"",{"$nulls":6},""]
[{"$f":"MID(E51,FIND(\"(Q\",E51)+1,7)","v":"Q8e.4.4"},"N",null,null,"  Могут ли не инженеры гражданского строительства иметь голосующие права в инженерно-строительной компании? (Q8e.4.4)",null,null,null," Примечание: Этот вопрос относится только к ограничениям для физических лиц (т.е. лиц) и направлен на то чтобы подтвердить, что только инженеры могут иметь голосующие права или так же и другие лица ","",null,null,"",null,null,null,"",{"$nulls":6},""]
[{"$f":"MID(E52,FIND(\"(Q\",E52)+1,7)","v":"Q8e.4.5"},"N",null,null,"Существуют ли ограничения по компаниям, которые могут иметь голосующие права в инженерно-строительной компании (установленные законом или решением профессионального органа, или сочетанием первого и второго)? (Q8e.4.5)",null,null,null,"Примечание: Этот вопрос относится только к ограничениям, устанавливаемым для юридических лиц (т.е.компаний) и направлен на то, чтобы подтвердить, что только архитекторские компании могут иметь голосующие права, или  и другие фирмы тоже ","",null,null,"",null,null,null,"",{"$nulls":6},""]
[{"$f":"MID(E53,FIND(\"(Q\",E53)+1,8)","v":"Q8e.4.5a"},"I",null,null," Пожалуйста, предоставьте ссылку на закон/постановление, которым устанавливаются такие ограничения по голосующим правам в колонке \"Комментарии\" (Q8e.4.5a)",{"$nulls":4},"",null,null,"",null,null,null,"",{"$nulls":6},""]
[{"$f":"MID(E54,FIND(\"(Q\",E54)+1,7)","v":"Q8e.4.6"},"E","Q8.3.7",""," Регулируются ли сборы/тарифы, которые отдельные профессионалы и профессиональные компании могут  взимать за свои услуги государством, парламентом или самими профессионалами? (Q8e.4.6)",{"$nulls":4},{"$error":"#N/A"},null,null,{"$error":"#N/A"},null,null,null,"",{"$nulls":6},""]
[{"$nulls":5},"Если сборы/тарифы реулируются государством или профессиональными органами, каков характер такого регулирования? (Q8e.4.6a)",null,null,"Примечание: цена регулируется , если определенная сумма устанавливается правительством, парламентом  или  самой профессией, и цена должна быть:\n•  равна этой сумме (фиксированная цена), \n• равна или быть выше этой суммы (минимальная цена), \n• равна или ниже этой суммы (максимальная цена).\nЭта сумма должна быть  определенной суммой или процентом от стоимости предоставленной услуги (например,  сбор, взимаемый за услуги по передаче права собственности на объект недвижимости, при продаже дома может быть установлен в качестве процента от стоимости дома).\n"]
[{"$f":"MID(F$55,FIND(\"(Q\",F$55)+1,8)&\"_i\"","v":"Q8e.4.6a_i"},"EC","Q8.3.7a_vi","","",null," Необязательные рекомендуемые сборы/тарифы на определенные виды услуг ",null,null,{"$error":"#N/A"},null,null,{"$f":"IF(AND(J56=\"\",K56=\"\"),\"\",IF(K56=\"\",J56,K56))","v":{"$error":"#N/A"}},null,null,null,{"$f":"IF(O56=\"\",\"\",O56)","v":""},{"$nulls":6},{"$f":"IF(AND(S56=\"\",Q56=\"\"),\"\",IF(S56=\"\",Q56,S56))","v":""}]
[{"$f":"MID(F$55,FIND(\"(Q\",F$55)+1,8)&\"_ii\"","v":"Q8e.4.6a_ii"},"EC","Q8.3.7a_v","","",null," Необязательные рекомендуемые сборы тарифы на все виды услуг ",null,null,{"$error":"#N/A"},null,null,{"$error":"#N/A"},null,null,null,"",{"$nulls":6},""]
[{"$f":"MID(F$55,FIND(\"(Q\",F$55)+1,8)&\"_iii\"","v":"Q8e.4.6a_iii"},"EC","Q8.3.7a_iv","","",null,"Обязательные максимальные сборы/тарифы на определенные виды услуг ",null,null,{"$error":"#N/A"},null,null,{"$error":"#N/A"},null,null,null,"",{"$nulls":6},""]
[{"$f":"MID(F$55,FIND(\"(Q\",F$55)+1,8)&\"_iv\"","v":"Q8e.4.6a_iv"},"EC","Q8.3.7a_ii","","",null,"Обязательные максимальные сборы/тарифы на все виды услуг ",null,null,{"$error":"#N/A"},null,null,{"$error":"#N/A"},null,null,null,"",{"$nulls":6},""]
[{"$f":"MID(F$55,FIND(\"(Q\",F$55)+1,8)&\"_v\"","v":"Q8e.4.6a_v"},"EC","Q8.3.7a_iii","","",null,"Обязательные минимальные или фиксированные сборы/тарифы на некоторые вид услуг ",null,null,{"$error":"#N/A"},null,null,{"$error":"#N/A"},null,null,null,"",{"$nulls":6},""]
[{"$f":"MID(F$55,FIND(\"(Q\",F$55)+1,8)&\"_vi\"","v":"Q8e.4.6a_vi"},"EC","Q8.3.7a_i","","",null,"Обязательные минимальные или фиксированные сборы/тарифы на все виды услуг  ",null,null,{"$error":"#N/A"},null,null,{"$error":"#N/A"},null,null,null,"",{"$nulls":6},""]
[{"$f":"MID(F62,FIND(\"(Q\",F62)+1,8)","v":"Q8e.4.6b"},"I",null,null,null," Пожалуйста, предоставьте ссылку на самый последний набор регулируемых сборов или на закон /постановление, которое определяет, кто и как должен их устанавливать в колонке \"Комментарии\"  (Q8e.4.6b)",null,null,null,"",null,null,"",null,null,null,"",{"$nulls":6},""]
[{"$f":"MID(E63,FIND(\"(Q\",E63)+1,7)","v":"Q8e.4.7"},"E","Q8.3.9_ENG",""," При условии, что реклама не является ни ложной, ни вводящей в заблуждение или обманной, существуют ли  ограничения по рекламе и маркетингу данными профессионалами и/или профессиональными  (устанавливаемые законом или решением профессиональных органов или сочетанием первого и второго)? (Q8e.4.7)",null,null,null,"Примечание: ограничения по рекламированию/маркетингу могут быть в разной форме. Например, реклама в определенных СМИ (таких как радио реклама или телевизионная реклама) может быть запрещена . Таким же образом некоторые методы рекламы (такие как прямое приставание к клиенту) или определенное  содержание рекламы (такие как сравнения с другими профессионалами или информации о сборах) может быть запрещено. ",{"$error":"#N/A"},null,null,{"$error":"#N/A"},null,null,null,"",{"$nulls":6},""]
[{"$f":"MID(E64,FIND(\"(Q\",E64)+1,8)","v":"Q8e.4.7a"},"I",null,null," Пожалуйста, предоставьте ссылку на закон/постановление, которым устанавливаются такие ограничения в колонке \"Комментарии\" (Q8e.4.7a)",{"$nulls":4},"",null,null,"",null,null,null,"",{"$nulls":6},""]
[{"$f":"MID(E65,FIND(\"(Q\",E65)+1,7)","v":"Q8e.4.8"},"EC","Q8.3.10_ENG","","Существуют ли ограничения по межпрофессиональному бизнес сотрудничеству между инженерами гражданского строительства и другими профессионалами (например, партнерства, совместные предприятия), устанавливаемые законом или решением профессионального органа или сочетанием первого и второго? (Q8e.4.8)",null,null,null,"Детальные определения",{"$error":"#N/A"},null,null,{"$error":"#N/A"},null,null,null,"",{"$nulls":6},""]
[{"$f":"MID(E66,FIND(\"(Q\",E66)+1,8)","v":"Q8e.4.8a"},"I",null,null," Пожалуйста, предоставьте ссылку на закон/постановление, которым устанавливаются такие ограничения в колонке \"Комментарии\" (Q8e.4.8a)",{"$nulls":4},"",null,null,"",null,null,null,"",{"$nulls":6},""]
[null,null,null,"РАЗДЕЛ  8e.5. Ограничения для входа на рынок иностранных специалистов ",{"$nulls":4}," Инструкции: Вопросы данного раздела могут применяться  только к физическим лицам (т.е. профессионалам - индивидуалам), а не к юридическим лицам (т.е. профессиональным компаниям)."]
[{"$f":"MID(E68,FIND(\"(Q\",E68)+1,7)","v":"Q8e.5.1"},"N",null,null,"Является ли ваша страна участницей Соглашений о Взаимном Признании (СВП) инженеров гражданского строительства с другими странами? (Q8e.5.1)",null,null,null,"Определение : Соглашение о Взаимном Признании (СВП) - это международное соглашение, при помощи которого две или более стран соглашаются признавать оценки соответствия. В этом случае термин относится к соглашениям о признании профессиональных квалификаций.\n\nИнструкции: Для стран ЕС, если у вас есть такие соглашения с другими странами ЕС, то этого достаточно, чтобы ответить \"да\".","",null,null,{"$f":"IF(AND(J68=\"\",K68=\"\"),\"\",IF(K68=\"\",J68,K68))","v":""},null,null,null,{"$f":"IF(O68=\"\",\"\",O68)","v":""},{"$nulls":6},{"$f":"IF(AND(S68=\"\",Q68=\"\"),\"\",IF(S68=\"\",Q68,S68))","v":""}]
[{"$f":"MID(E69,FIND(\"(Q\",E69)+1,8)","v":"Q8e.5.1a"},"I",null,null," Пожалуйста, предоставьте ссылку на, как минимум, одно СВП в колонке \"Комментарии\" (Q8e.5.1a)",{"$nulls":4},"",null,null,"",null,null,null,"",{"$nulls":6},""]
[{"$f":"MID(E70,FIND(\"(Q\",E70)+1,7)","v":"Q8e.5.2"},"N",null,null,"Создают ли законы/постановления понятный и прозрачный процесс признания образовательных титулов, которые были получены зарубежом для инженеров гражданского строительства? (Q8e.5.2)",null,null,null," Примечание: Примеры образовательных титулов - это степени университетов или магистратуры.\n\nПримечание: Если нет кодифицированного процесса по признанию образовательных титулов, полученных зарубежом, признание осуществляется на произвольной основе.\n\nПримечание для стран ОЭСР: Вам не нужно отвечать на эти два вопроса (Q8с.5.2 и Q8с.5.3), поскольку ответы будут взяты из базы данных ОЭСР STRI.","",null,null,"",null,null,null,"",{"$nulls":6},""]
[{"$f":"MID(E71,FIND(\"(Q\",E71)+1,7)","v":"Q8e.5.3"},"N",null,null,"Обязаны ли зарубежные инженеры гражданского строительства сдать местный экзамен для того чтобы практиковать? (Q8e.5.3)",{"$nulls":4},"",null,null,"",null,null,null,"",{"$nulls":6},""]
[]
[]
[]
[{"$nulls":7}," Профессии (ИНЖЕНЕРЫ ГРАЖДАНСКОГО СТРОИТЕЛЬСТВА):  Общие определения и инструкции - ПОЖАЛУЙСТА ОЗНАКОМЬТЕСЬ"]
[{"$nulls":7}," Определение: Инженеры гражданского строительства - это профессионалы, которые обычно занимаются проектированием, строительством и эксплуатацией зданий, а так же дорог, мостов, дамб и т.п. Вопросы ниже  направлены только на инженеров гражданского строительства, другие виды инженеров в анкету не входят.\n\nИнструкции:  Если существует несколько профессий, которые подпадают под описание выше, и требования  к профессиям отличаются полностью/частично, респонденту необходимо выбрать профессию, к которой применяются самые строгие требования и отвечать на вопросы только по этой профессии. "]
[{"$nulls":7}," Территориальные ограничения "]
[{"$nulls":7},"Инструкции:  вопрос пытается понять , может ли профессионал работать во всей юрисдикции или только в части ее. Ответ должен быть \"да\", если такие ограничения можно преодолеть, сделав дополнительные  шаги  (т.е. сдача дополнительных экзаменов, получение дополнительных лицензий/разрешений и т.д.).  Например,  у адвоката может быть обязанность регистрации в местной  коллегии адвокатов в каждой местной юрисдикции, в суде которой адвокат может присутствовать .\n\nИнструкции: Ответ должен быть таким же, если ограничения относятся к профессионалам и/или к профессиональным компаниям."]
[{"$nulls":7},"Ограничения по правовой форме бизнеса "]
[{"$nulls":7},"Индивидуальное частное предприятие или личное предприятие - это вид бизнес образования, которое принадлежит и которым руководит одно физическое лицо, и в котором нет юридического разграничения между  владельцем и бизнесом (т.е. бизнес образование не имеет отдельной юридической личности). Владелец  получает всю прибыль (с учетом налогообложения, специфичного для такого бизнеса) и несет неограниченную ответственность за все убытки и долги. Поэтому, нет ограничения по ответственности.\nПредприятие с ограниченной ответственностью - это случай, когда финансовая ответственность лица  ограничивается инвестициями этого лица в компанию или партнерство. Это означает, что такое лицо не несет личной ответственности по каким- либо долгам компании или партнерства, кроме сумм инвестиций в компанию.\nIРегистрация - это процесс, при помощи которого компания создается. При помощи этого процесса компания получает  отдельную  юридическую личность, которая отличается от физических лиц, которым компания принадлежит. \nПрочее - используйте эту категорию, когда вы думаете, что форма бизнеса не подпадает под любое описание, или если вы не уверены. Но, пожалуйста, предоставьте название на вашем языке такой компании и краткое описание. В особенности,  объясните объем ответственности владельца бизнеса по долгам бизнеса и насколько владельцам бизнеса разрешено управлять им."]
[{"$nulls":7},"Ограничения по межпрофессиональному бизнес сотрудничеству "]
[{"$nulls":7},"Примечание: Ответы дают отличие между ситуациями, когда в законе существует статья по общему конфликту интересов,  в случае, когда совместная работа может противоречить независимости или непредвзятости  профессионалов, и ситуациям, когда существует запрет на сотрудничество с некоторыми профессионалами, и  более экстремальными ситуациям, когда существует полный запрет на сотрудничество с какой-либо другой профессией. \nОпределения:\n-Бизнес сотрудничество означает возможность для разных профессий (например бухгалтеры и адвокаты, или архитекторы и инженеры) работать в  одной и той же компании и таким образом, иметь возможность делать предложение  клиентам по многим направлениям деятельности. \n- Конфликт интересов означает ситуацию, при которой на вынесение независимого профессионального суждения могут оказать влияние другие интересы."]
[{"$nulls":7},"Определение по праву на занятие деятельностью "]
[{"$nulls":7},"Определения:\n-Профессия имеет эксклюзивное право на занятие деятельностью, если  только представителям этой профессии разрешается заниматься такой деятельностью.\n- Профессия имеет совместные эксклюзивные права, когда представители такой профессии и ограниченное количество других профессий являются лицами, которым разрешено заниматься деятельностью, например, в некоторых странах адвокаты и нотариусы могут иметь совместные эксклюзивные права на администрирование заявления под присягой. Возможно, что  право на занятие определенной деятельностью принадлежит профессии и государству.  Пожалуйста, учтите, что регулируемые профессии, которые имеют эксклюзивное право, не обязательно должны быть теми, которые охвачены в данной анкете (например, бухгалтеры, архитекторы, инженеры гражданского строительства, агенты недвижимости, адвокаты и нотариусы), но должны включать все регулируемые профессии в юрисдикции. \n- Вид деятельности резервируется за государством или за официальным лицом, назначенным государством, когда государство по закону исключает частных субъектов экономической деятельности, и не позволяет им заниматься определенным видом деятельности в связи с ее важностью для общества и государства или, в случаях, когда назначенные государством официальные лица выполняют такую работу как государственное задание.\n- Нет эксклюзивного права на деятельность, если кто-либо может заниматься такой деятельностью без необходимости соответствовать определенным специфическим критериям."]

{"sheet":"Database_n","index":5,"n_rows":348,"n_cols":18,"rows_kept":348,"cut":false,"hidden":true,"merged":[]}
["Status","code2018","QuestionText_2018","code2013","QuestionText_2013",{"$f":"\"reply_\"&LEFT(Country!B3,3)&\"_2013\"","v":"reply_KAZ_2013"},{"$f":"\"reply_\"&LEFT(Country!B3,3)&\"_2018\"","v":"reply_KAZ_2018"},{"$nulls":10},"EoF"]
[{"$f":"#REF!","v":{"$error":"#REF!"}},{"$f":"#REF!","v":{"$error":"#REF!"}},{"$f":"LEFT(#REF!,FIND(\"(Q\",#REF!)-2)","v":{"$error":"#REF!"}},{"$f":"IF(OR(#REF!=\"N\",#REF!=\"I\"),\"N\",#REF!)","v":{"$error":"#REF!"}},"N",{"$f":"#REF!","v":{"$error":"#REF!"}},{"$f":"#REF!","v":{"$error":"#REF!"}}]
[{"$f":"#REF!","v":{"$error":"#REF!"}},{"$f":"#REF!","v":{"$error":"#REF!"}},{"$f":"LEFT(#REF!,FIND(\"(Q\",#REF!)-2)","v":{"$error":"#REF!"}},{"$f":"IF(OR(#REF!=\"N\",#REF!=\"I\"),\"N\",#REF!)","v":{"$error":"#REF!"}},"N",{"$f":"#REF!","v":{"$error":"#REF!"}},{"$f":"#REF!","v":{"$error":"#REF!"}}]
[{"$f":"#REF!","v":{"$error":"#REF!"}},{"$f":"#REF!","v":{"$error":"#REF!"}},{"$f":"LEFT(#REF!,FIND(\"(Q\",#REF!)-2)","v":{"$error":"#REF!"}},{"$f":"IF(OR(#REF!=\"N\",#REF!=\"I\"),\"N\",#REF!)","v":{"$error":"#REF!"}},"N",{"$f":"#REF!","v":{"$error":"#REF!"}},{"$f":"#REF!","v":{"$error":"#REF!"}}]
[{"$f":"#REF!","v":{"$error":"#REF!"}},{"$f":"#REF!","v":{"$error":"#REF!"}},{"$f":"LEFT(#REF!,FIND(\"(Q\",#REF!)-2)&\" - \"&#REF!","v":{"$error":"#REF!"}},{"$f":"IF(OR(#REF!=\"N\",#REF!=\"I\"),\"N\",#REF!)","v":{"$error":"#REF!"}},"Does the legal profession have an exclusive or shared exclusive right to provide the task? - Representation of clients before courts",{"$f":"#REF!","v":{"$error":"#REF!"}},{"$f":"#REF!","v":{"$error":"#REF!"}}]
[{"$f":"#REF!","v":{"$error":"#REF!"}},{"$f":"#REF!","v":{"$error":"#REF!"}},{"$f":"LEFT(#REF!,FIND(\"(Q\",#REF!)-2)&\" - \"&#REF!","v":{"$error":"#REF!"}},{"$f":"IF(OR(#REF!=\"N\",#REF!=\"I\"),\"N\",#REF!)","v":{"$error":"#REF!"}},"Does the legal profession have an exclusive or shared exclusive right to provide the task? - Representation before administrative agencies, including on tax matters",{"$f":"#REF!","v":{"$error":"#REF!"}},{"$f":"#REF!","v":{"$error":"#REF!"}}]
[{"$f":"#REF!","v":{"$error":"#REF!"}},{"$f":"#REF!","v":{"$error":"#REF!"}},{"$f":"LEFT(#REF!,FIND(\"(Q\",#REF!)-2)&\" - \"&#REF!","v":{"$error":"#REF!"}},{"$f":"IF(OR(#REF!=\"N\",#REF!=\"I\"),\"N\",#REF!)","v":{"$error":"#REF!"}},"N",{"$f":"#REF!","v":{"$error":"#REF!"}},{"$f":"#REF!","v":{"$error":"#REF!"}}]
[{"$f":"#REF!","v":{"$error":"#REF!"}},{"$f":"#REF!","v":{"$error":"#REF!"}},{"$f":"LEFT(#REF!,FIND(\"(Q\",#REF!)-2)&\" - \"&#REF!","v":{"$error":"#REF!"}},{"$f":"IF(OR(#REF!=\"N\",#REF!=\"I\"),\"N\",#REF!)","v":{"$error":"#REF!"}},"Does the legal profession have an exclusive or shared exclusive right to provide the task? - Advice on matters predominantly regulated by domestic law",{"$f":"#REF!","v":{"$error":"#REF!"}},{"$f":"#REF!","v":{"$error":"#REF!"}}]
[{"$f":"#REF!","v":{"$error":"#REF!"}},{"$f":"#REF!","v":{"$error":"#REF!"}},{"$f":"LEFT(#REF!,FIND(\"(Q\",#REF!)-2)&\" - \"&#REF!","v":{"$error":"#REF!"}},{"$f":"IF(OR(#REF!=\"N\",#REF!=\"I\"),\"N\",#REF!)","v":{"$error":"#REF!"}},"Does the legal profession have an exclusive or shared exclusive right to provide the task? - Advice on matters predominantly regulated by international law",{"$f":"#REF!","v":{"$error":"#REF!"}},{"$f":"#REF!","v":{"$error":"#REF!"}}]
[{"$f":"#REF!","v":{"$error":"#REF!"}},{"$f":"#REF!","v":{"$error":"#REF!"}},{"$f":"LEFT(#REF!,FIND(\"(Q\",#REF!)-2)&\" - \"&#REF!","v":{"$error":"#REF!"}},{"$f":"IF(OR(#REF!=\"N\",#REF!=\"I\"),\"N\",#REF!)","v":{"$error":"#REF!"}},"Does the legal profession have an exclusive or shared exclusive right to provide the task? - Advice on matters predominantly regulated by foreign law",{"$f":"#REF!","v":{"$error":"#REF!"}},{"$f":"#REF!","v":{"$error":"#REF!"}}]
[{"$f":"#REF!","v":{"$error":"#REF!"}},{"$f":"#REF!","v":{"$error":"#REF!"}},{"$f":"LEFT(#REF!,FIND(\"(Q\",#REF!)-2)&\" - \"&#REF!","v":{"$error":"#REF!"}},{"$f":"IF(OR(#REF!=\"N\",#REF!=\"I\"),\"N\",#REF!)","v":{"$error":"#REF!"}},"Does the legal profession have an exclusive or shared exclusive right to provide the task? - Transferring of title to real estate, wills and regulation of family matters (conveyancing)",{"$f":"#REF!","v":{"$error":"#REF!"}},{"$f":"#REF!","v":{"$error":"#REF!"}}]
[{"$f":"#REF!","v":{"$error":"#REF!"}},{"$f":"#REF!","v":{"$error":"#REF!"}},{"$f":"LEFT(#REF!,FIND(\"(Q\",#REF!)-2)&\" - \"&#REF!","v":{"$error":"#REF!"}},{"$f":"IF(OR(#REF!=\"N\",#REF!=\"I\"),\"N\",#REF!)","v":{"$error":"#REF!"}},"N",{"$f":"#REF!","v":{"$error":"#REF!"}},{"$f":"#REF!","v":{"$error":"#REF!"}}]
[{"$f":"#REF!","v":{"$error":"#REF!"}},{"$f":"#REF!","v":{"$error":"#REF!"}},{"$f":"LEFT(#REF!,FIND(\"(Q\",#REF!)-2)&\" - \"&#REF!","v":{"$error":"#REF!"}},{"$f":"IF(OR(#REF!=\"N\",#REF!=\"I\"),\"N\",#REF!)","v":{"$error":"#REF!"}},"Does the legal profession have an exclusive or shared exclusive right to provide the task? - Tax advice",{"$f":"#REF!","v":{"$error":"#REF!"}},{"$f":"#REF!","v":{"$error":"#REF!"}}]
[{"$f":"#REF!","v":{"$error":"#REF!"}},{"$f":"#REF!","v":{"$error":"#REF!"}},{"$f":"LEFT(#REF!,FIND(\"(Q\",#REF!)-2)&\" - \"&#REF!","v":{"$error":"#REF!"}},{"$f":"IF(OR(#REF!=\"N\",#REF!=\"I\"),\"N\",#REF!)","v":{"$error":"#REF!"}},"Does the legal profession have an exclusive or shared exclusive right to provide the task? - Insolvency practice",{"$f":"#REF!","v":{"$error":"#REF!"}},{"$f":"#REF!","v":{"$error":"#REF!"}}]
[{"$f":"#REF!","v":{"$error":"#REF!"}},{"$f":"#REF!","v":{"$error":"#REF!"}},{"$f":"LEFT(#REF!,FIND(\"(Q\",#REF!)-2)&\" - \"&#REF!","v":{"$error":"#REF!"}},{"$f":"IF(OR(#REF!=\"N\",#REF!=\"I\"),\"N\",#REF!)","v":{"$error":"#REF!"}},"Does the legal profession have an exclusive or shared exclusive right to provide the task? - Management consulting and other business advisory services",{"$f":"#REF!","v":{"$error":"#REF!"}},{"$f":"#REF!","v":{"$error":"#REF!"}}]
[{"$f":"#REF!","v":{"$error":"#REF!"}},{"$f":"#REF!","v":{"$error":"#REF!"}},{"$f":"LEFT(#REF!,FIND(\"(Q\",#REF!)-2)&\" - \"&#REF!","v":{"$error":"#REF!"}},{"$f":"IF(OR(#REF!=\"N\",#REF!=\"I\"),\"N\",#REF!)","v":{"$error":"#REF!"}},"Does the legal profession have an exclusive or shared exclusive right to provide the task? - Advice and representation on patent law",{"$f":"#REF!","v":{"$error":"#REF!"}},{"$f":"#REF!","v":{"$error":"#REF!"}}]
[{"$f":"#REF!","v":{"$error":"#REF!"}},{"$f":"#REF!","v":{"$error":"#REF!"}},{"$f":"LEFT(#REF!,FIND(\"(Q\",#REF!)-2)&\" - \"&#REF!","v":{"$error":"#REF!"}},{"$f":"IF(OR(#REF!=\"N\",#REF!=\"I\"),\"N\",#REF!)","v":{"$error":"#REF!"}},"N",{"$f":"#REF!","v":{"$error":"#REF!"}},{"$f":"#REF!","v":{"$error":"#REF!"}}]
[{"$f":"#REF!","v":{"$error":"#REF!"}},{"$f":"#REF!","v":{"$error":"#REF!"}},{"$f":"LEFT(#REF!,FIND(\"(Q\",#REF!)-2)&\" - \"&#REF!","v":{"$error":"#REF!"}},{"$f":"IF(OR(#REF!=\"N\",#REF!=\"I\"),\"N\",#REF!)","v":{"$error":"#REF!"}},"N",{"$f":"#REF!","v":{"$error":"#REF!"}},{"$f":"#REF!","v":{"$error":"#REF!"}}]
[{"$f":"#REF!","v":{"$error":"#REF!"}},{"$f":"#REF!","v":{"$error":"#REF!"}},{"$f":"LEFT(#REF!,FIND(\"(Q\",#REF!)-2)&\" - \"&#REF!","v":{"$error":"#REF!"}},{"$f":"IF(OR(#REF!=\"N\",#REF!=\"I\"),\"N\",#REF!)","v":{"$error":"#REF!"}},"N",{"$f":"#REF!","v":{"$error":"#REF!"}},{"$f":"#REF!","v":{"$error":"#REF!"}}]
[{"$f":"#REF!","v":{"$error":"#REF!"}},{"$f":"#REF!","v":{"$error":"#REF!"}},{"$f":"LEFT(#REF!,FIND(\"(Q\",#REF!)-2)","v":{"$error":"#REF!"}},{"$f":"IF(OR(#REF!=\"N\",#REF!=\"I\"),\"N\",#REF!)","v":{"$error":"#REF!"}},"N",{"$f":"#REF!","v":{"$error":"#REF!"}},{"$f":"#REF!","v":{"$error":"#REF!"}}]
[{"$f":"#REF!","v":{"$error":"#REF!"}},{"$f":"#REF!","v":{"$error":"#REF!"}},{"$f":"LEFT(#REF!,FIND(\"(Q\",#REF!)-2)","v":{"$error":"#REF!"}},{"$f":"IF(OR(#REF!=\"N\",#REF!=\"I\"),\"N\",#REF!)","v":{"$error":"#REF!"}},"N",{"$f":"#REF!","v":{"$error":"#REF!"}},{"$f":"#REF!","v":{"$error":"#REF!"}}]
[{"$f":"#REF!","v":{"$error":"#REF!"}},{"$f":"#REF!","v":{"$error":"#REF!"}},{"$f":"LEFT(#REF!,FIND(\"(Q\",#REF!)-2)","v":{"$error":"#REF!"}},{"$f":"IF(OR(#REF!=\"N\",#REF!=\"I\"),\"N\",#REF!)","v":{"$error":"#REF!"}},"N",{"$f":"#REF!","v":{"$error":"#REF!"}},{"$f":"#REF!","v":{"$error":"#REF!"}}]
[{"$f":"#REF!","v":{"$error":"#REF!"}},{"$f":"#REF!","v":{"$error":"#REF!"}},{"$f":"LEFT(#REF!,FIND(\"(Q\",#REF!)-2)","v":{"$error":"#REF!"}},{"$f":"IF(OR(#REF!=\"N\",#REF!=\"I\"),\"N\",#REF!)","v":{"$error":"#REF!"}},"How is access to the profession regulated? - Legal profession",{"$f":"#REF!","v":{"$error":"#REF!"}},{"$f":"#REF!","v":{"$error":"#REF!"}}]
[{"$f":"#REF!","v":{"$error":"#REF!"}},{"$f":"#REF!","v":{"$error":"#REF!"}},{"$f":"LEFT(#REF!,FIND(\"(Q\",#REF!)-2)","v":{"$error":"#REF!"}},{"$f":"IF(OR(#REF!=\"N\",#REF!=\"I\"),\"N\",#REF!)","v":{"$error":"#REF!"}},"N",{"$f":"#REF!","v":{"$error":"#REF!"}},{"$f":"#REF!","v":{"$error":"#REF!"}}]
[{"$f":"#REF!","v":{"$error":"#REF!"}},{"$f":"#REF!","v":{"$error":"#REF!"}},{"$f":"LEFT(#REF!,FIND(\"(Q\",#REF!)-2)","v":{"$error":"#REF!"}},{"$f":"IF(OR(#REF!=\"N\",#REF!=\"I\"),\"N\",#REF!)","v":{"$error":"#REF!"}},"N",{"$f":"#REF!","v":{"$error":"#REF!"}},{"$f":"#REF!","v":{"$error":"#REF!"}}]
[{"$f":"#REF!","v":{"$error":"#REF!"}},{"$f":"#REF!","v":{"$error":"#REF!"}},{"$f":"LEFT(#REF!,FIND(\"(Q\",#REF!)-2)","v":{"$error":"#REF!"}},{"$f":"IF(OR(#REF!=\"N\",#REF!=\"I\"),\"N\",#REF!)","v":{"$error":"#REF!"}},"N",{"$f":"#REF!","v":{"$error":"#REF!"}},{"$f":"#REF!","v":{"$error":"#REF!"}}]
[{"$f":"#REF!","v":{"$error":"#REF!"}},{"$f":"#REF!","v":{"$error":"#REF!"}},{"$f":"LEFT(#REF!,FIND(\"(Q\",#REF!)-2)","v":{"$error":"#REF!"}},{"$f":"IF(OR(#REF!=\"N\",#REF!=\"I\"),\"N\",#REF!)","v":{"$error":"#REF!"}},"N",{"$f":"#REF!","v":{"$error":"#REF!"}},{"$f":"#REF!","v":{"$error":"#REF!"}}]
[{"$f":"#REF!","v":{"$error":"#REF!"}},{"$f":"#REF!","v":{"$error":"#REF!"}},{"$f":"LEFT(#REF!,FIND(\"(Q\",#REF!)-2)","v":{"$error":"#REF!"}},{"$f":"IF(OR(#REF!=\"N\",#REF!=\"I\"),\"N\",#REF!)","v":{"$error":"#REF!"}},"N",{"$f":"#REF!","v":{"$error":"#REF!"}},{"$f":"#REF!","v":{"$error":"#REF!"}}]
[{"$f":"#REF!","v":{"$error":"#REF!"}},{"$f":"#REF!","v":{"$error":"#REF!"}},{"$f":"LEFT(#REF!,FIND(\"(Q\",#REF!)-2)","v":{"$error":"#REF!"}},{"$f":"IF(OR(#REF!=\"N\",#REF!=\"I\"),\"N\",#REF!)","v":{"$error":"#REF!"}},"N",{"$f":"#REF!","v":{"$error":"#REF!"}},{"$f":"#REF!","v":{"$error":"#REF!"}}]
[{"$f":"#REF!","v":{"$error":"#REF!"}},{"$f":"#REF!","v":{"$error":"#REF!"}},{"$f":"LEFT(#REF!,FIND(\"(Q\",#REF!)-2)","v":{"$error":"#REF!"}},{"$f":"IF(OR(#REF!=\"N\",#REF!=\"I\"),\"N\",#REF!)","v":{"$error":"#REF!"}},"Entry requirements in the legal profession - Is a university degree required to enter the profession?",{"$f":"#REF!","v":{"$error":"#REF!"}},{"$f":"#REF!","v":{"$error":"#REF!"}}]
[{"$f":"#REF!","v":{"$error":"#REF!"}},{"$f":"#REF!","v":{"$error":"#REF!"}},{"$f":"LEFT(#REF!,FIND(\"(Q\",#REF!)-2)","v":{"$error":"#REF!"}},{"$f":"IF(OR(#REF!=\"N\",#REF!=\"I\"),\"N\",#REF!)","v":{"$error":"#REF!"}},"Entry requirements in the legal profession - If a university degree is required, how many years duration?",{"$f":"#REF!","v":{"$error":"#REF!"}},{"$f":"#REF!","v":{"$error":"#REF!"}}]
[{"$f":"#REF!","v":{"$error":"#REF!"}},{"$f":"#REF!","v":{"$error":"#REF!"}},{"$f":"LEFT(#REF!,FIND(\"(Q\",#REF!)-2)","v":{"$error":"#REF!"}},{"$f":"IF(OR(#REF!=\"N\",#REF!=\"I\"),\"N\",#REF!)","v":{"$error":"#REF!"}},"Entry requirements in the legal profession - Is there any other higher education required to enter the profession?",{"$f":"#REF!","v":{"$error":"#REF!"}},{"$f":"#REF!","v":{"$error":"#REF!"}}]
[{"$f":"#REF!","v":{"$error":"#REF!"}},{"$f":"#REF!","v":{"$error":"#REF!"}},{"$f":"LEFT(#REF!,FIND(\"(Q\",#REF!)-2)","v":{"$error":"#REF!"}},{"$f":"IF(OR(#REF!=\"N\",#REF!=\"I\"),\"N\",#REF!)","v":{"$error":"#REF!"}},"Entry requirements in the legal profession - If any other higher education is required, how many years duration?",{"$f":"#REF!","v":{"$error":"#REF!"}},{"$f":"#REF!","v":{"$error":"#REF!"}}]
[{"$f":"#REF!","v":{"$error":"#REF!"}},{"$f":"#REF!","v":{"$error":"#REF!"}},{"$f":"LEFT(#REF!,FIND(\"(Q\",#REF!)-2)","v":{"$error":"#REF!"}},{"$f":"IF(OR(#REF!=\"N\",#REF!=\"I\"),\"N\",#REF!)","v":{"$error":"#REF!"}},"Entry requirements in the legal profession - Is relevant compulsory practice required to become a full member of the profession?",{"$f":"#REF!","v":{"$error":"#REF!"}},{"$f":"#REF!","v":{"$error":"#REF!"}}]
[{"$f":"#REF!","v":{"$error":"#REF!"}},{"$f":"#REF!","v":{"$error":"#REF!"}},{"$f":"LEFT(#REF!,FIND(\"(Q\",#REF!)-2)","v":{"$error":"#REF!"}},{"$f":"IF(OR(#REF!=\"N\",#REF!=\"I\"),\"N\",#REF!)","v":{"$error":"#REF!"}},"Entry requirements in the legal profession - If relevant compulsory practice is required, how many years duration?",{"$f":"#REF!","v":{"$error":"#REF!"}},{"$f":"#REF!","v":{"$error":"#REF!"}}]
[{"$f":"#REF!","v":{"$error":"#REF!"}},{"$f":"#REF!","v":{"$error":"#REF!"}},{"$f":"LEFT(#REF!,FIND(\"(Q\",#REF!)-2)","v":{"$error":"#REF!"}},{"$f":"IF(OR(#REF!=\"N\",#REF!=\"I\"),\"N\",#REF!)","v":{"$error":"#REF!"}},"Entry requirements in the legal profession - Is there a requirement to pass one or more professional examinations to become a full member of the profession?",{"$f":"#REF!","v":{"$error":"#REF!"}},{"$f":"#REF!","v":{"$error":"#REF!"}}]
[{"$f":"#REF!","v":{"$error":"#REF!"}},{"$f":"#REF!","v":{"$error":"#REF!"}},{"$f":"LEFT(#REF!,FIND(\"(Q\",#REF!)-2)","v":{"$error":"#REF!"}},{"$f":"IF(OR(#REF!=\"N\",#REF!=\"I\"),\"N\",#REF!)","v":{"$error":"#REF!"}},"N",{"$f":"#REF!","v":{"$error":"#REF!"}},{"$f":"#REF!","v":{"$error":"#REF!"}}]
[{"$f":"#REF!","v":{"$error":"#REF!"}},{"$f":"#REF!","v":{"$error":"#REF!"}},{"$f":"LEFT(#REF!,FIND(\"(Q\",#REF!)-2)","v":{"$error":"#REF!"}},{"$f":"IF(OR(#REF!=\"N\",#REF!=\"I\"),\"N\",#REF!)","v":{"$error":"#REF!"}},"Entry requirements in the legal profession - Is membership in a professional organisation compulsory in order to legally practice?",{"$f":"#REF!","v":{"$error":"#REF!"}},{"$f":"#REF!","v":{"$error":"#REF!"}}]
[{"$f":"#REF!","v":{"$error":"#REF!"}},{"$f":"#REF!","v":{"$error":"#REF!"}},{"$f":"LEFT(#REF!,FIND(\"(Q\",#REF!)-2)","v":{"$error":"#REF!"}},{"$f":"IF(OR(#REF!=\"N\",#REF!=\"I\"),\"N\",#REF!)","v":{"$error":"#REF!"}},"N",{"$f":"#REF!","v":{"$error":"#REF!"}},{"$f":"#REF!","v":{"$error":"#REF!"}}]
[{"$f":"#REF!","v":{"$error":"#REF!"}},{"$f":"#REF!","v":{"$error":"#REF!"}},{"$f":"LEFT(#REF!,FIND(\"(Q\",#REF!)-2)","v":{"$error":"#REF!"}},{"$f":"IF(OR(#REF!=\"N\",#REF!=\"I\"),\"N\",#REF!)","v":{"$error":"#REF!"}},"Is the legal form of business restricted in the legal profession?",{"$f":"#REF!","v":{"$error":"#REF!"}},{"$f":"#REF!","v":{"$error":"#REF!"}}]
[{"$f":"#REF!","v":{"$error":"#REF!"}},{"$f":"#REF!","v":{"$error":"#REF!"}},{"$f":"LEFT(#REF!,FIND(\"(Q\",#REF!)-2)","v":{"$error":"#REF!"}},{"$f":"IF(OR(#REF!=\"N\",#REF!=\"I\"),\"N\",#REF!)","v":{"$error":"#REF!"}},"N",{"$f":"#REF!","v":{"$error":"#REF!"}},{"$f":"#REF!","v":{"$error":"#REF!"}}]
[{"$f":"#REF!","v":{"$error":"#REF!"}},{"$f":"#REF!","v":{"$error":"#REF!"}},{"$f":"LEFT(#REF!,FIND(\"(Q\",#REF!)-2)","v":{"$error":"#REF!"}},{"$f":"IF(OR(#REF!=\"N\",#REF!=\"I\"),\"N\",#REF!)","v":{"$error":"#REF!"}},"N",{"$f":"#REF!","v":{"$error":"#REF!"}},{"$f":"#REF!","v":{"$error":"#REF!"}}]
[{"$f":"#REF!","v":{"$error":"#REF!"}},{"$f":"#REF!","v":{"$error":"#REF!"}},{"$f":"LEFT(#REF!,FIND(\"(Q\",#REF!)-2)","v":{"$error":"#REF!"}},{"$f":"IF(OR(#REF!=\"N\",#REF!=\"I\"),\"N\",#REF!)","v":{"$error":"#REF!"}},"N",{"$f":"#REF!","v":{"$error":"#REF!"}},{"$f":"#REF!","v":{"$error":"#REF!"}}]
[{"$f":"#REF!","v":{"$error":"#REF!"}},{"$f":"#REF!","v":{"$error":"#REF!"}},{"$f":"LEFT(#REF!,FIND(\"(Q\",#REF!)-2)","v":{"$error":"#REF!"}},{"$f":"IF(OR(#REF!=\"N\",#REF!=\"I\"),\"N\",#REF!)","v":{"$error":"#REF!"}},"N",{"$f":"#REF!","v":{"$error":"#REF!"}},{"$f":"#REF!","v":{"$error":"#REF!"}}]
[{"$f":"#REF!","v":{"$error":"#REF!"}},{"$f":"#REF!","v":{"$error":"#REF!"}},{"$f":"LEFT(#REF!,FIND(\"(Q\",#REF!)-2)","v":{"$error":"#REF!"}},{"$f":"IF(OR(#REF!=\"N\",#REF!=\"I\"),\"N\",#REF!)","v":{"$error":"#REF!"}},"N",{"$f":"#REF!","v":{"$error":"#REF!"}},{"$f":"#REF!","v":{"$error":"#REF!"}}]
[{"$f":"#REF!","v":{"$error":"#REF!"}},{"$f":"#REF!","v":{"$error":"#REF!"}},{"$f":"LEFT(#REF!,FIND(\"(Q\",#REF!)-2)","v":{"$error":"#REF!"}},{"$f":"IF(OR(#REF!=\"N\",#REF!=\"I\"),\"N\",#REF!)","v":{"$error":"#REF!"}},"N",{"$f":"#REF!","v":{"$error":"#REF!"}},{"$f":"#REF!","v":{"$error":"#REF!"}}]
[{"$f":"#REF!","v":{"$error":"#REF!"}},{"$f":"#REF!","v":{"$error":"#REF!"}},{"$f":"LEFT(#REF!,FIND(\"(Q\",#REF!)-2)","v":{"$error":"#REF!"}},{"$f":"IF(OR(#REF!=\"N\",#REF!=\"I\"),\"N\",#REF!)","v":{"$error":"#REF!"}},"N",{"$f":"#REF!","v":{"$error":"#REF!"}},{"$f":"#REF!","v":{"$error":"#REF!"}}]
[{"$f":"#REF!","v":{"$error":"#REF!"}},{"$f":"#REF!","v":{"$error":"#REF!"}},{"$f":"LEFT(#REF!,FIND(\"(Q\",#REF!)-2)","v":{"$error":"#REF!"}},{"$f":"IF(OR(#REF!=\"N\",#REF!=\"I\"),\"N\",#REF!)","v":{"$error":"#REF!"}},"Are the fees/prices that the legal profession charges for its services regulated by the government or self-regulated by the profession itself?",{"$f":"#REF!","v":{"$error":"#REF!"}},{"$f":"#REF!","v":{"$error":"#REF!"}}]
[{"$f":"#REF!","v":{"$error":"#REF!"}},{"$f":"#REF!","v":{"$error":"#REF!"}},{"$f":"LEFT(#REF!,FIND(\"(Q\",#REF!)-2)&\" - \"&#REF!","v":{"$error":"#REF!"}},{"$f":"IF(OR(#REF!=\"N\",#REF!=\"I\"),\"N\",#REF!)","v":{"$error":"#REF!"}},"If fees/prices are regulated or self-regulated, what is the nature of these regulations? - Non-binding recommended prices for some services",{"$f":"#REF!","v":{"$error":"#REF!"}},{"$f":"#REF!","v":{"$error":"#REF!"}}]
[{"$f":"#REF!","v":{"$error":"#REF!"}},{"$f":"#REF!","v":{"$error":"#REF!"}},{"$f":"LEFT(#REF!,FIND(\"(Q\",#REF!)-2)&\" - \"&#REF!","v":{"$error":"#REF!"}},{"$f":"IF(OR(#REF!=\"N\",#REF!=\"I\"),\"N\",#REF!)","v":{"$error":"#REF!"}},"If fees/prices are regulated or self-regulated, what is the nature of these regulations? - Non-binding recommended prices for all services",{"$f":"#REF!","v":{"$error":"#REF!"}},{"$f":"#REF!","v":{"$error":"#REF!"}}]
[{"$f":"#REF!","v":{"$error":"#REF!"}},{"$f":"#REF!","v":{"$error":"#REF!"}},{"$f":"LEFT(#REF!,FIND(\"(Q\",#REF!)-2)&\" - \"&#REF!","v":{"$error":"#REF!"}},{"$f":"IF(OR(#REF!=\"N\",#REF!=\"I\"),\"N\",#REF!)","v":{"$error":"#REF!"}},"If fees/prices are regulated or self-regulated, what is the nature of these regulations? - Binding maximum prices for some services",{"$f":"#REF!","v":{"$error":"#REF!"}},{"$f":"#REF!","v":{"$error":"#REF!"}}]
[{"$f":"#REF!","v":{"$error":"#REF!"}},{"$f":"#REF!","v":{"$error":"#REF!"}},{"$f":"LEFT(#REF!,FIND(\"(Q\",#REF!)-2)&\" - \"&#REF!","v":{"$error":"#REF!"}},{"$f":"IF(OR(#REF!=\"N\",#REF!=\"I\"),\"N\",#REF!)","v":{"$error":"#REF!"}},"If fees/prices are regulated or self-regulated, what is the nature of these regulations? - Binding maximum prices for all services",{"$f":"#REF!","v":{"$error":"#REF!"}},{"$f":"#REF!","v":{"$error":"#REF!"}}]
[{"$f":"#REF!","v":{"$error":"#REF!"}},{"$f":"#REF!","v":{"$error":"#REF!"}},{"$f":"LEFT(#REF!,FIND(\"(Q\",#REF!)-2)&\" - \"&#REF!","v":{"$error":"#REF!"}},{"$f":"IF(OR(#REF!=\"N\",#REF!=\"I\"),\"N\",#REF!)","v":{"$error":"#REF!"}},"If fees/prices are regulated or self-regulated, what is the nature of these regulations? - Binding minimum prices for some services",{"$f":"#REF!","v":{"$error":"#REF!"}},{"$f":"#REF!","v":{"$error":"#REF!"}}]
[{"$f":"#REF!","v":{"$error":"#REF!"}},{"$f":"#REF!","v":{"$error":"#REF!"}},{"$f":"LEFT(#REF!,FIND(\"(Q\",#REF!)-2)&\" - \"&#REF!","v":{"$error":"#REF!"}},{"$f":"IF(OR(#REF!=\"N\",#REF!=\"I\"),\"N\",#REF!)","v":{"$error":"#REF!"}},"If fees/prices are regulated or self-regulated, what is the nature of these regulations? - Binding minimum prices for all services",{"$f":"#REF!","v":{"$error":"#REF!"}},{"$f":"#REF!","v":{"$error":"#REF!"}}]
[{"$f":"#REF!","v":{"$error":"#REF!"}},{"$f":"#REF!","v":{"$error":"#REF!"}},{"$f":"LEFT(#REF!,FIND(\"(Q\",#REF!)-2)","v":{"$error":"#REF!"}},{"$f":"IF(OR(#REF!=\"N\",#REF!=\"I\"),\"N\",#REF!)","v":{"$error":"#REF!"}},"N",{"$f":"#REF!","v":{"$error":"#REF!"}},{"$f":"#REF!","v":{"$error":"#REF!"}}]
[{"$f":"#REF!","v":{"$error":"#REF!"}},{"$f":"#REF!","v":{"$error":"#REF!"}},{"$f":"LEFT(#REF!,FIND(\"(Q\",#REF!)-2)","v":{"$error":"#REF!"}},{"$f":"IF(OR(#REF!=\"N\",#REF!=\"I\"),\"N\",#REF!)","v":{"$error":"#REF!"}},"Are there restrictions on advertising and marketing by profesionals? - Legal profession",{"$f":"#REF!","v":{"$error":"#REF!"}},{"$f":"#REF!","v":{"$error":"#REF!"}}]
[{"$f":"#REF!","v":{"$error":"#REF!"}},{"$f":"#REF!","v":{"$error":"#REF!"}},{"$f":"LEFT(#REF!,FIND(\"(Q\",#REF!)-2)","v":{"$error":"#REF!"}},{"$f":"IF(OR(#REF!=\"N\",#REF!=\"I\"),\"N\",#REF!)","v":{"$error":"#REF!"}},"N",{"$f":"#REF!","v":{"$error":"#REF!"}},{"$f":"#REF!","v":{"$error":"#REF!"}}]
[{"$f":"#REF!","v":{"$error":"#REF!"}},{"$f":"#REF!","v":{"$error":"#REF!"}},{"$f":"LEFT(#REF!,FIND(\"(Q\",#REF!)-2)","v":{"$error":"#REF!"}},{"$f":"IF(OR(#REF!=\"N\",#REF!=\"I\"),\"N\",#REF!)","v":{"$error":"#REF!"}},"Are there restrictions on inter-professional co-operation (e.g. partnerships, associations, joint ventures)? - Legal profession",{"$f":"#REF!","v":{"$error":"#REF!"}},{"$f":"#REF!","v":{"$error":"#REF!"}}]
[{"$f":"#REF!","v":{"$error":"#REF!"}},{"$f":"#REF!","v":{"$error":"#REF!"}},{"$f":"LEFT(#REF!,FIND(\"(Q\",#REF!)-2)","v":{"$error":"#REF!"}},{"$f":"IF(OR(#REF!=\"N\",#REF!=\"I\"),\"N\",#REF!)","v":{"$error":"#REF!"}},"N",{"$f":"#REF!","v":{"$error":"#REF!"}},{"$f":"#REF!","v":{"$error":"#REF!"}}]
[{"$f":"#REF!","v":{"$error":"#REF!"}},{"$f":"#REF!","v":{"$error":"#REF!"}},{"$f":"LEFT(#REF!,FIND(\"(Q\",#REF!)-2)","v":{"$error":"#REF!"}},{"$f":"IF(OR(#REF!=\"N\",#REF!=\"I\"),\"N\",#REF!)","v":{"$error":"#REF!"}},"N",{"$f":"#REF!","v":{"$error":"#REF!"}},{"$f":"#REF!","v":{"$error":"#REF!"}}]
[{"$f":"#REF!","v":{"$error":"#REF!"}},{"$f":"#REF!","v":{"$error":"#REF!"}},{"$f":"LEFT(#REF!,FIND(\"(Q\",#REF!)-2)","v":{"$error":"#REF!"}},{"$f":"IF(OR(#REF!=\"N\",#REF!=\"I\"),\"N\",#REF!)","v":{"$error":"#REF!"}},"N",{"$f":"#REF!","v":{"$error":"#REF!"}},{"$f":"#REF!","v":{"$error":"#REF!"}}]
[{"$f":"#REF!","v":{"$error":"#REF!"}},{"$f":"#REF!","v":{"$error":"#REF!"}},{"$f":"LEFT(#REF!,FIND(\"(Q\",#REF!)-2)","v":{"$error":"#REF!"}},{"$f":"IF(OR(#REF!=\"N\",#REF!=\"I\"),\"N\",#REF!)","v":{"$error":"#REF!"}},"N",{"$f":"#REF!","v":{"$error":"#REF!"}},{"$f":"#REF!","v":{"$error":"#REF!"}}]
[{"$f":"#REF!","v":{"$error":"#REF!"}},{"$f":"#REF!","v":{"$error":"#REF!"}},{"$f":"LEFT(#REF!,FIND(\"(Q\",#REF!)-2)","v":{"$error":"#REF!"}},{"$f":"IF(OR(#REF!=\"N\",#REF!=\"I\"),\"N\",#REF!)","v":{"$error":"#REF!"}},"N",{"$f":"#REF!","v":{"$error":"#REF!"}},{"$f":"#REF!","v":{"$error":"#REF!"}}]
[{"$f":"#REF!","v":{"$error":"#REF!"}},{"$f":"#REF!","v":{"$error":"#REF!"}},{"$f":"LEFT(#REF!,FIND(\"(Q\",#REF!)-2)","v":{"$error":"#REF!"}},{"$f":"IF(OR(#REF!=\"N\",#REF!=\"I\"),\"N\",#REF!)","v":{"$error":"#REF!"}},"N",{"$f":"#REF!","v":{"$error":"#REF!"}},{"$f":"#REF!","v":{"$error":"#REF!"}}]
[{"$f":"#REF!","v":{"$error":"#REF!"}},{"$f":"#REF!","v":{"$error":"#REF!"}},{"$f":"LEFT(#REF!,FIND(\"(Q\",#REF!)-2)","v":{"$error":"#REF!"}},{"$f":"IF(OR(#REF!=\"N\",#REF!=\"I\"),\"N\",#REF!)","v":{"$error":"#REF!"}},"N",{"$f":"#REF!","v":{"$error":"#REF!"}},{"$f":"#REF!","v":{"$error":"#REF!"}}]
[{"$f":"#REF!","v":{"$error":"#REF!"}},{"$f":"#REF!","v":{"$error":"#REF!"}},{"$f":"LEFT(#REF!,FIND(\"(Q\",#REF!)-2)","v":{"$error":"#REF!"}},{"$f":"IF(OR(#REF!=\"N\",#REF!=\"I\"),\"N\",#REF!)","v":{"$error":"#REF!"}},"N",{"$f":"#REF!","v":{"$error":"#REF!"}},{"$f":"#REF!","v":{"$error":"#REF!"}}]
[{"$f":"#REF!","v":{"$error":"#REF!"}},{"$f":"#REF!","v":{"$error":"#REF!"}},{"$f":"LEFT(#REF!,FIND(\"(Q\",#REF!)-2)&\" - \"&#REF!","v":{"$error":"#REF!"}},{"$f":"IF(OR(#REF!=\"N\",#REF!=\"I\"),\"N\",#REF!)","v":{"$error":"#REF!"}},"N",{"$f":"#REF!","v":{"$error":"#REF!"}},{"$f":"#REF!","v":{"$error":"#REF!"}}]
[{"$f":"#REF!","v":{"$error":"#REF!"}},{"$f":"#REF!","v":{"$error":"#REF!"}},{"$f":"LEFT(#REF!,FIND(\"(Q\",#REF!)-2)&\" - \"&#REF!","v":{"$error":"#REF!"}},{"$f":"IF(OR(#REF!=\"N\",#REF!=\"I\"),\"N\",#REF!)","v":{"$error":"#REF!"}},"N",{"$f":"#REF!","v":{"$error":"#REF!"}},{"$f":"#REF!","v":{"$error":"#REF!"}}]
[{"$f":"#REF!","v":{"$error":"#REF!"}},{"$f":"#REF!","v":{"$error":"#REF!"}},{"$f":"LEFT(#REF!,FIND(\"(Q\",#REF!)-2)&\" - \"&#REF!","v":{"$error":"#REF!"}},{"$f":"IF(OR(#REF!=\"N\",#REF!=\"I\"),\"N\",#REF!)","v":{"$error":"#REF!"}},"N",{"$f":"#REF!","v":{"$error":"#REF!"}},{"$f":"#REF!","v":{"$error":"#REF!"}}]
[{"$f":"#REF!","v":{"$error":"#REF!"}},{"$f":"#REF!","v":{"$error":"#REF!"}},{"$f":"LEFT(#REF!,FIND(\"(Q\",#REF!)-2)&\" - \"&#REF!","v":{"$error":"#REF!"}},{"$f":"IF(OR(#REF!=\"N\",#REF!=\"I\"),\"N\",#REF!)","v":{"$error":"#REF!"}},"N",{"$f":"#REF!","v":{"$error":"#REF!"}},{"$f":"#REF!","v":{"$error":"#REF!"}}]
[{"$f":"#REF!","v":{"$error":"#REF!"}},{"$f":"#REF!","v":{"$error":"#REF!"}},{"$f":"LEFT(#REF!,FIND(\"(Q\",#REF!)-2)&\" - \"&#REF!","v":{"$error":"#REF!"}},{"$f":"IF(OR(#REF!=\"N\",#REF!=\"I\"),\"N\",#REF!)","v":{"$error":"#REF!"}},"N",{"$f":"#REF!","v":{"$error":"#REF!"}},{"$f":"#REF!","v":{"$error":"#REF!"}}]
[{"$f":"#REF!","v":{"$error":"#REF!"}},{"$f":"#REF!","v":{"$error":"#REF!"}},{"$f":"LEFT(#REF!,FIND(\"(Q\",#REF!)-2)&\" - \"&#REF!","v":{"$error":"#REF!"}},{"$f":"IF(OR(#REF!=\"N\",#REF!=\"I\"),\"N\",#REF!)","v":{"$error":"#REF!"}},"N",{"$f":"#REF!","v":{"$error":"#REF!"}},{"$f":"#REF!","v":{"$error":"#REF!"}}]
[{"$f":"#REF!","v":{"$error":"#REF!"}},{"$f":"#REF!","v":{"$error":"#REF!"}},{"$f":"LEFT(#REF!,FIND(\"(Q\",#REF!)-2)&\" - \"&#REF!","v":{"$error":"#REF!"}},{"$f":"IF(OR(#REF!=\"N\",#REF!=\"I\"),\"N\",#REF!)","v":{"$error":"#REF!"}},"N",{"$f":"#REF!","v":{"$error":"#REF!"}},{"$f":"#REF!","v":{"$error":"#REF!"}}]
[{"$f":"#REF!","v":{"$error":"#REF!"}},{"$f":"#REF!","v":{"$error":"#REF!"}},{"$f":"LEFT(#REF!,FIND(\"(Q\",#REF!)-2)&\" - \"&#REF!","v":{"$error":"#REF!"}},{"$f":"IF(OR(#REF!=\"N\",#REF!=\"I\"),\"N\",#REF!)","v":{"$error":"#REF!"}},"N",{"$f":"#REF!","v":{"$error":"#REF!"}},{"$f":"#REF!","v":{"$error":"#REF!"}}]
[{"$f":"#REF!","v":{"$error":"#REF!"}},{"$f":"#REF!","v":{"$error":"#REF!"}},{"$f":"LEFT(#REF!,FIND(\"(Q\",#REF!)-2)&\" - \"&#REF!","v":{"$error":"#REF!"}},{"$f":"IF(OR(#REF!=\"N\",#REF!=\"I\"),\"N\",#REF!)","v":{"$error":"#REF!"}},"N",{"$f":"#REF!","v":{"$error":"#REF!"}},{"$f":"#REF!","v":{"$error":"#REF!"}}]
[{"$f":"#REF!","v":{"$error":"#REF!"}},{"$f":"#REF!","v":{"$error":"#REF!"}},{"$f":"LEFT(#REF!,FIND(\"(Q\",#REF!)-2)&\" - \"&#REF!","v":{"$error":"#REF!"}},{"$f":"IF(OR(#REF!=\"N\",#REF!=\"I\"),\"N\",#REF!)","v":{"$error":"#REF!"}},"N",{"$f":"#REF!","v":{"$error":"#REF!"}},{"$f":"#REF!","v":{"$error":"#REF!"}}]
[{"$f":"#REF!","v":{"$error":"#REF!"}},{"$f":"#REF!","v":{"$error":"#REF!"}},{"$f":"LEFT(#REF!,FIND(\"(Q\",#REF!)-2)&\" - \"&#REF!","v":{"$error":"#REF!"}},{"$f":"IF(OR(#REF!=\"N\",#REF!=\"I\"),\"N\",#REF!)","v":{"$error":"#REF!"}},"N",{"$f":"#REF!","v":{"$error":"#REF!"}},{"$f":"#REF!","v":{"$error":"#REF!"}}]
[{"$f":"#REF!","v":{"$error":"#REF!"}},{"$f":"#REF!","v":{"$error":"#REF!"}},{"$f":"LEFT(#REF!,FIND(\"(Q\",#REF!)-2)&\" - \"&#REF!","v":{"$error":"#REF!"}},{"$f":"IF(OR(#REF!=\"N\",#REF!=\"I\"),\"N\",#REF!)","v":{"$error":"#REF!"}},"N",{"$f":"#REF!","v":{"$error":"#REF!"}},{"$f":"#REF!","v":{"$error":"#REF!"}}]
[{"$f":"#REF!","v":{"$error":"#REF!"}},{"$f":"#REF!","v":{"$error":"#REF!"}},{"$f":"LEFT(#REF!,FIND(\"(Q\",#REF!)-2)&\" - \"&#REF!","v":{"$error":"#REF!"}},{"$f":"IF(OR(#REF!=\"N\",#REF!=\"I\"),\"N\",#REF!)","v":{"$error":"#REF!"}},"N",{"$f":"#REF!","v":{"$error":"#REF!"}},{"$f":"#REF!","v":{"$error":"#REF!"}}]
[{"$f":"#REF!","v":{"$error":"#REF!"}},{"$f":"#REF!","v":{"$error":"#REF!"}},{"$f":"LEFT(#REF!,FIND(\"(Q\",#REF!)-2)","v":{"$error":"#REF!"}},{"$f":"IF(OR(#REF!=\"N\",#REF!=\"I\"),\"N\",#REF!)","v":{"$error":"#REF!"}},"N",{"$f":"#REF!","v":{"$error":"#REF!"}},{"$f":"#REF!","v":{"$error":"#REF!"}}]
[{"$f":"#REF!","v":{"$error":"#REF!"}},{"$f":"#REF!","v":{"$error":"#REF!"}},{"$f":"LEFT(#REF!,FIND(\"(Q\",#REF!)-2)","v":{"$error":"#REF!"}},{"$f":"IF(OR(#REF!=\"N\",#REF!=\"I\"),\"N\",#REF!)","v":{"$error":"#REF!"}},"N",{"$f":"#REF!","v":{"$error":"#REF!"}},{"$f":"#REF!","v":{"$error":"#REF!"}}]
[{"$f":"#REF!","v":{"$error":"#REF!"}},{"$f":"#REF!","v":{"$error":"#REF!"}},{"$f":"LEFT(#REF!,FIND(\"(Q\",#REF!)-2)","v":{"$error":"#REF!"}},{"$f":"IF(OR(#REF!=\"N\",#REF!=\"I\"),\"N\",#REF!)","v":{"$error":"#REF!"}},"N",{"$f":"#REF!","v":{"$error":"#REF!"}},{"$f":"#REF!","v":{"$error":"#REF!"}}]
[{"$f":"#REF!","v":{"$error":"#REF!"}},{"$f":"#REF!","v":{"$error":"#REF!"}},{"$f":"LEFT(#REF!,FIND(\"(Q\",#REF!)-2)","v":{"$error":"#REF!"}},{"$f":"IF(OR(#REF!=\"N\",#REF!=\"I\"),\"N\",#REF!)","v":{"$error":"#REF!"}},"N",{"$f":"#REF!","v":{"$error":"#REF!"}},{"$f":"#REF!","v":{"$error":"#REF!"}}]
[{"$f":"#REF!","v":{"$error":"#REF!"}},{"$f":"#REF!","v":{"$error":"#REF!"}},{"$f":"LEFT(#REF!,FIND(\"(Q\",#REF!)-2)","v":{"$error":"#REF!"}},{"$f":"IF(OR(#REF!=\"N\",#REF!=\"I\"),\"N\",#REF!)","v":{"$error":"#REF!"}},"N",{"$f":"#REF!","v":{"$error":"#REF!"}},{"$f":"#REF!","v":{"$error":"#REF!"}}]
[{"$f":"#REF!","v":{"$error":"#REF!"}},{"$f":"#REF!","v":{"$error":"#REF!"}},{"$f":"LEFT(#REF!,FIND(\"(Q\",#REF!)-2)","v":{"$error":"#REF!"}},{"$f":"IF(OR(#REF!=\"N\",#REF!=\"I\"),\"N\",#REF!)","v":{"$error":"#REF!"}},"N",{"$f":"#REF!","v":{"$error":"#REF!"}},{"$f":"#REF!","v":{"$error":"#REF!"}}]
[{"$f":"#REF!","v":{"$error":"#REF!"}},{"$f":"#REF!","v":{"$error":"#REF!"}},{"$f":"LEFT(#REF!,FIND(\"(Q\",#REF!)-2)","v":{"$error":"#REF!"}},{"$f":"IF(OR(#REF!=\"N\",#REF!=\"I\"),\"N\",#REF!)","v":{"$error":"#REF!"}},"N",{"$f":"#REF!","v":{"$error":"#REF!"}},{"$f":"#REF!","v":{"$error":"#REF!"}}]
[{"$f":"#REF!","v":{"$error":"#REF!"}},{"$f":"#REF!","v":{"$error":"#REF!"}},{"$f":"LEFT(#REF!,FIND(\"(Q\",#REF!)-2)","v":{"$error":"#REF!"}},{"$f":"IF(OR(#REF!=\"N\",#REF!=\"I\"),\"N\",#REF!)","v":{"$error":"#REF!"}},"N",{"$f":"#REF!","v":{"$error":"#REF!"}},{"$f":"#REF!","v":{"$error":"#REF!"}}]
[{"$f":"#REF!","v":{"$error":"#REF!"}},{"$f":"#REF!","v":{"$error":"#REF!"}},{"$f":"LEFT(#REF!,FIND(\"(Q\",#REF!)-2)","v":{"$error":"#REF!"}},{"$f":"IF(OR(#REF!=\"N\",#REF!=\"I\"),\"N\",#REF!)","v":{"$error":"#REF!"}},"N",{"$f":"#REF!","v":{"$error":"#REF!"}},{"$f":"#REF!","v":{"$error":"#REF!"}}]
[{"$f":"#REF!","v":{"$error":"#REF!"}},{"$f":"#REF!","v":{"$error":"#REF!"}},{"$f":"LEFT(#REF!,FIND(\"(Q\",#REF!)-2)","v":{"$error":"#REF!"}},{"$f":"IF(OR(#REF!=\"N\",#REF!=\"I\"),\"N\",#REF!)","v":{"$error":"#REF!"}},"N",{"$f":"#REF!","v":{"$error":"#REF!"}},{"$f":"#REF!","v":{"$error":"#REF!"}}]
[{"$f":"#REF!","v":{"$error":"#REF!"}},{"$f":"#REF!","v":{"$error":"#REF!"}},{"$f":"LEFT(#REF!,FIND(\"(Q\",#REF!)-2)","v":{"$error":"#REF!"}},{"$f":"IF(OR(#REF!=\"N\",#REF!=\"I\"),\"N\",#REF!)","v":{"$error":"#REF!"}},"N",{"$f":"#REF!","v":{"$error":"#REF!"}},{"$f":"#REF!","v":{"$error":"#REF!"}}]
[{"$f":"#REF!","v":{"$error":"#REF!"}},{"$f":"#REF!","v":{"$error":"#REF!"}},{"$f":"LEFT(#REF!,FIND(\"(Q\",#REF!)-2)","v":{"$error":"#REF!"}},{"$f":"IF(OR(#REF!=\"N\",#REF!=\"I\"),\"N\",#REF!)","v":{"$error":"#REF!"}},"N",{"$f":"#REF!","v":{"$error":"#REF!"}},{"$f":"#REF!","v":{"$error":"#REF!"}}]
[{"$f":"#REF!","v":{"$error":"#REF!"}},{"$f":"#REF!","v":{"$error":"#REF!"}},{"$f":"LEFT(#REF!,FIND(\"(Q\",#REF!)-2)","v":{"$error":"#REF!"}},{"$f":"IF(OR(#REF!=\"N\",#REF!=\"I\"),\"N\",#REF!)","v":{"$error":"#REF!"}},"N",{"$f":"#REF!","v":{"$error":"#REF!"}},{"$f":"#REF!","v":{"$error":"#REF!"}}]
[{"$f":"#REF!","v":{"$error":"#REF!"}},{"$f":"#REF!","v":{"$error":"#REF!"}},{"$f":"LEFT(#REF!,FIND(\"(Q\",#REF!)-2)","v":{"$error":"#REF!"}},{"$f":"IF(OR(#REF!=\"N\",#REF!=\"I\"),\"N\",#REF!)","v":{"$error":"#REF!"}},"N",{"$f":"#REF!","v":{"$error":"#REF!"}},{"$f":"#REF!","v":{"$error":"#REF!"}}]
[{"$f":"#REF!","v":{"$error":"#REF!"}},{"$f":"#REF!","v":{"$error":"#REF!"}},{"$f":"LEFT(#REF!,FIND(\"(Q\",#REF!)-2)","v":{"$error":"#REF!"}},{"$f":"IF(OR(#REF!=\"N\",#REF!=\"I\"),\"N\",#REF!)","v":{"$error":"#REF!"}},"N",{"$f":"#REF!","v":{"$error":"#REF!"}},{"$f":"#REF!","v":{"$error":"#REF!"}}]
[{"$f":"#REF!","v":{"$error":"#REF!"}},{"$f":"#REF!","v":{"$error":"#REF!"}},{"$f":"LEFT(#REF!,FIND(\"(Q\",#REF!)-2)","v":{"$error":"#REF!"}},{"$f":"IF(OR(#REF!=\"N\",#REF!=\"I\"),\"N\",#REF!)","v":{"$error":"#REF!"}},"N",{"$f":"#REF!","v":{"$error":"#REF!"}},{"$f":"#REF!","v":{"$error":"#REF!"}}]
[{"$f":"#REF!","v":{"$error":"#REF!"}},{"$f":"#REF!","v":{"$error":"#REF!"}},{"$f":"LEFT(#REF!,FIND(\"(Q\",#REF!)-2)","v":{"$error":"#REF!"}},{"$f":"IF(OR(#REF!=\"N\",#REF!=\"I\"),\"N\",#REF!)","v":{"$error":"#REF!"}},"N",{"$f":"#REF!","v":{"$error":"#REF!"}},{"$f":"#REF!","v":{"$error":"#REF!"}}]
[{"$f":"#REF!","v":{"$error":"#REF!"}},{"$f":"#REF!","v":{"$error":"#REF!"}},{"$f":"LEFT(#REF!,FIND(\"(Q\",#REF!)-2)","v":{"$error":"#REF!"}},{"$f":"IF(OR(#REF!=\"N\",#REF!=\"I\"),\"N\",#REF!)","v":{"$error":"#REF!"}},"N",{"$f":"#REF!","v":{"$error":"#REF!"}},{"$f":"#REF!","v":{"$error":"#REF!"}}]
[{"$f":"#REF!","v":{"$error":"#REF!"}},{"$f":"#REF!","v":{"$error":"#REF!"}},{"$f":"LEFT(#REF!,FIND(\"(Q\",#REF!)-2)","v":{"$error":"#REF!"}},{"$f":"IF(OR(#REF!=\"N\",#REF!=\"I\"),\"N\",#REF!)","v":{"$error":"#REF!"}},"N",{"$f":"#REF!","v":{"$error":"#REF!"}},{"$f":"#REF!","v":{"$error":"#REF!"}}]
[{"$f":"#REF!","v":{"$error":"#REF!"}},{"$f":"#REF!","v":{"$error":"#REF!"}},{"$f":"LEFT(#REF!,FIND(\"(Q\",#REF!)-2)","v":{"$error":"#REF!"}},{"$f":"IF(OR(#REF!=\"N\",#REF!=\"I\"),\"N\",#REF!)","v":{"$error":"#REF!"}},"N",{"$f":"#REF!","v":{"$error":"#REF!"}},{"$f":"#REF!","v":{"$error":"#REF!"}}]
[{"$f":"#REF!","v":{"$error":"#REF!"}},{"$f":"#REF!","v":{"$error":"#REF!"}},{"$f":"LEFT(#REF!,FIND(\"(Q\",#REF!)-2)","v":{"$error":"#REF!"}},{"$f":"IF(OR(#REF!=\"N\",#REF!=\"I\"),\"N\",#REF!)","v":{"$error":"#REF!"}},"N",{"$f":"#REF!","v":{"$error":"#REF!"}},{"$f":"#REF!","v":{"$error":"#REF!"}}]
[{"$f":"#REF!","v":{"$error":"#REF!"}},{"$f":"#REF!","v":{"$error":"#REF!"}},{"$f":"LEFT(#REF!,FIND(\"(Q\",#REF!)-2)","v":{"$error":"#REF!"}},{"$f":"IF(OR(#REF!=\"N\",#REF!=\"I\"),\"N\",#REF!)","v":{"$error":"#REF!"}},"N",{"$f":"#REF!","v":{"$error":"#REF!"}},{"$f":"#REF!","v":{"$error":"#REF!"}}]
[{"$f":"#REF!","v":{"$error":"#REF!"}},{"$f":"#REF!","v":{"$error":"#REF!"}},{"$f":"LEFT(#REF!,FIND(\"(Q\",#REF!)-2)","v":{"$error":"#REF!"}},{"$f":"IF(OR(#REF!=\"N\",#REF!=\"I\"),\"N\",#REF!)","v":{"$error":"#REF!"}},"N",{"$f":"#REF!","v":{"$error":"#REF!"}},{"$f":"#REF!","v":{"$error":"#REF!"}}]
[{"$f":"#REF!","v":{"$error":"#REF!"}},{"$f":"#REF!","v":{"$error":"#REF!"}},{"$f":"LEFT(#REF!,FIND(\"(Q\",#REF!)-2)","v":{"$error":"#REF!"}},{"$f":"IF(OR(#REF!=\"N\",#REF!=\"I\"),\"N\",#REF!)","v":{"$error":"#REF!"}},"N",{"$f":"#REF!","v":{"$error":"#REF!"}},{"$f":"#REF!","v":{"$error":"#REF!"}}]
[{"$f":"#REF!","v":{"$error":"#REF!"}},{"$f":"#REF!","v":{"$error":"#REF!"}},{"$f":"LEFT(#REF!,FIND(\"(Q\",#REF!)-2)","v":{"$error":"#REF!"}},{"$f":"IF(OR(#REF!=\"N\",#REF!=\"I\"),\"N\",#REF!)","v":{"$error":"#REF!"}},"N",{"$f":"#REF!","v":{"$error":"#REF!"}},{"$f":"#REF!","v":{"$error":"#REF!"}}]
[{"$f":"#REF!","v":{"$error":"#REF!"}},{"$f":"#REF!","v":{"$error":"#REF!"}},{"$f":"LEFT(#REF!,FIND(\"(Q\",#REF!)-2)","v":{"$error":"#REF!"}},{"$f":"IF(OR(#REF!=\"N\",#REF!=\"I\"),\"N\",#REF!)","v":{"$error":"#REF!"}},"N",{"$f":"#REF!","v":{"$error":"#REF!"}},{"$f":"#REF!","v":{"$error":"#REF!"}}]
[{"$f":"#REF!","v":{"$error":"#REF!"}},{"$f":"#REF!","v":{"$error":"#REF!"}},{"$f":"LEFT(#REF!,FIND(\"(Q\",#REF!)-2)","v":{"$error":"#REF!"}},{"$f":"IF(OR(#REF!=\"N\",#REF!=\"I\"),\"N\",#REF!)","v":{"$error":"#REF!"}},"N",{"$f":"#REF!","v":{"$error":"#REF!"}},{"$f":"#REF!","v":{"$error":"#REF!"}}]
[{"$f":"#REF!","v":{"$error":"#REF!"}},{"$f":"#REF!","v":{"$error":"#REF!"}},{"$f":"LEFT(#REF!,FIND(\"(Q\",#REF!)-2)","v":{"$error":"#REF!"}},{"$f":"IF(OR(#REF!=\"N\",#REF!=\"I\"),\"N\",#REF!)","v":{"$error":"#REF!"}},"N",{"$f":"#REF!","v":{"$error":"#REF!"}},{"$f":"#REF!","v":{"$error":"#REF!"}}]
[{"$f":"#REF!","v":{"$error":"#REF!"}},{"$f":"#REF!","v":{"$error":"#REF!"}},{"$f":"LEFT(#REF!,FIND(\"(Q\",#REF!)-2)&\" - \"&#REF!","v":{"$error":"#REF!"}},{"$f":"IF(OR(#REF!=\"N\",#REF!=\"I\"),\"N\",#REF!)","v":{"$error":"#REF!"}},"N",{"$f":"#REF!","v":{"$error":"#REF!"}},{"$f":"#REF!","v":{"$error":"#REF!"}}]
[{"$f":"#REF!","v":{"$error":"#REF!"}},{"$f":"#REF!","v":{"$error":"#REF!"}},{"$f":"LEFT(#REF!,FIND(\"(Q\",#REF!)-2)&\" - \"&#REF!","v":{"$error":"#REF!"}},{"$f":"IF(OR(#REF!=\"N\",#REF!=\"I\"),\"N\",#REF!)","v":{"$error":"#REF!"}},"N",{"$f":"#REF!","v":{"$error":"#REF!"}},{"$f":"#REF!","v":{"$error":"#REF!"}}]
[{"$f":"#REF!","v":{"$error":"#REF!"}},{"$f":"#REF!","v":{"$error":"#REF!"}},{"$f":"LEFT(#REF!,FIND(\"(Q\",#REF!)-2)&\" - \"&#REF!","v":{"$error":"#REF!"}},{"$f":"IF(OR(#REF!=\"N\",#REF!=\"I\"),\"N\",#REF!)","v":{"$error":"#REF!"}},"N",{"$f":"#REF!","v":{"$error":"#REF!"}},{"$f":"#REF!","v":{"$error":"#REF!"}}]
[{"$f":"#REF!","v":{"$error":"#REF!"}},{"$f":"#REF!","v":{"$error":"#REF!"}},{"$f":"LEFT(#REF!,FIND(\"(Q\",#REF!)-2)&\" - \"&#REF!","v":{"$error":"#REF!"}},{"$f":"IF(OR(#REF!=\"N\",#REF!=\"I\"),\"N\",#REF!)","v":{"$error":"#REF!"}},"N",{"$f":"#REF!","v":{"$error":"#REF!"}},{"$f":"#REF!","v":{"$error":"#REF!"}}]
[{"$f":"#REF!","v":{"$error":"#REF!"}},{"$f":"#REF!","v":{"$error":"#REF!"}},{"$f":"LEFT(#REF!,FIND(\"(Q\",#REF!)-2)&\" - \"&#REF!","v":{"$error":"#REF!"}},{"$f":"IF(OR(#REF!=\"N\",#REF!=\"I\"),\"N\",#REF!)","v":{"$error":"#REF!"}},"N",{"$f":"#REF!","v":{"$error":"#REF!"}},{"$f":"#REF!","v":{"$error":"#REF!"}}]
[{"$f":"#REF!","v":{"$error":"#REF!"}},{"$f":"#REF!","v":{"$error":"#REF!"}},{"$f":"LEFT(#REF!,FIND(\"(Q\",#REF!)-2)&\" - \"&#REF!","v":{"$error":"#REF!"}},{"$f":"IF(OR(#REF!=\"N\",#REF!=\"I\"),\"N\",#REF!)","v":{"$error":"#REF!"}},"N",{"$f":"#REF!","v":{"$error":"#REF!"}},{"$f":"#REF!","v":{"$error":"#REF!"}}]
[{"$f":"#REF!","v":{"$error":"#REF!"}},{"$f":"#REF!","v":{"$error":"#REF!"}},{"$f":"LEFT(#REF!,FIND(\"(Q\",#REF!)-2)","v":{"$error":"#REF!"}},{"$f":"IF(OR(#REF!=\"N\",#REF!=\"I\"),\"N\",#REF!)","v":{"$error":"#REF!"}},"N",{"$f":"#REF!","v":{"$error":"#REF!"}},{"$f":"#REF!","v":{"$error":"#REF!"}}]
[{"$f":"#REF!","v":{"$error":"#REF!"}},{"$f":"#REF!","v":{"$error":"#REF!"}},{"$f":"LEFT(#REF!,FIND(\"(Q\",#REF!)-2)","v":{"$error":"#REF!"}},{"$f":"IF(OR(#REF!=\"N\",#REF!=\"I\"),\"N\",#REF!)","v":{"$error":"#REF!"}},"N",{"$f":"#REF!","v":{"$error":"#REF!"}},{"$f":"#REF!","v":{"$error":"#REF!"}}]
[{"$f":"#REF!","v":{"$error":"#REF!"}},{"$f":"#REF!","v":{"$error":"#REF!"}},{"$f":"LEFT(#REF!,FIND(\"(Q\",#REF!)-2)","v":{"$error":"#REF!"}},{"$f":"IF(OR(#REF!=\"N\",#REF!=\"I\"),\"N\",#REF!)","v":{"$error":"#REF!"}},"N",{"$f":"#REF!","v":{"$error":"#REF!"}},{"$f":"#REF!","v":{"$error":"#REF!"}}]
[{"$f":"#REF!","v":{"$error":"#REF!"}},{"$f":"#REF!","v":{"$error":"#REF!"}},{"$f":"LEFT(#REF!,FIND(\"(Q\",#REF!)-2)","v":{"$error":"#REF!"}},{"$f":"IF(OR(#REF!=\"N\",#REF!=\"I\"),\"N\",#REF!)","v":{"$error":"#REF!"}},"N",{"$f":"#REF!","v":{"$error":"#REF!"}},{"$f":"#REF!","v":{"$error":"#REF!"}}]
[{"$f":"#REF!","v":{"$error":"#REF!"}},{"$f":"#REF!","v":{"$error":"#REF!"}},{"$f":"LEFT(#REF!,FIND(\"(Q\",#REF!)-2)","v":{"$error":"#REF!"}},{"$f":"IF(OR(#REF!=\"N\",#REF!=\"I\"),\"N\",#REF!)","v":{"$error":"#REF!"}},"N",{"$f":"#REF!","v":{"$error":"#REF!"}},{"$f":"#REF!","v":{"$error":"#REF!"}}]
[{"$f":"#REF!","v":{"$error":"#REF!"}},{"$f":"#REF!","v":{"$error":"#REF!"}},{"$f":"LEFT(#REF!,FIND(\"(Q\",#REF!)-2)","v":{"$error":"#REF!"}},{"$f":"IF(OR(#REF!=\"N\",#REF!=\"I\"),\"N\",#REF!)","v":{"$error":"#REF!"}},"N",{"$f":"#REF!","v":{"$error":"#REF!"}},{"$f":"#REF!","v":{"$error":"#REF!"}}]
[{"$f":"#REF!","v":{"$error":"#REF!"}},{"$f":"#REF!","v":{"$error":"#REF!"}},{"$f":"LEFT(#REF!,FIND(\"(Q\",#REF!)-2)","v":{"$error":"#REF!"}},{"$f":"IF(OR(#REF!=\"N\",#REF!=\"I\"),\"N\",#REF!)","v":{"$error":"#REF!"}},"N",{"$f":"#REF!","v":{"$error":"#REF!"}},{"$f":"#REF!","v":{"$error":"#REF!"}}]
[{"$f":"#REF!","v":{"$error":"#REF!"}},{"$f":"#REF!","v":{"$error":"#REF!"}},{"$f":"LEFT(#REF!,FIND(\"(Q\",#REF!)-2)","v":{"$error":"#REF!"}},{"$f":"IF(OR(#REF!=\"N\",#REF!=\"I\"),\"N\",#REF!)","v":{"$error":"#REF!"}},"N",{"$f":"#REF!","v":{"$error":"#REF!"}},{"$f":"#REF!","v":{"$error":"#REF!"}}]
[{"$f":"#REF!","v":{"$error":"#REF!"}},{"$f":"#REF!","v":{"$error":"#REF!"}},{"$f":"LEFT(#REF!,FIND(\"(Q\",#REF!)-2)&\" - \"&#REF!","v":{"$error":"#REF!"}},{"$f":"IF(OR(#REF!=\"N\",#REF!=\"I\"),\"N\",#REF!)","v":{"$error":"#REF!"}},"N",{"$f":"#REF!","v":{"$error":"#REF!"}},{"$f":"#REF!","v":{"$error":"#REF!"}}]
[{"$f":"#REF!","v":{"$error":"#REF!"}},{"$f":"#REF!","v":{"$error":"#REF!"}},{"$f":"LEFT(#REF!,FIND(\"(Q\",#REF!)-2)&\" - \"&#REF!","v":{"$error":"#REF!"}},{"$f":"IF(OR(#REF!=\"N\",#REF!=\"I\"),\"N\",#REF!)","v":{"$error":"#REF!"}},"Does the accountancy profession have an exclusive or shared exclusive right to provide the task? - Insolvency practice",{"$f":"#REF!","v":{"$error":"#REF!"}},{"$f":"#REF!","v":{"$error":"#REF!"}}]
[{"$f":"#REF!","v":{"$error":"#REF!"}},{"$f":"#REF!","v":{"$error":"#REF!"}},{"$f":"LEFT(#REF!,FIND(\"(Q\",#REF!)-2)&\" - \"&#REF!","v":{"$error":"#REF!"}},{"$f":"IF(OR(#REF!=\"N\",#REF!=\"I\"),\"N\",#REF!)","v":{"$error":"#REF!"}},"Does the accountancy profession have an exclusive or shared exclusive right to provide the task? - Tax advice",{"$f":"#REF!","v":{"$error":"#REF!"}},{"$f":"#REF!","v":{"$error":"#REF!"}}]
[{"$f":"#REF!","v":{"$error":"#REF!"}},{"$f":"#REF!","v":{"$error":"#REF!"}},{"$f":"LEFT(#REF!,FIND(\"(Q\",#REF!)-2)&\" - \"&#REF!","v":{"$error":"#REF!"}},{"$f":"IF(OR(#REF!=\"N\",#REF!=\"I\"),\"N\",#REF!)","v":{"$error":"#REF!"}},"N",{"$f":"#REF!","v":{"$error":"#REF!"}},{"$f":"#REF!","v":{"$error":"#REF!"}}]
[{"$f":"#REF!","v":{"$error":"#REF!"}},{"$f":"#REF!","v":{"$error":"#REF!"}},{"$f":"LEFT(#REF!,FIND(\"(Q\",#REF!)-2)&\" - \"&#REF!","v":{"$error":"#REF!"}},{"$f":"IF(OR(#REF!=\"N\",#REF!=\"I\"),\"N\",#REF!)","v":{"$error":"#REF!"}},"N",{"$f":"#REF!","v":{"$error":"#REF!"}},{"$f":"#REF!","v":{"$error":"#REF!"}}]
[{"$f":"#REF!","v":{"$error":"#REF!"}},{"$f":"#REF!","v":{"$error":"#REF!"}},{"$f":"LEFT(#REF!,FIND(\"(Q\",#REF!)-2)&\" - \"&#REF!","v":{"$error":"#REF!"}},{"$f":"IF(OR(#REF!=\"N\",#REF!=\"I\"),\"N\",#REF!)","v":{"$error":"#REF!"}},"Does the accountancy profession have an exclusive or shared exclusive right to provide the task? - Expert witness in accounting",{"$f":"#REF!","v":{"$error":"#REF!"}},{"$f":"#REF!","v":{"$error":"#REF!"}}]
[{"$f":"#REF!","v":{"$error":"#REF!"}},{"$f":"#REF!","v":{"$error":"#REF!"}},{"$f":"LEFT(#REF!,FIND(\"(Q\",#REF!)-2)&\" - \"&#REF!","v":{"$error":"#REF!"}},{"$f":"IF(OR(#REF!=\"N\",#REF!=\"I\"),\"N\",#REF!)","v":{"$error":"#REF!"}},"Does the accountancy profession have an exclusive or shared exclusive right to provide the task? - Valuation and actuarial services",{"$f":"#REF!","v":{"$error":"#REF!"}},{"$f":"#REF!","v":{"$error":"#REF!"}}]
[{"$f":"#REF!","v":{"$error":"#REF!"}},{"$f":"#REF!","v":{"$error":"#REF!"}},{"$f":"LEFT(#REF!,FIND(\"(Q\",#REF!)-2)&\" - \"&#REF!","v":{"$error":"#REF!"}},{"$f":"IF(OR(#REF!=\"N\",#REF!=\"I\"),\"N\",#REF!)","v":{"$error":"#REF!"}},"Does the accountancy profession have an exclusive or shared exclusive right to provide the task? - Investment advice",{"$f":"#REF!","v":{"$error":"#REF!"}},{"$f":"#REF!","v":{"$error":"#REF!"}}]
[{"$f":"#REF!","v":{"$error":"#REF!"}},{"$f":"#REF!","v":{"$error":"#REF!"}},{"$f":"LEFT(#REF!,FIND(\"(Q\",#REF!)-2)&\" - \"&#REF!","v":{"$error":"#REF!"}},{"$f":"IF(OR(#REF!=\"N\",#REF!=\"I\"),\"N\",#REF!)","v":{"$error":"#REF!"}},"Does the accountancy profession have an exclusive or shared exclusive right to provide the task? - Statutory audit",{"$f":"#REF!","v":{"$error":"#REF!"}},{"$f":"#REF!","v":{"$error":"#REF!"}}]
[{"$f":"#REF!","v":{"$error":"#REF!"}},{"$f":"#REF!","v":{"$error":"#REF!"}},{"$f":"LEFT(#REF!,FIND(\"(Q\",#REF!)-2)&\" - \"&#REF!","v":{"$error":"#REF!"}},{"$f":"IF(OR(#REF!=\"N\",#REF!=\"I\"),\"N\",#REF!)","v":{"$error":"#REF!"}},"Does the accountancy profession have an exclusive or shared exclusive right to provide the task? - Non-statutory audit",{"$f":"#REF!","v":{"$error":"#REF!"}},{"$f":"#REF!","v":{"$error":"#REF!"}}]
[{"$f":"#REF!","v":{"$error":"#REF!"}},{"$f":"#REF!","v":{"$error":"#REF!"}},{"$f":"LEFT(#REF!,FIND(\"(Q\",#REF!)-2)&\" - \"&#REF!","v":{"$error":"#REF!"}},{"$f":"IF(OR(#REF!=\"N\",#REF!=\"I\"),\"N\",#REF!)","v":{"$error":"#REF!"}},"Does the accountancy profession have an exclusive or shared exclusive right to provide the task? - Public sector audit",{"$f":"#REF!","v":{"$error":"#REF!"}},{"$f":"#REF!","v":{"$error":"#REF!"}}]
[{"$f":"#REF!","v":{"$error":"#REF!"}},{"$f":"#REF!","v":{"$error":"#REF!"}},{"$f":"LEFT(#REF!,FIND(\"(Q\",#REF!)-2)&\" - \"&#REF!","v":{"$error":"#REF!"}},{"$f":"IF(OR(#REF!=\"N\",#REF!=\"I\"),\"N\",#REF!)","v":{"$error":"#REF!"}},"Does the accountancy profession have an exclusive or shared exclusive right to provide the task? - Audit of mergers and of contribution in kind",{"$f":"#REF!","v":{"$error":"#REF!"}},{"$f":"#REF!","v":{"$error":"#REF!"}}]
[{"$f":"#REF!","v":{"$error":"#REF!"}},{"$f":"#REF!","v":{"$error":"#REF!"}},{"$f":"LEFT(#REF!,FIND(\"(Q\",#REF!)-2)&\" - \"&#REF!","v":{"$error":"#REF!"}},{"$f":"IF(OR(#REF!=\"N\",#REF!=\"I\"),\"N\",#REF!)","v":{"$error":"#REF!"}},"Does the accountancy profession have an exclusive or shared exclusive right to provide the task? - Management consultancy, including financial planning",{"$f":"#REF!","v":{"$error":"#REF!"}},{"$f":"#REF!","v":{"$error":"#REF!"}}]
[{"$f":"#REF!","v":{"$error":"#REF!"}},{"$f":"#REF!","v":{"$error":"#REF!"}},{"$f":"LEFT(#REF!,FIND(\"(Q\",#REF!)-2)&\" - \"&#REF!","v":{"$error":"#REF!"}},{"$f":"IF(OR(#REF!=\"N\",#REF!=\"I\"),\"N\",#REF!)","v":{"$error":"#REF!"}},"N",{"$f":"#REF!","v":{"$error":"#REF!"}},{"$f":"#REF!","v":{"$error":"#REF!"}}]
[{"$f":"#REF!","v":{"$error":"#REF!"}},{"$f":"#REF!","v":{"$error":"#REF!"}},{"$f":"LEFT(#REF!,FIND(\"(Q\",#REF!)-2)","v":{"$error":"#REF!"}},{"$f":"IF(OR(#REF!=\"N\",#REF!=\"I\"),\"N\",#REF!)","v":{"$error":"#REF!"}},"N",{"$f":"#REF!","v":{"$error":"#REF!"}},{"$f":"#REF!","v":{"$error":"#REF!"}}]
[{"$f":"#REF!","v":{"$error":"#REF!"}},{"$f":"#REF!","v":{"$error":"#REF!"}},{"$f":"LEFT(#REF!,FIND(\"(Q\",#REF!)-2)","v":{"$error":"#REF!"}},{"$f":"IF(OR(#REF!=\"N\",#REF!=\"I\"),\"N\",#REF!)","v":{"$error":"#REF!"}},"N",{"$f":"#REF!","v":{"$error":"#REF!"}},{"$f":"#REF!","v":{"$error":"#REF!"}}]
[{"$f":"#REF!","v":{"$error":"#REF!"}},{"$f":"#REF!","v":{"$error":"#REF!"}},{"$f":"LEFT(#REF!,FIND(\"(Q\",#REF!)-2)","v":{"$error":"#REF!"}},{"$f":"IF(OR(#REF!=\"N\",#REF!=\"I\"),\"N\",#REF!)","v":{"$error":"#REF!"}},"N",{"$f":"#REF!","v":{"$error":"#REF!"}},{"$f":"#REF!","v":{"$error":"#REF!"}}]
[{"$f":"#REF!","v":{"$error":"#REF!"}},{"$f":"#REF!","v":{"$error":"#REF!"}},{"$f":"LEFT(#REF!,FIND(\"(Q\",#REF!)-2)","v":{"$error":"#REF!"}},{"$f":"IF(OR(#REF!=\"N\",#REF!=\"I\"),\"N\",#REF!)","v":{"$error":"#REF!"}},"How is access to the profession regulated? - Accountancy profession",{"$f":"#REF!","v":{"$error":"#REF!"}},{"$f":"#REF!","v":{"$error":"#REF!"}}]
[{"$f":"#REF!","v":{"$error":"#REF!"}},{"$f":"#REF!","v":{"$error":"#REF!"}},{"$f":"LEFT(#REF!,FIND(\"(Q\",#REF!)-2)","v":{"$error":"#REF!"}},{"$f":"IF(OR(#REF!=\"N\",#REF!=\"I\"),\"N\",#REF!)","v":{"$error":"#REF!"}},"N",{"$f":"#REF!","v":{"$error":"#REF!"}},{"$f":"#REF!","v":{"$error":"#REF!"}}]
[{"$f":"#REF!","v":{"$error":"#REF!"}},{"$f":"#REF!","v":{"$error":"#REF!"}},{"$f":"LEFT(#REF!,FIND(\"(Q\",#REF!)-2)","v":{"$error":"#REF!"}},{"$f":"IF(OR(#REF!=\"N\",#REF!=\"I\"),\"N\",#REF!)","v":{"$error":"#REF!"}},"N",{"$f":"#REF!","v":{"$error":"#REF!"}},{"$f":"#REF!","v":{"$error":"#REF!"}}]
[{"$f":"#REF!","v":{"$error":"#REF!"}},{"$f":"#REF!","v":{"$error":"#REF!"}},{"$f":"LEFT(#REF!,FIND(\"(Q\",#REF!)-2)","v":{"$error":"#REF!"}},{"$f":"IF(OR(#REF!=\"N\",#REF!=\"I\"),\"N\",#REF!)","v":{"$error":"#REF!"}},"N",{"$f":"#REF!","v":{"$error":"#REF!"}},{"$f":"#REF!","v":{"$error":"#REF!"}}]
[{"$f":"#REF!","v":{"$error":"#REF!"}},{"$f":"#REF!","v":{"$error":"#REF!"}},{"$f":"LEFT(#REF!,FIND(\"(Q\",#REF!)-2)","v":{"$error":"#REF!"}},{"$f":"IF(OR(#REF!=\"N\",#REF!=\"I\"),\"N\",#REF!)","v":{"$error":"#REF!"}},"N",{"$f":"#REF!","v":{"$error":"#REF!"}},{"$f":"#REF!","v":{"$error":"#REF!"}}]
[{"$f":"#REF!","v":{"$error":"#REF!"}},{"$f":"#REF!","v":{"$error":"#REF!"}},{"$f":"LEFT(#REF!,FIND(\"(Q\",#REF!)-2)","v":{"$error":"#REF!"}},{"$f":"IF(OR(#REF!=\"N\",#REF!=\"I\"),\"N\",#REF!)","v":{"$error":"#REF!"}},"N",{"$f":"#REF!","v":{"$error":"#REF!"}},{"$f":"#REF!","v":{"$error":"#REF!"}}]
[{"$f":"#REF!","v":{"$error":"#REF!"}},{"$f":"#REF!","v":{"$error":"#REF!"}},{"$f":"LEFT(#REF!,FIND(\"(Q\",#REF!)-2)","v":{"$error":"#REF!"}},{"$f":"IF(OR(#REF!=\"N\",#REF!=\"I\"),\"N\",#REF!)","v":{"$error":"#REF!"}},"N",{"$f":"#REF!","v":{"$error":"#REF!"}},{"$f":"#REF!","v":{"$error":"#REF!"}}]
[{"$f":"#REF!","v":{"$error":"#REF!"}},{"$f":"#REF!","v":{"$error":"#REF!"}},{"$f":"LEFT(#REF!,FIND(\"(Q\",#REF!)-2)","v":{"$error":"#REF!"}},{"$f":"IF(OR(#REF!=\"N\",#REF!=\"I\"),\"N\",#REF!)","v":{"$error":"#REF!"}},"Entry requirements in the accountancy profession - Is a university degree required to enter the profession?",{"$f":"#REF!","v":{"$error":"#REF!"}},{"$f":"#REF!","v":{"$error":"#REF!"}}]
[{"$f":"#REF!","v":{"$error":"#REF!"}},{"$f":"#REF!","v":{"$error":"#REF!"}},{"$f":"LEFT(#REF!,FIND(\"(Q\",#REF!)-2)","v":{"$error":"#REF!"}},{"$f":"IF(OR(#REF!=\"N\",#REF!=\"I\"),\"N\",#REF!)","v":{"$error":"#REF!"}},"Entry requirements in the accountancy profession - If a university degree is required, how many years duration?",{"$f":"#REF!","v":{"$error":"#REF!"}},{"$f":"#REF!","v":{"$error":"#REF!"}}]
[{"$f":"#REF!","v":{"$error":"#REF!"}},{"$f":"#REF!","v":{"$error":"#REF!"}},{"$f":"LEFT(#REF!,FIND(\"(Q\",#REF!)-2)","v":{"$error":"#REF!"}},{"$f":"IF(OR(#REF!=\"N\",#REF!=\"I\"),\"N\",#REF!)","v":{"$error":"#REF!"}},"Entry requirements in the accountancy profession - Is there any other higher education required to enter the profession?",{"$f":"#REF!","v":{"$error":"#REF!"}},{"$f":"#REF!","v":{"$error":"#REF!"}}]
[{"$f":"#REF!","v":{"$error":"#REF!"}},{"$f":"#REF!","v":{"$error":"#REF!"}},{"$f":"LEFT(#REF!,FIND(\"(Q\",#REF!)-2)","v":{"$error":"#REF!"}},{"$f":"IF(OR(#REF!=\"N\",#REF!=\"I\"),\"N\",#REF!)","v":{"$error":"#REF!"}},"Entry requirements in the accountancy profession - If any other higher education is required, how many years duration?",{"$f":"#REF!","v":{"$error":"#REF!"}},{"$f":"#REF!","v":{"$error":"#REF!"}}]
[{"$f":"#REF!","v":{"$error":"#REF!"}},{"$f":"#REF!","v":{"$error":"#REF!"}},{"$f":"LEFT(#REF!,FIND(\"(Q\",#REF!)-2)","v":{"$error":"#REF!"}},{"$f":"IF(OR(#REF!=\"N\",#REF!=\"I\"),\"N\",#REF!)","v":{"$error":"#REF!"}},"Entry requirements in the accountancy profession - Is relevant compulsory practice required to become a full member of the profession?",{"$f":"#REF!","v":{"$error":"#REF!"}},{"$f":"#REF!","v":{"$error":"#REF!"}}]
[{"$f":"#REF!","v":{"$error":"#REF!"}},{"$f":"#REF!","v":{"$error":"#REF!"}},{"$f":"LEFT(#REF!,FIND(\"(Q\",#REF!)-2)","v":{"$error":"#REF!"}},{"$f":"IF(OR(#REF!=\"N\",#REF!=\"I\"),\"N\",#REF!)","v":{"$error":"#REF!"}},"Entry requirements in the accountancy profession - If relevant compulsory practice is required, how many years duration?",{"$f":"#REF!","v":{"$error":"#REF!"}},{"$f":"#REF!","v":{"$error":"#REF!"}}]
[{"$f":"#REF!","v":{"$error":"#REF!"}},{"$f":"#REF!","v":{"$error":"#REF!"}},{"$f":"LEFT(#REF!,FIND(\"(Q\",#REF!)-2)","v":{"$error":"#REF!"}},{"$f":"IF(OR(#REF!=\"N\",#REF!=\"I\"),\"N\",#REF!)","v":{"$error":"#REF!"}},"Entry requirements in the accountancy profession - Is there a requirement to pass one or more professional examinations to become a full member of the profession?",{"$f":"#REF!","v":{"$error":"#REF!"}},{"$f":"#REF!","v":{"$error":"#REF!"}}]
[{"$f":"#REF!","v":{"$error":"#REF!"}},{"$f":"#REF!","v":{"$error":"#REF!"}},{"$f":"LEFT(#REF!,FIND(\"(Q\",#REF!)-2)","v":{"$error":"#REF!"}},{"$f":"IF(OR(#REF!=\"N\",#REF!=\"I\"),\"N\",#REF!)","v":{"$error":"#REF!"}},"N",{"$f":"#REF!","v":{"$error":"#REF!"}},{"$f":"#REF!","v":{"$error":"#REF!"}}]
[{"$f":"#REF!","v":{"$error":"#REF!"}},{"$f":"#REF!","v":{"$error":"#REF!"}},{"$f":"LEFT(#REF!,FIND(\"(Q\",#REF!)-2)","v":{"$error":"#REF!"}},{"$f":"IF(OR(#REF!=\"N\",#REF!=\"I\"),\"N\",#REF!)","v":{"$error":"#REF!"}},"Entry requirements in the accountancy profession - Is membership in a professional organisation compulsory in order to legally practice?",{"$f":"#REF!","v":{"$error":"#REF!"}},{"$f":"#REF!","v":{"$error":"#REF!"}}]
[{"$f":"#REF!","v":{"$error":"#REF!"}},{"$f":"#REF!","v":{"$error":"#REF!"}},{"$f":"LEFT(#REF!,FIND(\"(Q\",#REF!)-2)","v":{"$error":"#REF!"}},{"$f":"IF(OR(#REF!=\"N\",#REF!=\"I\"),\"N\",#REF!)","v":{"$error":"#REF!"}},"N",{"$f":"#REF!","v":{"$error":"#REF!"}},{"$f":"#REF!","v":{"$error":"#REF!"}}]
[{"$f":"#REF!","v":{"$error":"#REF!"}},{"$f":"#REF!","v":{"$error":"#REF!"}},{"$f":"LEFT(#REF!,FIND(\"(Q\",#REF!)-2)","v":{"$error":"#REF!"}},{"$f":"IF(OR(#REF!=\"N\",#REF!=\"I\"),\"N\",#REF!)","v":{"$error":"#REF!"}},"Is the legal form of business restricted in the accountancy profession?",{"$f":"#REF!","v":{"$error":"#REF!"}},{"$f":"#REF!","v":{"$error":"#REF!"}}]
[{"$f":"#REF!","v":{"$error":"#REF!"}},{"$f":"#REF!","v":{"$error":"#REF!"}},{"$f":"LEFT(#REF!,FIND(\"(Q\",#REF!)-2)","v":{"$error":"#REF!"}},{"$f":"IF(OR(#REF!=\"N\",#REF!=\"I\"),\"N\",#REF!)","v":{"$error":"#REF!"}},"N",{"$f":"#REF!","v":{"$error":"#REF!"}},{"$f":"#REF!","v":{"$error":"#REF!"}}]
[{"$f":"#REF!","v":{"$error":"#REF!"}},{"$f":"#REF!","v":{"$error":"#REF!"}},{"$f":"LEFT(#REF!,FIND(\"(Q\",#REF!)-2)","v":{"$error":"#REF!"}},{"$f":"IF(OR(#REF!=\"N\",#REF!=\"I\"),\"N\",#REF!)","v":{"$error":"#REF!"}},"N",{"$f":"#REF!","v":{"$error":"#REF!"}},{"$f":"#REF!","v":{"$error":"#REF!"}}]
[{"$f":"#REF!","v":{"$error":"#REF!"}},{"$f":"#REF!","v":{"$error":"#REF!"}},{"$f":"LEFT(#REF!,FIND(\"(Q\",#REF!)-2)","v":{"$error":"#REF!"}},{"$f":"IF(OR(#REF!=\"N\",#REF!=\"I\"),\"N\",#REF!)","v":{"$error":"#REF!"}},"N",{"$f":"#REF!","v":{"$error":"#REF!"}},{"$f":"#REF!","v":{"$error":"#REF!"}}]
[{"$f":"#REF!","v":{"$error":"#REF!"}},{"$f":"#REF!","v":{"$error":"#REF!"}},{"$f":"LEFT(#REF!,FIND(\"(Q\",#REF!)-2)","v":{"$error":"#REF!"}},{"$f":"IF(OR(#REF!=\"N\",#REF!=\"I\"),\"N\",#REF!)","v":{"$error":"#REF!"}},"N",{"$f":"#REF!","v":{"$error":"#REF!"}},{"$f":"#REF!","v":{"$error":"#REF!"}}]
[{"$f":"#REF!","v":{"$error":"#REF!"}},{"$f":"#REF!","v":{"$error":"#REF!"}},{"$f":"LEFT(#REF!,FIND(\"(Q\",#REF!)-2)","v":{"$error":"#REF!"}},{"$f":"IF(OR(#REF!=\"N\",#REF!=\"I\"),\"N\",#REF!)","v":{"$error":"#REF!"}},"N",{"$f":"#REF!","v":{"$error":"#REF!"}},{"$f":"#REF!","v":{"$error":"#REF!"}}]
[{"$f":"#REF!","v":{"$error":"#REF!"}},{"$f":"#REF!","v":{"$error":"#REF!"}},{"$f":"LEFT(#REF!,FIND(\"(Q\",#REF!)-2)","v":{"$error":"#REF!"}},{"$f":"IF(OR(#REF!=\"N\",#REF!=\"I\"),\"N\",#REF!)","v":{"$error":"#REF!"}},"N",{"$f":"#REF!","v":{"$error":"#REF!"}},{"$f":"#REF!","v":{"$error":"#REF!"}}]
[{"$f":"#REF!","v":{"$error":"#REF!"}},{"$f":"#REF!","v":{"$error":"#REF!"}},{"$f":"LEFT(#REF!,FIND(\"(Q\",#REF!)-2)","v":{"$error":"#REF!"}},{"$f":"IF(OR(#REF!=\"N\",#REF!=\"I\"),\"N\",#REF!)","v":{"$error":"#REF!"}},"N",{"$f":"#REF!","v":{"$error":"#REF!"}},{"$f":"#REF!","v":{"$error":"#REF!"}}]
[{"$f":"#REF!","v":{"$error":"#REF!"}},{"$f":"#REF!","v":{"$error":"#REF!"}},{"$f":"LEFT(#REF!,FIND(\"(Q\",#REF!)-2)","v":{"$error":"#REF!"}},{"$f":"IF(OR(#REF!=\"N\",#REF!=\"I\"),\"N\",#REF!)","v":{"$error":"#REF!"}},"Are the fees/prices that the accountancy profession charges for its services regulated by the government or self-regulated by the profession itself?",{"$f":"#REF!","v":{"$error":"#REF!"}},{"$f":"#REF!","v":{"$error":"#REF!"}}]
[{"$f":"#REF!","v":{"$error":"#REF!"}},{"$f":"#REF!","v":{"$error":"#REF!"}},{"$f":"LEFT(#REF!,FIND(\"(Q\",#REF!)-2)&\" - \"&#REF!","v":{"$error":"#REF!"}},{"$f":"IF(OR(#REF!=\"N\",#REF!=\"I\"),\"N\",#REF!)","v":{"$error":"#REF!"}},"If fees/prices are regulated or self-regulated, what is the nature of these regulations? - Non-binding recommended prices for some services",{"$f":"#REF!","v":{"$error":"#REF!"}},{"$f":"#REF!","v":{"$error":"#REF!"}}]
[{"$f":"#REF!","v":{"$error":"#REF!"}},{"$f":"#REF!","v":{"$error":"#REF!"}},{"$f":"LEFT(#REF!,FIND(\"(Q\",#REF!)-2)&\" - \"&#REF!","v":{"$error":"#REF!"}},{"$f":"IF(OR(#REF!=\"N\",#REF!=\"I\"),\"N\",#REF!)","v":{"$error":"#REF!"}},"If fees/prices are regulated or self-regulated, what is the nature of these regulations? - Non-binding recommended prices for all services",{"$f":"#REF!","v":{"$error":"#REF!"}},{"$f":"#REF!","v":{"$error":"#REF!"}}]
[{"$f":"#REF!","v":{"$error":"#REF!"}},{"$f":"#REF!","v":{"$error":"#REF!"}},{"$f":"LEFT(#REF!,FIND(\"(Q\",#REF!)-2)&\" - \"&#REF!","v":{"$error":"#REF!"}},{"$f":"IF(OR(#REF!=\"N\",#REF!=\"I\"),\"N\",#REF!)","v":{"$error":"#REF!"}},"If fees/prices are regulated or self-regulated, what is the nature of these regulations? - Binding maximum prices for some services",{"$f":"#REF!","v":{"$error":"#REF!"}},{"$f":"#REF!","v":{"$error":"#REF!"}}]
[{"$f":"#REF!","v":{"$error":"#REF!"}},{"$f":"#REF!","v":{"$error":"#REF!"}},{"$f":"LEFT(#REF!,FIND(\"(Q\",#REF!)-2)&\" - \"&#REF!","v":{"$error":"#REF!"}},{"$f":"IF(OR(#REF!=\"N\",#REF!=\"I\"),\"N\",#REF!)","v":{"$error":"#REF!"}},"If fees/prices are regulated or self-regulated, what is the nature of these regulations? - Binding maximum prices for all services",{"$f":"#REF!","v":{"$error":"#REF!"}},{"$f":"#REF!","v":{"$error":"#REF!"}}]
[{"$f":"#REF!","v":{"$error":"#REF!"}},{"$f":"#REF!","v":{"$error":"#REF!"}},{"$f":"LEFT(#REF!,FIND(\"(Q\",#REF!)-2)&\" - \"&#REF!","v":{"$error":"#REF!"}},{"$f":"IF(OR(#REF!=\"N\",#REF!=\"I\"),\"N\",#REF!)","v":{"$error":"#REF!"}},"If fees/prices are regulated or self-regulated, what is the nature of these regulations? - Binding minimum prices for some services",{"$f":"#REF!","v":{"$error":"#REF!"}},{"$f":"#REF!","v":{"$error":"#REF!"}}]
[{"$f":"#REF!","v":{"$error":"#REF!"}},{"$f":"#REF!","v":{"$error":"#REF!"}},{"$f":"LEFT(#REF!,FIND(\"(Q\",#REF!)-2)&\" - \"&#REF!","v":{"$error":"#REF!"}},{"$f":"IF(OR(#REF!=\"N\",#REF!=\"I\"),\"N\",#REF!)","v":{"$error":"#REF!"}},"If fees/prices are regulated or self-regulated, what is the nature of these regulations? - Binding minimum prices for all services",{"$f":"#REF!","v":{"$error":"#REF!"}},{"$f":"#REF!","v":{"$error":"#REF!"}}]
[{"$f":"#REF!","v":{"$error":"#REF!"}},{"$f":"#REF!","v":{"$error":"#REF!"}},{"$f":"LEFT(#REF!,FIND(\"(Q\",#REF!)-2)","v":{"$error":"#REF!"}},{"$f":"IF(OR(#REF!=\"N\",#REF!=\"I\"),\"N\",#REF!)","v":{"$error":"#REF!"}},"N",{"$f":"#REF!","v":{"$error":"#REF!"}},{"$f":"#REF!","v":{"$error":"#REF!"}}]
[{"$f":"#REF!","v":{"$error":"#REF!"}},{"$f":"#REF!","v":{"$error":"#REF!"}},{"$f":"LEFT(#REF!,FIND(\"(Q\",#REF!)-2)","v":{"$error":"#REF!"}},{"$f":"IF(OR(#REF!=\"N\",#REF!=\"I\"),\"N\",#REF!)","v":{"$error":"#REF!"}},"Are there restrictions on advertising and marketing by profesionals? - Accountancy profession",{"$f":"#REF!","v":{"$error":"#REF!"}},{"$f":"#REF!","v":{"$error":"#REF!"}}]
[{"$f":"#REF!","v":{"$error":"#REF!"}},{"$f":"#REF!","v":{"$error":"#REF!"}},{"$f":"LEFT(#REF!,FIND(\"(Q\",#REF!)-2)","v":{"$error":"#REF!"}},{"$f":"IF(OR(#REF!=\"N\",#REF!=\"I\"),\"N\",#REF!)","v":{"$error":"#REF!"}},"N",{"$f":"#REF!","v":{"$error":"#REF!"}},{"$f":"#REF!","v":{"$error":"#REF!"}}]
[{"$f":"#REF!","v":{"$error":"#REF!"}},{"$f":"#REF!","v":{"$error":"#REF!"}},{"$f":"LEFT(#REF!,FIND(\"(Q\",#REF!)-2)","v":{"$error":"#REF!"}},{"$f":"IF(OR(#REF!=\"N\",#REF!=\"I\"),\"N\",#REF!)","v":{"$error":"#REF!"}},"Are there restrictions on inter-professional co-operation (e.g. partnerships, associations, joint ventures)? - Accountancy profession",{"$f":"#REF!","v":{"$error":"#REF!"}},{"$f":"#REF!","v":{"$error":"#REF!"}}]
[{"$f":"#REF!","v":{"$error":"#REF!"}},{"$f":"#REF!","v":{"$error":"#REF!"}},{"$f":"LEFT(#REF!,FIND(\"(Q\",#REF!)-2)","v":{"$error":"#REF!"}},{"$f":"IF(OR(#REF!=\"N\",#REF!=\"I\"),\"N\",#REF!)","v":{"$error":"#REF!"}},"N",{"$f":"#REF!","v":{"$error":"#REF!"}},{"$f":"#REF!","v":{"$error":"#REF!"}}]
[{"$f":"#REF!","v":{"$error":"#REF!"}},{"$f":"#REF!","v":{"$error":"#REF!"}},{"$f":"LEFT(#REF!,FIND(\"(Q\",#REF!)-2)","v":{"$error":"#REF!"}},{"$f":"IF(OR(#REF!=\"N\",#REF!=\"I\"),\"N\",#REF!)","v":{"$error":"#REF!"}},"N",{"$f":"#REF!","v":{"$error":"#REF!"}},{"$f":"#REF!","v":{"$error":"#REF!"}}]
[{"$f":"#REF!","v":{"$error":"#REF!"}},{"$f":"#REF!","v":{"$error":"#REF!"}},{"$f":"LEFT(#REF!,FIND(\"(Q\",#REF!)-2)","v":{"$error":"#REF!"}},{"$f":"IF(OR(#REF!=\"N\",#REF!=\"I\"),\"N\",#REF!)","v":{"$error":"#REF!"}},"N",{"$f":"#REF!","v":{"$error":"#REF!"}},{"$f":"#REF!","v":{"$error":"#REF!"}}]
[{"$f":"#REF!","v":{"$error":"#REF!"}},{"$f":"#REF!","v":{"$error":"#REF!"}},{"$f":"LEFT(#REF!,FIND(\"(Q\",#REF!)-2)","v":{"$error":"#REF!"}},{"$f":"IF(OR(#REF!=\"N\",#REF!=\"I\"),\"N\",#REF!)","v":{"$error":"#REF!"}},"N",{"$f":"#REF!","v":{"$error":"#REF!"}},{"$f":"#REF!","v":{"$error":"#REF!"}}]
[{"$f":"#REF!","v":{"$error":"#REF!"}},{"$f":"#REF!","v":{"$error":"#REF!"}},{"$f":"LEFT(#REF!,FIND(\"(Q\",#REF!)-2)","v":{"$error":"#REF!"}},{"$f":"IF(OR(#REF!=\"N\",#REF!=\"I\"),\"N\",#REF!)","v":{"$error":"#REF!"}},"N",{"$f":"#REF!","v":{"$error":"#REF!"}},{"$f":"#REF!","v":{"$error":"#REF!"}},null,{"$f":"179-119+1","v":61}]
[{"$f":"'8D-ARCHITECTS'!B6","v":"I"},{"$f":"'8D-ARCHITECTS'!A6","v":"Q8d.01"},{"$f":"LEFT('8D-ARCHITECTS'!E6,FIND(\"(Q\",'8D-ARCHITECTS'!E6)-2)","v":"Существует ли в вашей стране профессия архитектор?"},{"$f":"IF(OR('8D-ARCHITECTS'!B6=\"N\",'8D-ARCHITECTS'!B6=\"I\"),\"N\",'8D-ARCHITECTS'!C6)","v":"N"},"N",{"$f":"'8D-ARCHITECTS'!M6","v":""},{"$f":"'8D-ARCHITECTS'!X6","v":""}]
[{"$f":"'8D-ARCHITECTS'!B7","v":"I"},{"$f":"'8D-ARCHITECTS'!A7","v":"Q8d.02"},{"$f":"LEFT('8D-ARCHITECTS'!E7,FIND(\"(Q\",'8D-ARCHITECTS'!E7)-2)","v":"Пожалуйста, укажите по какой конкретно профессии вы отвечаете на вопросы анкеты"},{"$f":"IF(OR('8D-ARCHITECTS'!B7=\"N\",'8D-ARCHITECTS'!B7=\"I\"),\"N\",'8D-ARCHITECTS'!C7)","v":"N"},"N",{"$f":"'8D-ARCHITECTS'!M7","v":""},{"$f":"'8D-ARCHITECTS'!X7","v":""}]
[{"$f":"'8D-ARCHITECTS'!B8","v":"I"},{"$f":"'8D-ARCHITECTS'!A8","v":"Q8d.03"},{"$f":"LEFT('8D-ARCHITECTS'!E8,FIND(\"(Q\",'8D-ARCHITECTS'!E8)-2)","v":" Для какой юрисдикции вы отвечаете на вопрос?"},{"$f":"IF(OR('8D-ARCHITECTS'!B8=\"N\",'8D-ARCHITECTS'!B8=\"I\"),\"N\",'8D-ARCHITECTS'!C8)","v":"N"},"N",{"$f":"'8D-ARCHITECTS'!M8","v":""},{"$f":"'8D-ARCHITECTS'!X8","v":""}]
[{"$f":"'8D-ARCHITECTS'!B11","v":"E"},{"$f":"'8D-ARCHITECTS'!A11","v":"Q8d.1.1_1"},{"$f":"LEFT('8D-ARCHITECTS'!E10,FIND(\"(Q\",'8D-ARCHITECTS'!E10)-2)&\" - \"&'8D-ARCHITECTS'!F11","v":"Имеют ли архитекторы  эксклюзивные или совместные эксклюзивные права заниматься видами деятельности, перечисленными ниже? - Технико-экономические обоснования "},{"$f":"IF(OR('8D-ARCHITECTS'!B11=\"N\",'8D-ARCHITECTS'!B11=\"I\"),\"N\",'8D-ARCHITECTS'!C11)","v":"Q8.1.4_1"},"Does the architecture profession have an exclusive or shared exclusive right to provide the task? - Feasibility studies",{"$f":"'8D-ARCHITECTS'!M11","v":{"$error":"#N/A"}},{"$f":"'8D-ARCHITECTS'!X11","v":""}]
[{"$f":"'8D-ARCHITECTS'!B12","v":"E"},{"$f":"'8D-ARCHITECTS'!A12","v":"Q8d.1.1_2"},{"$f":"LEFT('8D-ARCHITECTS'!E10,FIND(\"(Q\",'8D-ARCHITECTS'!E10)-2)&\" - \"&'8D-ARCHITECTS'!F12","v":"Имеют ли архитекторы  эксклюзивные или совместные эксклюзивные права заниматься видами деятельности, перечисленными ниже? - Проектирование и планирование "},{"$f":"IF(OR('8D-ARCHITECTS'!B12=\"N\",'8D-ARCHITECTS'!B12=\"I\"),\"N\",'8D-ARCHITECTS'!C12)","v":"Q8.1.4_3"},"Does the architecture profession have an exclusive or shared exclusive right to provide the task? - Planning (elaboration of blue prints)",{"$f":"'8D-ARCHITECTS'!M12","v":{"$error":"#N/A"}},{"$f":"'8D-ARCHITECTS'!X12","v":""}]
[{"$f":"'8D-ARCHITECTS'!B13","v":"E"},{"$f":"'8D-ARCHITECTS'!A13","v":"Q8d.1.1_3"},{"$f":"LEFT('8D-ARCHITECTS'!E10,FIND(\"(Q\",'8D-ARCHITECTS'!E10)-2)&\" - \"&'8D-ARCHITECTS'!F13","v":"Имеют ли архитекторы  эксклюзивные или совместные эксклюзивные права заниматься видами деятельности, перечисленными ниже? - Представительство для получения разрешений (подписывание проектов) "},{"$f":"IF(OR('8D-ARCHITECTS'!B13=\"N\",'8D-ARCHITECTS'!B13=\"I\"),\"N\",'8D-ARCHITECTS'!C13)","v":"Q8.1.4_4"},"Does the architecture profession have an exclusive or shared exclusive right to provide the task? - Request for construction permit",{"$f":"'8D-ARCHITECTS'!M13","v":{"$error":"#N/A"}},{"$f":"'8D-ARCHITECTS'!X13","v":""}]
[{"$f":"'8D-ARCHITECTS'!B14","v":"N"},{"$f":"'8D-ARCHITECTS'!A14","v":"Q8d.1.1_4"},{"$f":"LEFT('8D-ARCHITECTS'!E10,FIND(\"(Q\",'8D-ARCHITECTS'!E10)-2)&\" - \"&'8D-ARCHITECTS'!F14","v":"Имеют ли архитекторы  эксклюзивные или совместные эксклюзивные права заниматься видами деятельности, перечисленными ниже? - Администрирование тендеров и договоров "},{"$f":"IF(OR('8D-ARCHITECTS'!B14=\"N\",'8D-ARCHITECTS'!B14=\"I\"),\"N\",'8D-ARCHITECTS'!C14)","v":"N"},"N",{"$f":"'8D-ARCHITECTS'!M14","v":""},{"$f":"'8D-ARCHITECTS'!X14","v":""}]
[{"$f":"'8D-ARCHITECTS'!B15","v":"N"},{"$f":"'8D-ARCHITECTS'!A15","v":"Q8d.1.1_5"},{"$f":"LEFT('8D-ARCHITECTS'!E10,FIND(\"(Q\",'8D-ARCHITECTS'!E10)-2)&\" - \"&'8D-ARCHITECTS'!F15","v":"Имеют ли архитекторы  эксклюзивные или совместные эксклюзивные права заниматься видами деятельности, перечисленными ниже? - Дача экспертных показаний (например, в суде) "},{"$f":"IF(OR('8D-ARCHITECTS'!B15=\"N\",'8D-ARCHITECTS'!B15=\"I\"),\"N\",'8D-ARCHITECTS'!C15)","v":"N"},"N",{"$f":"'8D-ARCHITECTS'!M15","v":""},{"$f":"'8D-ARCHITECTS'!X15","v":""}]
[{"$f":"'8D-ARCHITECTS'!B16","v":"N"},{"$f":"'8D-ARCHITECTS'!A16","v":"Q8d.1.1_6"},{"$f":"LEFT('8D-ARCHITECTS'!E10,FIND(\"(Q\",'8D-ARCHITECTS'!E10)-2)&\" - \"&'8D-ARCHITECTS'!F16","v":"Имеют ли архитекторы  эксклюзивные или совместные эксклюзивные права заниматься видами деятельности, перечисленными ниже? - Подготовка/подача/подписание документов технического контроля и технического соответствия или заверение проекта и соблюдение законодательства в области строительства/стандартов исполнения, качества, затрат и безопасности  "},{"$f":"IF(OR('8D-ARCHITECTS'!B16=\"N\",'8D-ARCHITECTS'!B16=\"I\"),\"N\",'8D-ARCHITECTS'!C16)","v":"N"},"N",{"$f":"'8D-ARCHITECTS'!M16","v":""},{"$f":"'8D-ARCHITECTS'!X16","v":""}]
[{"$f":"'8D-ARCHITECTS'!B17","v":"E"},{"$f":"'8D-ARCHITECTS'!A17","v":"Q8d.1.1_7"},{"$f":"LEFT('8D-ARCHITECTS'!E10,FIND(\"(Q\",'8D-ARCHITECTS'!E10)-2)&\" - \"&'8D-ARCHITECTS'!F17","v":"Имеют ли архитекторы  эксклюзивные или совместные эксклюзивные права заниматься видами деятельности, перечисленными ниже? - Управление и надзор за проведением строительных работ, включая надзор за работой специалистов "},{"$f":"IF(OR('8D-ARCHITECTS'!B17=\"N\",'8D-ARCHITECTS'!B17=\"I\"),\"N\",'8D-ARCHITECTS'!C17)","v":"Q8.1.4_5"},"Does the architecture profession have an exclusive or shared exclusive right to provide the task? - Preparation and monitoring of construction/execution",{"$f":"'8D-ARCHITECTS'!M17","v":{"$error":"#N/A"}},{"$f":"'8D-ARCHITECTS'!X17","v":""}]
[{"$f":"'8D-ARCHITECTS'!B18","v":"E"},{"$f":"'8D-ARCHITECTS'!A18","v":"Q8d.1.1_8"},{"$f":"LEFT('8D-ARCHITECTS'!E10,FIND(\"(Q\",'8D-ARCHITECTS'!E10)-2)&\" - \"&'8D-ARCHITECTS'!F18","v":"Имеют ли архитекторы  эксклюзивные или совместные эксклюзивные права заниматься видами деятельности, перечисленными ниже? - Управление строительными затратами "},{"$f":"IF(OR('8D-ARCHITECTS'!B18=\"N\",'8D-ARCHITECTS'!B18=\"I\"),\"N\",'8D-ARCHITECTS'!C18)","v":"Q8.1.4_7"},"Does the architecture profession have an exclusive or shared exclusive right to provide the task? - Construction cost management",{"$f":"'8D-ARCHITECTS'!M18","v":{"$error":"#N/A"}},{"$f":"'8D-ARCHITECTS'!X18","v":""}]
[{"$f":"'8D-ARCHITECTS'!B19","v":"E"},{"$f":"'8D-ARCHITECTS'!A19","v":"Q8d.1.1_9"},{"$f":"LEFT('8D-ARCHITECTS'!E10,FIND(\"(Q\",'8D-ARCHITECTS'!E10)-2)&\" - \"&'8D-ARCHITECTS'!F19","v":"Имеют ли архитекторы  эксклюзивные или совместные эксклюзивные права заниматься видами деятельности, перечисленными ниже? - Топографическая детерминация, демаркация и геодезические съемки "},{"$f":"IF(OR('8D-ARCHITECTS'!B19=\"N\",'8D-ARCHITECTS'!B19=\"I\"),\"N\",'8D-ARCHITECTS'!C19)","v":"Q8.1.4_2"},"Does the architecture profession have an exclusive or shared exclusive right to provide the task? - Topographical determination, demarcation, land surveying",{"$f":"'8D-ARCHITECTS'!M19","v":{"$error":"#N/A"}},{"$f":"'8D-ARCHITECTS'!X19","v":""}]
[{"$f":"'8D-ARCHITECTS'!B20","v":"E"},{"$f":"'8D-ARCHITECTS'!A20","v":"Q8d.1.1_10"},{"$f":"LEFT('8D-ARCHITECTS'!E10,FIND(\"(Q\",'8D-ARCHITECTS'!E10)-2)&\" - \"&'8D-ARCHITECTS'!F20","v":"Имеют ли архитекторы  эксклюзивные или совместные эксклюзивные права заниматься видами деятельности, перечисленными ниже? - Градостроительное и ландшафтное планирование  "},{"$f":"IF(OR('8D-ARCHITECTS'!B20=\"N\",'8D-ARCHITECTS'!B20=\"I\"),\"N\",'8D-ARCHITECTS'!C20)","v":"Q8.1.4_8"},"Does the architecture profession have an exclusive or shared exclusive right to provide the task? - Urban and landscape planning",{"$f":"'8D-ARCHITECTS'!M20","v":{"$error":"#N/A"}},{"$f":"'8D-ARCHITECTS'!X20","v":""}]
[{"$f":"'8D-ARCHITECTS'!B21","v":"E"},{"$f":"'8D-ARCHITECTS'!A21","v":"Q8d.1.1_11"},{"$f":"LEFT('8D-ARCHITECTS'!E10,FIND(\"(Q\",'8D-ARCHITECTS'!E10)-2)&\" - \"&'8D-ARCHITECTS'!F21","v":"Имеют ли архитекторы  эксклюзивные или совместные эксклюзивные права заниматься видами деятельности, перечисленными ниже? - Дизайн интерьера  "},{"$f":"IF(OR('8D-ARCHITECTS'!B21=\"N\",'8D-ARCHITECTS'!B21=\"I\"),\"N\",'8D-ARCHITECTS'!C21)","v":"Q8.1.4_9"},"Does the architecture profession have an exclusive or shared exclusive right to provide the task? - Interior design",{"$f":"'8D-ARCHITECTS'!M21","v":{"$error":"#N/A"}},{"$f":"'8D-ARCHITECTS'!X21","v":""}]
[{"$f":"'8D-ARCHITECTS'!B22","v":"N"},{"$f":"'8D-ARCHITECTS'!A22","v":"Q8d.1.1_12"},{"$f":"LEFT('8D-ARCHITECTS'!E10,FIND(\"(Q\",'8D-ARCHITECTS'!E10)-2)&\" - \"&'8D-ARCHITECTS'!F22","v":"Имеют ли архитекторы  эксклюзивные или совместные эксклюзивные права заниматься видами деятельности, перечисленными ниже? -  Прочее (Пожалуйста, перечислите любые виды деятельности, на которые архитекторы могут иметь эксклюзивные или совместные эксклюзивные права,  в случае с свместным правом на занятие деятельностью , укажите с какими профессиями в колонке \"Комментарии\")"},{"$f":"IF(OR('8D-ARCHITECTS'!B22=\"N\",'8D-ARCHITECTS'!B22=\"I\"),\"N\",'8D-ARCHITECTS'!C22)","v":"N"},"N",{"$f":"'8D-ARCHITECTS'!M22","v":""},{"$f":"'8D-ARCHITECTS'!X22","v":""}]
[{"$f":"'8D-ARCHITECTS'!B23","v":"I"},{"$f":"'8D-ARCHITECTS'!A23","v":"Q8d.1.1a"},{"$f":"LEFT('8D-ARCHITECTS'!E23,FIND(\"(Q\",'8D-ARCHITECTS'!E23)-2)","v":" Пожалуйста, предоставьте ссылку на закон/постановление, которое устанавливаетвиды деятельности зарезервированные за данной профессией "},{"$f":"IF(OR('8D-ARCHITECTS'!B23=\"N\",'8D-ARCHITECTS'!B23=\"I\"),\"N\",'8D-ARCHITECTS'!C23)","v":"N"},"N",{"$f":"'8D-ARCHITECTS'!M23","v":""},{"$f":"'8D-ARCHITECTS'!X23","v":""}]
[{"$f":"'8D-ARCHITECTS'!B24","v":"N"},{"$f":"'8D-ARCHITECTS'!A24","v":"Q8d.1.2"},{"$f":"LEFT('8D-ARCHITECTS'!E24,FIND(\"(Q\",'8D-ARCHITECTS'!E24)-2)","v":"Защищен ли законом профессиональный титул архитектора?"},{"$f":"IF(OR('8D-ARCHITECTS'!B24=\"N\",'8D-ARCHITECTS'!B24=\"I\"),\"N\",'8D-ARCHITECTS'!C24)","v":"N"},"N",{"$f":"'8D-ARCHITECTS'!M24","v":""},{"$f":"'8D-ARCHITECTS'!X24","v":""}]
[{"$f":"'8D-ARCHITECTS'!B25","v":"I"},{"$f":"'8D-ARCHITECTS'!A25","v":"Q8d.1.2a"},{"$f":"LEFT('8D-ARCHITECTS'!E25,FIND(\"(Q\",'8D-ARCHITECTS'!E25)-2)","v":" Пожалуйста, предоставьте ссылку на закон/постановление, которым устанавливается такая защита в колонке \"Комментарии\" "},{"$f":"IF(OR('8D-ARCHITECTS'!B25=\"N\",'8D-ARCHITECTS'!B25=\"I\"),\"N\",'8D-ARCHITECTS'!C25)","v":"N"},"N",{"$f":"'8D-ARCHITECTS'!M25","v":""},{"$f":"'8D-ARCHITECTS'!X25","v":""}]
[{"$f":"'8D-ARCHITECTS'!B26","v":"SPL"},{"$f":"'8D-ARCHITECTS'!A26","v":"Q8d.1.3"},{"$f":"LEFT('8D-ARCHITECTS'!E26,FIND(\"(Q\",'8D-ARCHITECTS'!E26)-2)","v":" как регулируется доступ к данной профессии?"},{"$f":"IF(OR('8D-ARCHITECTS'!B26=\"N\",'8D-ARCHITECTS'!B26=\"I\"),\"N\",'8D-ARCHITECTS'!C26)","v":"Q8.2.1_ARC"},"How is access to the profession regulated? - Architecture profession",{"$f":"'8D-ARCHITECTS'!M26","v":{"$error":"#N/A"}},{"$f":"'8D-ARCHITECTS'!X26","v":""}]
[{"$f":"'8D-ARCHITECTS'!B28","v":"N"},{"$f":"'8D-ARCHITECTS'!A28","v":"Q8d.2.1"},{"$f":"LEFT('8D-ARCHITECTS'!E28,FIND(\"(Q\",'8D-ARCHITECTS'!E28)-2)","v":"Лимитируется ли количество  архитекторов, которым разрешено работать в вашей стране, законом или решением профессионального органа (или комбинацией первого и втрого)?"},{"$f":"IF(OR('8D-ARCHITECTS'!B28=\"N\",'8D-ARCHITECTS'!B28=\"I\"),\"N\",'8D-ARCHITECTS'!C28)","v":"N"},"N",{"$f":"'8D-ARCHITECTS'!M28","v":""},{"$f":"'8D-ARCHITECTS'!X28","v":""}]
[{"$f":"'8D-ARCHITECTS'!B29","v":"I"},{"$f":"'8D-ARCHITECTS'!A29","v":"Q8d.2.1a"},{"$f":"LEFT('8D-ARCHITECTS'!E29,FIND(\"(Q\",'8D-ARCHITECTS'!E29)-2)","v":"Пожалуйста, предоставьте ссылку на закон/постановление, которым устанавливается такое ограничение в колонке \"Комментарии\""},{"$f":"IF(OR('8D-ARCHITECTS'!B29=\"N\",'8D-ARCHITECTS'!B29=\"I\"),\"N\",'8D-ARCHITECTS'!C29)","v":"N"},"N",{"$f":"'8D-ARCHITECTS'!M29","v":""},{"$f":"'8D-ARCHITECTS'!X29","v":""}]
[{"$f":"'8D-ARCHITECTS'!B30","v":"N"},{"$f":"'8D-ARCHITECTS'!A30","v":"Q8d.2.2"},{"$f":"LEFT('8D-ARCHITECTS'!E30,FIND(\"(Q\",'8D-ARCHITECTS'!E30)-2)","v":"Существуют ли территориальные ограничения по возможности архтекторов работать в вашей юрисдикции, которые устанавливаются законом или решением профессиональной организации (или комбинацией первого и второго)?"},{"$f":"IF(OR('8D-ARCHITECTS'!B30=\"N\",'8D-ARCHITECTS'!B30=\"I\"),\"N\",'8D-ARCHITECTS'!C30)","v":"N"},"N",{"$f":"'8D-ARCHITECTS'!M30","v":""},{"$f":"'8D-ARCHITECTS'!X30","v":""}]
[{"$f":"'8D-ARCHITECTS'!B31","v":"I"},{"$f":"'8D-ARCHITECTS'!A31","v":"Q8d.2.2a"},{"$f":"LEFT('8D-ARCHITECTS'!E31,FIND(\"(Q\",'8D-ARCHITECTS'!E31)-2)","v":"Пожалуйста, предоставьте ссылку на закон/постановление, которым устанавливается такое ограничение в колонке \"Комментарии\""},{"$f":"IF(OR('8D-ARCHITECTS'!B31=\"N\",'8D-ARCHITECTS'!B31=\"I\"),\"N\",'8D-ARCHITECTS'!C31)","v":"N"},"N",{"$f":"'8D-ARCHITECTS'!M31","v":""},{"$f":"'8D-ARCHITECTS'!X31","v":""}]
[{"$f":"'8D-ARCHITECTS'!B33","v":"N"},{"$f":"'8D-ARCHITECTS'!A33","v":"Q8d.3.1"},{"$f":"LEFT('8D-ARCHITECTS'!E33,FIND(\"(Q\",'8D-ARCHITECTS'!E33)-2)","v":"Сколько существует маршрутов для получения квалификации, для того чтобы на законных основаниях заниматься профессиональной деятельностью?"},{"$f":"IF(OR('8D-ARCHITECTS'!B33=\"N\",'8D-ARCHITECTS'!B33=\"I\"),\"N\",'8D-ARCHITECTS'!C33)","v":"N"},"N",{"$f":"'8D-ARCHITECTS'!M33","v":""},{"$f":"'8D-ARCHITECTS'!X33","v":""}]
[{"$f":"'8D-ARCHITECTS'!B34","v":"I"},{"$f":"'8D-ARCHITECTS'!A34","v":"Q8d.3.1a"},{"$f":"LEFT('8D-ARCHITECTS'!E34,FIND(\"(Q\",'8D-ARCHITECTS'!E34)-2)","v":" Пожалуйста, предоставьте детальную информацию по количеству альтернативных маршрутов доступа к професси и информацию об их основных требованиях, или ссылку на вебсайт, в котором описаны эти разные маршруты в колонке \"Комментарии\""},{"$f":"IF(OR('8D-ARCHITECTS'!B34=\"N\",'8D-ARCHITECTS'!B34=\"I\"),\"N\",'8D-ARCHITECTS'!C34)","v":"N"},"N",{"$f":"'8D-ARCHITECTS'!M34","v":""},{"$f":"'8D-ARCHITECTS'!X34","v":""}]
[{"$f":"'8D-ARCHITECTS'!B36","v":"E"},{"$f":"'8D-ARCHITECTS'!A36","v":"Q8d.3.2"},{"$f":"LEFT('8D-ARCHITECTS'!E36,FIND(\"(Q\",'8D-ARCHITECTS'!E36)-2)","v":"Требуется ли  диплом о высшем образовании или курс профессионального обучения для того чтобы на законных основаниях  заниматься  профессиональной нотариальнной деятельностью  или получить  профессиональный титул , в тех случаях, когда он защищен законом  (уставлено ли это требование законом или решением профессионального органа, или сочетанием первого и второго)?"},{"$f":"IF(OR('8D-ARCHITECTS'!B36=\"N\",'8D-ARCHITECTS'!B36=\"I\"),\"N\",'8D-ARCHITECTS'!C36)","v":"Q8.2.5a"},"Entry requirements in the architecture profession - Is a university degree required to enter the profession?",{"$f":"'8D-ARCHITECTS'!M36","v":{"$error":"#N/A"}},{"$f":"'8D-ARCHITECTS'!X36","v":""}]
[{"$f":"'8D-ARCHITECTS'!B37","v":"E"},{"$f":"'8D-ARCHITECTS'!A37","v":"Q8d.3.2a"},{"$f":"LEFT('8D-ARCHITECTS'!F37,FIND(\"(Q\",'8D-ARCHITECTS'!F37)-2)","v":" Если требуется диплом университета или прохождение курса профессионльного обучения,  какова продолжительность обучения?"},{"$f":"IF(OR('8D-ARCHITECTS'!B37=\"N\",'8D-ARCHITECTS'!B37=\"I\"),\"N\",'8D-ARCHITECTS'!C37)","v":"Q8.2.5b"},"Entry requirements in the architecture profession - If a university degree is required, how many years duration?",{"$f":"'8D-ARCHITECTS'!M37","v":{"$error":"#N/A"}},{"$f":"'8D-ARCHITECTS'!X37","v":""}]
[{"$f":"'8D-ARCHITECTS'!B38","v":"E"},{"$f":"'8D-ARCHITECTS'!A38","v":"Q8d.3.3"},{"$f":"LEFT('8D-ARCHITECTS'!E38,FIND(\"(Q\",'8D-ARCHITECTS'!E38)-2)","v":" Требуется ли дополнительное образование для того чтобы на законных основаниях заниматься профессиональной деятельностью или для получения профессионального титула, когда титул защищен законом (установлено ли такое требование законом или решением профессионального органа, или сочетанием первого и второго)?"},{"$f":"IF(OR('8D-ARCHITECTS'!B38=\"N\",'8D-ARCHITECTS'!B38=\"I\"),\"N\",'8D-ARCHITECTS'!C38)","v":"Q8.2.5c"},"Entry requirements in the architecture profession - Is there any other higher education required to enter the profession?",{"$f":"'8D-ARCHITECTS'!M38","v":{"$error":"#N/A"}},{"$f":"'8D-ARCHITECTS'!X38","v":""}]
[{"$f":"'8D-ARCHITECTS'!B39","v":"E"},{"$f":"'8D-ARCHITECTS'!A39","v":"Q8d.3.3a"},{"$f":"LEFT('8D-ARCHITECTS'!F39,FIND(\"(Q\",'8D-ARCHITECTS'!F39)-2)","v":" Если требуется дополнительное образование, какова его продолжительность?"},{"$f":"IF(OR('8D-ARCHITECTS'!B39=\"N\",'8D-ARCHITECTS'!B39=\"I\"),\"N\",'8D-ARCHITECTS'!C39)","v":"Q8.2.5d"},"Entry requirements in the architecture profession - If any other higher education is required, how many years duration?",{"$f":"'8D-ARCHITECTS'!M39","v":{"$error":"#N/A"}},{"$f":"'8D-ARCHITECTS'!X39","v":""}]
[{"$f":"'8D-ARCHITECTS'!B40","v":"E"},{"$f":"'8D-ARCHITECTS'!A40","v":"Q8d.3.4"},{"$f":"LEFT('8D-ARCHITECTS'!E40,FIND(\"(Q\",'8D-ARCHITECTS'!E40)-2)","v":"Тебуется ли соответствующая обязательная практика для того чтобы на законных основаниях заниматься профессиональной деятельностью или для получения профессионального титула, в случях, когда такой титул защищается законом (устанавливается ли такое требование законом или решением профессионльного органа  или сочетанием первого и второго)?"},{"$f":"IF(OR('8D-ARCHITECTS'!B40=\"N\",'8D-ARCHITECTS'!B40=\"I\"),\"N\",'8D-ARCHITECTS'!C40)","v":"Q8.2.5e"},"Entry requirements in the architecture profession - Is relevant compulsory practice required to become a full member of the profession?",{"$f":"'8D-ARCHITECTS'!M40","v":{"$error":"#N/A"}},{"$f":"'8D-ARCHITECTS'!X40","v":""}]
[{"$f":"'8D-ARCHITECTS'!B41","v":"E"},{"$f":"'8D-ARCHITECTS'!A41","v":"Q8d.3.4a"},{"$f":"LEFT('8D-ARCHITECTS'!F41,FIND(\"(Q\",'8D-ARCHITECTS'!F41)-2)","v":"Если требуется соответствующая обязательная практика, какова ее продолжительность?"},{"$f":"IF(OR('8D-ARCHITECTS'!B41=\"N\",'8D-ARCHITECTS'!B41=\"I\"),\"N\",'8D-ARCHITECTS'!C41)","v":"Q8.2.5f"},"Entry requirements in the architecture profession - If relevant compulsory practice is required, how many years duration?",{"$f":"'8D-ARCHITECTS'!M41","v":{"$error":"#N/A"}},{"$f":"'8D-ARCHITECTS'!X41","v":""}]
[{"$f":"'8D-ARCHITECTS'!B42","v":"E"},{"$f":"'8D-ARCHITECTS'!A42","v":"Q8d.3.5"},{"$f":"LEFT('8D-ARCHITECTS'!E42,FIND(\"(Q\",'8D-ARCHITECTS'!E42)-2)","v":"Существует ли требование сдать один или несколько профессиональных экзаменов для того чтобы на законных основаниях заниматься профессиональной деятельностью или для получения профессионального титула, в случаях, когда титул защищен законом?"},{"$f":"IF(OR('8D-ARCHITECTS'!B42=\"N\",'8D-ARCHITECTS'!B42=\"I\"),\"N\",'8D-ARCHITECTS'!C42)","v":"Q8.2.5g"},"Entry requirements in the architecture profession - Is there a requirement to pass one or more professional examinations to become a full member of the profession?",{"$f":"'8D-ARCHITECTS'!M42","v":{"$error":"#N/A"}},{"$f":"'8D-ARCHITECTS'!X42","v":""}]
[{"$f":"'8D-ARCHITECTS'!B43","v":"N"},{"$f":"'8D-ARCHITECTS'!A43","v":"Q8d.3.5a"},{"$f":"LEFT('8D-ARCHITECTS'!F43,FIND(\"(Q\",'8D-ARCHITECTS'!F43)-2)","v":" Если вы ответили \"да\" на вопрос выше, кто администрирует этот профессиональный экзамен?"},{"$f":"IF(OR('8D-ARCHITECTS'!B43=\"N\",'8D-ARCHITECTS'!B43=\"I\"),\"N\",'8D-ARCHITECTS'!C43)","v":"N"},"N",{"$f":"'8D-ARCHITECTS'!M43","v":""},{"$f":"'8D-ARCHITECTS'!X43","v":""}]
[{"$f":"'8D-ARCHITECTS'!B44","v":"E"},{"$f":"'8D-ARCHITECTS'!A44","v":"Q8d.3.6"},{"$f":"LEFT('8D-ARCHITECTS'!E44,FIND(\"(Q\",'8D-ARCHITECTS'!E44)-2)","v":"Обязательно ли для индивидуального профессионала состоять в профессиональной организации для того чтобы  заниматься профессиональной деятельностью на законном основании, в случаях, когда  это установлено законом?"},{"$f":"IF(OR('8D-ARCHITECTS'!B44=\"N\",'8D-ARCHITECTS'!B44=\"I\"),\"N\",'8D-ARCHITECTS'!C44)","v":"Q8.2.5h"},"Entry requirements in the architecture profession - Is membership in a professional organisation compulsory in order to legally practice?",{"$f":"'8D-ARCHITECTS'!M44","v":{"$error":"#N/A"}},{"$f":"'8D-ARCHITECTS'!X44","v":""}]
[{"$f":"'8D-ARCHITECTS'!B45","v":"I"},{"$f":"'8D-ARCHITECTS'!A45","v":"Q8d.3.6a"},{"$f":"LEFT('8D-ARCHITECTS'!E45,FIND(\"(Q\",'8D-ARCHITECTS'!E45)-2)","v":" Пожалуйста, предоставьте ссылку на закон/постановление, которым устанавливается такая обязанность  колонке \"Комментарии\""},{"$f":"IF(OR('8D-ARCHITECTS'!B45=\"N\",'8D-ARCHITECTS'!B45=\"I\"),\"N\",'8D-ARCHITECTS'!C45)","v":"N"},"N",{"$f":"'8D-ARCHITECTS'!M45","v":""},{"$f":"'8D-ARCHITECTS'!X45","v":""}]
[{"$f":"'8D-ARCHITECTS'!B47","v":"E"},{"$f":"'8D-ARCHITECTS'!A47","v":"Q8d.4.1"},{"$f":"LEFT('8D-ARCHITECTS'!E47,FIND(\"(Q\",'8D-ARCHITECTS'!E47)-2)","v":"Существуют ли ограничения по правовой форме бизнеса (устанавливаются ли такие ограничения законом или решением профессионального органа или сочетанием первого и второго)?"},{"$f":"IF(OR('8D-ARCHITECTS'!B47=\"N\",'8D-ARCHITECTS'!B47=\"I\"),\"N\",'8D-ARCHITECTS'!C47)","v":"Q8.3.4"},"Is the legal form of business restricted in the architecture profession?",{"$f":"'8D-ARCHITECTS'!M47","v":{"$error":"#N/A"}},{"$f":"'8D-ARCHITECTS'!X47","v":""}]
[{"$f":"'8D-ARCHITECTS'!B48","v":"I"},{"$f":"'8D-ARCHITECTS'!A48","v":"Q8d.4.1a"},{"$f":"LEFT('8D-ARCHITECTS'!E48,FIND(\"(Q\",'8D-ARCHITECTS'!E48)-2)","v":" Пожалуйста, предоставьте ссылку на закон/постановление, которым устанавливается такая обязанность в колонке \"Комментарии\" "},{"$f":"IF(OR('8D-ARCHITECTS'!B48=\"N\",'8D-ARCHITECTS'!B48=\"I\"),\"N\",'8D-ARCHITECTS'!C48)","v":"N"},"N",{"$f":"'8D-ARCHITECTS'!M48","v":""},{"$f":"'8D-ARCHITECTS'!X48","v":""}]
[{"$f":"'8D-ARCHITECTS'!B49","v":"N"},{"$f":"'8D-ARCHITECTS'!A49","v":"Q8d.4.2"},{"$f":"LEFT('8D-ARCHITECTS'!E49,FIND(\"(Q\",'8D-ARCHITECTS'!E49)-2)","v":" Могут ли не архитекторы иметь долю в капитале архитекторской компании?"},{"$f":"IF(OR('8D-ARCHITECTS'!B49=\"N\",'8D-ARCHITECTS'!B49=\"I\"),\"N\",'8D-ARCHITECTS'!C49)","v":"N"},"N",{"$f":"'8D-ARCHITECTS'!M49","v":""},{"$f":"'8D-ARCHITECTS'!X49","v":""}]
[{"$f":"'8D-ARCHITECTS'!B50","v":"N"},{"$f":"'8D-ARCHITECTS'!A50","v":"Q8d.4.3"},{"$f":"LEFT('8D-ARCHITECTS'!E50,FIND(\"(Q\",'8D-ARCHITECTS'!E50)-2)","v":" Существуют ли ограничения о том, какие компании могут иметь долю в капитале архитекторской компании  (устанавливаемые законом или решением профессионального органа или сочетанием первого и второго)?"},{"$f":"IF(OR('8D-ARCHITECTS'!B50=\"N\",'8D-ARCHITECTS'!B50=\"I\"),\"N\",'8D-ARCHITECTS'!C50)","v":"N"},"N",{"$f":"'8D-ARCHITECTS'!M50","v":""},{"$f":"'8D-ARCHITECTS'!X50","v":""}]
[{"$f":"'8D-ARCHITECTS'!B51","v":"I"},{"$f":"'8D-ARCHITECTS'!A51","v":"Q8d.4.3a"},{"$f":"LEFT('8D-ARCHITECTS'!E51,FIND(\"(Q\",'8D-ARCHITECTS'!E51)-2)","v":" Пожалуйста, предоставьте ссылку на закон/постановление, которым устанавиваются такие ограничения на долю  собственности в капитале  в колонке \"Комментарии\" "},{"$f":"IF(OR('8D-ARCHITECTS'!B51=\"N\",'8D-ARCHITECTS'!B51=\"I\"),\"N\",'8D-ARCHITECTS'!C51)","v":"N"},"N",{"$f":"'8D-ARCHITECTS'!M51","v":""},{"$f":"'8D-ARCHITECTS'!X51","v":""}]
[{"$f":"'8D-ARCHITECTS'!B52","v":"N"},{"$f":"'8D-ARCHITECTS'!A52","v":"Q8d.4.4"},{"$f":"LEFT('8D-ARCHITECTS'!E52,FIND(\"(Q\",'8D-ARCHITECTS'!E52)-2)","v":"  Могут ли не архитекторы иметь голосующие права в архитекторской компании?"},{"$f":"IF(OR('8D-ARCHITECTS'!B52=\"N\",'8D-ARCHITECTS'!B52=\"I\"),\"N\",'8D-ARCHITECTS'!C52)","v":"N"},"N",{"$f":"'8D-ARCHITECTS'!M52","v":""},{"$f":"'8D-ARCHITECTS'!X52","v":""}]
[{"$f":"'8D-ARCHITECTS'!B53","v":"N"},{"$f":"'8D-ARCHITECTS'!A53","v":"Q8d.4.5"},{"$f":"LEFT('8D-ARCHITECTS'!E53,FIND(\"(Q\",'8D-ARCHITECTS'!E53)-2)","v":"Существуют ли ограничения по компаниям, которые могут иметь голосующие права в архитекторской компании   (установленные законом или решением профессионального органа, или сочетанием первого и второго)?"},{"$f":"IF(OR('8D-ARCHITECTS'!B53=\"N\",'8D-ARCHITECTS'!B53=\"I\"),\"N\",'8D-ARCHITECTS'!C53)","v":"N"},"N",{"$f":"'8D-ARCHITECTS'!M53","v":""},{"$f":"'8D-ARCHITECTS'!X53","v":""}]
[{"$f":"'8D-ARCHITECTS'!B54","v":"I"},{"$f":"'8D-ARCHITECTS'!A54","v":"Q8d.4.5a"},{"$f":"LEFT('8D-ARCHITECTS'!E54,FIND(\"(Q\",'8D-ARCHITECTS'!E54)-2)","v":" Пожалуйста, предоставьте ссылку на закон/постановление, которым устанавливаются такие ограничения по голосующим правам в колонке \"Комментарии\""},{"$f":"IF(OR('8D-ARCHITECTS'!B54=\"N\",'8D-ARCHITECTS'!B54=\"I\"),\"N\",'8D-ARCHITECTS'!C54)","v":"N"},"N",{"$f":"'8D-ARCHITECTS'!M54","v":""},{"$f":"'8D-ARCHITECTS'!X54","v":""}]
[{"$f":"'8D-ARCHITECTS'!B55","v":"E"},{"$f":"'8D-ARCHITECTS'!A55","v":"Q8d.4.6"},{"$f":"LEFT('8D-ARCHITECTS'!E55,FIND(\"(Q\",'8D-ARCHITECTS'!E55)-2)","v":" Регулируются ли сборы/тарифы, которые отдельные профессионалы и профессиональные компании могут  взимать за свои услуги государством, парламентом или самими профессионалами?"},{"$f":"IF(OR('8D-ARCHITECTS'!B55=\"N\",'8D-ARCHITECTS'!B55=\"I\"),\"N\",'8D-ARCHITECTS'!C55)","v":"Q8.3.8"},"Are the fees/prices that the architecture profession charges for its services regulated by the government or self-regulated by the profession itself?",{"$f":"'8D-ARCHITECTS'!M55","v":{"$error":"#N/A"}},{"$f":"'8D-ARCHITECTS'!X55","v":""}]
[{"$f":"'8D-ARCHITECTS'!B57","v":"EC"},{"$f":"'8D-ARCHITECTS'!A57","v":"Q8d.4.6a_i"},{"$f":"LEFT('8D-ARCHITECTS'!F56,FIND(\"(Q\",'8D-ARCHITECTS'!F56)-2)&\" - \"&'8D-ARCHITECTS'!G57","v":"Еесли сборы/тарифы реулируются государством или профессиональными органами, каков характер такого регулирования? -  Необязательные рекомендуемые сборы/тарифы на определенные виды услуг "},{"$f":"IF(OR('8D-ARCHITECTS'!B57=\"N\",'8D-ARCHITECTS'!B57=\"I\"),\"N\",'8D-ARCHITECTS'!C57)","v":"Q8.3.8a_vi"},"If fees/prices are regulated or self-regulated, what is the nature of these regulations? - Non-binding recommended prices for some services",{"$f":"'8D-ARCHITECTS'!M57","v":{"$error":"#N/A"}},{"$f":"'8D-ARCHITECTS'!X57","v":""}]
[{"$f":"'8D-ARCHITECTS'!B58","v":"EC"},{"$f":"'8D-ARCHITECTS'!A58","v":"Q8d.4.6a_ii"},{"$f":"LEFT('8D-ARCHITECTS'!F56,FIND(\"(Q\",'8D-ARCHITECTS'!F56)-2)&\" - \"&'8D-ARCHITECTS'!G58","v":"Еесли сборы/тарифы реулируются государством или профессиональными органами, каков характер такого регулирования? -  Необязательные рекомендуемые сборы тарифы на все виды услуг "},{"$f":"IF(OR('8D-ARCHITECTS'!B58=\"N\",'8D-ARCHITECTS'!B58=\"I\"),\"N\",'8D-ARCHITECTS'!C58)","v":"Q8.3.8a_v"},"If fees/prices are regulated or self-regulated, what is the nature of these regulations? - Non-binding recommended prices for all services",{"$f":"'8D-ARCHITECTS'!M58","v":{"$error":"#N/A"}},{"$f":"'8D-ARCHITECTS'!X58","v":""}]
[{"$f":"'8D-ARCHITECTS'!B59","v":"EC"},{"$f":"'8D-ARCHITECTS'!A59","v":"Q8d.4.6a_iii"},{"$f":"LEFT('8D-ARCHITECTS'!F56,FIND(\"(Q\",'8D-ARCHITECTS'!F56)-2)&\" - \"&'8D-ARCHITECTS'!G59","v":"Еесли сборы/тарифы реулируются государством или профессиональными органами, каков характер такого регулирования? - Обязательные максимальные сборы/тарифы на определенные виды услуг "},{"$f":"IF(OR('8D-ARCHITECTS'!B59=\"N\",'8D-ARCHITECTS'!B59=\"I\"),\"N\",'8D-ARCHITECTS'!C59)","v":"Q8.3.8a_iv"},"If fees/prices are regulated or self-regulated, what is the nature of these regulations? - Binding maximum prices for some services",{"$f":"'8D-ARCHITECTS'!M59","v":{"$error":"#N/A"}},{"$f":"'8D-ARCHITECTS'!X59","v":""}]
[{"$f":"'8D-ARCHITECTS'!B60","v":"EC"},{"$f":"'8D-ARCHITECTS'!A60","v":"Q8d.4.6a_iv"},{"$f":"LEFT('8D-ARCHITECTS'!F56,FIND(\"(Q\",'8D-ARCHITECTS'!F56)-2)&\" - \"&'8D-ARCHITECTS'!G60","v":"Еесли сборы/тарифы реулируются государством или профессиональными органами, каков характер такого регулирования? - Обязательные максимальные сборы/тарифы на все виды услуг "},{"$f":"IF(OR('8D-ARCHITECTS'!B60=\"N\",'8D-ARCHITECTS'!B60=\"I\"),\"N\",'8D-ARCHITECTS'!C60)","v":"Q8.3.8a_ii"},"If fees/prices are regulated or self-regulated, what is the nature of these regulations? - Binding maximum prices for all services",{"$f":"'8D-ARCHITECTS'!M60","v":{"$error":"#N/A"}},{"$f":"'8D-ARCHITECTS'!X60","v":""}]
[{"$f":"'8D-ARCHITECTS'!B61","v":"EC"},{"$f":"'8D-ARCHITECTS'!A61","v":"Q8d.4.6a_v"},{"$f":"LEFT('8D-ARCHITECTS'!F56,FIND(\"(Q\",'8D-ARCHITECTS'!F56)-2)&\" - \"&'8D-ARCHITECTS'!G61","v":"Еесли сборы/тарифы реулируются государством или профессиональными органами, каков характер такого регулирования? - Обязательные минимальные или фиксированные сборы/тарифы на некоторые вид услуг "},{"$f":"IF(OR('8D-ARCHITECTS'!B61=\"N\",'8D-ARCHITECTS'!B61=\"I\"),\"N\",'8D-ARCHITECTS'!C61)","v":"Q8.3.8a_iii"},"If fees/prices are regulated or self-regulated, what is the nature of these regulations? - Binding minimum prices for some services",{"$f":"'8D-ARCHITECTS'!M61","v":{"$error":"#N/A"}},{"$f":"'8D-ARCHITECTS'!X61","v":""}]
[{"$f":"'8D-ARCHITECTS'!B62","v":"EC"},{"$f":"'8D-ARCHITECTS'!A62","v":"Q8d.4.6a_vi"},{"$f":"LEFT('8D-ARCHITECTS'!F56,FIND(\"(Q\",'8D-ARCHITECTS'!F56)-2)&\" - \"&'8D-ARCHITECTS'!G62","v":"Еесли сборы/тарифы реулируются государством или профессиональными органами, каков характер такого регулирования? - Обязательные минимальные или фиксированные сборы/тарифы на все виды услуг  "},{"$f":"IF(OR('8D-ARCHITECTS'!B62=\"N\",'8D-ARCHITECTS'!B62=\"I\"),\"N\",'8D-ARCHITECTS'!C62)","v":"Q8.3.8a_i"},"If fees/prices are regulated or self-regulated, what is the nature of these regulations? - Binding minimum prices for all services",{"$f":"'8D-ARCHITECTS'!M62","v":{"$error":"#N/A"}},{"$f":"'8D-ARCHITECTS'!X62","v":""}]
[{"$f":"'8D-ARCHITECTS'!B63","v":"I"},{"$f":"'8D-ARCHITECTS'!A63","v":"Q8d.4.6b"},{"$f":"LEFT('8D-ARCHITECTS'!F63,FIND(\"(Q\",'8D-ARCHITECTS'!F63)-2)","v":" Пожалуйста, предоставьте ссылку на самый последний набор регулируемых сборов или на закон /постановление, которое определяет, кто и как должен их устанавливать в колонке \"Комментарии\" "},{"$f":"IF(OR('8D-ARCHITECTS'!B63=\"N\",'8D-ARCHITECTS'!B63=\"I\"),\"N\",'8D-ARCHITECTS'!C63)","v":"N"},"N",{"$f":"'8D-ARCHITECTS'!M63","v":""},{"$f":"'8D-ARCHITECTS'!X63","v":""}]
[{"$f":"'8D-ARCHITECTS'!B64","v":"E"},{"$f":"'8D-ARCHITECTS'!A64","v":"Q8d.4.7"},{"$f":"LEFT('8D-ARCHITECTS'!E64,FIND(\"(Q\",'8D-ARCHITECTS'!E64)-2)","v":" При условии, что реклама не является ни ложной, ни вводящей в заблуждение или обманной, существуют ли  ограничения по рекламе и маркетингу данными профессионалами и/или профессиональными  (устанавливаемые законом или решением профессиональных органов или сочетанием первого и второго)?"},{"$f":"IF(OR('8D-ARCHITECTS'!B64=\"N\",'8D-ARCHITECTS'!B64=\"I\"),\"N\",'8D-ARCHITECTS'!C64)","v":"Q8.3.9_ARC"},"Are there restrictions on advertising and marketing by profesionals? - Architecture profession",{"$f":"'8D-ARCHITECTS'!M64","v":{"$error":"#N/A"}},{"$f":"'8D-ARCHITECTS'!X64","v":""}]
[{"$f":"'8D-ARCHITECTS'!B65","v":"I"},{"$f":"'8D-ARCHITECTS'!A65","v":"Q8d.4.7a"},{"$f":"LEFT('8D-ARCHITECTS'!E65,FIND(\"(Q\",'8D-ARCHITECTS'!E65)-2)","v":" Пожалуйста, предоставьте ссылку на закон/постановление, которым устанавливаются такие ограничения в колонке \"Комментарии\""},{"$f":"IF(OR('8D-ARCHITECTS'!B65=\"N\",'8D-ARCHITECTS'!B65=\"I\"),\"N\",'8D-ARCHITECTS'!C65)","v":"N"},"N",{"$f":"'8D-ARCHITECTS'!M65","v":""},{"$f":"'8D-ARCHITECTS'!X65","v":""}]
[{"$f":"'8D-ARCHITECTS'!B66","v":"EC"},{"$f":"'8D-ARCHITECTS'!A66","v":"Q8d.4.8"},{"$f":"LEFT('8D-ARCHITECTS'!E66,FIND(\"(Q\",'8D-ARCHITECTS'!E66)-2)","v":"Существуют ли ограничения по межпрофессиональному бизнес сотрудничеству между архитекторами и другими профессионалами (например, партнерства, совместные предприятия), устанавливаемые законом или решением профессионального органа  или сочетанием первого и второго?"},{"$f":"IF(OR('8D-ARCHITECTS'!B66=\"N\",'8D-ARCHITECTS'!B66=\"I\"),\"N\",'8D-ARCHITECTS'!C66)","v":"Q8.3.10_ARC"},"Are there restrictions on inter-professional co-operation (e.g. partnerships, associations, joint ventures)? - Architecture profession",{"$f":"'8D-ARCHITECTS'!M66","v":{"$error":"#N/A"}},{"$f":"'8D-ARCHITECTS'!X66","v":""}]
[{"$f":"'8D-ARCHITECTS'!B67","v":"I"},{"$f":"'8D-ARCHITECTS'!A67","v":"Q8d.4.8a"},{"$f":"LEFT('8D-ARCHITECTS'!E67,FIND(\"(Q\",'8D-ARCHITECTS'!E67)-2)","v":" Пожалуйста, предоставьте ссылку на закон/постановление, которым устанавливаются такие ограничения в колонке \"Комментарии\""},{"$f":"IF(OR('8D-ARCHITECTS'!B67=\"N\",'8D-ARCHITECTS'!B67=\"I\"),\"N\",'8D-ARCHITECTS'!C67)","v":"N"},"N",{"$f":"'8D-ARCHITECTS'!M67","v":""},{"$f":"'8D-ARCHITECTS'!X67","v":""}]
[{"$f":"'8D-ARCHITECTS'!B69","v":"N"},{"$f":"'8D-ARCHITECTS'!A69","v":"Q8d.5.1"},{"$f":"LEFT('8D-ARCHITECTS'!E69,FIND(\"(Q\",'8D-ARCHITECTS'!E69)-2)","v":"Является ли ваша страна участницей Соглашений о Взаимном Признании (СВП) архтекторов с другими странами?"},{"$f":"IF(OR('8D-ARCHITECTS'!B69=\"N\",'8D-ARCHITECTS'!B69=\"I\"),\"N\",'8D-ARCHITECTS'!C69)","v":"N"},"N",{"$f":"'8D-ARCHITECTS'!M69","v":""},{"$f":"'8D-ARCHITECTS'!X69","v":""}]
[{"$f":"'8D-ARCHITECTS'!B70","v":"I"},{"$f":"'8D-ARCHITECTS'!A70","v":"Q8d.5.1a"},{"$f":"LEFT('8D-ARCHITECTS'!E70,FIND(\"(Q\",'8D-ARCHITECTS'!E70)-2)","v":" Пожалуйста, предоставьте ссылку на, как минимум, одно СВП в колонке \"Комментарии\""},{"$f":"IF(OR('8D-ARCHITECTS'!B70=\"N\",'8D-ARCHITECTS'!B70=\"I\"),\"N\",'8D-ARCHITECTS'!C70)","v":"N"},"N",{"$f":"'8D-ARCHITECTS'!M70","v":""},{"$f":"'8D-ARCHITECTS'!X70","v":""}]
[{"$f":"'8D-ARCHITECTS'!B71","v":"N"},{"$f":"'8D-ARCHITECTS'!A71","v":"Q8d.5.2"},{"$f":"LEFT('8D-ARCHITECTS'!E71,FIND(\"(Q\",'8D-ARCHITECTS'!E71)-2)","v":"Создают ли законы/постановления понятный и прозрачный процесс признания образовательных титулов, которые были получены зарубежом для архитекторов?"},{"$f":"IF(OR('8D-ARCHITECTS'!B71=\"N\",'8D-ARCHITECTS'!B71=\"I\"),\"N\",'8D-ARCHITECTS'!C71)","v":"N"},"N",{"$f":"'8D-ARCHITECTS'!M71","v":""},{"$f":"'8D-ARCHITECTS'!X71","v":""}]
[{"$f":"'8D-ARCHITECTS'!B72","v":"N"},{"$f":"'8D-ARCHITECTS'!A72","v":"Q8d.5.3"},{"$f":"LEFT('8D-ARCHITECTS'!E72,FIND(\"(Q\",'8D-ARCHITECTS'!E72)-2)","v":"Обязаны ли зарубежные архитекторы сдать местный экзамен для того чтобы практиковать?"},{"$f":"IF(OR('8D-ARCHITECTS'!B72=\"N\",'8D-ARCHITECTS'!B72=\"I\"),\"N\",'8D-ARCHITECTS'!C72)","v":"N"},"N",{"$f":"'8D-ARCHITECTS'!M72","v":""},{"$f":"'8D-ARCHITECTS'!X72","v":""}]
[{"$f":"'8E-CIVIL ENGINEERS'!B6","v":"I"},{"$f":"'8E-CIVIL ENGINEERS'!A6","v":"Q8e.01"},{"$f":"LEFT('8E-CIVIL ENGINEERS'!E6,FIND(\"(Q\",'8E-CIVIL ENGINEERS'!E6)-2)","v":" Существует ли профессия инженера гражданского строительства в вашей стране ?"},{"$f":"IF(OR('8E-CIVIL ENGINEERS'!B6=\"N\",'8E-CIVIL ENGINEERS'!B6=\"I\"),\"N\",'8E-CIVIL ENGINEERS'!C6)","v":"N"},"N",{"$f":"'8E-CIVIL ENGINEERS'!M6","v":""},{"$f":"'8E-CIVIL ENGINEERS'!X6","v":""}]
[{"$f":"'8E-CIVIL ENGINEERS'!B7","v":"I"},{"$f":"'8E-CIVIL ENGINEERS'!A7","v":"Q8e.02"},{"$f":"LEFT('8E-CIVIL ENGINEERS'!E7,FIND(\"(Q\",'8E-CIVIL ENGINEERS'!E7)-2)","v":"Пожалуйста, укажите по какой конкретно профессии вы отвечаете на вопросы анкеты"},{"$f":"IF(OR('8E-CIVIL ENGINEERS'!B7=\"N\",'8E-CIVIL ENGINEERS'!B7=\"I\"),\"N\",'8E-CIVIL ENGINEERS'!C7)","v":"N"},"N",{"$f":"'8E-CIVIL ENGINEERS'!M7","v":""},{"$f":"'8E-CIVIL ENGINEERS'!X7","v":""}]
[{"$f":"'8E-CIVIL ENGINEERS'!B8","v":"I"},{"$f":"'8E-CIVIL ENGINEERS'!A8","v":"Q8e.03"},{"$f":"LEFT('8E-CIVIL ENGINEERS'!E8,FIND(\"(Q\",'8E-CIVIL ENGINEERS'!E8)-2)","v":"Для какой юрисдикции вы отвечаете на вопрос?"},{"$f":"IF(OR('8E-CIVIL ENGINEERS'!B8=\"N\",'8E-CIVIL ENGINEERS'!B8=\"I\"),\"N\",'8E-CIVIL ENGINEERS'!C8)","v":"N"},"N",{"$f":"'8E-CIVIL ENGINEERS'!M8","v":""},{"$f":"'8E-CIVIL ENGINEERS'!X8","v":""}]
[{"$f":"'8E-CIVIL ENGINEERS'!B11","v":"E"},{"$f":"'8E-CIVIL ENGINEERS'!A11","v":"Q8e.1.1_1"},{"$f":"LEFT('8E-CIVIL ENGINEERS'!E10,FIND(\"(Q\",'8E-CIVIL ENGINEERS'!E10)-2)&\" - \"&'8E-CIVIL ENGINEERS'!F11","v":"Имеют ли инженеры гражданского строительства эксклюзивные или совместные эксклюзивные права заниматься видами деятельности, перечисленными ниже? - Технико-экономические обоснования "},{"$f":"IF(OR('8E-CIVIL ENGINEERS'!B11=\"N\",'8E-CIVIL ENGINEERS'!B11=\"I\"),\"N\",'8E-CIVIL ENGINEERS'!C11)","v":"Q8.1.3_1"},"Does the engineering profession have an exclusive or shared exclusive right to provide the task? - Feasibility studies",{"$f":"'8E-CIVIL ENGINEERS'!M11","v":{"$error":"#N/A"}},{"$f":"'8E-CIVIL ENGINEERS'!X11","v":""}]
[{"$f":"'8E-CIVIL ENGINEERS'!B12","v":"E"},{"$f":"'8E-CIVIL ENGINEERS'!A12","v":"Q8e.1.1_2"},{"$f":"LEFT('8E-CIVIL ENGINEERS'!E10,FIND(\"(Q\",'8E-CIVIL ENGINEERS'!E10)-2)&\" - \"&'8E-CIVIL ENGINEERS'!F12","v":"Имеют ли инженеры гражданского строительства эксклюзивные или совместные эксклюзивные права заниматься видами деятельности, перечисленными ниже? - Экологические оценки "},{"$f":"IF(OR('8E-CIVIL ENGINEERS'!B12=\"N\",'8E-CIVIL ENGINEERS'!B12=\"I\"),\"N\",'8E-CIVIL ENGINEERS'!C12)","v":"Q8.1.3_2"},"Does the engineering profession have an exclusive or shared exclusive right to provide the task? - Environmental assessments",{"$f":"'8E-CIVIL ENGINEERS'!M12","v":{"$error":"#N/A"}},{"$f":"'8E-CIVIL ENGINEERS'!X12","v":""}]
[{"$f":"'8E-CIVIL ENGINEERS'!B13","v":"E"},{"$f":"'8E-CIVIL ENGINEERS'!A13","v":"Q8e.1.1_3"},{"$f":"LEFT('8E-CIVIL ENGINEERS'!E10,FIND(\"(Q\",'8E-CIVIL ENGINEERS'!E10)-2)&\" - \"&'8E-CIVIL ENGINEERS'!F13","v":"Имеют ли инженеры гражданского строительства эксклюзивные или совместные эксклюзивные права заниматься видами деятельности, перечисленными ниже? - Планирование и проектирование "},{"$f":"IF(OR('8E-CIVIL ENGINEERS'!B13=\"N\",'8E-CIVIL ENGINEERS'!B13=\"I\"),\"N\",'8E-CIVIL ENGINEERS'!C13)","v":"Q8.1.3_3"},"Does the engineering profession have an exclusive or shared exclusive right to provide the task? - Design and planning",{"$f":"'8E-CIVIL ENGINEERS'!M13","v":{"$error":"#N/A"}},{"$f":"'8E-CIVIL ENGINEERS'!X13","v":""}]
[{"$f":"'8E-CIVIL ENGINEERS'!B14","v":"E"},{"$f":"'8E-CIVIL ENGINEERS'!A14","v":"Q8e.1.1_4"},{"$f":"LEFT('8E-CIVIL ENGINEERS'!E10,FIND(\"(Q\",'8E-CIVIL ENGINEERS'!E10)-2)&\" - \"&'8E-CIVIL ENGINEERS'!F14","v":"Имеют ли инженеры гражданского строительства эксклюзивные или совместные эксклюзивные права заниматься видами деятельности, перечисленными ниже? -  Представительство для получения  разрешений (подписание проектов) "},{"$f":"IF(OR('8E-CIVIL ENGINEERS'!B14=\"N\",'8E-CIVIL ENGINEERS'!B14=\"I\"),\"N\",'8E-CIVIL ENGINEERS'!C14)","v":"Q8.1.3_4"},"Does the engineering profession have an exclusive or shared exclusive right to provide the task? - Representation for obtaining permits (signature of designs)",{"$f":"'8E-CIVIL ENGINEERS'!M14","v":{"$error":"#N/A"}},{"$f":"'8E-CIVIL ENGINEERS'!X14","v":""}]
[{"$f":"'8E-CIVIL ENGINEERS'!B15","v":"E"},{"$f":"'8E-CIVIL ENGINEERS'!A15","v":"Q8e.1.1_5"},{"$f":"LEFT('8E-CIVIL ENGINEERS'!E10,FIND(\"(Q\",'8E-CIVIL ENGINEERS'!E10)-2)&\" - \"&'8E-CIVIL ENGINEERS'!F15","v":"Имеют ли инженеры гражданского строительства эксклюзивные или совместные эксклюзивные права заниматься видами деятельности, перечисленными ниже? - Администрация тендерных предложений и договоров "},{"$f":"IF(OR('8E-CIVIL ENGINEERS'!B15=\"N\",'8E-CIVIL ENGINEERS'!B15=\"I\"),\"N\",'8E-CIVIL ENGINEERS'!C15)","v":"Q8.1.3_5"},"Does the engineering profession have an exclusive or shared exclusive right to provide the task? - Tender and contract administration",{"$f":"'8E-CIVIL ENGINEERS'!M15","v":{"$error":"#N/A"}},{"$f":"'8E-CIVIL ENGINEERS'!X15","v":""}]
[{"$f":"'8E-CIVIL ENGINEERS'!B16","v":"E"},{"$f":"'8E-CIVIL ENGINEERS'!A16","v":"Q8e.1.1_6"},{"$f":"LEFT('8E-CIVIL ENGINEERS'!E10,FIND(\"(Q\",'8E-CIVIL ENGINEERS'!E10)-2)&\" - \"&'8E-CIVIL ENGINEERS'!F16","v":"Имеют ли инженеры гражданского строительства эксклюзивные или совместные эксклюзивные права заниматься видами деятельности, перечисленными ниже? - Дача экспертных показаний (например, в суде) "},{"$f":"IF(OR('8E-CIVIL ENGINEERS'!B16=\"N\",'8E-CIVIL ENGINEERS'!B16=\"I\"),\"N\",'8E-CIVIL ENGINEERS'!C16)","v":"Q8.1.3_10"},"Does the engineering profession have an exclusive or shared exclusive right to provide the task? - Expert witness activities",{"$f":"'8E-CIVIL ENGINEERS'!M16","v":{"$error":"#N/A"}},{"$f":"'8E-CIVIL ENGINEERS'!X16","v":""}]
[{"$f":"'8E-CIVIL ENGINEERS'!B17","v":"N"},{"$f":"'8E-CIVIL ENGINEERS'!A17","v":"Q8e.1.1_7"},{"$f":"LEFT('8E-CIVIL ENGINEERS'!E10,FIND(\"(Q\",'8E-CIVIL ENGINEERS'!E10)-2)&\" - \"&'8E-CIVIL ENGINEERS'!F17","v":"Имеют ли инженеры гражданского строительства эксклюзивные или совместные эксклюзивные права заниматься видами деятельности, перечисленными ниже? - Подготовка/подача/подписание документов технического контроля и технического соответствия или заверение проекта и соблюдение законодательства в области строительства/стандартов исполнения, качества, затрат и безопасности  "},{"$f":"IF(OR('8E-CIVIL ENGINEERS'!B17=\"N\",'8E-CIVIL ENGINEERS'!B17=\"I\"),\"N\",'8E-CIVIL ENGINEERS'!C17)","v":"N"},"N",{"$f":"'8E-CIVIL ENGINEERS'!M17","v":""},{"$f":"'8E-CIVIL ENGINEERS'!X17","v":""}]
[{"$f":"'8E-CIVIL ENGINEERS'!B18","v":"N"},{"$f":"'8E-CIVIL ENGINEERS'!A18","v":"Q8e.1.1_8"},{"$f":"LEFT('8E-CIVIL ENGINEERS'!E10,FIND(\"(Q\",'8E-CIVIL ENGINEERS'!E10)-2)&\" - \"&'8E-CIVIL ENGINEERS'!F18","v":"Имеют ли инженеры гражданского строительства эксклюзивные или совместные эксклюзивные права заниматься видами деятельности, перечисленными ниже? - Управление и надзор за проведением строительных работ, включая надзор за работой специалистов "},{"$f":"IF(OR('8E-CIVIL ENGINEERS'!B18=\"N\",'8E-CIVIL ENGINEERS'!B18=\"I\"),\"N\",'8E-CIVIL ENGINEERS'!C18)","v":"N"},"N",{"$f":"'8E-CIVIL ENGINEERS'!M18","v":""},{"$f":"'8E-CIVIL ENGINEERS'!X18","v":""}]
[{"$f":"'8E-CIVIL ENGINEERS'!B19","v":"E"},{"$f":"'8E-CIVIL ENGINEERS'!A19","v":"Q8e.1.1_9"},{"$f":"LEFT('8E-CIVIL ENGINEERS'!E10,FIND(\"(Q\",'8E-CIVIL ENGINEERS'!E10)-2)&\" - \"&'8E-CIVIL ENGINEERS'!F19","v":"Имеют ли инженеры гражданского строительства эксклюзивные или совместные эксклюзивные права заниматься видами деятельности, перечисленными ниже? - Управление строительными затратами "},{"$f":"IF(OR('8E-CIVIL ENGINEERS'!B19=\"N\",'8E-CIVIL ENGINEERS'!B19=\"I\"),\"N\",'8E-CIVIL ENGINEERS'!C19)","v":"Q8.1.3_7"},"Does the engineering profession have an exclusive or shared exclusive right to provide the task? - Construction cost management",{"$f":"'8E-CIVIL ENGINEERS'!M19","v":{"$error":"#N/A"}},{"$f":"'8E-CIVIL ENGINEERS'!X19","v":""}]
[{"$f":"'8E-CIVIL ENGINEERS'!B20","v":"N"},{"$f":"'8E-CIVIL ENGINEERS'!A20","v":"Q8e.1.1_10"},{"$f":"LEFT('8E-CIVIL ENGINEERS'!E10,FIND(\"(Q\",'8E-CIVIL ENGINEERS'!E10)-2)&\" - \"&'8E-CIVIL ENGINEERS'!F20","v":"Имеют ли инженеры гражданского строительства эксклюзивные или совместные эксклюзивные права заниматься видами деятельности, перечисленными ниже? - Топография, демаркация и топографические съемки  "},{"$f":"IF(OR('8E-CIVIL ENGINEERS'!B20=\"N\",'8E-CIVIL ENGINEERS'!B20=\"I\"),\"N\",'8E-CIVIL ENGINEERS'!C20)","v":"N"},"N",{"$f":"'8E-CIVIL ENGINEERS'!M20","v":""},{"$f":"'8E-CIVIL ENGINEERS'!X20","v":""}]
[{"$f":"'8E-CIVIL ENGINEERS'!B21","v":"N"},{"$f":"'8E-CIVIL ENGINEERS'!A21","v":"Q8e.1.1_11"},{"$f":"LEFT('8E-CIVIL ENGINEERS'!E10,FIND(\"(Q\",'8E-CIVIL ENGINEERS'!E10)-2)&\" - \"&'8E-CIVIL ENGINEERS'!F21","v":"Имеют ли инженеры гражданского строительства эксклюзивные или совместные эксклюзивные права заниматься видами деятельности, перечисленными ниже? -  Прочее (Пожалуйста, перечислите любые виды деятельности, на которые инженеры гражданского строительства могут иметь эксклюзивные или совместные эксклюзивные права, в случае с совместным правом на занятие деятельностью , укажите с какими профессиями в колонке \"Комментарии\")"},{"$f":"IF(OR('8E-CIVIL ENGINEERS'!B21=\"N\",'8E-CIVIL ENGINEERS'!B21=\"I\"),\"N\",'8E-CIVIL ENGINEERS'!C21)","v":"N"},"N",{"$f":"'8E-CIVIL ENGINEERS'!M21","v":""},{"$f":"'8E-CIVIL ENGINEERS'!X21","v":""}]
[{"$f":"'8E-CIVIL ENGINEERS'!B22","v":"I"},{"$f":"'8E-CIVIL ENGINEERS'!A22","v":"Q8d.1.1a"},{"$f":"LEFT('8E-CIVIL ENGINEERS'!E22,FIND(\"(Q\",'8E-CIVIL ENGINEERS'!E22)-2)","v":" Пожалуйста, предоставьте ссылку на закон/постановление, которое устанавливает виды деятельности зарезервированные за данной профессией "},{"$f":"IF(OR('8E-CIVIL ENGINEERS'!B22=\"N\",'8E-CIVIL ENGINEERS'!B22=\"I\"),\"N\",'8E-CIVIL ENGINEERS'!C22)","v":"N"},"N",{"$f":"'8E-CIVIL ENGINEERS'!M22","v":""},{"$f":"'8E-CIVIL ENGINEERS'!X22","v":""}]
[{"$f":"'8E-CIVIL ENGINEERS'!B23","v":"N"},{"$f":"'8E-CIVIL ENGINEERS'!A23","v":"Q8e.1.2"},{"$f":"LEFT('8E-CIVIL ENGINEERS'!E23,FIND(\"(Q\",'8E-CIVIL ENGINEERS'!E23)-2)","v":"Защищен ли законом профессиональный титул инженера гражданского строительства?"},{"$f":"IF(OR('8E-CIVIL ENGINEERS'!B23=\"N\",'8E-CIVIL ENGINEERS'!B23=\"I\"),\"N\",'8E-CIVIL ENGINEERS'!C23)","v":"N"},"N",{"$f":"'8E-CIVIL ENGINEERS'!M23","v":""},{"$f":"'8E-CIVIL ENGINEERS'!X23","v":""}]
[{"$f":"'8E-CIVIL ENGINEERS'!B24","v":"I"},{"$f":"'8E-CIVIL ENGINEERS'!A24","v":"Q8e.1.2a"},{"$f":"LEFT('8E-CIVIL ENGINEERS'!E24,FIND(\"(Q\",'8E-CIVIL ENGINEERS'!E24)-2)","v":" Пожалуйста, предоставьте ссылку на закон/постановление, которым устанавливается такая защита в колонке \"Комментарии\" "},{"$f":"IF(OR('8E-CIVIL ENGINEERS'!B24=\"N\",'8E-CIVIL ENGINEERS'!B24=\"I\"),\"N\",'8E-CIVIL ENGINEERS'!C24)","v":"N"},"N",{"$f":"'8E-CIVIL ENGINEERS'!M24","v":""},{"$f":"'8E-CIVIL ENGINEERS'!X24","v":""}]
[{"$f":"'8E-CIVIL ENGINEERS'!B25","v":"SPL"},{"$f":"'8E-CIVIL ENGINEERS'!A25","v":"Q8e.1.3"},{"$f":"LEFT('8E-CIVIL ENGINEERS'!E25,FIND(\"(Q\",'8E-CIVIL ENGINEERS'!E25)-2)","v":" как регулируется доступ к данной профессии?"},{"$f":"IF(OR('8E-CIVIL ENGINEERS'!B25=\"N\",'8E-CIVIL ENGINEERS'!B25=\"I\"),\"N\",'8E-CIVIL ENGINEERS'!C25)","v":"Q8.2.1_ENG"},"How is access to the profession regulated? - Engineering profession",{"$f":"'8E-CIVIL ENGINEERS'!M25","v":{"$error":"#N/A"}},{"$f":"'8E-CIVIL ENGINEERS'!X25","v":""}]
[{"$f":"'8E-CIVIL ENGINEERS'!B27","v":"N"},{"$f":"'8E-CIVIL ENGINEERS'!A27","v":"Q8e.2.1"},{"$f":"LEFT('8E-CIVIL ENGINEERS'!E27,FIND(\"(Q\",'8E-CIVIL ENGINEERS'!E27)-2)","v":"Лимитируется ли количество инженеров гражданского строительства, которым разрешено работать в вашей стране, законом или решением профессионального органа (или комбинацией первого и второго)?"},{"$f":"IF(OR('8E-CIVIL ENGINEERS'!B27=\"N\",'8E-CIVIL ENGINEERS'!B27=\"I\"),\"N\",'8E-CIVIL ENGINEERS'!C27)","v":"N"},"N",{"$f":"'8E-CIVIL ENGINEERS'!M27","v":""},{"$f":"'8E-CIVIL ENGINEERS'!X27","v":""}]
[{"$f":"'8E-CIVIL ENGINEERS'!B28","v":"I"},{"$f":"'8E-CIVIL ENGINEERS'!A28","v":"Q8e.2.1a"},{"$f":"LEFT('8E-CIVIL ENGINEERS'!E28,FIND(\"(Q\",'8E-CIVIL ENGINEERS'!E28)-2)","v":"Пожалуйста, предоставьте ссылку на закон/постановление, которым устанавливается такое ограничение в колонке \"Комментарии\""},{"$f":"IF(OR('8E-CIVIL ENGINEERS'!B28=\"N\",'8E-CIVIL ENGINEERS'!B28=\"I\"),\"N\",'8E-CIVIL ENGINEERS'!C28)","v":"N"},"N",{"$f":"'8E-CIVIL ENGINEERS'!M28","v":""},{"$f":"'8E-CIVIL ENGINEERS'!X28","v":""}]
[{"$f":"'8E-CIVIL ENGINEERS'!B29","v":"N"},{"$f":"'8E-CIVIL ENGINEERS'!A29","v":"Q8e.2.2"},{"$f":"LEFT('8E-CIVIL ENGINEERS'!E29,FIND(\"(Q\",'8E-CIVIL ENGINEERS'!E29)-2)","v":"Существуют ли территориальные ограничения по возможности  инженеров гражданского строительства  работать в вашей юрисдикции, которые устанавливаются законом или решением профессиональной организации (или комбинацией первого и второго)?"},{"$f":"IF(OR('8E-CIVIL ENGINEERS'!B29=\"N\",'8E-CIVIL ENGINEERS'!B29=\"I\"),\"N\",'8E-CIVIL ENGINEERS'!C29)","v":"N"},"N",{"$f":"'8E-CIVIL ENGINEERS'!M29","v":""},{"$f":"'8E-CIVIL ENGINEERS'!X29","v":""}]
[{"$f":"'8E-CIVIL ENGINEERS'!B30","v":"I"},{"$f":"'8E-CIVIL ENGINEERS'!A30","v":"Q8e.2.2a"},{"$f":"LEFT('8E-CIVIL ENGINEERS'!E30,FIND(\"(Q\",'8E-CIVIL ENGINEERS'!E30)-2)","v":"Пожалуйста, предоставьте ссылку на закон/постановление, которым устанавливается такое ограничение в колонке \"Комментарии\""},{"$f":"IF(OR('8E-CIVIL ENGINEERS'!B30=\"N\",'8E-CIVIL ENGINEERS'!B30=\"I\"),\"N\",'8E-CIVIL ENGINEERS'!C30)","v":"N"},"N",{"$f":"'8E-CIVIL ENGINEERS'!M30","v":""},{"$f":"'8E-CIVIL ENGINEERS'!X30","v":""}]
[{"$f":"'8E-CIVIL ENGINEERS'!B32","v":"N"},{"$f":"'8E-CIVIL ENGINEERS'!A32","v":"Q8e.3.1"},{"$f":"LEFT('8E-CIVIL ENGINEERS'!E32,FIND(\"(Q\",'8E-CIVIL ENGINEERS'!E32)-2)","v":"Сколько существует маршрутов для получения квалификации, для того чтобы на законных основаниях заниматься профессиональной деятельностью?"},{"$f":"IF(OR('8E-CIVIL ENGINEERS'!B32=\"N\",'8E-CIVIL ENGINEERS'!B32=\"I\"),\"N\",'8E-CIVIL ENGINEERS'!C32)","v":"N"},"N",{"$f":"'8E-CIVIL ENGINEERS'!M32","v":""},{"$f":"'8E-CIVIL ENGINEERS'!X32","v":""}]
[{"$f":"'8E-CIVIL ENGINEERS'!B33","v":"I"},{"$f":"'8E-CIVIL ENGINEERS'!A33","v":"Q8e.3.1a"},{"$f":"LEFT('8E-CIVIL ENGINEERS'!E33,FIND(\"(Q\",'8E-CIVIL ENGINEERS'!E33)-2)","v":" Пожалуйста, предоставьте детальную информацию по количеству альтернативных маршрутов доступа к профессии и информацию об их основных требованиях, или ссылку на вебсайт, в котором описаны эти разные маршруты в колонке \"Комментарии\""},{"$f":"IF(OR('8E-CIVIL ENGINEERS'!B33=\"N\",'8E-CIVIL ENGINEERS'!B33=\"I\"),\"N\",'8E-CIVIL ENGINEERS'!C33)","v":"N"},"N",{"$f":"'8E-CIVIL ENGINEERS'!M33","v":""},{"$f":"'8E-CIVIL ENGINEERS'!X33","v":""}]
[{"$f":"'8E-CIVIL ENGINEERS'!B35","v":"E"},{"$f":"'8E-CIVIL ENGINEERS'!A35","v":"Q8e.3.2"},{"$f":"LEFT('8E-CIVIL ENGINEERS'!E35,FIND(\"(Q\",'8E-CIVIL ENGINEERS'!E35)-2)","v":"Требуется ли  диплом о высшем образовании или курс профессионального обучения для того чтобы на законных основаниях  и получить  заниматься  профессиональной деятельностью  или получить  профессиональный титул , в тех случаях, когда он защищен законом  (уставлено ли это требование законом или решением профессионального органа,  или сочетанием первого и второго)?"},{"$f":"IF(OR('8E-CIVIL ENGINEERS'!B35=\"N\",'8E-CIVIL ENGINEERS'!B35=\"I\"),\"N\",'8E-CIVIL ENGINEERS'!C35)","v":"Q8.2.4a"},"Entry requirements in the engineering profession - Is a university degree required to enter the profession?",{"$f":"'8E-CIVIL ENGINEERS'!M35","v":{"$error":"#N/A"}},{"$f":"'8E-CIVIL ENGINEERS'!X35","v":""}]
[{"$f":"'8E-CIVIL ENGINEERS'!B36","v":"E"},{"$f":"'8E-CIVIL ENGINEERS'!A36","v":"Q8e.3.2a"},{"$f":"LEFT('8E-CIVIL ENGINEERS'!F36,FIND(\"(Q\",'8E-CIVIL ENGINEERS'!F36)-2)","v":" Если требуется диплом университета или  прохождение курса профессионального обучения,  какова продолжительность обучения?"},{"$f":"IF(OR('8E-CIVIL ENGINEERS'!B36=\"N\",'8E-CIVIL ENGINEERS'!B36=\"I\"),\"N\",'8E-CIVIL ENGINEERS'!C36)","v":"Q8.2.4b"},"Entry requirements in the engineering profession - If a university degree is required, how many years duration?",{"$f":"'8E-CIVIL ENGINEERS'!M36","v":{"$error":"#N/A"}},{"$f":"'8E-CIVIL ENGINEERS'!X36","v":""}]
[{"$f":"'8E-CIVIL ENGINEERS'!B37","v":"E"},{"$f":"'8E-CIVIL ENGINEERS'!A37","v":"Q8e.3.3"},{"$f":"LEFT('8E-CIVIL ENGINEERS'!E37,FIND(\"(Q\",'8E-CIVIL ENGINEERS'!E37)-2)","v":" Требуется ли дополнительное образование для того чтобы на законных основаниях заниматься профессиональной деятельностью или для получения профессионального титула, когда титул защищен законом (установлено ли такое требование законом или решением профессионального органа, или сочетанием первого и второго)?"},{"$f":"IF(OR('8E-CIVIL ENGINEERS'!B37=\"N\",'8E-CIVIL ENGINEERS'!B37=\"I\"),\"N\",'8E-CIVIL ENGINEERS'!C37)","v":"Q8.2.4c"},"Entry requirements in the engineering profession - Is there any other higher education required to enter the profession?",{"$f":"'8E-CIVIL ENGINEERS'!M37","v":{"$error":"#N/A"}},{"$f":"'8E-CIVIL ENGINEERS'!X37","v":""}]
[{"$f":"'8E-CIVIL ENGINEERS'!B38","v":"E"},{"$f":"'8E-CIVIL ENGINEERS'!A38","v":"Q8e.3.3a"},{"$f":"LEFT('8E-CIVIL ENGINEERS'!F38,FIND(\"(Q\",'8E-CIVIL ENGINEERS'!F38)-2)","v":" Если требуется дополнительное образование, какова его продолжительность?"},{"$f":"IF(OR('8E-CIVIL ENGINEERS'!B38=\"N\",'8E-CIVIL ENGINEERS'!B38=\"I\"),\"N\",'8E-CIVIL ENGINEERS'!C38)","v":"Q8.2.4d"},"Entry requirements in the engineering profession - If any other higher education is required, how many years duration?",{"$f":"'8E-CIVIL ENGINEERS'!M38","v":{"$error":"#N/A"}},{"$f":"'8E-CIVIL ENGINEERS'!X38","v":""}]
[{"$f":"'8E-CIVIL ENGINEERS'!B39","v":"E"},{"$f":"'8E-CIVIL ENGINEERS'!A39","v":"Q8e.3.4"},{"$f":"LEFT('8E-CIVIL ENGINEERS'!E39,FIND(\"(Q\",'8E-CIVIL ENGINEERS'!E39)-2)","v":"Требуется ли соответствующая обязательная практика для того чтобы на законных основаниях заниматься профессиональной деятельностью или для получения профессионального титула, в случаях, когда такой титул защищается законом (устанавливается ли такое требование законом или решением профессионального органа  или сочетанием первого и второго)?"},{"$f":"IF(OR('8E-CIVIL ENGINEERS'!B39=\"N\",'8E-CIVIL ENGINEERS'!B39=\"I\"),\"N\",'8E-CIVIL ENGINEERS'!C39)","v":"Q8.2.4e"},"Entry requirements in the engineering profession - Is relevant compulsory practice required to become a full member of the profession?",{"$f":"'8E-CIVIL ENGINEERS'!M39","v":{"$error":"#N/A"}},{"$f":"'8E-CIVIL ENGINEERS'!X39","v":""}]
[{"$f":"'8E-CIVIL ENGINEERS'!B40","v":"E"},{"$f":"'8E-CIVIL ENGINEERS'!A40","v":"Q8e.3.4a"},{"$f":"LEFT('8E-CIVIL ENGINEERS'!F40,FIND(\"(Q\",'8E-CIVIL ENGINEERS'!F40)-2)","v":"Если требуется соответствующая обязательная практика, какова ее продолжительность?"},{"$f":"IF(OR('8E-CIVIL ENGINEERS'!B40=\"N\",'8E-CIVIL ENGINEERS'!B40=\"I\"),\"N\",'8E-CIVIL ENGINEERS'!C40)","v":"Q8.2.4f"},"Entry requirements in the engineering profession - If relevant compulsory practice is required, how many years duration?",{"$f":"'8E-CIVIL ENGINEERS'!M40","v":{"$error":"#N/A"}},{"$f":"'8E-CIVIL ENGINEERS'!X40","v":""}]
[{"$f":"'8E-CIVIL ENGINEERS'!B41","v":"E"},{"$f":"'8E-CIVIL ENGINEERS'!A41","v":"Q8e.3.5"},{"$f":"LEFT('8E-CIVIL ENGINEERS'!E41,FIND(\"(Q\",'8E-CIVIL ENGINEERS'!E41)-2)","v":"Существует ли требование сдать один или несколько профессиональных экзаменов для того чтобы на законных основаниях заниматься профессиональной деятельностью или для получения профессионального титула, в случаях, когда титул защищен законом?"},{"$f":"IF(OR('8E-CIVIL ENGINEERS'!B41=\"N\",'8E-CIVIL ENGINEERS'!B41=\"I\"),\"N\",'8E-CIVIL ENGINEERS'!C41)","v":"Q8.2.4g"},"Entry requirements in the engineering profession - Is there a requirement to pass one or more professional examinations to become a full member of the profession?",{"$f":"'8E-CIVIL ENGINEERS'!M41","v":{"$error":"#N/A"}},{"$f":"'8E-CIVIL ENGINEERS'!X41","v":""}]
[{"$f":"'8E-CIVIL ENGINEERS'!B42","v":"N"},{"$f":"'8E-CIVIL ENGINEERS'!A42","v":"Q8e.3.5a"},{"$f":"LEFT('8E-CIVIL ENGINEERS'!F42,FIND(\"(Q\",'8E-CIVIL ENGINEERS'!F42)-2)","v":" Если вы ответили \"да\" на вопрос выше, кто администрирует этот профессиональный экзамен?"},{"$f":"IF(OR('8E-CIVIL ENGINEERS'!B42=\"N\",'8E-CIVIL ENGINEERS'!B42=\"I\"),\"N\",'8E-CIVIL ENGINEERS'!C42)","v":"N"},"N",{"$f":"'8E-CIVIL ENGINEERS'!M42","v":""},{"$f":"'8E-CIVIL ENGINEERS'!X42","v":""}]
[{"$f":"'8E-CIVIL ENGINEERS'!B43","v":"E"},{"$f":"'8E-CIVIL ENGINEERS'!A43","v":"Q8e.3.6"},{"$f":"LEFT('8E-CIVIL ENGINEERS'!E43,FIND(\"(Q\",'8E-CIVIL ENGINEERS'!E43)-2)","v":"Обязательно ли для индивидуального профессионала состоять в профессиональной организации для того чтобы  заниматься профессиональной деятельностью на законном основании, в случаях, когда  это установлено законом?"},{"$f":"IF(OR('8E-CIVIL ENGINEERS'!B43=\"N\",'8E-CIVIL ENGINEERS'!B43=\"I\"),\"N\",'8E-CIVIL ENGINEERS'!C43)","v":"Q8.2.4h"},"Entry requirements in the engineering profession - Is membership in a professional organisation compulsory in order to legally practice?",{"$f":"'8E-CIVIL ENGINEERS'!M43","v":{"$error":"#N/A"}},{"$f":"'8E-CIVIL ENGINEERS'!X43","v":""}]
[{"$f":"'8E-CIVIL ENGINEERS'!B44","v":"I"},{"$f":"'8E-CIVIL ENGINEERS'!A44","v":"Q8e.3.6a"},{"$f":"LEFT('8E-CIVIL ENGINEERS'!E44,FIND(\"(Q\",'8E-CIVIL ENGINEERS'!E44)-2)","v":" Пожалуйста, предоставьте ссылку на закон/постановление, которым устанавливается такая обязанность  колонке \"Комментарии\""},{"$f":"IF(OR('8E-CIVIL ENGINEERS'!B44=\"N\",'8E-CIVIL ENGINEERS'!B44=\"I\"),\"N\",'8E-CIVIL ENGINEERS'!C44)","v":"N"},"N",{"$f":"'8E-CIVIL ENGINEERS'!M44","v":""},{"$f":"'8E-CIVIL ENGINEERS'!X44","v":""}]
[{"$f":"'8E-CIVIL ENGINEERS'!B46","v":"E"},{"$f":"'8E-CIVIL ENGINEERS'!A46","v":"Q8e.4.1"},{"$f":"LEFT('8E-CIVIL ENGINEERS'!E46,FIND(\"(Q\",'8E-CIVIL ENGINEERS'!E46)-2)","v":"Существуют ли ограничения по правовой форме бизнеса (устанавливаются ли такие ограничения законом или решением профессионального органа или сочетанием первого и второго)?"},{"$f":"IF(OR('8E-CIVIL ENGINEERS'!B46=\"N\",'8E-CIVIL ENGINEERS'!B46=\"I\"),\"N\",'8E-CIVIL ENGINEERS'!C46)","v":"Q8.3.3"},"Is the legal form of business restricted in the engineering profession?",{"$f":"'8E-CIVIL ENGINEERS'!M46","v":{"$error":"#N/A"}},{"$f":"'8E-CIVIL ENGINEERS'!X46","v":""}]
[{"$f":"'8E-CIVIL ENGINEERS'!B47","v":"I"},{"$f":"'8E-CIVIL ENGINEERS'!A47","v":"Q8e.4.1a"},{"$f":"LEFT('8E-CIVIL ENGINEERS'!E47,FIND(\"(Q\",'8E-CIVIL ENGINEERS'!E47)-2)","v":" Пожалуйста, предоставьте ссылку на закон/постановление, которым устанавливается такая обязанность в колонке \"Комментарии\" "},{"$f":"IF(OR('8E-CIVIL ENGINEERS'!B47=\"N\",'8E-CIVIL ENGINEERS'!B47=\"I\"),\"N\",'8E-CIVIL ENGINEERS'!C47)","v":"N"},"N",{"$f":"'8E-CIVIL ENGINEERS'!M47","v":""},{"$f":"'8E-CIVIL ENGINEERS'!X47","v":""}]
[{"$f":"'8E-CIVIL ENGINEERS'!B48","v":"N"},{"$f":"'8E-CIVIL ENGINEERS'!A48","v":"Q8e.4.2"},{"$f":"LEFT('8E-CIVIL ENGINEERS'!E48,FIND(\"(Q\",'8E-CIVIL ENGINEERS'!E48)-2)","v":" Могут ли неинженеры гражданского строительства иметь долю в капитале инженерно-строительной компании?"},{"$f":"IF(OR('8E-CIVIL ENGINEERS'!B48=\"N\",'8E-CIVIL ENGINEERS'!B48=\"I\"),\"N\",'8E-CIVIL ENGINEERS'!C48)","v":"N"},"N",{"$f":"'8E-CIVIL ENGINEERS'!M48","v":""},{"$f":"'8E-CIVIL ENGINEERS'!X48","v":""}]
[{"$f":"'8E-CIVIL ENGINEERS'!B49","v":"N"},{"$f":"'8E-CIVIL ENGINEERS'!A49","v":"Q8e.4.3"},{"$f":"LEFT('8E-CIVIL ENGINEERS'!E49,FIND(\"(Q\",'8E-CIVIL ENGINEERS'!E49)-2)","v":" Существуют ли ограничения о том, какие компании могут иметь долю в капитале инженерно-строительной  компании (устанавливаемые законом или решением профессионального органа или сочетанием первого и второго)?"},{"$f":"IF(OR('8E-CIVIL ENGINEERS'!B49=\"N\",'8E-CIVIL ENGINEERS'!B49=\"I\"),\"N\",'8E-CIVIL ENGINEERS'!C49)","v":"N"},"N",{"$f":"'8E-CIVIL ENGINEERS'!M49","v":""},{"$f":"'8E-CIVIL ENGINEERS'!X49","v":""}]
[{"$f":"'8E-CIVIL ENGINEERS'!B50","v":"I"},{"$f":"'8E-CIVIL ENGINEERS'!A50","v":"Q8e.4.3a"},{"$f":"LEFT('8E-CIVIL ENGINEERS'!E50,FIND(\"(Q\",'8E-CIVIL ENGINEERS'!E50)-2)","v":" Пожалуйста, предоставьте ссылку на закон/постановление, которым устанавливаются такие ограничения на долю  собственности в капитале  в колонке \"Комментарии\" "},{"$f":"IF(OR('8E-CIVIL ENGINEERS'!B50=\"N\",'8E-CIVIL ENGINEERS'!B50=\"I\"),\"N\",'8E-CIVIL ENGINEERS'!C50)","v":"N"},"N",{"$f":"'8E-CIVIL ENGINEERS'!M50","v":""},{"$f":"'8E-CIVIL ENGINEERS'!X50","v":""}]
[{"$f":"'8E-CIVIL ENGINEERS'!B51","v":"N"},{"$f":"'8E-CIVIL ENGINEERS'!A51","v":"Q8e.4.4"},{"$f":"LEFT('8E-CIVIL ENGINEERS'!E51,FIND(\"(Q\",'8E-CIVIL ENGINEERS'!E51)-2)","v":"  Могут ли не инженеры гражданского строительства иметь голосующие права в инженерно-строительной компании?"},{"$f":"IF(OR('8E-CIVIL ENGINEERS'!B51=\"N\",'8E-CIVIL ENGINEERS'!B51=\"I\"),\"N\",'8E-CIVIL ENGINEERS'!C51)","v":"N"},"N",{"$f":"'8E-CIVIL ENGINEERS'!M51","v":""},{"$f":"'8E-CIVIL ENGINEERS'!X51","v":""}]
[{"$f":"'8E-CIVIL ENGINEERS'!B52","v":"N"},{"$f":"'8E-CIVIL ENGINEERS'!A52","v":"Q8e.4.5"},{"$f":"LEFT('8E-CIVIL ENGINEERS'!E52,FIND(\"(Q\",'8E-CIVIL ENGINEERS'!E52)-2)","v":"Существуют ли ограничения по компаниям, которые могут иметь голосующие права в инженерно-строительной компании (установленные законом или решением профессионального органа, или сочетанием первого и второго)?"},{"$f":"IF(OR('8E-CIVIL ENGINEERS'!B52=\"N\",'8E-CIVIL ENGINEERS'!B52=\"I\"),\"N\",'8E-CIVIL ENGINEERS'!C52)","v":"N"},"N",{"$f":"'8E-CIVIL ENGINEERS'!M52","v":""},{"$f":"'8E-CIVIL ENGINEERS'!X52","v":""}]
[{"$f":"'8E-CIVIL ENGINEERS'!B53","v":"I"},{"$f":"'8E-CIVIL ENGINEERS'!A53","v":"Q8e.4.5a"},{"$f":"LEFT('8E-CIVIL ENGINEERS'!E53,FIND(\"(Q\",'8E-CIVIL ENGINEERS'!E53)-2)","v":" Пожалуйста, предоставьте ссылку на закон/постановление, которым устанавливаются такие ограничения по голосующим правам в колонке \"Комментарии\""},{"$f":"IF(OR('8E-CIVIL ENGINEERS'!B53=\"N\",'8E-CIVIL ENGINEERS'!B53=\"I\"),\"N\",'8E-CIVIL ENGINEERS'!C53)","v":"N"},"N",{"$f":"'8E-CIVIL ENGINEERS'!M53","v":""},{"$f":"'8E-CIVIL ENGINEERS'!X53","v":""}]
[{"$f":"'8E-CIVIL ENGINEERS'!B54","v":"E"},{"$f":"'8E-CIVIL ENGINEERS'!A54","v":"Q8e.4.6"},{"$f":"LEFT('8E-CIVIL ENGINEERS'!E54,FIND(\"(Q\",'8E-CIVIL ENGINEERS'!E54)-2)","v":" Регулируются ли сборы/тарифы, которые отдельные профессионалы и профессиональные компании могут  взимать за свои услуги государством, парламентом или самими профессионалами?"},{"$f":"IF(OR('8E-CIVIL ENGINEERS'!B54=\"N\",'8E-CIVIL ENGINEERS'!B54=\"I\"),\"N\",'8E-CIVIL ENGINEERS'!C54)","v":"Q8.3.7"},"Are the fees/prices that the engineering profession charges for its services regulated by the government or self-regulated by the profession itself?",{"$f":"'8E-CIVIL ENGINEERS'!M54","v":{"$error":"#N/A"}},{"$f":"'8E-CIVIL ENGINEERS'!X54","v":""}]
[{"$f":"'8E-CIVIL ENGINEERS'!B56","v":"EC"},{"$f":"'8E-CIVIL ENGINEERS'!A56","v":"Q8e.4.6a_i"},{"$f":"LEFT('8E-CIVIL ENGINEERS'!F55,FIND(\"(Q\",'8E-CIVIL ENGINEERS'!F55)-2)&\" - \"&'8E-CIVIL ENGINEERS'!G56","v":"Если сборы/тарифы реулируются государством или профессиональными органами, каков характер такого регулирования? -  Необязательные рекомендуемые сборы/тарифы на определенные виды услуг "},{"$f":"IF(OR('8E-CIVIL ENGINEERS'!B56=\"N\",'8E-CIVIL ENGINEERS'!B56=\"I\"),\"N\",'8E-CIVIL ENGINEERS'!C56)","v":"Q8.3.7a_vi"},"If fees/prices are regulated or self-regulated, what is the nature of these regulations? - Non-binding recommended prices for some services",{"$f":"'8E-CIVIL ENGINEERS'!M56","v":{"$error":"#N/A"}},{"$f":"'8E-CIVIL ENGINEERS'!X56","v":""}]
[{"$f":"'8E-CIVIL ENGINEERS'!B57","v":"EC"},{"$f":"'8E-CIVIL ENGINEERS'!A57","v":"Q8e.4.6a_ii"},{"$f":"LEFT('8E-CIVIL ENGINEERS'!F55,FIND(\"(Q\",'8E-CIVIL ENGINEERS'!F55)-2)&\" - \"&'8E-CIVIL ENGINEERS'!G57","v":"Если сборы/тарифы реулируются государством или профессиональными органами, каков характер такого регулирования? -  Необязательные рекомендуемые сборы тарифы на все виды услуг "},{"$f":"IF(OR('8E-CIVIL ENGINEERS'!B57=\"N\",'8E-CIVIL ENGINEERS'!B57=\"I\"),\"N\",'8E-CIVIL ENGINEERS'!C57)","v":"Q8.3.7a_v"},"If fees/prices are regulated or self-regulated, what is the nature of these regulations? - Non-binding recommended prices for all services",{"$f":"'8E-CIVIL ENGINEERS'!M57","v":{"$error":"#N/A"}},{"$f":"'8E-CIVIL ENGINEERS'!X57","v":""}]
[{"$f":"'8E-CIVIL ENGINEERS'!B58","v":"EC"},{"$f":"'8E-CIVIL ENGINEERS'!A58","v":"Q8e.4.6a_iii"},{"$f":"LEFT('8E-CIVIL ENGINEERS'!F55,FIND(\"(Q\",'8E-CIVIL ENGINEERS'!F55)-2)&\" - \"&'8E-CIVIL ENGINEERS'!G58","v":"Если сборы/тарифы реулируются государством или профессиональными органами, каков характер такого регулирования? - Обязательные максимальные сборы/тарифы на определенные виды услуг "},{"$f":"IF(OR('8E-CIVIL ENGINEERS'!B58=\"N\",'8E-CIVIL ENGINEERS'!B58=\"I\"),\"N\",'8E-CIVIL ENGINEERS'!C58)","v":"Q8.3.7a_iv"},"If fees/prices are regulated or self-regulated, what is the nature of these regulations? - Binding maximum prices for some services",{"$f":"'8E-CIVIL ENGINEERS'!M58","v":{"$error":"#N/A"}},{"$f":"'8E-CIVIL ENGINEERS'!X58","v":""}]
[{"$f":"'8E-CIVIL ENGINEERS'!B59","v":"EC"},{"$f":"'8E-CIVIL ENGINEERS'!A59","v":"Q8e.4.6a_iv"},{"$f":"LEFT('8E-CIVIL ENGINEERS'!F55,FIND(\"(Q\",'8E-CIVIL ENGINEERS'!F55)-2)&\" - \"&'8E-CIVIL ENGINEERS'!G59","v":"Если сборы/тарифы реулируются государством или профессиональными органами, каков характер такого регулирования? - Обязательные максимальные сборы/тарифы на все виды услуг "},{"$f":"IF(OR('8E-CIVIL ENGINEERS'!B59=\"N\",'8E-CIVIL ENGINEERS'!B59=\"I\"),\"N\",'8E-CIVIL ENGINEERS'!C59)","v":"Q8.3.7a_ii"},"If fees/prices are regulated or self-regulated, what is the nature of these regulations? - Binding maximum prices for all services",{"$f":"'8E-CIVIL ENGINEERS'!M59","v":{"$error":"#N/A"}},{"$f":"'8E-CIVIL ENGINEERS'!X59","v":""}]
[{"$f":"'8E-CIVIL ENGINEERS'!B60","v":"EC"},{"$f":"'8E-CIVIL ENGINEERS'!A60","v":"Q8e.4.6a_v"},{"$f":"LEFT('8E-CIVIL ENGINEERS'!F55,FIND(\"(Q\",'8E-CIVIL ENGINEERS'!F55)-2)&\" - \"&'8E-CIVIL ENGINEERS'!G60","v":"Если сборы/тарифы реулируются государством или профессиональными органами, каков характер такого регулирования? - Обязательные минимальные или фиксированные сборы/тарифы на некоторые вид услуг "},{"$f":"IF(OR('8E-CIVIL ENGINEERS'!B60=\"N\",'8E-CIVIL ENGINEERS'!B60=\"I\"),\"N\",'8E-CIVIL ENGINEERS'!C60)","v":"Q8.3.7a_iii"},"If fees/prices are regulated or self-regulated, what is the nature of these regulations? - Binding minimum prices for some services",{"$f":"'8E-CIVIL ENGINEERS'!M60","v":{"$error":"#N/A"}},{"$f":"'8E-CIVIL ENGINEERS'!X60","v":""}]
[{"$f":"'8E-CIVIL ENGINEERS'!B61","v":"EC"},{"$f":"'8E-CIVIL ENGINEERS'!A61","v":"Q8e.4.6a_vi"},{"$f":"LEFT('8E-CIVIL ENGINEERS'!F55,FIND(\"(Q\",'8E-CIVIL ENGINEERS'!F55)-2)&\" - \"&'8E-CIVIL ENGINEERS'!G61","v":"Если сборы/тарифы реулируются государством или профессиональными органами, каков характер такого регулирования? - Обязательные минимальные или фиксированные сборы/тарифы на все виды услуг  "},{"$f":"IF(OR('8E-CIVIL ENGINEERS'!B61=\"N\",'8E-CIVIL ENGINEERS'!B61=\"I\"),\"N\",'8E-CIVIL ENGINEERS'!C61)","v":"Q8.3.7a_i"},"If fees/prices are regulated or self-regulated, what is the nature of these regulations? - Binding minimum prices for all services",{"$f":"'8E-CIVIL ENGINEERS'!M61","v":{"$error":"#N/A"}},{"$f":"'8E-CIVIL ENGINEERS'!X61","v":""}]
[{"$f":"'8E-CIVIL ENGINEERS'!B62","v":"I"},{"$f":"'8E-CIVIL ENGINEERS'!A62","v":"Q8e.4.6b"},{"$f":"LEFT('8E-CIVIL ENGINEERS'!F62,FIND(\"(Q\",'8E-CIVIL ENGINEERS'!F62)-2)","v":" Пожалуйста, предоставьте ссылку на самый последний набор регулируемых сборов или на закон /постановление, которое определяет, кто и как должен их устанавливать в колонке \"Комментарии\" "},{"$f":"IF(OR('8E-CIVIL ENGINEERS'!B62=\"N\",'8E-CIVIL ENGINEERS'!B62=\"I\"),\"N\",'8E-CIVIL ENGINEERS'!C62)","v":"N"},"N",{"$f":"'8E-CIVIL ENGINEERS'!M62","v":""},{"$f":"'8E-CIVIL ENGINEERS'!X62","v":""}]
[{"$f":"'8E-CIVIL ENGINEERS'!B63","v":"E"},{"$f":"'8E-CIVIL ENGINEERS'!A63","v":"Q8e.4.7"},{"$f":"LEFT('8E-CIVIL ENGINEERS'!E63,FIND(\"(Q\",'8E-CIVIL ENGINEERS'!E63)-2)","v":" При условии, что реклама не является ни ложной, ни вводящей в заблуждение или обманной, существуют ли  ограничения по рекламе и маркетингу данными профессионалами и/или профессиональными  (устанавливаемые законом или решением профессиональных органов или сочетанием первого и второго)?"},{"$f":"IF(OR('8E-CIVIL ENGINEERS'!B63=\"N\",'8E-CIVIL ENGINEERS'!B63=\"I\"),\"N\",'8E-CIVIL ENGINEERS'!C63)","v":"Q8.3.9_ENG"},"Are there restrictions on advertising and marketing by profesionals? - Engineering profession",{"$f":"'8E-CIVIL ENGINEERS'!M63","v":{"$error":"#N/A"}},{"$f":"'8E-CIVIL ENGINEERS'!X63","v":""}]
[{"$f":"'8E-CIVIL ENGINEERS'!B64","v":"I"},{"$f":"'8E-CIVIL ENGINEERS'!A64","v":"Q8e.4.7a"},{"$f":"LEFT('8E-CIVIL ENGINEERS'!E64,FIND(\"(Q\",'8E-CIVIL ENGINEERS'!E64)-2)","v":" Пожалуйста, предоставьте ссылку на закон/постановление, которым устанавливаются такие ограничения в колонке \"Комментарии\""},{"$f":"IF(OR('8E-CIVIL ENGINEERS'!B64=\"N\",'8E-CIVIL ENGINEERS'!B64=\"I\"),\"N\",'8E-CIVIL ENGINEERS'!C64)","v":"N"},"N",{"$f":"'8E-CIVIL ENGINEERS'!M64","v":""},{"$f":"'8E-CIVIL ENGINEERS'!X64","v":""}]
[{"$f":"'8E-CIVIL ENGINEERS'!B65","v":"EC"},{"$f":"'8E-CIVIL ENGINEERS'!A65","v":"Q8e.4.8"},{"$f":"LEFT('8E-CIVIL ENGINEERS'!E65,FIND(\"(Q\",'8E-CIVIL ENGINEERS'!E65)-2)","v":"Существуют ли ограничения по межпрофессиональному бизнес сотрудничеству между инженерами гражданского строительства и другими профессионалами (например, партнерства, совместные предприятия), устанавливаемые законом или решением профессионального органа или сочетанием первого и второго?"},{"$f":"IF(OR('8E-CIVIL ENGINEERS'!B65=\"N\",'8E-CIVIL ENGINEERS'!B65=\"I\"),\"N\",'8E-CIVIL ENGINEERS'!C65)","v":"Q8.3.10_ENG"},"Are there restrictions on inter-professional co-operation (e.g. partnerships, associations, joint ventures)? - Engineering profession",{"$f":"'8E-CIVIL ENGINEERS'!M65","v":{"$error":"#N/A"}},{"$f":"'8E-CIVIL ENGINEERS'!X65","v":""}]
[{"$f":"'8E-CIVIL ENGINEERS'!B66","v":"I"},{"$f":"'8E-CIVIL ENGINEERS'!A66","v":"Q8e.4.8a"},{"$f":"LEFT('8E-CIVIL ENGINEERS'!E66,FIND(\"(Q\",'8E-CIVIL ENGINEERS'!E66)-2)","v":" Пожалуйста, предоставьте ссылку на закон/постановление, которым устанавливаются такие ограничения в колонке \"Комментарии\""},{"$f":"IF(OR('8E-CIVIL ENGINEERS'!B66=\"N\",'8E-CIVIL ENGINEERS'!B66=\"I\"),\"N\",'8E-CIVIL ENGINEERS'!C66)","v":"N"},"N",{"$f":"'8E-CIVIL ENGINEERS'!M66","v":""},{"$f":"'8E-CIVIL ENGINEERS'!X66","v":""}]
[{"$f":"'8E-CIVIL ENGINEERS'!B68","v":"N"},{"$f":"'8E-CIVIL ENGINEERS'!A68","v":"Q8e.5.1"},{"$f":"LEFT('8E-CIVIL ENGINEERS'!E68,FIND(\"(Q\",'8E-CIVIL ENGINEERS'!E68)-2)","v":"Является ли ваша страна участницей Соглашений о Взаимном Признании (СВП) инженеров гражданского строительства с другими странами?"},{"$f":"IF(OR('8E-CIVIL ENGINEERS'!B68=\"N\",'8E-CIVIL ENGINEERS'!B68=\"I\"),\"N\",'8E-CIVIL ENGINEERS'!C68)","v":"N"},"N",{"$f":"'8E-CIVIL ENGINEERS'!M68","v":""},{"$f":"'8E-CIVIL ENGINEERS'!X68","v":""}]
[{"$f":"'8E-CIVIL ENGINEERS'!B69","v":"I"},{"$f":"'8E-CIVIL ENGINEERS'!A69","v":"Q8e.5.1a"},{"$f":"LEFT('8E-CIVIL ENGINEERS'!E69,FIND(\"(Q\",'8E-CIVIL ENGINEERS'!E69)-2)","v":" Пожалуйста, предоставьте ссылку на, как минимум, одно СВП в колонке \"Комментарии\""},{"$f":"IF(OR('8E-CIVIL ENGINEERS'!B69=\"N\",'8E-CIVIL ENGINEERS'!B69=\"I\"),\"N\",'8E-CIVIL ENGINEERS'!C69)","v":"N"},"N",{"$f":"'8E-CIVIL ENGINEERS'!M69","v":""},{"$f":"'8E-CIVIL ENGINEERS'!X69","v":""}]
[{"$f":"'8E-CIVIL ENGINEERS'!B70","v":"N"},{"$f":"'8E-CIVIL ENGINEERS'!A70","v":"Q8e.5.2"},{"$f":"LEFT('8E-CIVIL ENGINEERS'!E70,FIND(\"(Q\",'8E-CIVIL ENGINEERS'!E70)-2)","v":"Создают ли законы/постановления понятный и прозрачный процесс признания образовательных титулов, которые были получены зарубежом для инженеров гражданского строительства?"},{"$f":"IF(OR('8E-CIVIL ENGINEERS'!B70=\"N\",'8E-CIVIL ENGINEERS'!B70=\"I\"),\"N\",'8E-CIVIL ENGINEERS'!C70)","v":"N"},"N",{"$f":"'8E-CIVIL ENGINEERS'!M70","v":""},{"$f":"'8E-CIVIL ENGINEERS'!X70","v":""}]
[{"$f":"'8E-CIVIL ENGINEERS'!B71","v":"N"},{"$f":"'8E-CIVIL ENGINEERS'!A71","v":"Q8e.5.3"},{"$f":"LEFT('8E-CIVIL ENGINEERS'!E71,FIND(\"(Q\",'8E-CIVIL ENGINEERS'!E71)-2)","v":"Обязаны ли зарубежные инженеры гражданского строительства сдать местный экзамен для того чтобы практиковать?"},{"$f":"IF(OR('8E-CIVIL ENGINEERS'!B71=\"N\",'8E-CIVIL ENGINEERS'!B71=\"I\"),\"N\",'8E-CIVIL ENGINEERS'!C71)","v":"N"},"N",{"$f":"'8E-CIVIL ENGINEERS'!M71","v":""},{"$f":"'8E-CIVIL ENGINEERS'!X71","v":""}]
[{"$f":"#REF!","v":{"$error":"#REF!"}},{"$f":"#REF!","v":{"$error":"#REF!"}},{"$f":"LEFT(#REF!,FIND(\"(Q\",#REF!)-2)","v":{"$error":"#REF!"}},{"$f":"IF(OR(#REF!=\"N\",#REF!=\"I\"), \"N\",#REF!)","v":{"$error":"#REF!"}},"N",{"$f":"#REF!","v":{"$error":"#REF!"}},{"$f":"#REF!","v":{"$error":"#REF!"}}]
[{"$f":"#REF!","v":{"$error":"#REF!"}},{"$f":"#REF!","v":{"$error":"#REF!"}},{"$f":"LEFT(#REF!,FIND(\"(Q\",#REF!)-2)","v":{"$error":"#REF!"}},{"$f":"IF(OR(#REF!=\"N\",#REF!=\"I\"), \"N\",#REF!)","v":{"$error":"#REF!"}},"N",{"$f":"#REF!","v":{"$error":"#REF!"}},{"$f":"#REF!","v":{"$error":"#REF!"}}]
[{"$f":"#REF!","v":{"$error":"#REF!"}},{"$f":"#REF!","v":{"$error":"#REF!"}},{"$f":"LEFT(#REF!,FIND(\"(Q\",#REF!)-2)","v":{"$error":"#REF!"}},{"$f":"IF(OR(#REF!=\"N\",#REF!=\"I\"), \"N\",#REF!)","v":{"$error":"#REF!"}},"N",{"$f":"#REF!","v":{"$error":"#REF!"}},{"$f":"#REF!","v":{"$error":"#REF!"}}]
[{"$f":"#REF!","v":{"$error":"#REF!"}},{"$f":"#REF!","v":{"$error":"#REF!"}},{"$f":"LEFT(#REF!,FIND(\"(Q\",#REF!)-2)&\" - \"&#REF!","v":{"$error":"#REF!"}},{"$f":"IF(OR(#REF!=\"N\",#REF!=\"I\"), \"N\",#REF!)","v":{"$error":"#REF!"}},"N",{"$f":"#REF!","v":{"$error":"#REF!"}},{"$f":"#REF!","v":{"$error":"#REF!"}}]
[{"$f":"#REF!","v":{"$error":"#REF!"}},{"$f":"#REF!","v":{"$error":"#REF!"}},{"$f":"LEFT(#REF!,FIND(\"(Q\",#REF!)-2)&\" - \"&#REF!","v":{"$error":"#REF!"}},{"$f":"IF(OR(#REF!=\"N\",#REF!=\"I\"), \"N\",#REF!)","v":{"$error":"#REF!"}},"N",{"$f":"#REF!","v":{"$error":"#REF!"}},{"$f":"#REF!","v":{"$error":"#REF!"}}]
[{"$f":"#REF!","v":{"$error":"#REF!"}},{"$f":"#REF!","v":{"$error":"#REF!"}},{"$f":"LEFT(#REF!,FIND(\"(Q\",#REF!)-2)&\" - \"&#REF!","v":{"$error":"#REF!"}},{"$f":"IF(OR(#REF!=\"N\",#REF!=\"I\"), \"N\",#REF!)","v":{"$error":"#REF!"}},"N",{"$f":"#REF!","v":{"$error":"#REF!"}},{"$f":"#REF!","v":{"$error":"#REF!"}}]
[{"$f":"#REF!","v":{"$error":"#REF!"}},{"$f":"#REF!","v":{"$error":"#REF!"}},{"$f":"LEFT(#REF!,FIND(\"(Q\",#REF!)-2)&\" - \"&#REF!","v":{"$error":"#REF!"}},{"$f":"IF(OR(#REF!=\"N\",#REF!=\"I\"), \"N\",#REF!)","v":{"$error":"#REF!"}},"N",{"$f":"#REF!","v":{"$error":"#REF!"}},{"$f":"#REF!","v":{"$error":"#REF!"}}]
[{"$f":"#REF!","v":{"$error":"#REF!"}},{"$f":"#REF!","v":{"$error":"#REF!"}},{"$f":"LEFT(#REF!,FIND(\"(Q\",#REF!)-2)&\" - \"&#REF!","v":{"$error":"#REF!"}},{"$f":"IF(OR(#REF!=\"N\",#REF!=\"I\"), \"N\",#REF!)","v":{"$error":"#REF!"}},"N",{"$f":"#REF!","v":{"$error":"#REF!"}},{"$f":"#REF!","v":{"$error":"#REF!"}}]
[{"$f":"#REF!","v":{"$error":"#REF!"}},{"$f":"#REF!","v":{"$error":"#REF!"}},{"$f":"LEFT(#REF!,FIND(\"(Q\",#REF!)-2)&\" - \"&#REF!","v":{"$error":"#REF!"}},{"$f":"IF(OR(#REF!=\"N\",#REF!=\"I\"), \"N\",#REF!)","v":{"$error":"#REF!"}},"N",{"$f":"#REF!","v":{"$error":"#REF!"}},{"$f":"#REF!","v":{"$error":"#REF!"}}]
[{"$f":"#REF!","v":{"$error":"#REF!"}},{"$f":"#REF!","v":{"$error":"#REF!"}},{"$f":"LEFT(#REF!,FIND(\"(Q\",#REF!)-2)","v":{"$error":"#REF!"}},{"$f":"IF(OR(#REF!=\"N\",#REF!=\"I\"), \"N\",#REF!)","v":{"$error":"#REF!"}},"N",{"$f":"#REF!","v":{"$error":"#REF!"}},{"$f":"#REF!","v":{"$error":"#REF!"}}]
[{"$f":"#REF!","v":{"$error":"#REF!"}},{"$f":"#REF!","v":{"$error":"#REF!"}},{"$f":"LEFT(#REF!,FIND(\"(Q\",#REF!)-2)","v":{"$error":"#REF!"}},{"$f":"IF(OR(#REF!=\"N\",#REF!=\"I\"), \"N\",#REF!)","v":{"$error":"#REF!"}},"N",{"$f":"#REF!","v":{"$error":"#REF!"}},{"$f":"#REF!","v":{"$error":"#REF!"}}]
[{"$f":"#REF!","v":{"$error":"#REF!"}},{"$f":"#REF!","v":{"$error":"#REF!"}},{"$f":"LEFT(#REF!,FIND(\"(Q\",#REF!)-2)","v":{"$error":"#REF!"}},{"$f":"IF(OR(#REF!=\"N\",#REF!=\"I\"), \"N\",#REF!)","v":{"$error":"#REF!"}},"N",{"$f":"#REF!","v":{"$error":"#REF!"}},{"$f":"#REF!","v":{"$error":"#REF!"}}]
[{"$f":"#REF!","v":{"$error":"#REF!"}},{"$f":"#REF!","v":{"$error":"#REF!"}},{"$f":"LEFT(#REF!,FIND(\"(Q\",#REF!)-2)","v":{"$error":"#REF!"}},{"$f":"IF(OR(#REF!=\"N\",#REF!=\"I\"), \"N\",#REF!)","v":{"$error":"#REF!"}},"N",{"$f":"#REF!","v":{"$error":"#REF!"}},{"$f":"#REF!","v":{"$error":"#REF!"}}]
[{"$f":"#REF!","v":{"$error":"#REF!"}},{"$f":"#REF!","v":{"$error":"#REF!"}},{"$f":"LEFT(#REF!,FIND(\"(Q\",#REF!)-2)","v":{"$error":"#REF!"}},{"$f":"IF(OR(#REF!=\"N\",#REF!=\"I\"), \"N\",#REF!)","v":{"$error":"#REF!"}},"N",{"$f":"#REF!","v":{"$error":"#REF!"}},{"$f":"#REF!","v":{"$error":"#REF!"}}]
[{"$f":"#REF!","v":{"$error":"#REF!"}},{"$f":"#REF!","v":{"$error":"#REF!"}},{"$f":"LEFT(#REF!,FIND(\"(Q\",#REF!)-2)","v":{"$error":"#REF!"}},{"$f":"IF(OR(#REF!=\"N\",#REF!=\"I\"), \"N\",#REF!)","v":{"$error":"#REF!"}},"N",{"$f":"#REF!","v":{"$error":"#REF!"}},{"$f":"#REF!","v":{"$error":"#REF!"}}]
[{"$f":"#REF!","v":{"$error":"#REF!"}},{"$f":"#REF!","v":{"$error":"#REF!"}},{"$f":"LEFT(#REF!,FIND(\"(Q\",#REF!)-2)","v":{"$error":"#REF!"}},{"$f":"IF(OR(#REF!=\"N\",#REF!=\"I\"), \"N\",#REF!)","v":{"$error":"#REF!"}},"N",{"$f":"#REF!","v":{"$error":"#REF!"}},{"$f":"#REF!","v":{"$error":"#REF!"}}]
[{"$f":"#REF!","v":{"$error":"#REF!"}},{"$f":"#REF!","v":{"$error":"#REF!"}},{"$f":"LEFT(#REF!,FIND(\"(Q\",#REF!)-2)","v":{"$error":"#REF!"}},{"$f":"IF(OR(#REF!=\"N\",#REF!=\"I\"), \"N\",#REF!)","v":{"$error":"#REF!"}},"N",{"$f":"#REF!","v":{"$error":"#REF!"}},{"$f":"#REF!","v":{"$error":"#REF!"}}]
[{"$f":"#REF!","v":{"$error":"#REF!"}},{"$f":"#REF!","v":{"$error":"#REF!"}},{"$f":"LEFT(#REF!,FIND(\"(Q\",#REF!)-2)","v":{"$error":"#REF!"}},{"$f":"IF(OR(#REF!=\"N\",#REF!=\"I\"), \"N\",#REF!)","v":{"$error":"#REF!"}},"N",{"$f":"#REF!","v":{"$error":"#REF!"}},{"$f":"#REF!","v":{"$error":"#REF!"}}]
[{"$f":"#REF!","v":{"$error":"#REF!"}},{"$f":"#REF!","v":{"$error":"#REF!"}},{"$f":"LEFT(#REF!,FIND(\"(Q\",#REF!)-2)","v":{"$error":"#REF!"}},{"$f":"IF(OR(#REF!=\"N\",#REF!=\"I\"), \"N\",#REF!)","v":{"$error":"#REF!"}},"N",{"$f":"#REF!","v":{"$error":"#REF!"}},{"$f":"#REF!","v":{"$error":"#REF!"}}]
[{"$f":"#REF!","v":{"$error":"#REF!"}},{"$f":"#REF!","v":{"$error":"#REF!"}},{"$f":"LEFT(#REF!,FIND(\"(Q\",#REF!)-2)","v":{"$error":"#REF!"}},{"$f":"IF(OR(#REF!=\"N\",#REF!=\"I\"), \"N\",#REF!)","v":{"$error":"#REF!"}},"N",{"$f":"#REF!","v":{"$error":"#REF!"}},{"$f":"#REF!","v":{"$error":"#REF!"}}]
[{"$f":"#REF!","v":{"$error":"#REF!"}},{"$f":"#REF!","v":{"$error":"#REF!"}},{"$f":"LEFT(#REF!,FIND(\"(Q\",#REF!)-2)","v":{"$error":"#REF!"}},{"$f":"IF(OR(#REF!=\"N\",#REF!=\"I\"), \"N\",#REF!)","v":{"$error":"#REF!"}},"N",{"$f":"#REF!","v":{"$error":"#REF!"}},{"$f":"#REF!","v":{"$error":"#REF!"}}]
[{"$f":"#REF!","v":{"$error":"#REF!"}},{"$f":"#REF!","v":{"$error":"#REF!"}},{"$f":"LEFT(#REF!,FIND(\"(Q\",#REF!)-2)","v":{"$error":"#REF!"}},{"$f":"IF(OR(#REF!=\"N\",#REF!=\"I\"), \"N\",#REF!)","v":{"$error":"#REF!"}},"N",{"$f":"#REF!","v":{"$error":"#REF!"}},{"$f":"#REF!","v":{"$error":"#REF!"}}]
[{"$f":"#REF!","v":{"$error":"#REF!"}},{"$f":"#REF!","v":{"$error":"#REF!"}},{"$f":"LEFT(#REF!,FIND(\"(Q\",#REF!)-2)","v":{"$error":"#REF!"}},{"$f":"IF(OR(#REF!=\"N\",#REF!=\"I\"), \"N\",#REF!)","v":{"$error":"#REF!"}},"N",{"$f":"#REF!","v":{"$error":"#REF!"}},{"$f":"#REF!","v":{"$error":"#REF!"}}]
[{"$f":"#REF!","v":{"$error":"#REF!"}},{"$f":"#REF!","v":{"$error":"#REF!"}},{"$f":"LEFT(#REF!,FIND(\"(Q\",#REF!)-2)","v":{"$error":"#REF!"}},{"$f":"IF(OR(#REF!=\"N\",#REF!=\"I\"), \"N\",#REF!)","v":{"$error":"#REF!"}},"N",{"$f":"#REF!","v":{"$error":"#REF!"}},{"$f":"#REF!","v":{"$error":"#REF!"}}]
[{"$f":"#REF!","v":{"$error":"#REF!"}},{"$f":"#REF!","v":{"$error":"#REF!"}},{"$f":"LEFT(#REF!,FIND(\"(Q\",#REF!)-2)","v":{"$error":"#REF!"}},{"$f":"IF(OR(#REF!=\"N\",#REF!=\"I\"), \"N\",#REF!)","v":{"$error":"#REF!"}},"N",{"$f":"#REF!","v":{"$error":"#REF!"}},{"$f":"#REF!","v":{"$error":"#REF!"}}]
[{"$f":"#REF!","v":{"$error":"#REF!"}},{"$f":"#REF!","v":{"$error":"#REF!"}},{"$f":"LEFT(#REF!,FIND(\"(Q\",#REF!)-2)","v":{"$error":"#REF!"}},{"$f":"IF(OR(#REF!=\"N\",#REF!=\"I\"), \"N\",#REF!)","v":{"$error":"#REF!"}},"N",{"$f":"#REF!","v":{"$error":"#REF!"}},{"$f":"#REF!","v":{"$error":"#REF!"}}]
[{"$f":"#REF!","v":{"$error":"#REF!"}},{"$f":"#REF!","v":{"$error":"#REF!"}},{"$f":"LEFT(#REF!,FIND(\"(Q\",#REF!)-2)","v":{"$error":"#REF!"}},{"$f":"IF(OR(#REF!=\"N\",#REF!=\"I\"), \"N\",#REF!)","v":{"$error":"#REF!"}},"N",{"$f":"#REF!","v":{"$error":"#REF!"}},{"$f":"#REF!","v":{"$error":"#REF!"}}]
[{"$f":"#REF!","v":{"$error":"#REF!"}},{"$f":"#REF!","v":{"$error":"#REF!"}},{"$f":"LEFT(#REF!,FIND(\"(Q\",#REF!)-2)","v":{"$error":"#REF!"}},{"$f":"IF(OR(#REF!=\"N\",#REF!=\"I\"), \"N\",#REF!)","v":{"$error":"#REF!"}},"N",{"$f":"#REF!","v":{"$error":"#REF!"}},{"$f":"#REF!","v":{"$error":"#REF!"}}]
[{"$f":"#REF!","v":{"$error":"#REF!"}},{"$f":"#REF!","v":{"$error":"#REF!"}},{"$f":"LEFT(#REF!,FIND(\"(Q\",#REF!)-2)","v":{"$error":"#REF!"}},{"$f":"IF(OR(#REF!=\"N\",#REF!=\"I\"), \"N\",#REF!)","v":{"$error":"#REF!"}},"N",{"$f":"#REF!","v":{"$error":"#REF!"}},{"$f":"#REF!","v":{"$error":"#REF!"}}]
[{"$f":"#REF!","v":{"$error":"#REF!"}},{"$f":"#REF!","v":{"$error":"#REF!"}},{"$f":"LEFT(#REF!,FIND(\"(Q\",#REF!)-2)","v":{"$error":"#REF!"}},{"$f":"IF(OR(#REF!=\"N\",#REF!=\"I\"), \"N\",#REF!)","v":{"$error":"#REF!"}},"N",{"$f":"#REF!","v":{"$error":"#REF!"}},{"$f":"#REF!","v":{"$error":"#REF!"}}]
[{"$f":"#REF!","v":{"$error":"#REF!"}},{"$f":"#REF!","v":{"$error":"#REF!"}},{"$f":"LEFT(#REF!,FIND(\"(Q\",#REF!)-2)","v":{"$error":"#REF!"}},{"$f":"IF(OR(#REF!=\"N\",#REF!=\"I\"), \"N\",#REF!)","v":{"$error":"#REF!"}},"N",{"$f":"#REF!","v":{"$error":"#REF!"}},{"$f":"#REF!","v":{"$error":"#REF!"}}]
[{"$f":"#REF!","v":{"$error":"#REF!"}},{"$f":"#REF!","v":{"$error":"#REF!"}},{"$f":"LEFT(#REF!,FIND(\"(Q\",#REF!)-2)","v":{"$error":"#REF!"}},{"$f":"IF(OR(#REF!=\"N\",#REF!=\"I\"), \"N\",#REF!)","v":{"$error":"#REF!"}},"N",{"$f":"#REF!","v":{"$error":"#REF!"}},{"$f":"#REF!","v":{"$error":"#REF!"}}]
[{"$f":"#REF!","v":{"$error":"#REF!"}},{"$f":"#REF!","v":{"$error":"#REF!"}},{"$f":"LEFT(#REF!,FIND(\"(Q\",#REF!)-2)","v":{"$error":"#REF!"}},{"$f":"IF(OR(#REF!=\"N\",#REF!=\"I\"), \"N\",#REF!)","v":{"$error":"#REF!"}},"N",{"$f":"#REF!","v":{"$error":"#REF!"}},{"$f":"#REF!","v":{"$error":"#REF!"}}]
[{"$f":"#REF!","v":{"$error":"#REF!"}},{"$f":"#REF!","v":{"$error":"#REF!"}},{"$f":"LEFT(#REF!,FIND(\"(Q\",#REF!)-2)","v":{"$error":"#REF!"}},{"$f":"IF(OR(#REF!=\"N\",#REF!=\"I\"), \"N\",#REF!)","v":{"$error":"#REF!"}},"N",{"$f":"#REF!","v":{"$error":"#REF!"}},{"$f":"#REF!","v":{"$error":"#REF!"}}]
[{"$f":"#REF!","v":{"$error":"#REF!"}},{"$f":"#REF!","v":{"$error":"#REF!"}},{"$f":"LEFT(#REF!,FIND(\"(Q\",#REF!)-2)","v":{"$error":"#REF!"}},{"$f":"IF(OR(#REF!=\"N\",#REF!=\"I\"), \"N\",#REF!)","v":{"$error":"#REF!"}},"N",{"$f":"#REF!","v":{"$error":"#REF!"}},{"$f":"#REF!","v":{"$error":"#REF!"}}]
[{"$f":"#REF!","v":{"$error":"#REF!"}},{"$f":"#REF!","v":{"$error":"#REF!"}},{"$f":"LEFT(#REF!,FIND(\"(Q\",#REF!)-2)","v":{"$error":"#REF!"}},{"$f":"IF(OR(#REF!=\"N\",#REF!=\"I\"), \"N\",#REF!)","v":{"$error":"#REF!"}},"N",{"$f":"#REF!","v":{"$error":"#REF!"}},{"$f":"#REF!","v":{"$error":"#REF!"}}]
[{"$f":"#REF!","v":{"$error":"#REF!"}},{"$f":"#REF!","v":{"$error":"#REF!"}},{"$f":"LEFT(#REF!,FIND(\"(Q\",#REF!)-2)","v":{"$error":"#REF!"}},{"$f":"IF(OR(#REF!=\"N\",#REF!=\"I\"), \"N\",#REF!)","v":{"$error":"#REF!"}},"N",{"$f":"#REF!","v":{"$error":"#REF!"}},{"$f":"#REF!","v":{"$error":"#REF!"}}]
[{"$f":"#REF!","v":{"$error":"#REF!"}},{"$f":"#REF!","v":{"$error":"#REF!"}},{"$f":"LEFT(#REF!,FIND(\"(Q\",#REF!)-2)&\" - \"&#REF!","v":{"$error":"#REF!"}},{"$f":"IF(OR(#REF!=\"N\",#REF!=\"I\"), \"N\",#REF!)","v":{"$error":"#REF!"}},"N",{"$f":"#REF!","v":{"$error":"#REF!"}},{"$f":"#REF!","v":{"$error":"#REF!"}}]
[{"$f":"#REF!","v":{"$error":"#REF!"}},{"$f":"#REF!","v":{"$error":"#REF!"}},{"$f":"LEFT(#REF!,FIND(\"(Q\",#REF!)-2)&\" - \"&#REF!","v":{"$error":"#REF!"}},{"$f":"IF(OR(#REF!=\"N\",#REF!=\"I\"), \"N\",#REF!)","v":{"$error":"#REF!"}},"N",{"$f":"#REF!","v":{"$error":"#REF!"}},{"$f":"#REF!","v":{"$error":"#REF!"}}]
[{"$f":"#REF!","v":{"$error":"#REF!"}},{"$f":"#REF!","v":{"$error":"#REF!"}},{"$f":"LEFT(#REF!,FIND(\"(Q\",#REF!)-2)&\" - \"&#REF!","v":{"$error":"#REF!"}},{"$f":"IF(OR(#REF!=\"N\",#REF!=\"I\"), \"N\",#REF!)","v":{"$error":"#REF!"}},"N",{"$f":"#REF!","v":{"$error":"#REF!"}},{"$f":"#REF!","v":{"$error":"#REF!"}}]
[{"$f":"#REF!","v":{"$error":"#REF!"}},{"$f":"#REF!","v":{"$error":"#REF!"}},{"$f":"LEFT(#REF!,FIND(\"(Q\",#REF!)-2)&\" - \"&#REF!","v":{"$error":"#REF!"}},{"$f":"IF(OR(#REF!=\"N\",#REF!=\"I\"), \"N\",#REF!)","v":{"$error":"#REF!"}},"N",{"$f":"#REF!","v":{"$error":"#REF!"}},{"$f":"#REF!","v":{"$error":"#REF!"}}]
[{"$f":"#REF!","v":{"$error":"#REF!"}},{"$f":"#REF!","v":{"$error":"#REF!"}},{"$f":"LEFT(#REF!,FIND(\"(Q\",#REF!)-2)&\" - \"&#REF!","v":{"$error":"#REF!"}},{"$f":"IF(OR(#REF!=\"N\",#REF!=\"I\"), \"N\",#REF!)","v":{"$error":"#REF!"}},"N",{"$f":"#REF!","v":{"$error":"#REF!"}},{"$f":"#REF!","v":{"$error":"#REF!"}}]
[{"$f":"#REF!","v":{"$error":"#REF!"}},{"$f":"#REF!","v":{"$error":"#REF!"}},{"$f":"LEFT(#REF!,FIND(\"(Q\",#REF!)-2)&\" - \"&#REF!","v":{"$error":"#REF!"}},{"$f":"IF(OR(#REF!=\"N\",#REF!=\"I\"), \"N\",#REF!)","v":{"$error":"#REF!"}},"N",{"$f":"#REF!","v":{"$error":"#REF!"}},{"$f":"#REF!","v":{"$error":"#REF!"}}]
[{"$f":"#REF!","v":{"$error":"#REF!"}},{"$f":"#REF!","v":{"$error":"#REF!"}},{"$f":"LEFT(#REF!,FIND(\"(Q\",#REF!)-2)","v":{"$error":"#REF!"}},{"$f":"IF(OR(#REF!=\"N\",#REF!=\"I\"), \"N\",#REF!)","v":{"$error":"#REF!"}},"N",{"$f":"#REF!","v":{"$error":"#REF!"}},{"$f":"#REF!","v":{"$error":"#REF!"}}]
[{"$f":"#REF!","v":{"$error":"#REF!"}},{"$f":"#REF!","v":{"$error":"#REF!"}},{"$f":"LEFT(#REF!,FIND(\"(Q\",#REF!)-2)","v":{"$error":"#REF!"}},{"$f":"IF(OR(#REF!=\"N\",#REF!=\"I\"), \"N\",#REF!)","v":{"$error":"#REF!"}},"N",{"$f":"#REF!","v":{"$error":"#REF!"}},{"$f":"#REF!","v":{"$error":"#REF!"}}]
[{"$f":"#REF!","v":{"$error":"#REF!"}},{"$f":"#REF!","v":{"$error":"#REF!"}},{"$f":"LEFT(#REF!,FIND(\"(Q\",#REF!)-2)","v":{"$error":"#REF!"}},{"$f":"IF(OR(#REF!=\"N\",#REF!=\"I\"), \"N\",#REF!)","v":{"$error":"#REF!"}},"N",{"$f":"#REF!","v":{"$error":"#REF!"}},{"$f":"#REF!","v":{"$error":"#REF!"}}]
[{"$f":"#REF!","v":{"$error":"#REF!"}},{"$f":"#REF!","v":{"$error":"#REF!"}},{"$f":"LEFT(#REF!,FIND(\"(Q\",#REF!)-2)","v":{"$error":"#REF!"}},{"$f":"IF(OR(#REF!=\"N\",#REF!=\"I\"), \"N\",#REF!)","v":{"$error":"#REF!"}},"N",{"$f":"#REF!","v":{"$error":"#REF!"}},{"$f":"#REF!","v":{"$error":"#REF!"}}]
[{"$f":"#REF!","v":{"$error":"#REF!"}},{"$f":"#REF!","v":{"$error":"#REF!"}},{"$f":"LEFT(#REF!,FIND(\"(Q\",#REF!)-2)","v":{"$error":"#REF!"}},{"$f":"IF(OR(#REF!=\"N\",#REF!=\"I\"), \"N\",#REF!)","v":{"$error":"#REF!"}},"N",{"$f":"#REF!","v":{"$error":"#REF!"}},{"$f":"#REF!","v":{"$error":"#REF!"}}]
[{"$f":"#REF!","v":{"$error":"#REF!"}},{"$f":"#REF!","v":{"$error":"#REF!"}},{"$f":"LEFT(#REF!,FIND(\"(Q\",#REF!)-2)","v":{"$error":"#REF!"}},{"$f":"IF(OR(#REF!=\"N\",#REF!=\"I\"), \"N\",#REF!)","v":{"$error":"#REF!"}},"N",{"$f":"#REF!","v":{"$error":"#REF!"}},{"$f":"#REF!","v":{"$error":"#REF!"}}]
[{"$f":"#REF!","v":{"$error":"#REF!"}},{"$f":"#REF!","v":{"$error":"#REF!"}},{"$f":"LEFT(#REF!,FIND(\"(Q\",#REF!)-2)","v":{"$error":"#REF!"}},{"$f":"IF(OR(#REF!=\"N\",#REF!=\"I\"), \"N\",#REF!)","v":{"$error":"#REF!"}},"N",{"$f":"#REF!","v":{"$error":"#REF!"}},{"$f":"#REF!","v":{"$error":"#REF!"}}]
[{"$f":"#REF!","v":{"$error":"#REF!"}},{"$f":"#REF!","v":{"$error":"#REF!"}},{"$f":"LEFT(#REF!,FIND(\"(Q\",#REF!)-2)","v":{"$error":"#REF!"}},{"$f":"IF(OR(#REF!=\"N\",#REF!=\"I\"), \"N\",#REF!)","v":{"$error":"#REF!"}},"N",{"$f":"#REF!","v":{"$error":"#REF!"}},{"$f":"#REF!","v":{"$error":"#REF!"}}]
[{"$f":"#REF!","v":{"$error":"#REF!"}},{"$f":"#REF!","v":{"$error":"#REF!"}},{"$f":"LEFT(#REF!,FIND(\"(Q\",#REF!)-2)","v":{"$error":"#REF!"}},{"$f":"IF(OR(#REF!=\"N\",#REF!=\"I\"), \"N\",#REF!)","v":{"$error":"#REF!"}},"N",{"$f":"#REF!","v":{"$error":"#REF!"}},{"$f":"#REF!","v":{"$error":"#REF!"}}]

{"sheet":"Lists","index":6,"n_rows":8,"n_cols":38,"rows_kept":8,"cut":false,"hidden":true,"merged":[]}
[1,2,3,4,5,6,7,8,9,10,11,12,13,14,15,16,17,18,19,20,21,22,23,24,25,26,27,28,29,30,31,32,33,34,35,36,37,38]
["да","федеральный уровень/национальный уровень (для нефедеративных государств)",null,"лицензирование государством/государственными органами ","эксклюзивное право заниматься профессиональной деятельностью ","нет (профессионал уполномочен вести профессиональную деятельность во всей юрисдикции)","только один маршрут ","да ","да ","нет ограничений по правовой форме ","нет","любая компания может иметь долю в капитале ","нет","любая компания может иметь любую долю голосующих прав ","нет (все формы рекламы и маркетинга разрешены)","разрешены все формы сотрудничества ","да (по меньшей мере с некоторыми странами)",null,"государственный /независимый регулятор ",{"$nulls":7},"любая компания  может иметь долю в  адвокатской компании, превышающюю 49% капитала ","только компании могут иметь более  49%  голосующих прав в адвокатской компании ","любые компании могут иметь долю в нотариальной компании более 49%  капитала ","любые компании могут иметь более 49%  голосующих прав в  нотариальной компании ","любая компания может иметь долю в бухгалтерской компании более 49%  капитала ","любая компания может иметь более 49%  голосующих прав вбухгалтерской компании ","любые компании могут иметь долю в архитекторской компании более  49%  капитала ","любaя компания может иметь более 49% голосующих прав в архитектурной компании ","любые компании могут иметь долю в инженерно-строительной компании более 49%  капитала ","любая компания может иметь более 49% голосующих прав в инженерно-строительной компании ","любая компания может иметь долю в риэлторской компании более 49%  капитала ","любая компания может иметь более 49% голосующих прав в риэлторской компании "]
["нет","уровень штата (только для федеративных государств)",null,"лицензирование профессиональными органами ","эксклюзивное право принадлежит  государству/официальному лицу, назначенному государством ","да (есть территориальные ограничения)","два маршрута ","нет","нет","регистрация разрешена (но не торговля акциями на бирже)","да, до 49%  капитала ",null,"да , до 49%  голосующих прав ",null,"да (некоторые формы рекламы и маркетинга запрещены)","некоторые ограничения для избежания кофнликта интересов ","нет",null,"государственный и профессиональный орган/палата ",{"$nulls":7},"любая компания может иметь долю в адвокатской компании  до  49%  капитала ","только компании могут иметь до  49%  голосующих прав в адвокатской компании ","любые компании могут иметь долю в нотариальной компании до 49% капитала ","любая компания может иметь до 49% голосующих прав в нотариальной компании ","любая компания может иметь долю в бухгалтерской компании до 49%  капитала ","любая компания может иметь до 49%  голосующих прав в бухгалтерской компании ","любые компании могут иметь долю в архитектуркной компании до 49% капитала ","любая компания может иметь до  49% голосующих прав в архитектурной компании ","aлюбая компания может иметь долю в инженерно-строительной компании до 49% капитала ","любая компания может иметь до 49% голосующих прав в инженерно-строительной компании ","любая компания может иметь долю в риэлторской компании до 49% капитала ","любая компания может иметь до  49%  глосующих прав в риэлторской компании "]
[null,"местный уровень (например Регион/Провинция)",null,"сертификация (нет лицензий) ","совместное эксклюзивное право на занятие профессиональной деятельностью ",null,"три или более маршрутов ",null,null,"разрешается ограниченная ответственность ( но нерегистрация корпорации)","да, до  74%  капитала ",null,"да, до 74% голосующих прав ",null,"да ( все формы рекламы и маркетинга запрещены)","выраженный запрет на бизнес сотрудничество с некоторыми профессиями ",null,null,"профессиональный орган/палата ",{"$nulls":7},"только адвокатская компания может иметь долю в адвокатской компании более 49% капитала (другие компании не могут) ","только адвокатские компании могут иметь более 49%  голосующих прав в адвокатской компании (но другие компании не смогут)","только нотариальные компании могут иметь долю в нотариальной компании более 49% капитала (другие компании не могут)","только нотариальные компании могут иметь более 49 % голосующих прав в нотариальной компании (но другие компании не могут)","только бухгалтерские компании могут иметь долю в бухгалтерской компании более  49%  капитала (другие компании не могут)","только бухгалтерские компании могут иметь долю более 49% голосующих прав в бухгалтерской компании (другие компании не могут)","только архитектурные компании могут иметь долю в архитектурной компании более 49% капитала (другие компании не могут) ","только архитектурные компании могут иметь более 49% голосующих прав в архитектурной компании (но другие компании не могут)","только  инженерно-строительные компании могут иметь долю в инженерно-строительной компании более 49%  капитала (другие компании не могут) ","только инженерно-строительные компании могут иметь более 49% голосующих прав в инженерно-строительной компании (другие компании не могут)","только риэлторские компании могут иметь долю в риэлторской компании более 49% капитала (другие компании не могут) ","только риэлторские компании могут иметь более 49% голосующих прав в риэлторской компании (другие компании не могут) "]
[null,null,null,"нет особых мер регулирования ","нет эксклюзивного права ",{"$nulls":4},"ограниченная ответственность не разрешена ","Да, да 100% капитала  ",null,"да, до 100% голосующих прав ",null,null,"выраженный запрет на сотрудничество со всеми другими профессиями ",{"$nulls":10},"только адвокатские компании могут иметь долю в адвокатской компании до 49%  капитала (другие компании не могут) ","только адвокатские компании могут иметь до 49% голосующих прав в адвокатской компании (другие компании не могут)","только нотариальные компании могут иметь долю в нотариальной компании до 49% капитала (другие компании не могут) ","только нотариальные компании могут иметь до 49%  голосующих прав в нотариальной компании (другие компаниине могут) ","только бухгалтерские компании могут иметь долю в бухгалтерской компании до 49%  капитала (другие компании не могут)","только бухгалтерские компании могут иметь до 49% голосующих прав в бухгалтерской компании (другие компании не могут) ","только архитектурные компании могут иметь долю до 49% капитала (другие компании не могут) ","только архитектурные компании могут иметь до 49% голосующих прав в архитектурной компании (другие компании не могут) ","только инженерно-строительные компании могут иметь долю в инженерно-строительной компании до  49% капитала (другие компании не могут)","только инженерно-строительные компании могут иметь до 49%  голосующих прав в инженерно-строительной компании (другие компании не могут) ","только риэлторские компании могут иметь долю в  риэлторской компании до 49%  капитала (другие компании не могут)","только риэлторские компании могут иметь до 49% голосующих прав в риэлторской компании (другие компании не могут) "]
[{"$nulls":9},"только индивидуальные предпряития/личные предприятия разрешены  ",{"$nulls":16},"компании не могут иметь долю в адвокатской компании "," компании не могут иметь голосующие права в адвокатской компании ","компании не могут иметь долю в нотариальной компании "," компании не могут иметь никаких голосующих прав в нотарильной компании ","компании не  могут иметь долю в бухгалтерской компании ","компании не могут иметь голосующие права в бухгалтерской компании ","компании не могут иметь долю в архитектурной компании ","компании не могут иметь голосующие права в архитектурной компании ","компании не могут иметь долю в инженерно-строительной компании","компании не могут иметь голосующие права в инженерно-строительной компании ","компании не могут иметь долю в риэлторской компании ","компании не могут иметь голосующие права в риэлторской компании "]
[{"$nulls":9},"другое (пожалуйста, укажите детали в колонке \"Комментарии\")"]
[null,"B",null,"D","E","F","G","H","I","J","K","L","M","N","O","P","Q"]

{"sheet":"Conditions","index":7,"n_rows":29,"n_cols":37,"rows_kept":29,"cut":false,"hidden":true,"merged":[]}
[null,null,{"$f":"IF(LEFT(C3,12)=\"не применимо\",1,COUNTA(C3:C8))","v":{"$error":"#REF!"}},{"$f":"IF(LEFT(D3,12)=\"не применимо\",1,COUNTA(D3:D8))","v":{"$error":"#REF!"}},{"$f":"IF(LEFT(E3,12)=\"не применимо\",1,COUNTA(E3:E9))","v":{"$error":"#REF!"}},{"$f":"IF(LEFT(F3,12)=\"не применимо\",1,COUNTA(F3:F4))","v":{"$error":"#REF!"}},{"$f":"IF(LEFT(G3,12)=\"не применимо\",1,COUNTA(G3:G5))","v":{"$error":"#REF!"}},null,{"$f":"IF(LEFT(I3,12)=\"не применимо\",1,COUNTA(I3:I8))","v":{"$error":"#REF!"}},{"$f":"IF(LEFT(J3,12)=\"не применимо\",1,COUNTA(J3:J8))","v":{"$error":"#REF!"}},{"$f":"IF(LEFT(K3,12)=\"не применимо\",1,COUNTA(K3:K9))","v":{"$error":"#REF!"}},{"$f":"IF(LEFT(L3,12)=\"не применимо\",1,COUNTA(L3:L4))","v":{"$error":"#REF!"}},{"$f":"IF(LEFT(M3,12)=\"не применимо\",1,COUNTA(M3:M5))","v":{"$error":"#REF!"}},null,{"$f":"IF(LEFT(O3,12)=\"не применимо\",1,COUNTA(O3:O8))","v":{"$error":"#REF!"}},{"$f":"IF(LEFT(P3,12)=\"не применимо\",1,COUNTA(P3:P8))","v":{"$error":"#REF!"}},{"$f":"IF(LEFT(Q3,12)=\"не применимо\",1,COUNTA(Q3:Q9))","v":{"$error":"#REF!"}},{"$f":"IF(LEFT(R3,12)=\"не применимо\",1,COUNTA(R3:R4))","v":{"$error":"#REF!"}},{"$f":"IF(LEFT(S3,12)=\"не применимо\",1,COUNTA(S3:S5))","v":{"$error":"#REF!"}},null,{"$f":"IF(LEFT(U3,12)=\"не применимо\",1,COUNTA(U3:U8))","v":6},{"$f":"IF(LEFT(V3,12)=\"не применимо\",1,COUNTA(V3:V8))","v":6},{"$f":"IF(LEFT(W3,12)=\"не применимо\",1,COUNTA(W3:W9))","v":7},{"$f":"IF(LEFT(X3,12)=\"не применимо\",1,COUNTA(X3:X4))","v":2},{"$f":"IF(LEFT(Y3,12)=\"не применимо\",1,COUNTA(Y3:Y5))","v":3},null,{"$f":"IF(LEFT(AA3,12)=\"не применимо\",1,COUNTA(AA3:AA8))","v":6},{"$f":"IF(LEFT(AB3,12)=\"не применимо\",1,COUNTA(AB3:AB8))","v":6},{"$f":"IF(LEFT(AC3,12)=\"не применимо\",1,COUNTA(AC3:AC9))","v":7},{"$f":"IF(LEFT(AD3,12)=\"не применимо\",1,COUNTA(AD3:AD4))","v":2},{"$f":"IF(LEFT(AE3,12)=\"не применимо\",1,COUNTA(AE3:AE5))","v":3},null,{"$f":"IF(LEFT(AG3,12)=\"не применимо\",1,COUNTA(AG3:AG8))","v":{"$error":"#REF!"}},{"$f":"IF(LEFT(AH3,12)=\"не применимо\",1,COUNTA(AH3:AH8))","v":{"$error":"#REF!"}},{"$f":"IF(LEFT(AI3,12)=\"не применимо\",1,COUNTA(AI3:AI9))","v":{"$error":"#REF!"}},{"$f":"IF(LEFT(AJ3,12)=\"не применимо\",1,COUNTA(AJ3:AJ4))","v":{"$error":"#REF!"}},{"$f":"IF(LEFT(AK3,12)=\"не применимо\",1,COUNTA(AK3:AK5))","v":{"$error":"#REF!"}}]
[null,null,"C8a.3 / Q8a.2.4a","C8a.4 / Q8a.2.5a","C8a.5 / Q8a.2.6a","C8a.6 / Q8a.3.8a_i…vi","C8a.7 / Q8a.3.5a",null,"C8b.3 / Q8b.2.4a","C8b.4 / Q8b.2.5a","C8b.5 / Q8b.2.6a","C8b.6 / Q8b.3.8b_i…vi","C8b.7 / Q8b.3.5a",null,"C8c.3 / Q8c.2.4a","C8c.4 / Q8c.2.5a","C8c.5 / Q8c.2.6a","C8c.6 / Q8c.3.8c_i…vi","C8c.7 / Q8c.3.5a",null,"C8d.3 / Q8d.2.4a","C8d.4 / Q8d.2.5a","C8d.5 / Q8d.2.6a","C8d.6 / Q8d.3.8d_i…vi","C8d.7 / Q8d.3.5a",null,"C8e.3 / Q8e.2.4a","C8e.4 / Q8e.2.5a","C8e.5 / Q8e.2.6a","C8e.6 / Q8e.3.8e_i…vi","C8e.7 / Q8e.3.5a",null,"C8f.3 / Q8f.2.4a","C8f.4 / Q8f.2.5a","C8f.5 / Q8f.2.6a","C8f.6 / Q8f.3.8f_i…vi","C8f.7 / Q8f.3.5a"]
[null,null,{"$f":"IF(#REF!=\"нет\",\"не применимо\",\"до 1 года\")","v":{"$error":"#REF!"}},{"$f":"IF(#REF!=\"нет\",\"не применимо\",\"до 1 года\")","v":{"$error":"#REF!"}},{"$f":"IF(#REF!=\"нет\",\"не применимо\",\"не более недели\")","v":{"$error":"#REF!"}},{"$f":"IF(#REF!=\"нет\",\"не применимо (ответ на Q8a.4.6 'нет')\",\"да\")","v":{"$error":"#REF!"}},{"$f":"IF(#REF!=\"нет\",\"не применимо (ответ на Q8a.3.5 'нет')\",\"государство/независимый регулятор\")","v":{"$error":"#REF!"}},null,{"$f":"IF('[1]8B-нетTARIES'!$K$36=\"нет\",\"не применимо\",\"до 1 года\")","v":{"$error":"#REF!"}},{"$f":"IF(#REF!=\"нет\",\"не применимо\",\"до 1 года\")","v":{"$error":"#REF!"}},{"$f":"IF(#REF!=\"нет\",\"не применимо\",\"не более недели\")","v":{"$error":"#REF!"}},{"$f":"IF(#REF!=\"нет\",\"не применимо (ответ на Q8b.4.6 'нет')\",\"да\")","v":{"$error":"#REF!"}},{"$f":"IF(#REF!=\"нет\",\"не применимо (ответ на Q8b.3.5 'нет')\",\"государство/независимый регулятор\")","v":{"$error":"#REF!"}},null,{"$f":"IF(#REF!=\"нет\",\"не применимо\",\"до 1 года\")","v":{"$error":"#REF!"}},{"$f":"IF(#REF!=\"нет\",\"не применимо\",\"до 1 года\")","v":{"$error":"#REF!"}},{"$f":"IF(#REF!=\"нет\",\"не применимо\",\"не более недели\")","v":{"$error":"#REF!"}},{"$f":"IF(#REF!=\"нет\",\"не применимо (ответ на Q8c.4.6 'нет')\",\"да\")","v":{"$error":"#REF!"}},{"$f":"IF(#REF!=\"нет\",\"не применимо (ответ на Q8c.3.5 'нет')\",\"государство/независимый регулятор\")","v":{"$error":"#REF!"}},null,{"$f":"IF('8D-ARCHITECTS'!$K$36=\"нет\",\"не применимо\",\"до 1 года\")","v":"до 1 года"},{"$f":"IF('8D-ARCHITECTS'!$K$38=\"нет\",\"не применимо\",\"до 1 года\")","v":"до 1 года"},{"$f":"IF('8D-ARCHITECTS'!$K$40=\"нет\",\"не применимо\",\"не более недели\")","v":"не более недели"},{"$f":"IF('8D-ARCHITECTS'!$K$55=\"нет\",\"не применимо (ответ на Q8d.4.6 'нет')\",\"да\")","v":"да"},{"$f":"IF('8D-ARCHITECTS'!$K$42=\"нет\",\"не применимо (ответ на Q8d.3.5 'нет')\",\"государство/независимый регулятор\")","v":"государство/независимый регулятор"},null,{"$f":"IF('8E-CIVIL ENGINEERS'!$K$35=\"нет\",\"не применимо\",\"до 1 года\")","v":"до 1 года"},{"$f":"IF('8E-CIVIL ENGINEERS'!$K$37=\"нет\",\"не применимо\",\"до 1 года\")","v":"до 1 года"},{"$f":"IF('8E-CIVIL ENGINEERS'!$K$39=\"нет\",\"не применимо\",\"не более недели\")","v":"не более недели"},{"$f":"IF('8E-CIVIL ENGINEERS'!$K$54=\"нет\",\"не применимо (ответ на Q8e.4.6 'нет')\",\"да\")","v":"да"},{"$f":"IF('8E-CIVIL ENGINEERS'!$K$41=\"нет\",\"не применимо (ответ на Q8e.3.5 'нет')\",\"государство/независимый регулятор\")","v":"государство/независимый регулятор"},null,{"$f":"IF(#REF!=\"нет\",\"не применимо\",\"до 1 года\")","v":{"$error":"#REF!"}},{"$f":"IF(#REF!=\"нет\",\"не применимо\",\"до 1 года\")","v":{"$error":"#REF!"}},{"$f":"IF(#REF!=\"нет\",\"не применимо\",\"не более недели\")","v":{"$error":"#REF!"}},{"$f":"IF(#REF!=\"нет\",\"не применимо (ответ на Q8f.4.6 'нет')\",\"да\")","v":{"$error":"#REF!"}},{"$f":"IF(#REF!=\"нет\",\"не применимо (ответ на Q8f.3.5 'нет')\",\"государство/независимый регулятор\")","v":{"$error":"#REF!"}}]
[null,null,{"$f":"IF(#REF!=\"нет\",\" \",\"более 1 года до 2 лет\")","v":{"$error":"#REF!"}},{"$f":"IF(#REF!=\"нет\",\" \",\"более 1 года до 2 лет\")","v":{"$error":"#REF!"}},{"$f":"IF(#REF!=\"нет\",\" \",\"до 1 года\")","v":{"$error":"#REF!"}},{"$f":"IF(#REF!=\"нет\",\" \",\"нет\")","v":{"$error":"#REF!"}},{"$f":"IF(#REF!=\"нет\",\" \",\"государство и профессиональный орган/палата\")","v":{"$error":"#REF!"}},null,{"$f":"IF(#REF!=\"нет\",\" \",\"более 1 года до 2 лет\")","v":{"$error":"#REF!"}},{"$f":"IF(#REF!=\"нет\",\" \",\"более 1 года до 2 лет\")","v":{"$error":"#REF!"}},{"$f":"IF(#REF!=\"нет\",\" \",\"до 1 года\")","v":{"$error":"#REF!"}},{"$f":"IF(#REF!=\"нет\",\" \",\"нет\")","v":{"$error":"#REF!"}},{"$f":"IF(#REF!=\"нет\",\" \",\"государство и профессиональный орган/палата\")","v":{"$error":"#REF!"}},null,{"$f":"IF(#REF!=\"нет\",\" \",\"более 1 года до 2 лет\")","v":{"$error":"#REF!"}},{"$f":"IF(#REF!=\"нет\",\" \",\"более 1 года до 2 лет\")","v":{"$error":"#REF!"}},{"$f":"IF(#REF!=\"нет\",\" \",\"до 1 года\")","v":{"$error":"#REF!"}},{"$f":"IF(#REF!=\"нет\",\" \",\"нет\")","v":{"$error":"#REF!"}},{"$f":"IF(#REF!=\"нет\",\" \",\"государство и профессиональный орган/палата\")","v":{"$error":"#REF!"}},null,{"$f":"IF('8D-ARCHITECTS'!$K$36=\"нет\",\" \",\"более 1 года до 2 лет\")","v":"более 1 года до 2 лет"},{"$f":"IF('8D-ARCHITECTS'!$K$38=\"нет\",\" \",\"более 1 года до 2 лет\")","v":"более 1 года до 2 лет"},{"$f":"IF('8D-ARCHITECTS'!$K$40=\"нет\",\" \",\"до 1 года\")","v":"до 1 года"},{"$f":"IF('8D-ARCHITECTS'!$K$55=\"нет\",\" \",\"нет\")","v":"нет"},{"$f":"IF('8D-ARCHITECTS'!$K$42=\"нет\",\" \",\"государство и профессиональный орган/палата\")","v":"государство и профессиональный орган/палата"},null,{"$f":"IF('8E-CIVIL ENGINEERS'!$K$35=\"нет\",\" \",\"более 1 года до 2 лет\")","v":"более 1 года до 2 лет"},{"$f":"IF('8E-CIVIL ENGINEERS'!$K$37=\"нет\",\" \",\"более 1 года до 2 лет\")","v":"более 1 года до 2 лет"},{"$f":"IF('8E-CIVIL ENGINEERS'!$K$39=\"нет\",\" \",\"до 1 года\")","v":"до 1 года"},{"$f":"IF('8E-CIVIL ENGINEERS'!$K$54=\"нет\",\" \",\"нет\")","v":"нет"},{"$f":"IF('8E-CIVIL ENGINEERS'!$K$41=\"нет\",\" \",\"государство и профессиональный орган/палата\")","v":"государство и профессиональный орган/палата"},null,{"$f":"IF(#REF!=\"нет\",\" \",\"более 1 года до 2 лет\")","v":{"$error":"#REF!"}},{"$f":"IF(#REF!=\"нет\",\" \",\"более 1 года до 2 лет\")","v":{"$error":"#REF!"}},{"$f":"IF(#REF!=\"нет\",\" \",\"до 1 года\")","v":{"$error":"#REF!"}},{"$f":"IF(#REF!=\"нет\",\" \",\"нет\")","v":{"$error":"#REF!"}},{"$f":"IF(#REF!=\"нет\",\" \",\"государство и профессиональный орган/палата\")","v":{"$error":"#REF!"}}]
[null,null,{"$f":"IF(#REF!=\"нет\",\" \",\"более 2 лет до 3 лет\")","v":{"$error":"#REF!"}},{"$f":"IF(#REF!=\"нет\",\" \",\"более 2 лет до 3 лет\")","v":{"$error":"#REF!"}},{"$f":"IF(#REF!=\"нет\",\" \",\"более 1 года до 2 лет\")","v":{"$error":"#REF!"}},null,{"$f":"IF(#REF!=\"нет\",\" \",\"профессиональный орган/палата\")","v":{"$error":"#REF!"}},null,{"$f":"IF(#REF!=\"нет\",\" \",\"более 2 лет до 3 лет\")","v":{"$error":"#REF!"}},{"$f":"IF(#REF!=\"нет\",\" \",\"более 2 лет до 3 лет\")","v":{"$error":"#REF!"}},{"$f":"IF(#REF!=\"нет\",\" \",\"более 1 года до 2 лет\")","v":{"$error":"#REF!"}},null,{"$f":"IF(#REF!=\"нет\",\" \",\"профессиональный орган/палата\")","v":{"$error":"#REF!"}},null,{"$f":"IF(#REF!=\"нет\",\" \",\"более 2 лет до 3 лет\")","v":{"$error":"#REF!"}},{"$f":"IF(#REF!=\"нет\",\" \",\"более 2 лет до 3 лет\")","v":{"$error":"#REF!"}},{"$f":"IF(#REF!=\"нет\",\" \",\"более 1 года до 2 лет\")","v":{"$error":"#REF!"}},null,{"$f":"IF(#REF!=\"нет\",\" \",\"профессиональный орган/палата\")","v":{"$error":"#REF!"}},null,{"$f":"IF('8D-ARCHITECTS'!$K$36=\"нет\",\" \",\"более 2 лет до 3 лет\")","v":"более 2 лет до 3 лет"},{"$f":"IF('8D-ARCHITECTS'!$K$38=\"нет\",\" \",\"более 2 лет до 3 лет\")","v":"более 2 лет до 3 лет"},{"$f":"IF('8D-ARCHITECTS'!$K$40=\"нет\",\" \",\"более 1 года до 2 лет\")","v":"более 1 года до 2 лет"},null,{"$f":"IF('8D-ARCHITECTS'!$K$42=\"нет\",\" \",\"профессиональный орган/палата\")","v":"профессиональный орган/палата"},null,{"$f":"IF('8E-CIVIL ENGINEERS'!$K$35=\"нет\",\" \",\"более 2 лет до 3 лет\")","v":"более 2 лет до 3 лет"},{"$f":"IF('8E-CIVIL ENGINEERS'!$K$37=\"нет\",\" \",\"более 2 лет до 3 лет\")","v":"более 2 лет до 3 лет"},{"$f":"IF('8E-CIVIL ENGINEERS'!$K$39=\"нет\",\" \",\"более 1 года до 2 лет\")","v":"более 1 года до 2 лет"},null,{"$f":"IF('8E-CIVIL ENGINEERS'!$K$41=\"нет\",\" \",\"профессиональный орган/палата\")","v":"профессиональный орган/палата"},null,{"$f":"IF(#REF!=\"нет\",\" \",\"более 2 лет до 3 лет\")","v":{"$error":"#REF!"}},{"$f":"IF(#REF!=\"нет\",\" \",\"более 2 лет до 3 лет\")","v":{"$error":"#REF!"}},{"$f":"IF(#REF!=\"нет\",\" \",\"более 1 года до 2 лет\")","v":{"$error":"#REF!"}},null,{"$f":"IF(#REF!=\"нет\",\" \",\"профессиональный орган/палата\")","v":{"$error":"#REF!"}}]
[null,null,{"$f":"IF(#REF!=\"нет\",\" \",\"более 3 лет до 4 лет\")","v":{"$error":"#REF!"}},{"$f":"IF(#REF!=\"нет\",\" \",\"более 3 лет до 4 лет\")","v":{"$error":"#REF!"}},{"$f":"IF(#REF!=\"нет\",\" \",\"более 2 лет до 3 лет\")","v":{"$error":"#REF!"}},null,null,null,{"$f":"IF(#REF!=\"нет\",\" \",\"более 3 лет до 4 лет\")","v":{"$error":"#REF!"}},{"$f":"IF(#REF!=\"нет\",\" \",\"более 3 лет до 4 лет\")","v":{"$error":"#REF!"}},{"$f":"IF(#REF!=\"нет\",\" \",\"более 2 лет до 3 лет\")","v":{"$error":"#REF!"}},null,null,null,{"$f":"IF(#REF!=\"нет\",\" \",\"более 3 лет до 4 лет\")","v":{"$error":"#REF!"}},{"$f":"IF(#REF!=\"нет\",\" \",\"более 3 лет до 4 лет\")","v":{"$error":"#REF!"}},{"$f":"IF(#REF!=\"нет\",\" \",\"более 2 лет до 3 лет\")","v":{"$error":"#REF!"}},null,null,null,{"$f":"IF('8D-ARCHITECTS'!$K$36=\"нет\",\" \",\"более 3 лет до 4 лет\")","v":"более 3 лет до 4 лет"},{"$f":"IF('8D-ARCHITECTS'!$K$38=\"нет\",\" \",\"более 3 лет до 4 лет\")","v":"более 3 лет до 4 лет"},{"$f":"IF('8D-ARCHITECTS'!$K$40=\"нет\",\" \",\"более 2 лет до 3 лет\")","v":"более 2 лет до 3 лет"},null,null,null,{"$f":"IF('8E-CIVIL ENGINEERS'!$K$35=\"нет\",\" \",\"более 3 лет до 4 лет\")","v":"более 3 лет до 4 лет"},{"$f":"IF('8E-CIVIL ENGINEERS'!$K$37=\"нет\",\" \",\"более 3 лет до 4 лет\")","v":"более 3 лет до 4 лет"},{"$f":"IF('8E-CIVIL ENGINEERS'!$K$39=\"нет\",\" \",\"более 2 лет до 3 лет\")","v":"более 2 лет до 3 лет"},null,null,null,{"$f":"IF(#REF!=\"нет\",\" \",\"более 3 лет до 4 лет\")","v":{"$error":"#REF!"}},{"$f":"IF(#REF!=\"нет\",\" \",\"более 3 лет до 4 лет\")","v":{"$error":"#REF!"}},{"$f":"IF(#REF!=\"нет\",\" \",\"более 2 лет до 3 лет\")","v":{"$error":"#REF!"}}]
[null,null,{"$f":"IF(#REF!=\"нет\",\" \",\"более 4 лет до 5 лет\")","v":{"$error":"#REF!"}},{"$f":"IF(#REF!=\"нет\",\" \",\"более 4 лет до 5 лет\")","v":{"$error":"#REF!"}},{"$f":"IF(#REF!=\"нет\",\" \",\"более 3 лет до 4 лет\")","v":{"$error":"#REF!"}},null,null,null,{"$f":"IF(#REF!=\"нет\",\" \",\"более 4 лет до 5 лет\")","v":{"$error":"#REF!"}},{"$f":"IF(#REF!=\"нет\",\" \",\"более 4 лет до 5 лет\")","v":{"$error":"#REF!"}},{"$f":"IF(#REF!=\"нет\",\" \",\"более 3 лет до 4 лет\")","v":{"$error":"#REF!"}},null,null,null,{"$f":"IF(#REF!=\"нет\",\" \",\"более 4 лет до 5 лет\")","v":{"$error":"#REF!"}},{"$f":"IF(#REF!=\"нет\",\" \",\"более 4 лет до 5 лет\")","v":{"$error":"#REF!"}},{"$f":"IF(#REF!=\"нет\",\" \",\"более 3 лет до 4 лет\")","v":{"$error":"#REF!"}},null,null,null,{"$f":"IF('8D-ARCHITECTS'!$K$36=\"нет\",\" \",\"более 4 лет до 5 лет\")","v":"более 4 лет до 5 лет"},{"$f":"IF('8D-ARCHITECTS'!$K$38=\"нет\",\" \",\"более 4 лет до 5 лет\")","v":"более 4 лет до 5 лет"},{"$f":"IF('8D-ARCHITECTS'!$K$40=\"нет\",\" \",\"более 3 лет до 4 лет\")","v":"более 3 лет до 4 лет"},null,null,null,{"$f":"IF('8E-CIVIL ENGINEERS'!$K$35=\"нет\",\" \",\"более 4 лет до 5 лет\")","v":"более 4 лет до 5 лет"},{"$f":"IF('8E-CIVIL ENGINEERS'!$K$37=\"нет\",\" \",\"более 4 лет до 5 лет\")","v":"более 4 лет до 5 лет"},{"$f":"IF('8E-CIVIL ENGINEERS'!$K$39=\"нет\",\" \",\"более 3 лет до 4 лет\")","v":"более 3 лет до 4 лет"},null,null,null,{"$f":"IF(#REF!=\"нет\",\" \",\"более 4 лет до 5 лет\")","v":{"$error":"#REF!"}},{"$f":"IF(#REF!=\"нет\",\" \",\"более 4 лет до 5 лет\")","v":{"$error":"#REF!"}},{"$f":"IF(#REF!=\"нет\",\" \",\"более 3 лет до 4 лет\")","v":{"$error":"#REF!"}}]
[null,null,{"$f":"IF(#REF!=\"нет\",\" \",\"более 5 лет\")","v":{"$error":"#REF!"}},{"$f":"IF(#REF!=\"нет\",\" \",\"более 5 лет\")","v":{"$error":"#REF!"}},{"$f":"IF(#REF!=\"нет\",\" \",\"более 4 лет до 5 лет\")","v":{"$error":"#REF!"}},null,null,null,{"$f":"IF(#REF!=\"нет\",\" \",\"более 5 лет\")","v":{"$error":"#REF!"}},{"$f":"IF(#REF!=\"нет\",\" \",\"более 5 лет\")","v":{"$error":"#REF!"}},{"$f":"IF(#REF!=\"нет\",\" \",\"более 4 лет до 5 лет\")","v":{"$error":"#REF!"}},null,null,null,{"$f":"IF(#REF!=\"нет\",\" \",\"более 5 лет\")","v":{"$error":"#REF!"}},{"$f":"IF(#REF!=\"нет\",\" \",\"более 5 лет\")","v":{"$error":"#REF!"}},{"$f":"IF(#REF!=\"нет\",\" \",\"более 4 лет до 5 лет\")","v":{"$error":"#REF!"}},null,null,null,{"$f":"IF('8D-ARCHITECTS'!$K$36=\"нет\",\" \",\"более 5 лет\")","v":"более 5 лет"},{"$f":"IF('8D-ARCHITECTS'!$K$38=\"нет\",\" \",\"более 5 лет\")","v":"более 5 лет"},{"$f":"IF('8D-ARCHITECTS'!$K$40=\"нет\",\" \",\"более 4 лет до 5 лет\")","v":"более 4 лет до 5 лет"},null,null,null,{"$f":"IF('8E-CIVIL ENGINEERS'!$K$35=\"нет\",\" \",\"более 5 лет\")","v":"более 5 лет"},{"$f":"IF('8E-CIVIL ENGINEERS'!$K$37=\"нет\",\" \",\"более 5 лет\")","v":"более 5 лет"},{"$f":"IF('8E-CIVIL ENGINEERS'!$K$39=\"нет\",\" \",\"более 4 лет до 5 лет\")","v":"более 4 лет до 5 лет"},null,null,null,{"$f":"IF(#REF!=\"нет\",\" \",\"более 5 лет\")","v":{"$error":"#REF!"}},{"$f":"IF(#REF!=\"нет\",\" \",\"более 5 лет\")","v":{"$error":"#REF!"}},{"$f":"IF(#REF!=\"нет\",\" \",\"более 4 лет до 5 лет\")","v":{"$error":"#REF!"}}]
[{"$nulls":4},{"$f":"IF(#REF!=\"нет\",\" \",\"более 5 лет\")","v":{"$error":"#REF!"}},{"$nulls":5},{"$f":"IF(#REF!=\"нет\",\" \",\"более 5 лет\")","v":{"$error":"#REF!"}},{"$nulls":5},{"$f":"IF(#REF!=\"нет\",\" \",\"более 5 лет\")","v":{"$error":"#REF!"}},{"$nulls":5},{"$f":"IF('8D-ARCHITECTS'!$K$40=\"нет\",\" \",\"более 5 лет\")","v":"более 5 лет"},{"$nulls":5},{"$f":"IF('8E-CIVIL ENGINEERS'!$K$39=\"нет\",\" \",\"более 5 лет\")","v":"более 5 лет"},{"$nulls":5},{"$f":"IF(#REF!=\"нет\",\" \",\"более 5 лет\")","v":{"$error":"#REF!"}}]
[]
[null,null,{"$f":"IF(LEFT(C13,12)=\"не применимо\",1,COUNTA(C13:C18))","v":{"$error":"#REF!"}},{"$f":"IF(LEFT(D13,12)=\"не применимо\",1,COUNTA(D13:D18))","v":{"$error":"#REF!"}},{"$f":"IF(LEFT(E13,12)=\"не применимо\",1,COUNTA(E13:E19))","v":{"$error":"#REF!"}},{"$f":"IF(LEFT(F13,12)=\"не применимо\",1,COUNTA(F13:F14))","v":{"$error":"#REF!"}},{"$f":"IF(LEFT(G13,12)=\"не применимо\",1,COUNTA(G13:G15))","v":{"$error":"#REF!"}},null,{"$f":"IF(LEFT(I13,12)=\"не применимо\",1,COUNTA(I13:I18))","v":{"$error":"#REF!"}},{"$f":"IF(LEFT(J13,12)=\"не применимо\",1,COUNTA(J13:J18))","v":{"$error":"#REF!"}},{"$f":"IF(LEFT(K13,12)=\"не применимо\",1,COUNTA(K13:K19))","v":{"$error":"#REF!"}},{"$f":"IF(LEFT(L13,12)=\"не применимо\",1,COUNTA(L13:L14))","v":{"$error":"#REF!"}},{"$f":"IF(LEFT(M13,12)=\"не применимо\",1,COUNTA(M13:M15))","v":{"$error":"#REF!"}},null,{"$f":"IF(LEFT(O13,12)=\"не применимо\",1,COUNTA(O13:O18))","v":{"$error":"#REF!"}},{"$f":"IF(LEFT(P13,12)=\"не применимо\",1,COUNTA(P13:P18))","v":{"$error":"#REF!"}},{"$f":"IF(LEFT(Q13,12)=\"не применимо\",1,COUNTA(Q13:Q19))","v":{"$error":"#REF!"}},{"$f":"IF(LEFT(R13,12)=\"не применимо\",1,COUNTA(R13:R14))","v":{"$error":"#REF!"}},{"$f":"IF(LEFT(S13,12)=\"не применимо\",1,COUNTA(S13:S15))","v":{"$error":"#REF!"}},null,{"$f":"IF(LEFT(U13,12)=\"не применимо\",1,COUNTA(U13:U18))","v":6},{"$f":"IF(LEFT(V13,12)=\"не применимо\",1,COUNTA(V13:V18))","v":6},{"$f":"IF(LEFT(W13,12)=\"не применимо\",1,COUNTA(W13:W19))","v":7},{"$f":"IF(LEFT(X13,12)=\"не применимо\",1,COUNTA(X13:X14))","v":2},{"$f":"IF(LEFT(Y13,12)=\"не применимо\",1,COUNTA(Y13:Y15))","v":3},null,{"$f":"IF(LEFT(AA13,12)=\"не применимо\",1,COUNTA(AA13:AA18))","v":6},{"$f":"IF(LEFT(AB13,12)=\"не применимо\",1,COUNTA(AB13:AB18))","v":6},{"$f":"IF(LEFT(AC13,12)=\"не применимо\",1,COUNTA(AC13:AC19))","v":7},{"$f":"IF(LEFT(AD13,12)=\"не применимо\",1,COUNTA(AD13:AD14))","v":2},{"$f":"IF(LEFT(AE13,12)=\"не применимо\",1,COUNTA(AE13:AE15))","v":3},null,{"$f":"IF(LEFT(AG13,12)=\"не применимо\",1,COUNTA(AG13:AG18))","v":{"$error":"#REF!"}},{"$f":"IF(LEFT(AH13,12)=\"не применимо\",1,COUNTA(AH13:AH18))","v":{"$error":"#REF!"}},{"$f":"IF(LEFT(AI13,12)=\"не применимо\",1,COUNTA(AI13:AI19))","v":{"$error":"#REF!"}},{"$f":"IF(LEFT(AJ13,12)=\"не применимо\",1,COUNTA(AJ13:AJ14))","v":{"$error":"#REF!"}},{"$f":"IF(LEFT(AK13,12)=\"не применимо\",1,COUNTA(AK13:AK15))","v":{"$error":"#REF!"}}]
[null,null,"C8a.3 / Q8a.2.4a","C8a.4 / Q8a.2.5a","C8a.5 / Q8a.2.6a","C8a.6 / Q8a.3.8a_i…vi","C8a.7 / Q8a.3.5a",null,"C8b.3 / Q8b.2.4a","C8b.4 / Q8b.2.5a","C8b.5 / Q8b.2.6a","C8b.6 / Q8b.3.8b_i…vi","C8b.7 / Q8b.3.5a",null,"C8c.3 / Q8c.2.4a","C8c.4 / Q8c.2.5a","C8c.5 / Q8c.2.6a","C8c.6 / Q8c.3.8c_i…vi","C8c.7 / Q8c.3.5a",null,"C8d.3 / Q8d.2.4a","C8d.4 / Q8d.2.5a","C8d.5 / Q8d.2.6a","C8d.6 / Q8d.3.8d_i…vi","C8d.7 / Q8d.3.5a",null,"C8e.3 / Q8e.2.4a","C8e.4 / Q8e.2.5a","C8e.5 / Q8e.2.6a","C8e.6 / Q8e.3.8e_i…vi","C8e.7 / Q8e.3.5a",null,"C8f.3 / Q8f.2.4a","C8f.4 / Q8f.2.5a","C8f.5 / Q8f.2.6a","C8f.6 / Q8f.3.8f_i…vi","C8f.7 / Q8f.3.5a"]
[null,null,{"$f":"IF(#REF!=\"нет\",\"не применимо\",\"до 1 года\")","v":{"$error":"#REF!"}},{"$f":"IF(#REF!=\"нет\",\"не применимо\",\"до 1 года\")","v":{"$error":"#REF!"}},{"$f":"IF(#REF!=\"нет\",\"не применимо\",\"не более недели\")","v":{"$error":"#REF!"}},{"$f":"IF(#REF!=\"нет\",\"не применимо (ответ на Q8a.4.6 'нет')\",\"да\")","v":{"$error":"#REF!"}},{"$f":"IF(#REF!=\"нет\",\"не применимо (ответ на Q8a.3.5 'нет')\",\"государство/независимый регулятор\")","v":{"$error":"#REF!"}},null,{"$f":"IF(#REF!=\"нет\",\"не применимо\",\"до 1 года\")","v":{"$error":"#REF!"}},{"$f":"IF(#REF!=\"нет\",\"не применимо\",\"до 1 года\")","v":{"$error":"#REF!"}},{"$f":"IF(#REF!=\"нет\",\"не применимо\",\"не более недели\")","v":{"$error":"#REF!"}},{"$f":"IF(#REF!=\"нет\",\"не применимо (ответ на Q8b.4.6 'нет')\",\"да\")","v":{"$error":"#REF!"}},{"$f":"IF(#REF!=\"нет\",\"не применимо (ответ на Q8b.3.5 'нет')\",\"государство/независимый регулятор\")","v":{"$error":"#REF!"}},null,{"$f":"IF(#REF!=\"нет\",\"не применимо\",\"до 1 года\")","v":{"$error":"#REF!"}},{"$f":"IF(#REF!=\"нет\",\"не применимо\",\"до 1 года\")","v":{"$error":"#REF!"}},{"$f":"IF(#REF!=\"нет\",\"не применимо\",\"не более недели\")","v":{"$error":"#REF!"}},{"$f":"IF(#REF!=\"нет\",\"не применимо (ответ на Q8c.4.6 'нет')\",\"да\")","v":{"$error":"#REF!"}},{"$f":"IF(#REF!=\"нет\",\"не применимо (ответ на Q8c.3.5 'нет')\",\"государство/независимый регулятор\")","v":{"$error":"#REF!"}},null,{"$f":"IF('8D-ARCHITECTS'!$O$36=\"нет\",\"не применимо\",\"до 1 года\")","v":"до 1 года"},{"$f":"IF('8D-ARCHITECTS'!$O$38=\"нет\",\"не применимо\",\"до 1 года\")","v":"до 1 года"},{"$f":"IF('8D-ARCHITECTS'!$O$40=\"нет\",\"не применимо\",\"не более недели\")","v":"не более недели"},{"$f":"IF('8D-ARCHITECTS'!$O$55=\"нет\",\"не применимо (ответ на Q8d.4.6 'нет')\",\"да\")","v":"да"},{"$f":"IF('8D-ARCHITECTS'!$O$42=\"нет\",\"не применимо (ответ на Q8d.3.5 'нет')\",\"государство/независимый регулятор\")","v":"государство/независимый регулятор"},null,{"$f":"IF('8E-CIVIL ENGINEERS'!$O$35=\"нет\",\"не применимо\",\"до 1 года\")","v":"до 1 года"},{"$f":"IF('8E-CIVIL ENGINEERS'!$O$37=\"нет\",\"не применимо\",\"до 1 года\")","v":"до 1 года"},{"$f":"IF('8E-CIVIL ENGINEERS'!$O$39=\"нет\",\"не применимо\",\"не более недели\")","v":"не более недели"},{"$f":"IF('8E-CIVIL ENGINEERS'!$O$54=\"нет\",\"не применимо (ответ на Q8e.4.6 'нет')\",\"да\")","v":"да"},{"$f":"IF('8E-CIVIL ENGINEERS'!$O$41=\"нет\",\"не применимо (ответ на Q8e.3.5 'нет')\",\"государство/независимый регулятор\")","v":"государство/независимый регулятор"},null,{"$f":"IF(#REF!=\"нет\",\"не применимо\",\"до 1 года\")","v":{"$error":"#REF!"}},{"$f":"IF(#REF!=\"нет\",\"не применимо\",\"до 1 года\")","v":{"$error":"#REF!"}},{"$f":"IF(#REF!=\"нет\",\"не применимо\",\"не более недели\")","v":{"$error":"#REF!"}},{"$f":"IF(#REF!=\"нет\",\"не применимо (ответ на Q8f.4.6 'нет')\",\"да\")","v":{"$error":"#REF!"}},{"$f":"IF(#REF!=\"нет\",\"не применимо (ответ на Q8f.3.5 'нет')\",\"государство\")","v":{"$error":"#REF!"}}]
[null,null,{"$f":"IF(#REF!=\"нет\",\" \",\"более 1 года до 2 лет\")","v":{"$error":"#REF!"}},{"$f":"IF(#REF!=\"нет\",\" \",\"более 1 года до 2 лет\")","v":{"$error":"#REF!"}},{"$f":"IF(#REF!=\"нет\",\"\",\"до 1 года\")","v":{"$error":"#REF!"}},{"$f":"IF(#REF!=\"нет\",\" \",\"нет\")","v":{"$error":"#REF!"}},{"$f":"IF(#REF!=\"нет\",\" \",\"государство и профессиональный орган/палата\")","v":{"$error":"#REF!"}},null,{"$f":"IF(#REF!=\"нет\",\" \",\"более 1 года до 2 лет\")","v":{"$error":"#REF!"}},{"$f":"IF(#REF!=\"нет\",\" \",\"более 1 года до 2 лет\")","v":{"$error":"#REF!"}},{"$f":"IF(#REF!=\"нет\",\"\",\"до 1 года\")","v":{"$error":"#REF!"}},{"$f":"IF(#REF!=\"нет\",\" \",\"нет\")","v":{"$error":"#REF!"}},{"$f":"IF(#REF!=\"нет\",\" \",\"государство и профессиональный орган/палата\")","v":{"$error":"#REF!"}},null,{"$f":"IF(#REF!=\"нет\",\" \",\"более 1 года до 2 лет\")","v":{"$error":"#REF!"}},{"$f":"IF(#REF!=\"нет\",\" \",\"более 1 года до 2 лет\")","v":{"$error":"#REF!"}},{"$f":"IF(#REF!=\"нет\",\" \",\"до 1 года\")","v":{"$error":"#REF!"}},{"$f":"IF(#REF!=\"нет\",\" \",\"нет\")","v":{"$error":"#REF!"}},{"$f":"IF(#REF!=\"нет\",\" \",\"государство и профессиональный орган/палата\")","v":{"$error":"#REF!"}},null,{"$f":"IF('8D-ARCHITECTS'!$O$36=\"нет\",\" \",\"более 1 года до 2 лет\")","v":"более 1 года до 2 лет"},{"$f":"IF('8D-ARCHITECTS'!$O$38=\"нет\",\" \",\"более 1 года до 2 лет\")","v":"более 1 года до 2 лет"},{"$f":"IF('8D-ARCHITECTS'!$O$40=\"нет\",\" \",\"до 1 года\")","v":"до 1 года"},{"$f":"IF('8D-ARCHITECTS'!$O$55=\"нет\",\" \",\"нет\")","v":"нет"},{"$f":"IF('8D-ARCHITECTS'!$O$42=\"нет\",\" \",\"государство и профессиональный орган/палата\")","v":"государство и профессиональный орган/палата"},null,{"$f":"IF('8E-CIVIL ENGINEERS'!$O$35=\"нет\",\" \",\"более 1 года до 2 лет\")","v":"более 1 года до 2 лет"},{"$f":"IF('8E-CIVIL ENGINEERS'!$O$37=\"нет\",\" \",\"более 1 года до 2 лет\")","v":"более 1 года до 2 лет"},{"$f":"IF('8E-CIVIL ENGINEERS'!$O$39=\"нет\",\"\",\"до 1 года\")","v":"до 1 года"},{"$f":"IF('8E-CIVIL ENGINEERS'!$O$54=\"нет\",\" \",\"нет\")","v":"нет"},{"$f":"IF('8E-CIVIL ENGINEERS'!$O$41=\"нет\",\" \",\"государство и профессиональный орган/палата\")","v":"государство и профессиональный орган/палата"},null,{"$f":"IF(#REF!=\"нет\",\" \",\"более 1 года до 2 лет\")","v":{"$error":"#REF!"}},{"$f":"IF(#REF!=\"нет\",\" \",\"более 1 года до 2 лет\")","v":{"$error":"#REF!"}},{"$f":"IF(#REF!=\"нет\",\" \",\"до 1 года\")","v":{"$error":"#REF!"}},{"$f":"IF(#REF!=\"нет\",\" \",\"нет\")","v":{"$error":"#REF!"}},{"$f":"IF(#REF!=\"нет\",\" \",\"государство и профессиональный орган/палата\")","v":{"$error":"#REF!"}}]
[null,null,{"$f":"IF(#REF!=\"нет\",\" \",\"более 2 лет до 3 лет\")","v":{"$error":"#REF!"}},{"$f":"IF(#REF!=\"нет\",\" \",\"более 2 лет до 3 лет\")","v":{"$error":"#REF!"}},{"$f":"IF(#REF!=\"нет\",\" \",\"более 1 года до 2 лет\")","v":{"$error":"#REF!"}},null,{"$f":"IF(#REF!=\"нет\",\" \",\"профессиональный орган/палата\")","v":{"$error":"#REF!"}},null,{"$f":"IF(#REF!=\"нет\",\" \",\"более 2 лет до 3 лет\")","v":{"$error":"#REF!"}},{"$f":"IF(#REF!=\"нет\",\" \",\"более 2 лет до 3 лет\")","v":{"$error":"#REF!"}},{"$f":"IF(#REF!=\"нет\",\" \",\"более 1 года до 2 лет\")","v":{"$error":"#REF!"}},null,{"$f":"IF(#REF!=\"нет\",\" \",\"профессиональный орган/палата\")","v":{"$error":"#REF!"}},null,{"$f":"IF(#REF!=\"нет\",\" \",\"более 2 лет до 3 лет\")","v":{"$error":"#REF!"}},{"$f":"IF(#REF!=\"нет\",\" \",\"более 2 лет до 3 лет\")","v":{"$error":"#REF!"}},{"$f":"IF(#REF!=\"нет\",\" \",\"более 1 года до 2 лет\")","v":{"$error":"#REF!"}},null,{"$f":"IF(#REF!=\"нет\",\" \",\"профессиональный орган/палата\")","v":{"$error":"#REF!"}},null,{"$f":"IF('8D-ARCHITECTS'!$O$36=\"нет\",\" \",\"более 2 лет до 3 лет\")","v":"более 2 лет до 3 лет"},{"$f":"IF('8D-ARCHITECTS'!$O$38=\"нет\",\" \",\"более 2 лет до 3 лет\")","v":"более 2 лет до 3 лет"},{"$f":"IF('8D-ARCHITECTS'!$O$40=\"нет\",\" \",\"более 1 года до 2 лет\")","v":"более 1 года до 2 лет"},null,{"$f":"IF('8D-ARCHITECTS'!$O$42=\"нет\",\" \",\"профессиональный орган/палата\")","v":"профессиональный орган/палата"},null,{"$f":"IF('8E-CIVIL ENGINEERS'!$O$35=\"нет\",\" \",\"более 2 лет до 3 лет\")","v":"более 2 лет до 3 лет"},{"$f":"IF('8E-CIVIL ENGINEERS'!$O$37=\"нет\",\" \",\"более 2 лет до 3 лет\")","v":"более 2 лет до 3 лет"},{"$f":"IF('8E-CIVIL ENGINEERS'!$O$39=\"нет\",\" \",\"более 1 года до 2 лет\")","v":"более 1 года до 2 лет"},null,{"$f":"IF('8E-CIVIL ENGINEERS'!$O$41=\"нет\",\" \",\"профессиональный орган/палата\")","v":"профессиональный орган/палата"},null,{"$f":"IF(#REF!=\"нет\",\" \",\"более 2 лет до 3 лет\")","v":{"$error":"#REF!"}},{"$f":"IF(#REF!=\"нет\",\" \",\"более 2 лет до 3 лет\")","v":{"$error":"#REF!"}},{"$f":"IF(#REF!=\"нет\",\" \",\"более 1 года до 2 лет\")","v":{"$error":"#REF!"}},null,{"$f":"IF(#REF!=\"нет\",\" \",\"профессиональный орган/палата\")","v":{"$error":"#REF!"}}]
[null,null,{"$f":"IF(#REF!=\"нет\",\" \",\"более 3 лет до 4 лет\")","v":{"$error":"#REF!"}},{"$f":"IF(#REF!=\"нет\",\" \",\"более 3 лет до 4 лет\")","v":{"$error":"#REF!"}},{"$f":"IF(#REF!=\"нет\",\" \",\"более 2 лет до 3 лет\")","v":{"$error":"#REF!"}},null,null,null,{"$f":"IF(#REF!=\"нет\",\" \",\"более 3 лет до 4 лет\")","v":{"$error":"#REF!"}},{"$f":"IF(#REF!=\"нет\",\" \",\"более 3 лет до 4 лет\")","v":{"$error":"#REF!"}},{"$f":"IF(#REF!=\"нет\",\" \",\"более 2 лет до 3 лет\")","v":{"$error":"#REF!"}},null,null,null,{"$f":"IF(#REF!=\"нет\",\" \",\"более 3 лет до 4 лет\")","v":{"$error":"#REF!"}},{"$f":"IF(#REF!=\"нет\",\" \",\"более 3 лет до 4 лет\")","v":{"$error":"#REF!"}},{"$f":"IF(#REF!=\"нет\",\" \",\"более 2 лет до 3 лет\")","v":{"$error":"#REF!"}},null,null,null,{"$f":"IF('8D-ARCHITECTS'!$O$36=\"нет\",\" \",\"более 3 лет до 4 лет\")","v":"более 3 лет до 4 лет"},{"$f":"IF('8D-ARCHITECTS'!$O$38=\"нет\",\" \",\"более 3 лет до 4 лет\")","v":"более 3 лет до 4 лет"},{"$f":"IF('8D-ARCHITECTS'!$O$40=\"нет\",\" \",\"более 2 лет до 3 лет\")","v":"более 2 лет до 3 лет"},null,null,null,{"$f":"IF('8E-CIVIL ENGINEERS'!$O$35=\"нет\",\" \",\"более 3 лет до 4 лет\")","v":"более 3 лет до 4 лет"},{"$f":"IF('8E-CIVIL ENGINEERS'!$O$37=\"нет\",\" \",\"более 3 лет до 4 лет\")","v":"более 3 лет до 4 лет"},{"$f":"IF('8E-CIVIL ENGINEERS'!$O$39=\"нет\",\" \",\"более 2 лет до 3 лет\")","v":"более 2 лет до 3 лет"},null,null,null,{"$f":"IF(#REF!=\"нет\",\" \",\"более 3 лет до 4 лет\")","v":{"$error":"#REF!"}},{"$f":"IF(#REF!=\"нет\",\" \",\"более 3 лет до 4 лет\")","v":{"$error":"#REF!"}},{"$f":"IF(#REF!=\"нет\",\" \",\"более 2 лет до 3 лет\")","v":{"$error":"#REF!"}}]
[null,null,{"$f":"IF(#REF!=\"нет\",\" \",\"более 4 лет до 5 лет\")","v":{"$error":"#REF!"}},{"$f":"IF(#REF!=\"нет\",\" \",\"более 4 лет до 5 лет\")","v":{"$error":"#REF!"}},{"$f":"IF(#REF!=\"нет\",\" \",\"более 3 лет до 4 лет\")","v":{"$error":"#REF!"}},null,null,null,{"$f":"IF(#REF!=\"нет\",\" \",\"более 4 лет до 5 лет\")","v":{"$error":"#REF!"}},{"$f":"IF(#REF!=\"нет\",\" \",\"более 4 лет до 5 лет\")","v":{"$error":"#REF!"}},{"$f":"IF(#REF!=\"нет\",\" \",\"более 3 лет до 4 лет\")","v":{"$error":"#REF!"}},null,null,null,{"$f":"IF(#REF!=\"нет\",\" \",\"более 4 лет до 5 лет\")","v":{"$error":"#REF!"}},{"$f":"IF(#REF!=\"нет\",\" \",\"более 4 лет до 5 лет\")","v":{"$error":"#REF!"}},{"$f":"IF(#REF!=\"нет\",\" \",\"более 3 лет до 4 лет\")","v":{"$error":"#REF!"}},null,null,null,{"$f":"IF('8D-ARCHITECTS'!$O$36=\"нет\",\" \",\"более 4 лет до 5 лет\")","v":"более 4 лет до 5 лет"},{"$f":"IF('8D-ARCHITECTS'!$O$38=\"нет\",\" \",\"более 4 лет до 5 лет\")","v":"более 4 лет до 5 лет"},{"$f":"IF('8D-ARCHITECTS'!$O$40=\"нет\",\" \",\"более 3 лет до 4 лет\")","v":"более 3 лет до 4 лет"},null,null,null,{"$f":"IF('8E-CIVIL ENGINEERS'!$O$35=\"нет\",\" \",\"более 4 лет до 5 лет\")","v":"более 4 лет до 5 лет"},{"$f":"IF('8E-CIVIL ENGINEERS'!$O$37=\"нет\",\" \",\"более 4 лет до 5 лет\")","v":"более 4 лет до 5 лет"},{"$f":"IF('8E-CIVIL ENGINEERS'!$O$39=\"нет\",\" \",\"более 3 лет до 4 лет\")","v":"более 3 лет до 4 лет"},null,null,null,{"$f":"IF(#REF!=\"нет\",\" \",\"более 4 лет до 5 лет\")","v":{"$error":"#REF!"}},{"$f":"IF(#REF!=\"нет\",\" \",\"более 4 лет до 5 лет\")","v":{"$error":"#REF!"}},{"$f":"IF(#REF!=\"нет\",\" \",\"более 3 лет до 4 лет\")","v":{"$error":"#REF!"}}]
[null,null,{"$f":"IF(#REF!=\"нет\",\" \",\"более 5 лет\")","v":{"$error":"#REF!"}},{"$f":"IF(#REF!=\"нет\",\" \",\"более 5 лет\")","v":{"$error":"#REF!"}},{"$f":"IF(#REF!=\"нет\",\" \",\"более 4 лет до 5 лет\")","v":{"$error":"#REF!"}},null,null,null,{"$f":"IF(#REF!=\"нет\",\" \",\"более 5 лет\")","v":{"$error":"#REF!"}},{"$f":"IF(#REF!=\"нет\",\" \",\"более 5 лет\")","v":{"$error":"#REF!"}},{"$f":"IF(#REF!=\"нет\",\" \",\"более 4 лет до 5 лет\")","v":{"$error":"#REF!"}},null,null,null,{"$f":"IF(#REF!=\"нет\",\" \",\"более 5 лет\")","v":{"$error":"#REF!"}},{"$f":"IF(#REF!=\"нет\",\" \",\"более 5 лет\")","v":{"$error":"#REF!"}},{"$f":"IF(#REF!=\"нет\",\" \",\"более 4 лет до 5 лет\")","v":{"$error":"#REF!"}},null,null,null,{"$f":"IF('8D-ARCHITECTS'!$O$36=\"нет\",\" \",\"более 5 лет\")","v":"более 5 лет"},{"$f":"IF('8D-ARCHITECTS'!$O$38=\"нет\",\" \",\"более 5 лет\")","v":"более 5 лет"},{"$f":"IF('8D-ARCHITECTS'!$O$40=\"нет\",\" \",\"более 4 лет до 5 лет\")","v":"более 4 лет до 5 лет"},null,null,null,{"$f":"IF('8E-CIVIL ENGINEERS'!$O$35=\"нет\",\" \",\"более 5 лет\")","v":"более 5 лет"},{"$f":"IF('8E-CIVIL ENGINEERS'!$O$37=\"нет\",\" \",\"более 5 лет\")","v":"более 5 лет"},{"$f":"IF('8E-CIVIL ENGINEERS'!$O$39=\"нет\",\" \",\"более 4 лет до 5 лет\")","v":"более 4 лет до 5 лет"},null,null,null,{"$f":"IF(#REF!=\"нет\",\" \",\"более 5 лет\")","v":{"$error":"#REF!"}},{"$f":"IF(#REF!=\"нет\",\" \",\"более 5 лет\")","v":{"$error":"#REF!"}},{"$f":"IF(#REF!=\"нет\",\" \",\"более 4 лет до 5 лет\")","v":{"$error":"#REF!"}}]
[{"$nulls":4},{"$f":"IF(#REF!=\"нет\",\" \",\"более 5 лет\")","v":{"$error":"#REF!"}},{"$nulls":5},{"$f":"IF(#REF!=\"нет\",\" \",\"более 5 лет\")","v":{"$error":"#REF!"}},{"$nulls":5},{"$f":"IF(#REF!=\"нет\",\" \",\"более 5 лет\")","v":{"$error":"#REF!"}},{"$nulls":5},{"$f":"IF('8D-ARCHITECTS'!$O$40=\"нет\",\" \",\"более 5 лет\")","v":"более 5 лет"},{"$nulls":5},{"$f":"IF('8E-CIVIL ENGINEERS'!$O$39=\"нет\",\" \",\"более 5 лет\")","v":"более 5 лет"},{"$nulls":5},{"$f":"IF(#REF!=\"нет\",\" \",\"более 5 лет\")","v":{"$error":"#REF!"}}]
[]
[null,null,{"$f":"IF(LEFT(C23,12)=\"не применимо\",1,COUNTA(C23:C28))","v":{"$error":"#REF!"}},{"$f":"IF(LEFT(D23,12)=\"не применимо\",1,COUNTA(D23:D28))","v":{"$error":"#REF!"}},{"$f":"IF(LEFT(E23,12)=\"не применимо\",1,COUNTA(E23:E29))","v":{"$error":"#REF!"}},{"$f":"IF(LEFT(F23,12)=\"не применимо\",1,COUNTA(F23:F24))","v":{"$error":"#REF!"}},{"$f":"IF(LEFT(G23,12)=\"не применимо\",1,COUNTA(G23:G25))","v":{"$error":"#REF!"}},null,{"$f":"IF(LEFT(I23,12)=\"не применимо\",1,COUNTA(I23:I28))","v":{"$error":"#REF!"}},{"$f":"IF(LEFT(J23,12)=\"не применимо\",1,COUNTA(J23:J28))","v":{"$error":"#REF!"}},{"$f":"IF(LEFT(K23,12)=\"не применимо\",1,COUNTA(K23:K29))","v":{"$error":"#REF!"}},{"$f":"IF(LEFT(L23,12)=\"не применимо\",1,COUNTA(L23:L24))","v":{"$error":"#REF!"}},{"$f":"IF(LEFT(M23,12)=\"не применимо\",1,COUNTA(M23:M25))","v":{"$error":"#REF!"}},null,{"$f":"IF(LEFT(O23,12)=\"не применимо\",1,COUNTA(O23:O28))","v":{"$error":"#REF!"}},{"$f":"IF(LEFT(P23,12)=\"не применимо\",1,COUNTA(P23:P28))","v":{"$error":"#REF!"}},{"$f":"IF(LEFT(Q23,12)=\"не применимо\",1,COUNTA(Q23:Q29))","v":{"$error":"#REF!"}},{"$f":"IF(LEFT(R23,12)=\"не применимо\",1,COUNTA(R23:R24))","v":{"$error":"#REF!"}},{"$f":"IF(LEFT(S23,12)=\"не применимо\",1,COUNTA(S23:S25))","v":{"$error":"#REF!"}},null,{"$f":"IF(LEFT(U23,12)=\"не применимо\",1,COUNTA(U23:U28))","v":6},{"$f":"IF(LEFT(V23,12)=\"не применимо\",1,COUNTA(V23:V28))","v":6},{"$f":"IF(LEFT(W23,12)=\"не применимо\",1,COUNTA(W23:W29))","v":7},{"$f":"IF(LEFT(X23,12)=\"не применимо\",1,COUNTA(X23:X24))","v":2},{"$f":"IF(LEFT(Y23,12)=\"не применимо\",1,COUNTA(Y23:Y25))","v":3},null,{"$f":"IF(LEFT(AA23,12)=\"не применимо\",1,COUNTA(AA23:AA28))","v":6},{"$f":"IF(LEFT(AB23,12)=\"не применимо\",1,COUNTA(AB23:AB28))","v":6},{"$f":"IF(LEFT(AC23,12)=\"не применимо\",1,COUNTA(AC23:AC29))","v":7},{"$f":"IF(LEFT(AD23,12)=\"не применимо\",1,COUNTA(AD23:AD24))","v":2},{"$f":"IF(LEFT(AE23,12)=\"не применимо\",1,COUNTA(AE23:AE25))","v":3},null,{"$f":"IF(LEFT(AG23,12)=\"не применимо\",1,COUNTA(AG23:AG28))","v":{"$error":"#REF!"}},{"$f":"IF(LEFT(AH23,12)=\"не применимо\",1,COUNTA(AH23:AH28))","v":{"$error":"#REF!"}},{"$f":"IF(LEFT(AI23,12)=\"не применимо\",1,COUNTA(AI23:AI29))","v":{"$error":"#REF!"}},{"$f":"IF(LEFT(AJ23,12)=\"не применимо\",1,COUNTA(AJ23:AJ24))","v":{"$error":"#REF!"}},{"$f":"IF(LEFT(AK23,12)=\"не применимо\",1,COUNTA(AK23:AK25))","v":{"$error":"#REF!"}}]
[null,null,"C8a.3 / Q8a.2.4a","C8a.4 / Q8a.2.5a","C8a.5 / Q8a.2.6a","C8a.6 / Q8a.3.8a_i…vi","C8a.7 / Q8a.3.5a",null,"C8b.3 / Q8b.2.4a","C8b.4 / Q8b.2.5a","C8b.5 / Q8b.2.6a","C8b.6 / Q8b.3.8b_i…vi","C8b.7 / Q8b.3.5a",null,"C8c.3 / Q8c.2.4a","C8c.4 / Q8c.2.5a","C8c.5 / Q8c.2.6a","C8c.6 / Q8c.3.8c_i…vi","C8c.7 / Q8c.3.5a",null,"C8d.3 / Q8d.2.4a","C8d.4 / Q8d.2.5a","C8d.5 / Q8d.2.6a","C8d.6 / Q8d.3.8d_i…vi","C8d.7 / Q8d.3.5a",null,"C8e.3 / Q8e.2.4a","C8e.4 / Q8e.2.5a","C8e.5 / Q8e.2.6a","C8e.6 / Q8e.3.8e_i…vi","C8e.7 / Q8e.3.5a",null,"C8f.3 / Q8f.2.4a","C8f.4 / Q8f.2.5a","C8f.5 / Q8f.2.6a","C8f.6 / Q8f.3.8f_i…vi","C8f.7 / Q8f.3.5a"]
[null,null,{"$f":"IF(#REF!=\"нет\",\"не применимо\",\"до 1 года\")","v":{"$error":"#REF!"}},{"$f":"IF(#REF!=\"нет\",\"не применимо\",\"до 1 года\")","v":{"$error":"#REF!"}},{"$f":"IF(#REF!=\"нет\",\"не применимо\",\"не более недели\")","v":{"$error":"#REF!"}},{"$f":"IF(#REF!=\"нет\",\"не применимо (ответ на Q8a.4.6 'нет')\",\"да\")","v":{"$error":"#REF!"}},{"$f":"IF(#REF!=\"нет\",\"не применимо (ответ на Q8a.3.5 'нет')\",\"государство/независимый регулятор\")","v":{"$error":"#REF!"}},null,{"$f":"IF(#REF!=\"нет\",\"не применимо\",\"до 1 года\")","v":{"$error":"#REF!"}},{"$f":"IF(#REF!=\"нет\",\"не применимо\",\"до 1 года\")","v":{"$error":"#REF!"}},{"$f":"IF(#REF!=\"нет\",\"не применимо\",\"не более недели\")","v":{"$error":"#REF!"}},{"$f":"IF(#REF!=\"нет\",\"не применимо (ответ на Q8b.4.6 'нет')\",\"да\")","v":{"$error":"#REF!"}},{"$f":"IF(#REF!=\"нет\",\"не применимо (ответ на Q8b.3.5 'нет')\",\"государство/независимый регулятор\")","v":{"$error":"#REF!"}},null,{"$f":"IF(#REF!=\"нет\",\"не применимо\",\"до 1 года\")","v":{"$error":"#REF!"}},{"$f":"IF(#REF!=\"нет\",\"не применимо\",\"до 1 года\")","v":{"$error":"#REF!"}},{"$f":"IF(#REF!=\"нет\",\"не применимо\",\"не более недели\")","v":{"$error":"#REF!"}},{"$f":"IF(#REF!=\"нет\",\"не применимо (ответ на Q8c.4.6 'нет')\",\"да\")","v":{"$error":"#REF!"}},{"$f":"IF(#REF!=\"нет\",\"не применимо (ответ на Q8c.3.5 'нет')\",\"государство/независимый регулятор\")","v":{"$error":"#REF!"}},null,{"$f":"IF('8D-ARCHITECTS'!$S$36=\"нет\",\"не применимо\",\"до 1 года\")","v":"до 1 года"},{"$f":"IF('8D-ARCHITECTS'!$S$38=\"нет\",\"не применимо\",\"до 1 года\")","v":"до 1 года"},{"$f":"IF('8D-ARCHITECTS'!$S$40=\"нет\",\"не применимо\",\"не более недели\")","v":"не более недели"},{"$f":"IF('8D-ARCHITECTS'!$S$55=\"нет\",\"не применимо (ответ на Q8d.4.6 'нет')\",\"да\")","v":"да"},{"$f":"IF('8D-ARCHITECTS'!$S$42=\"нет\",\"не применимо (ответ на Q8d.3.5 'нет')\",\"государство/независимый регулятор\")","v":"государство/независимый регулятор"},null,{"$f":"IF('8E-CIVIL ENGINEERS'!$S$35=\"нет\",\"не применимо\",\"до 1 года\")","v":"до 1 года"},{"$f":"IF('8E-CIVIL ENGINEERS'!$S$37=\"нет\",\"не применимо\",\"до 1 года\")","v":"до 1 года"},{"$f":"IF('8E-CIVIL ENGINEERS'!$S$39=\"нет\",\"не применимо\",\"не более недели\")","v":"не более недели"},{"$f":"IF('8E-CIVIL ENGINEERS'!$S$54=\"нет\",\"не применимо (ответ на Q8e.4.6 'нет')\",\"да\")","v":"да"},{"$f":"IF('8E-CIVIL ENGINEERS'!$S$41=\"нет\",\"не применимо (ответ на Q8e.3.5 'нет')\",\"государство/независимый регулятор\")","v":"государство/независимый регулятор"},null,{"$f":"IF(#REF!=\"нет\",\"не применимо\",\"до 1 года\")","v":{"$error":"#REF!"}},{"$f":"IF(#REF!=\"нет\",\"не применимо\",\"до 1 года\")","v":{"$error":"#REF!"}},{"$f":"IF(#REF!=\"нет\",\"не применимо\",\"не более недели\")","v":{"$error":"#REF!"}},{"$f":"IF(#REF!=\"нет\",\"не применимо (ответ на Q8f.4.6 'нет')\",\"да\")","v":{"$error":"#REF!"}},{"$f":"IF(#REF!=\"нет\",\"не применимо (ответ на Q8f.3.5 'нет')\",\"государство\")","v":{"$error":"#REF!"}}]
[null,null,{"$f":"IF(#REF!=\"нет\",\" \",\"более 1 года до 2 лет\")","v":{"$error":"#REF!"}},{"$f":"IF(#REF!=\"нет\",\" \",\"более 1 года до 2 лет\")","v":{"$error":"#REF!"}},{"$f":"IF(#REF!=\"нет\",\" \",\"до 1 года\")","v":{"$error":"#REF!"}},{"$f":"IF(#REF!=\"нет\",\" \",\"нет\")","v":{"$error":"#REF!"}},{"$f":"IF(#REF!=\"нет\",\" \",\"государство и профессиональный орган/палата\")","v":{"$error":"#REF!"}},null,{"$f":"IF(#REF!=\"нет\",\" \",\"более 1 года до 2 лет\")","v":{"$error":"#REF!"}},{"$f":"IF(#REF!=\"нет\",\" \",\"более 1 года до 2 лет\")","v":{"$error":"#REF!"}},{"$f":"IF(#REF!=\"нет\",\" \",\"до 1 года\")","v":{"$error":"#REF!"}},{"$f":"IF(#REF!=\"нет\",\" \",\"нет\")","v":{"$error":"#REF!"}},{"$f":"IF(#REF!=\"нет\",\" \",\"государство и профессиональный орган/палата\")","v":{"$error":"#REF!"}},null,{"$f":"IF(#REF!=\"нет\",\" \",\"более 1 года до 2 лет\")","v":{"$error":"#REF!"}},{"$f":"IF(#REF!=\"нет\",\" \",\"более 1 года до 2 лет\")","v":{"$error":"#REF!"}},{"$f":"IF(#REF!=\"нет\",\" \",\"до 1 года\")","v":{"$error":"#REF!"}},{"$f":"IF(#REF!=\"нет\",\" \",\"нет\")","v":{"$error":"#REF!"}},{"$f":"IF(#REF!=\"нет\",\" \",\"государство и профессиональный орган/палата\")","v":{"$error":"#REF!"}},null,{"$f":"IF('8D-ARCHITECTS'!$S$36=\"нет\",\" \",\"более 1 года до 2 лет\")","v":"более 1 года до 2 лет"},{"$f":"IF('8D-ARCHITECTS'!$S$38=\"нет\",\" \",\"более 1 года до 2 лет\")","v":"более 1 года до 2 лет"},{"$f":"IF('8D-ARCHITECTS'!$S$40=\"нет\",\" \",\"до 1 года\")","v":"до 1 года"},{"$f":"IF('8D-ARCHITECTS'!$S$55=\"нет\",\" \",\"нет\")","v":"нет"},{"$f":"IF('8D-ARCHITECTS'!$S$42=\"нет\",\" \",\"государство и профессиональный орган/палата\")","v":"государство и профессиональный орган/палата"},null,{"$f":"IF('8E-CIVIL ENGINEERS'!$S$35=\"нет\",\" \",\"более 1 года до 2 лет\")","v":"более 1 года до 2 лет"},{"$f":"IF('8E-CIVIL ENGINEERS'!$S$37=\"нет\",\" \",\"более 1 года до 2 лет\")","v":"более 1 года до 2 лет"},{"$f":"IF('8E-CIVIL ENGINEERS'!$S$39=\"нет\",\" \",\"до 1 года\")","v":"до 1 года"},{"$f":"IF('8E-CIVIL ENGINEERS'!$S$54=\"нет\",\" \",\"нет\")","v":"нет"},{"$f":"IF('8E-CIVIL ENGINEERS'!$S$41=\"нет\",\" \",\"государство и профессиональный орган/палата\")","v":"государство и профессиональный орган/палата"},null,{"$f":"IF(#REF!=\"нет\",\" \",\"более 1 года до 2 лет\")","v":{"$error":"#REF!"}},{"$f":"IF(#REF!=\"нет\",\" \",\"более 1 года до 2 лет\")","v":{"$error":"#REF!"}},{"$f":"IF(#REF!=\"нет\",\" \",\"до 1 года\")","v":{"$error":"#REF!"}},{"$f":"IF(#REF!=\"нет\",\" \",\"нет\")","v":{"$error":"#REF!"}},{"$f":"IF(#REF!=\"нет\",\" \",\"государство и профессиональный орган/палата\")","v":{"$error":"#REF!"}}]
[null,null,{"$f":"IF(#REF!=\"нет\",\" \",\"более 2 лет до 3 лет\")","v":{"$error":"#REF!"}},{"$f":"IF(#REF!=\"нет\",\" \",\"более 2 лет до 3 лет\")","v":{"$error":"#REF!"}},{"$f":"IF(#REF!=\"нет\",\" \",\"более 1 года до 2 лет\")","v":{"$error":"#REF!"}},null,{"$f":"IF(#REF!=\"нет\",\" \",\"профессиональный орган/палата\")","v":{"$error":"#REF!"}},null,{"$f":"IF(#REF!=\"нет\",\" \",\"более 2 лет до 3 лет\")","v":{"$error":"#REF!"}},{"$f":"IF(#REF!=\"нет\",\" \",\"более 2 лет до 3 лет\")","v":{"$error":"#REF!"}},{"$f":"IF(#REF!=\"нет\",\" \",\"более 1 года до 2 лет\")","v":{"$error":"#REF!"}},null,{"$f":"IF(#REF!=\"нет\",\" \",\"профессиональный орган/палата\")","v":{"$error":"#REF!"}},null,{"$f":"IF(#REF!=\"нет\",\" \",\"более 2 лет до 3 лет\")","v":{"$error":"#REF!"}},{"$f":"IF(#REF!=\"нет\",\" \",\"более 2 лет до 3 лет\")","v":{"$error":"#REF!"}},{"$f":"IF(#REF!=\"нет\",\" \",\"более 1 года до 2 лет\")","v":{"$error":"#REF!"}},null,{"$f":"IF(#REF!=\"нет\",\" \",\"профессиональный орган/палата\")","v":{"$error":"#REF!"}},null,{"$f":"IF('8D-ARCHITECTS'!$S$36=\"нет\",\" \",\"более 2 лет до 3 лет\")","v":"более 2 лет до 3 лет"},{"$f":"IF('8D-ARCHITECTS'!$S$38=\"нет\",\" \",\"более 2 лет до 3 лет\")","v":"более 2 лет до 3 лет"},{"$f":"IF('8D-ARCHITECTS'!$S$40=\"нет\",\" \",\"более 1 года до 2 лет\")","v":"более 1 года до 2 лет"},null,{"$f":"IF('8D-ARCHITECTS'!$S$42=\"нет\",\" \",\"профессиональный орган/палата\")","v":"профессиональный орган/палата"},null,{"$f":"IF('8E-CIVIL ENGINEERS'!$S$35=\"нет\",\" \",\"более 2 лет до 3 лет\")","v":"более 2 лет до 3 лет"},{"$f":"IF('8E-CIVIL ENGINEERS'!$S$37=\"нет\",\" \",\"более 2 лет до 3 лет\")","v":"более 2 лет до 3 лет"},{"$f":"IF('8E-CIVIL ENGINEERS'!$S$39=\"нет\",\" \",\"более 1 года до 2 лет\")","v":"более 1 года до 2 лет"},null,{"$f":"IF('8E-CIVIL ENGINEERS'!$S$41=\"нет\",\" \",\"профессиональный орган/палата\")","v":"профессиональный орган/палата"},null,{"$f":"IF(#REF!=\"нет\",\" \",\"более 2 лет до 3 лет\")","v":{"$error":"#REF!"}},{"$f":"IF(#REF!=\"нет\",\" \",\"более 2 лет до 3 лет\")","v":{"$error":"#REF!"}},{"$f":"IF(#REF!=\"нет\",\" \",\"более 1 года до 2 лет\")","v":{"$error":"#REF!"}},null,{"$f":"IF(#REF!=\"нет\",\" \",\"профессиональный орган/палата\")","v":{"$error":"#REF!"}}]
[null,null,{"$f":"IF(#REF!=\"нет\",\" \",\"более 3 лет до 4 лет\")","v":{"$error":"#REF!"}},{"$f":"IF(#REF!=\"нет\",\" \",\"более 3 лет до 4 лет\")","v":{"$error":"#REF!"}},{"$f":"IF(#REF!=\"нет\",\" \",\"более 2 лет до 3 лет\")","v":{"$error":"#REF!"}},null,null,null,{"$f":"IF(#REF!=\"нет\",\" \",\"более 3 лет до 4 лет\")","v":{"$error":"#REF!"}},{"$f":"IF(#REF!=\"нет\",\" \",\"более 3 лет до 4 лет\")","v":{"$error":"#REF!"}},{"$f":"IF(#REF!=\"нет\",\" \",\"более 2 лет до 3 лет\")","v":{"$error":"#REF!"}},null,null,null,{"$f":"IF(#REF!=\"нет\",\" \",\"более 3 лет до 4 лет\")","v":{"$error":"#REF!"}},{"$f":"IF(#REF!=\"нет\",\" \",\"более 3 лет до 4 лет\")","v":{"$error":"#REF!"}},{"$f":"IF(#REF!=\"нет\",\" \",\"более 2 лет до 3 лет\")","v":{"$error":"#REF!"}},null,null,null,{"$f":"IF('8D-ARCHITECTS'!$S$36=\"нет\",\" \",\"более 3 лет до 4 лет\")","v":"более 3 лет до 4 лет"},{"$f":"IF('8D-ARCHITECTS'!$S$38=\"нет\",\" \",\"более 3 лет до 4 лет\")","v":"более 3 лет до 4 лет"},{"$f":"IF('8D-ARCHITECTS'!$S$40=\"нет\",\" \",\"более 2 лет до 3 лет\")","v":"более 2 лет до 3 лет"},null,null,null,{"$f":"IF('8E-CIVIL ENGINEERS'!$S$35=\"нет\",\" \",\"более 3 лет до 4 лет\")","v":"более 3 лет до 4 лет"},{"$f":"IF('8E-CIVIL ENGINEERS'!$S$37=\"нет\",\" \",\"более 3 лет до 4 лет\")","v":"более 3 лет до 4 лет"},{"$f":"IF('8E-CIVIL ENGINEERS'!$S$39=\"нет\",\" \",\"более 2 лет до 3 лет\")","v":"более 2 лет до 3 лет"},null,null,null,{"$f":"IF(#REF!=\"нет\",\" \",\"более 3 лет до 4 лет\")","v":{"$error":"#REF!"}},{"$f":"IF(#REF!=\"нет\",\" \",\"более 3 лет до 4 лет\")","v":{"$error":"#REF!"}},{"$f":"IF(#REF!=\"нет\",\" \",\"более 2 лет до 3 лет\")","v":{"$error":"#REF!"}}]
[null,null,{"$f":"IF(#REF!=\"нет\",\" \",\"более 4 лет до 5 лет\")","v":{"$error":"#REF!"}},{"$f":"IF(#REF!=\"нет\",\" \",\"более 4 лет до 5 лет\")","v":{"$error":"#REF!"}},{"$f":"IF(#REF!=\"нет\",\" \",\"более 3 лет до 4 лет\")","v":{"$error":"#REF!"}},null,null,null,{"$f":"IF(#REF!=\"нет\",\" \",\"более 4 лет до 5 лет\")","v":{"$error":"#REF!"}},{"$f":"IF(#REF!=\"нет\",\" \",\"более 4 лет до 5 лет\")","v":{"$error":"#REF!"}},{"$f":"IF(#REF!=\"нет\",\" \",\"более 3 лет до 4 лет\")","v":{"$error":"#REF!"}},null,null,null,{"$f":"IF(#REF!=\"нет\",\" \",\"более 4 лет до 5 лет\")","v":{"$error":"#REF!"}},{"$f":"IF(#REF!=\"нет\",\" \",\"более 4 лет до 5 лет\")","v":{"$error":"#REF!"}},{"$f":"IF(#REF!=\"нет\",\" \",\"более 3 лет до 4 лет\")","v":{"$error":"#REF!"}},null,null,null,{"$f":"IF('8D-ARCHITECTS'!$S$36=\"нет\",\" \",\"более 4 лет до 5 лет\")","v":"более 4 лет до 5 лет"},{"$f":"IF('8D-ARCHITECTS'!$S$38=\"нет\",\" \",\"более 4 лет до 5 лет\")","v":"более 4 лет до 5 лет"},{"$f":"IF('8D-ARCHITECTS'!$S$40=\"нет\",\" \",\"более 3 лет до 4 лет\")","v":"более 3 лет до 4 лет"},null,null,null,{"$f":"IF('8E-CIVIL ENGINEERS'!$S$35=\"нет\",\" \",\"более 4 лет до 5 лет\")","v":"более 4 лет до 5 лет"},{"$f":"IF('8E-CIVIL ENGINEERS'!$S$37=\"нет\",\" \",\"более 4 лет до 5 лет\")","v":"более 4 лет до 5 лет"},{"$f":"IF('8E-CIVIL ENGINEERS'!$S$39=\"нет\",\" \",\"более 3 лет до 4 лет\")","v":"более 3 лет до 4 лет"},null,null,null,{"$f":"IF(#REF!=\"нет\",\" \",\"более 4 лет до 5 лет\")","v":{"$error":"#REF!"}},{"$f":"IF(#REF!=\"нет\",\" \",\"более 4 лет до 5 лет\")","v":{"$error":"#REF!"}},{"$f":"IF(#REF!=\"нет\",\" \",\"более 3 лет до 4 лет\")","v":{"$error":"#REF!"}}]
[null,null,{"$f":"IF(#REF!=\"нет\",\" \",\"более 5 лет\")","v":{"$error":"#REF!"}},{"$f":"IF(#REF!=\"нет\",\" \",\"более 5 лет\")","v":{"$error":"#REF!"}},{"$f":"IF(#REF!=\"нет\",\" \",\"более 4 лет до 5 лет\")","v":{"$error":"#REF!"}},null,null,null,{"$f":"IF(#REF!=\"нет\",\" \",\"более 5 лет\")","v":{"$error":"#REF!"}},{"$f":"IF(#REF!=\"нет\",\" \",\"более 5 лет\")","v":{"$error":"#REF!"}},{"$f":"IF(#REF!=\"нет\",\" \",\"более 4 лет до 5 лет\")","v":{"$error":"#REF!"}},null,null,null,{"$f":"IF(#REF!=\"нет\",\" \",\"более 5 лет\")","v":{"$error":"#REF!"}},{"$f":"IF(#REF!=\"нет\",\" \",\"более 5 лет\")","v":{"$error":"#REF!"}},{"$f":"IF(#REF!=\"нет\",\" \",\"более 4 лет до 5 лет\")","v":{"$error":"#REF!"}},null,null,null,{"$f":"IF('8D-ARCHITECTS'!$S$36=\"нет\",\" \",\"более 5 лет\")","v":"более 5 лет"},{"$f":"IF('8D-ARCHITECTS'!$S$38=\"нет\",\" \",\"более 5 лет\")","v":"более 5 лет"},{"$f":"IF('8D-ARCHITECTS'!$S$40=\"нет\",\" \",\"более 4 лет до 5 лет\")","v":"более 4 лет до 5 лет"},null,null,null,{"$f":"IF('8E-CIVIL ENGINEERS'!$S$35=\"нет\",\" \",\"более 5 лет\")","v":"более 5 лет"},{"$f":"IF('8E-CIVIL ENGINEERS'!$S$37=\"нет\",\" \",\"более 5 лет\")","v":"более 5 лет"},{"$f":"IF('8E-CIVIL ENGINEERS'!$S$39=\"нет\",\" \",\"более 4 лет до 5 лет\")","v":"более 4 лет до 5 лет"},null,null,null,{"$f":"IF(#REF!=\"нет\",\" \",\"более 5 лет\")","v":{"$error":"#REF!"}},{"$f":"IF(#REF!=\"нет\",\" \",\"более 5 лет\")","v":{"$error":"#REF!"}},{"$f":"IF(#REF!=\"нет\",\" \",\"более 4 лет до 5 лет\")","v":{"$error":"#REF!"}}]
[{"$nulls":4},{"$f":"IF(#REF!=\"нет\",\" \",\"более 5 лет\")","v":{"$error":"#REF!"}},{"$nulls":5},{"$f":"IF(#REF!=\"нет\",\" \",\"более 5 лет\")","v":{"$error":"#REF!"}},{"$nulls":5},{"$f":"IF(#REF!=\"нет\",\" \",\"более 5 лет\")","v":{"$error":"#REF!"}},{"$nulls":5},{"$f":"IF('8D-ARCHITECTS'!$S$40=\"нет\",\" \",\"более 5 лет\")","v":"более 5 лет"},{"$nulls":5},{"$f":"IF('8E-CIVIL ENGINEERS'!$S$39=\"нет\",\" \",\"более 5 лет\")","v":"более 5 лет"},{"$nulls":5},{"$f":"IF(#REF!=\"нет\",\" \",\"более 5 лет\")","v":{"$error":"#REF!"}}]